Workbook

Sheet Cover Sheet
C2: Model Details
C4: Model Name: | D4: TasNetworks (Public Lighting Model)
C6: Date: | D6: 2018-11-22
B20: Model Description/Scope
B22: Model Description
B24: This is a street lighting pricing model which works out the pricing for indiviual contract and public lights and estimates the total revenue build up for street lighting in $Real 2019-20.
B29: Scope/Disclaimer

Sheet Model Structure (hidden)
B9: Model Overview
B11: Legend
B20: Model Structure

Sheet Model Information
B2: Process information
B3: Public lighting includes many parts that have different life cycles which also vary depending on the light type. The main parts in a light are as follow:
B5: o Light Bracket - most lights have a bracket which allows the luminaire to be attached to a power pole, this is capital expenditure. There are some lights that are on private piles that do not require brackets, these poles and built in brackets are not the responsibility of TasNetworks. Brackets are assumed to have a life cycle of 40 years
B9: o Luminaire - The luminaire is the light fitting that the lamp is within and is a capital expenditure. Luminaires are assumed to have a life cycle of 20 years
B12: o Lamp - Within the luminaire is a lamp that requires replacement depending on the light type. Normal lights have a life cycle of 4.5 years on average therefore the replacement program is every 4 years as opex expenditure. LED lights are the exception as they last 20 years and are replaced when the luminaire requires replacing.
B16: o PE Cell - Public lights are switched on and off using PE Cells which in the last 30 years have replaced overhead switch wires as a new technology. They are replaced either with the lamp on after 10 year as opex.
B19: o Installation Cost - The TasNetworks POW has inbuilt unit prices for both opex and capex installation costs of public lights. These prices have been used for luminaire /Bracket capex installation excluding the material proportion plus actual materials from the warehouse prices. The same method has been used for Opex maintenance (Lamp & PE Cell replacement), using the POW unit rate net of materials plus actual materials for the individual light type. The 2 unit rates are determined using the Major/minor allocation of the light.
B25: Public lighting prices have previously used the annuity method rather than a RAB method. The annuity method is more accurate and produces more cost reflective prices compared to the RAB method which has some unreliable data. The opening RAB data was estimated by the business therefore its accuracy is unknown, because of this the PTRM output is used as a indicator test for the Annuity method.
B32: Assumptions
B33: Brackets
B34: A sample base for brackets has been sourced from the thread leader which aligns the light type with bracket type and cost. This sample base of 10,000 out of a total of 40,000+ lights is assumed to represent the whole fleet of brackets.
B37: Of the 40,000+ public lights there are a number of private poles for the public light that do not require a bracket. The public lighting asset management plan has the total number of brackets in the fleet (not down to type assigned to light type for costing). Therefore the cost of the brackets is weighted so that only the total number of brackets are recovered.
B41: Lamps
B42: Lamps have a assumed life cycle of 4.5 years therefore they are replaced within the POW after 4 years. LEDs do not require a lamp replacement within the 20 year life cycle of the luminaire.
B45: PE Cells
B46: There are two types of PE Cells and it is assumed that major lights have the more expensive cell installed while the minor lights have the smaller and cheaper PE Cell.
B49: PE Cells have a assumed 10 year life therefore to align with the 4 year lamp replacement program they are replaced after 8 years however with LED's they are replaced after 10 years.
B52: Installation and maintenance cost
B53: The POW assumption about what lights are major and minor for work to be completed is based on lights less than or greater than 100 watts. This results in a higher cost associated with the major lights due to higher costs performing maintenance and installation.
B56: It is assumed that the cost of performing a Lamp replacement is the same doing the PE Cell at the same time or only PE cell.
B59: It is assumed that the cost of performing a luminaire installation/replacement is the same doing the Brackett at the same time
B62: Other assumptions
B63: It is assumed that contract prices for materials are to remain consistent with current prices.
B66: Where a warehouse price is not available due to the light type is obsolete the previous determination prices have been indexed.
B69: Indirect capex that is not included in the unit price build up is included in the annuity calculation and assumed to have a 40 year life given it is work on the street lights that have the same life.
B72: Private contract lights are owned by client and TasNetworks just performs maintenance on the light. Capital replacements are the responsibility of the owner.
B75: New Technology - minor lighting is assumed the same as our current latest technology (LED 14W), Major lighting for LED technology has not been trialled, the equivalent LED technology to our 150W and 250W sodium vapour is a 160W LED, maintenance cycles are unknown so have assumed to be the same as the current 250W sodium vapour.

Sheet TN Changes
A2: Item | B2: Sheet \ Location | C2: Comment
A4: 1 | B4: Revenue Nominal RAB | C4: Deleted Sheet (not relevant to Annuity Calculation)
A6: 2 | B6: Capex Weighting A14:Z80 | C6: Deleted hidden rows (not relevant to annuity calculation)
A8: 3 | B8: Opex Weighting A13:Z78 | C8: Deleted hidden rows (not relevant to annuity calculation)
A10: 4 | B10: Capex Weighting O:X | C10: Deleted columns (duplicate information)
A12: 5 | B12: Opex Weighting P:Z | C12: Deleted columns (duplicate information)
A14: 6 | B14: Mater Data A43:T46 | C14: Deleted rows (not relevant to annuity calculation)
A16: 7 | B16: CAPEX Annuity Calcs E:N | C16: Formula Changes
B18: Bracket UNIT Price column E | C18: From '=VLOOKUP($B9,Inputs!$C$68:$AN$129,MATCH($B10,Inputs!$C$68:$AN$68,0),FALSE)*'Master Data'!$K$46
C19: To '=VLOOKUP($B9,Inputs!$C$68:$AN$129,MATCH($B10,Inputs!$C$68:$AN$68,0),FALSE)
B21: Bracket UNIT Price column F:N | C21: From '=E10*(1+'Master Data'!L$45)
C22: To '=E10
B24: Luminaire UNIT price column E | C24: From '=VLOOKUP($B9,Inputs!$C$68:$AN$129,MATCH($B12,Inputs!$C$68:$AN$68,0),FALSE)*'Master Data'!$K$43
C25: To '=VLOOKUP($B9,Inputs!$C$68:$AN$129,MATCH($B12,Inputs!$C$68:$AN$68,0),FALSE)
B27: Luminaire UNIT price column F:N | C27: From '=E12*(1+'Master Data'!L$43)
C28: To '=E12
B30: CAPEX Instalation costs column E | C30: From '=(VLOOKUP($B9,Inputs!$C$68:$AN$129,MATCH($B13,Inputs!$C$68:$AN$68,0),FALSE)+(VLOOKUP($B9,Inputs!$C$68:$AN$129,MATCH($A13,Inputs!$C$68:$AN$68,0),FALSE)*('Master Data'!K$42)))*'Master Data'!$K$43
C31: To '=VLOOKUP($B9,Inputs!$C$68:$AN$129,MATCH($B13,Inputs!$C$68:$AN$68,0),FALSE)+(VLOOKUP($B9,Inputs!$C$68:$AN$129,MATCH($A13,Inputs!$C$68:$AN$68,0),FALSE)*('Master Data'!K$42))
B33: CAPEX Instalation costs column F:N | C33: From '=(VLOOKUP($B9,Inputs!$C$68:$AN$129,MATCH($B13,Inputs!$C$68:$AN$68,0),FALSE)+(VLOOKUP($B9,Inputs!$C$68:$AN$129,MATCH($A13,Inputs!$C$68:$AN$68,0),FALSE)*('Master Data'!L$42)))*(1+'Master Data'!L$43)
C34: To '=VLOOKUP($B9,Inputs!$C$68:$AN$129,MATCH($B13,Inputs!$C$68:$AN$68,0),FALSE)+(VLOOKUP($B9,Inputs!$C$68:$AN$129,MATCH($A13,Inputs!$C$68:$AN$68,0),FALSE)*('Master Data'!L$42))
A36: 8 | B36: Capex Weighting A29:M29, A33:M33 | C36: Reallocate RLOLI and RLWBP from Indirect to direct Capital expenditure
B38: Capex - New Streetlight installation - RLOLI
B39: Capex - Replace condemned wide based steel poles - RLWBP
A41: 9 | B41: Building Block C52 | C41: Change opening regulated asset base amount from $1,660,347 to $550,413.22 to reflect the change from RLOLI and RLWBP being reallocated to direct capital expenditure
A43: 10 | B43: Volumes D5: H79 | C43: Update volumes
A45: 11 | B45: Corporate overheads H:I | C45: add overhead adjustment
B46: E4:E13 | C46: Adjust formula for overhead adjustment
B47: D18:D27 | C47: Adjust formula for overhead adjustment
A49: 12 | B49: Capex Weighting
B50: B14:M17 | C50: Capex adjustment due to volume changes
B51: D22: M23, D31:M32 | C51: Formula changes due to capex changes
A53: 13 | B53: Add tab 'Adjustment "A" | C53: Additional tab to bring prices back to Proposed price path
A56: 14 | B56: Smoothed Prices with Price Path
B57: D12: M70 | C57: adjust formula for Adjustment
C58: From '=IF($C12="NA","",'Smoothed Prices'!D12+$D$6)
C59: To '=IF($C12="NA","",'Smoothed Prices'!D12+'Adjustment "A"'!O12)
B60: D75: M133 | C60: adjust formula for Adjustment
C61: From '=IF($C75="NA","",'Smoothed Prices'!D75+$D$7)
C62: To '=IF($C75="NA","",'Smoothed Prices'!D75+'Adjustment "A"'!O75)
A64: 15 | B64: Bracket Data | C64: Removed information
B65: B5:AZ24539
B66: BC5:CF24539
A69: 16 | B69: Warehousing Pricing | C69: Removed information
B70: C9:M70
B71: C85:C95
B72: F85:M95
A77: August 2018 changes
A78: 1 | B78: Master Data | C78: Update WACC
B79: B45 - Nominal Vanilla WACC | C79: Changed from 5.89% to 5.89% - as per PTRM [TN- Post Tax Revenue Model (PTRM) Distribution - Standard Control.xlsm]WACC
B80: B46 - Pre-tax Real WACC Rate | C80: Changed from 3.66% to 3.95% - as per PTRM [TN- Post Tax Revenue Model (PTRM) Distribution - Standard Control.xlsm]WACC
A87: Revised Proposal
A88: 1 | B88: Warehouse Prices
B89: T8:V70 | C89: Include foreign exchange variation
B90: Q1:V3 | C90: Foreign exchange contract varition to 31 March 2017
A92: 2 | B92: Inputs
B93: E53:E57 | C93: Update static values
A95: 3 | B95: Various | C95: Add data and code beyond 2023/24 - 2028/29
A97: 4 | B97: Sheet "Smoothed Prices with Price Path" | C97: Added

Sheet AER Changes
A2: Item | B2: Sheet \ Location | C2: Comment
A4: 1 | B4: Master Data'!I35 | C4: Forecast CPI replaced with actual CPI for 2018-19 consistent with SCS RFM
A5: =A4+1 -> 2 | B5: Master Data'!K40:O40 | C5: AER Real Labour Escalator
A6: =A5+1 -> 3 | B6: Master Data'!B44 | C6: AER Forecast CPI - Final Decision SCS PTRM
A7: 4 | B7: Master Data'!A45 | C7: AER Nominal Vanilla WACC - Final Decision SCS PTRM
A8: 5 | B8: Master Data'!A46 | C8: AER Pre-tax Real WACC Rate - Final Decision SCS PTRM

Sheet Smoothed Prices
B1: $2018-19 base data
Q3: THIS TAKES 18/19 SMOOTHED PRICES ADDS CPI | AM3: THIS TAKES 18/19 SMOOTHED PRICES and multiplys by no.days in year/100 to convert $s into cents | AX3: THIS TAKES nominal and multiplys by no days in year/100
B4: Private Contract Lights
D8: Approved | E8: Unsmoothed | F8: X Factor (years 2-5) | P8: Days | Q8: ='Master Data'!K28 -> 366 | R8: ='Master Data'!L28 -> 365 | S8: ='Master Data'!M28 -> 365 | T8: ='Master Data'!N28 -> 365 | U8: ='Master Data'!O28 -> 366
D9: Prices | E9: =Q149 -> 0.1028725005 | F9: =R149 -> -0.017 | G9: =S149 -> -0.017 | H9: =T149 -> -0.017 | I9: -0.017 | P9: CPI | Q9: ='Master Data'!K39 -> 1.024248747 | R9: ='Master Data'!L39 -> 1.049085495 | S9: ='Master Data'!M39 -> 1.074524503 | T9: ='Master Data'!N39 -> 1.100580376 | U9: ='Master Data'!O39 -> 1.12726807 | AM9: =HLOOKUP(AM11,'Master Data'!$B$25:$P$28,4,FALSE) -> 366 | AN9: =HLOOKUP(AN11,'Master Data'!$B$25:$P$28,4,FALSE) -> 365 | AO9: =HLOOKUP(AO11,'Master Data'!$B$25:$P$28,4,FALSE) -> 365 | AP9: =HLOOKUP(AP11,'Master Data'!$B$25:$P$28,4,FALSE) -> 365 | AQ9: =HLOOKUP(AQ11,'Master Data'!$B$25:$P$28,4,FALSE) -> 366 | AX9: =HLOOKUP(AX11,'Master Data'!$B$25:$P$28,4,FALSE) -> 366 | AY9: =HLOOKUP(AY11,'Master Data'!$B$25:$P$28,4,FALSE) -> 365 | AZ9: =HLOOKUP(AZ11,'Master Data'!$B$25:$P$28,4,FALSE) -> 365 | BA9: =HLOOKUP(BA11,'Master Data'!$B$25:$P$28,4,FALSE) -> 365 | BB9: =HLOOKUP(BB11,'Master Data'!$B$25:$P$28,4,FALSE) -> 366
B10: Private Contract Lights | F10: Price (cents) per Light per day Real 2018/19 Smoothed | Q10: Price (cents) per Light per day Nominal Smoothed | AB10: Volumes | AM10: Smooth Real 2018/19 Cost Dollars Per Year | AX10: Smooth Nominal Cost Dollars Per Year | BJ10: Revenue Real Real Dollars Per Year | BV10: Revenue Nominal Dollars Per Year
C11: Offered / No Longer Offered / NA | D11: ='Master Data'!J$34 -> 2018-19 | E11: ='Master Data'!K$34 -> 2019-20 | F11: ='Master Data'!L$34 -> 2020-21 | G11: ='Master Data'!M$34 -> 2021-22 | H11: ='Master Data'!N$34 -> 2022-23 | I11: ='Master Data'!O$34 -> 2023-24 | Q11: ='Master Data'!K$34 -> 2019-20 | R11: ='Master Data'!L$34 -> 2020-21 | S11: ='Master Data'!M$34 -> 2021-22 | T11: ='Master Data'!N$34 -> 2022-23 | U11: ='Master Data'!O$34 -> 2023-24 | AB11: ='Master Data'!K$34 -> 2019-20 | AC11: ='Master Data'!L$34 -> 2020-21 | AD11: ='Master Data'!M$34 -> 2021-22 | AE11: ='Master Data'!N$34 -> 2022-23 | AF11: ='Master Data'!O$34 -> 2023-24 | AM11: ='Master Data'!K$34 -> 2019-20 | AN11: ='Master Data'!L$34 -> 2020-21 | AO11: ='Master Data'!M$34 -> 2021-22 | AP11: ='Master Data'!N$34 -> 2022-23 | AQ11: ='Master Data'!O$34 -> 2023-24 | AX11: ='Master Data'!K$34 -> 2019-20 | AY11: ='Master Data'!L$34 -> 2020-21 | AZ11: ='Master Data'!M$34 -> 2021-22 | BA11: ='Master Data'!N$34 -> 2022-23 | BB11: ='Master Data'!O$34 -> 2023-24 | BJ11: ='Master Data'!K$34 -> 2019-20 | BK11: ='Master Data'!L$34 -> 2020-21 | BL11: ='Master Data'!M$34 -> 2021-22 | BM11: ='Master Data'!N$34 -> 2022-23 | BN11: ='Master Data'!O$34 -> 2023-24 | BV11: ='Master Data'!K$34 -> 2019-20 | BW11: ='Master Data'!L$34 -> 2020-21 | BX11: ='Master Data'!M$34 -> 2021-22 | BY11: ='Master Data'!N$34 -> 2022-23 | BZ11: ='Master Data'!O$34 -> 2023-24
B12: =Inputs!$C69 -> 32W Compact Fluorescent | C12: Old light no volumes | D12: =IF($C12="NA","",'Unsmoothed Prices'!D10) -> 18.221 | E12: =IF($C12="NA","",('Unsmoothed Prices'!E10*(1-E$9))) -> 18.22513292 | F12: =IF($C12="NA","",E12*(1-F$9)) -> 18.53496018 | G12: =IF($C12="NA","",F12*(1-G$9)) -> 18.8500545 | H12: 19.17050543 | I12: 19.49640402 | Q12: =IF($C12="NA","",E12*Q$9) -> 18.66706955 | R12: 19.44475787 | S12: 20.25484545 | T12: 21.09868206 | U12: 21.97767374 | AB12: =IFERROR(VLOOKUP($B12,Volumes!$B$4:$H$33,MATCH(AB$11,Volumes!$B$4:$H$4,0),FALSE),0) -> 0 | AC12: =IFERROR(VLOOKUP($B12,Volumes!$B$4:$H$33,MATCH(AC$11,Volumes!$B$4:$H$4,0),FALSE),0) -> 0 | AD12: =IFERROR(VLOOKUP($B12,Volumes!$B$4:$H$33,MATCH(AD$11,Volumes!$B$4:$H$4,0),FALSE),0) -> 0 | AE12: =IFERROR(VLOOKUP($B12,Volumes!$B$4:$H$33,MATCH(AE$11,Volumes!$B$4:$H$4,0),FALSE),0) -> 0 | AF12: =IFERROR(VLOOKUP($B12,Volumes!$B$4:$H$33,MATCH(AF$11,Volumes!$B$4:$H$4,0),FALSE),0) -> 0 | AM12: =IF($C12="NA","",(E12*AM$9)/100) -> 66.70398649 | AN12: 67.65260465 | AO12: 68.80269893 | AP12: 69.97234482 | AQ12: 71.35683872 | AX12: =IF($C12="NA","",(Q12*AX$9)/100) -> 68.32147455 | AY12: 70.97336623 | AZ12: 73.93018589 | BA12: 77.01018953 | BB12: 80.43828587 | BJ12: =IFERROR(AM12*AB12,0) -> 0 | BK12: 0 | BL12: 0 | BM12: 0 | BN12: 0 | BV12: =IFERROR(AX12*AB12,0) -> 0 | BW12: 0 | BX12: 0 | BY12: 0 | BZ12: 0
B13: =Inputs!$C70 -> 42W Compact Fluorescent | C13: Old light no volumes | D13: =IF($C13="NA","",'Unsmoothed Prices'!D11) -> 18.222 | E13: =IF($C13="NA","",('Unsmoothed Prices'!E11*(1-E$9))) -> 18.22513292 | F13: =IF($C13="NA","",E13*(1-F$9)) -> 18.53496018 | G13: 18.8500545 | H13: 19.17050543 | I13: 19.49640402 | Q13: 18.66706955 | R13: 19.44475787 | S13: 20.25484545 | T13: 21.09868206 | U13: 21.97767374 | AB13: =IFERROR(VLOOKUP($B13,Volumes!$B$4:$H$33,MATCH(AB$11,Volumes!$B$4:$H$4,0),FALSE),0) -> 28 | AC13: =IFERROR(VLOOKUP($B13,Volumes!$B$4:$H$33,MATCH(AC$11,Volumes!$B$4:$H$4,0),FALSE),0) -> 28 | AD13: =IFERROR(VLOOKUP($B13,Volumes!$B$4:$H$33,MATCH(AD$11,Volumes!$B$4:$H$4,0),FALSE),0) -> 28 | AE13: =IFERROR(VLOOKUP($B13,Volumes!$B$4:$H$33,MATCH(AE$11,Volumes!$B$4:$H$4,0),FALSE),0) -> 28 | AF13: =IFERROR(VLOOKUP($B13,Volumes!$B$4:$H$33,MATCH(AF$11,Volumes!$B$4:$H$4,0),FALSE),0) -> 28 | AM13: 66.70398649 | AN13: 67.65260465 | AO13: 68.80269893 | AP13: 69.97234482 | AQ13: 71.35683872 | AX13: 68.32147455 | AY13: 70.97336623 | AZ13: 73.93018589 | BA13: 77.01018953 | BB13: 80.43828587 | BJ13: 1867.711622 | BK13: 1894.27293 | BL13: 1926.47557 | BM13: 1959.225655 | BN13: 1997.991484 | BV13: 1913.001287 | BW13: 1987.254255 | BX13: 2070.045205 | BY13: 2156.285307 | BZ13: 2252.272004
B14: =Inputs!$C71 -> 42W Compact Fluorescent - Bottom Pole Entry | C14: Old light no volumes | D14: =IF($C14="NA","",'Unsmoothed Prices'!D12) -> 18.222 | E14: =IF($C14="NA","",('Unsmoothed Prices'!E12*(1-E$9))) -> 18.22513292 | F14: 18.53496018 | G14: 18.8500545 | H14: 19.17050543 | I14: 19.49640402 | Q14: 18.66706955 | R14: 19.44475787 | S14: 20.25484545 | T14: 21.09868206 | U14: 21.97767374 | AB14: =IFERROR(VLOOKUP($B14,Volumes!$B$4:$H$33,MATCH(AB$11,Volumes!$B$4:$H$4,0),FALSE),0) -> 0 | AC14: =IFERROR(VLOOKUP($B14,Volumes!$B$4:$H$33,MATCH(AC$11,Volumes!$B$4:$H$4,0),FALSE),0) -> 0 | AD14: =IFERROR(VLOOKUP($B14,Volumes!$B$4:$H$33,MATCH(AD$11,Volumes!$B$4:$H$4,0),FALSE),0) -> 0 | AE14: =IFERROR(VLOOKUP($B14,Volumes!$B$4:$H$33,MATCH(AE$11,Volumes!$B$4:$H$4,0),FALSE),0) -> 0 | AF14: =IFERROR(VLOOKUP($B14,Volumes!$B$4:$H$33,MATCH(AF$11,Volumes!$B$4:$H$4,0),FALSE),0) -> 0 | AM14: 66.70398649 | AN14: 67.65260465 | AO14: 68.80269893 | AP14: 69.97234482 | AQ14: 71.35683872 | AX14: 68.32147455 | AY14: 70.97336623 | AZ14: 73.93018589 | BA14: 77.01018953 | BB14: 80.43828587 | BJ14: 0 | BK14: 0 | BL14: 0 | BM14: 0 | BN14: 0 | BV14: 0 | BW14: 0 | BX14: 0 | BY14: 0 | BZ14: 0
B15: =Inputs!$C72 -> 2x24W Compact Fluorescent | C15: Old light no volumes | D15: =IF($C15="NA","",'Unsmoothed Prices'!D13) -> 18.545 | E15: =IF($C15="NA","",('Unsmoothed Prices'!E13*(1-E$9))) -> 18.59828984 | F15: 18.91446077 | G15: 19.2360066 | H15: 19.56301871 | I15: 19.89559003 | Q15: 19.04927506 | R15: 19.84288643 | S15: 20.66956044 | T15: 21.53067448 | U15: 22.42766338 | AB15: =IFERROR(VLOOKUP($B15,Volumes!$B$4:$H$33,MATCH(AB$11,Volumes!$B$4:$H$4,0),FALSE),0) -> 0 | AC15: =IFERROR(VLOOKUP($B15,Volumes!$B$4:$H$33,MATCH(AC$11,Volumes!$B$4:$H$4,0),FALSE),0) -> 0 | AD15: =IFERROR(VLOOKUP($B15,Volumes!$B$4:$H$33,MATCH(AD$11,Volumes!$B$4:$H$4,0),FALSE),0) -> 0 | AE15: =IFERROR(VLOOKUP($B15,Volumes!$B$4:$H$33,MATCH(AE$11,Volumes!$B$4:$H$4,0),FALSE),0) -> 0 | AF15: =IFERROR(VLOOKUP($B15,Volumes!$B$4:$H$33,MATCH(AF$11,Volumes!$B$4:$H$4,0),FALSE),0) -> 0 | AM15: 68.06974082 | AN15: 69.0377818 | AO15: 70.21142409 | AP15: 71.4050183 | AQ15: 72.81785952 | AX15: 69.72034671 | AY15: 72.42653549 | AZ15: 75.44389559 | BA15: 78.58696186 | BB15: 82.08524797 | BJ15: 0 | BK15: 0 | BL15: 0 | BM15: 0 | BN15: 0 | BV15: 0 | BW15: 0 | BX15: 0 | BY15: 0 | BZ15: 0
B16: =Inputs!$C73 -> 1x20W Fluorescent | C16: Obsolete, no new Connections | D16: =IF($C16="NA","",'Unsmoothed Prices'!D14) -> 18.189 | E16: =IF($C16="NA","",('Unsmoothed Prices'!E14*(1-E$9))) -> 18.10788162 | F16: 18.41571561 | G16: 18.72878277 | H16: 19.04717208 | I16: 19.370974 | Q16: 18.54697505 | R16: 19.31966012 | S16: 20.124536 | T16: 20.9629438 | U16: 21.83628048 | AB16: =IFERROR(VLOOKUP($B16,Volumes!$B$4:$H$33,MATCH(AB$11,Volumes!$B$4:$H$4,0),FALSE),0) -> 0 | AC16: =IFERROR(VLOOKUP($B16,Volumes!$B$4:$H$33,MATCH(AC$11,Volumes!$B$4:$H$4,0),FALSE),0) -> 0 | AD16: =IFERROR(VLOOKUP($B16,Volumes!$B$4:$H$33,MATCH(AD$11,Volumes!$B$4:$H$4,0),FALSE),0) -> 0 | AE16: =IFERROR(VLOOKUP($B16,Volumes!$B$4:$H$33,MATCH(AE$11,Volumes!$B$4:$H$4,0),FALSE),0) -> 0 | AF16: =IFERROR(VLOOKUP($B16,Volumes!$B$4:$H$33,MATCH(AF$11,Volumes!$B$4:$H$4,0),FALSE),0) -> 0 | AM16: 66.27484672 | AN16: 67.21736196 | AO16: 68.36005711 | AP16: 69.52217808 | AQ16: 70.89776485 | AX16: 67.88192868 | AY16: 70.51675943 | AZ16: 73.45455641 | BA16: 76.51474486 | BB16: 79.92078656 | BJ16: 0 | BK16: 0 | BL16: 0 | BM16: 0 | BN16: 0 | BV16: 0 | BW16: 0 | BX16: 0 | BY16: 0 | BZ16: 0
B17: =Inputs!$C74 -> 1x40W Fluorescent | C17: Obsolete, no new Connections | D17: =IF($C17="NA","",'Unsmoothed Prices'!D15) -> 18.208 | E17: =IF($C17="NA","",('Unsmoothed Prices'!E15*(1-E$9))) -> 18.1246318 | F17: 18.43275054 | G17: 18.7461073 | H17: 19.06479113 | I17: 19.38889258 | Q17: 18.56413141 | R17: 19.33753123 | S17: 20.14315164 | T17: 20.98233498 | U17: 21.85647952 | AB17: =IFERROR(VLOOKUP($B17,Volumes!$B$4:$H$33,MATCH(AB$11,Volumes!$B$4:$H$4,0),FALSE),0) -> 0 | AC17: =IFERROR(VLOOKUP($B17,Volumes!$B$4:$H$33,MATCH(AC$11,Volumes!$B$4:$H$4,0),FALSE),0) -> 0 | AD17: =IFERROR(VLOOKUP($B17,Volumes!$B$4:$H$33,MATCH(AD$11,Volumes!$B$4:$H$4,0),FALSE),0) -> 0 | AE17: =IFERROR(VLOOKUP($B17,Volumes!$B$4:$H$33,MATCH(AE$11,Volumes!$B$4:$H$4,0),FALSE),0) -> 0 | AF17: =IFERROR(VLOOKUP($B17,Volumes!$B$4:$H$33,MATCH(AF$11,Volumes!$B$4:$H$4,0),FALSE),0) -> 0 | AM17: 66.3361524 | AN17: 67.27953949 | AO17: 68.42329166 | AP17: 69.58648762 | AQ17: 70.96334683 | AX17: 67.94472095 | AY17: 70.58198898 | AZ17: 73.52250347 | BA17: 76.58552267 | BB17: 79.99471503 | BJ17: 0 | BK17: 0 | BL17: 0 | BM17: 0 | BN17: 0 | BV17: 0 | BW17: 0 | BX17: 0 | BY17: 0 | BZ17: 0
B18: =Inputs!$C75 -> 2x20W Fluorescent | C18: Obsolete, no new Connections | D18: =IF($C18="NA","",'Unsmoothed Prices'!D16) -> 18.48 | E18: =IF($C18="NA","",('Unsmoothed Prices'!E16*(1-E$9))) -> 18.3647178 | F18: 18.67691801 | G18: 18.99442561 | H18: 19.31733085 | I18: 19.64572547 | Q18: 18.81003919 | R18: 19.59368377 | S18: 20.40997574 | T18: 21.26027524 | U18: 22.14599904 | AB18: =IFERROR(VLOOKUP($B18,Volumes!$B$4:$H$33,MATCH(AB$11,Volumes!$B$4:$H$4,0),FALSE),0) -> 0 | AC18: =IFERROR(VLOOKUP($B18,Volumes!$B$4:$H$33,MATCH(AC$11,Volumes!$B$4:$H$4,0),FALSE),0) -> 0 | AD18: =IFERROR(VLOOKUP($B18,Volumes!$B$4:$H$33,MATCH(AD$11,Volumes!$B$4:$H$4,0),FALSE),0) -> 0 | AE18: =IFERROR(VLOOKUP($B18,Volumes!$B$4:$H$33,MATCH(AE$11,Volumes!$B$4:$H$4,0),FALSE),0) -> 0 | AF18: =IFERROR(VLOOKUP($B18,Volumes!$B$4:$H$33,MATCH(AF$11,Volumes!$B$4:$H$4,0),FALSE),0) -> 0 | AM18: 67.21486716 | AN18: 68.17075072 | AO18: 69.32965348 | AP18: 70.50825759 | AQ18: 71.90335523 | AX18: 68.84474344 | AY18: 71.51694575 | AZ18: 74.49641146 | BA18: 77.60000462 | BB18: 81.05435648 | BJ18: 0 | BK18: 0 | BL18: 0 | BM18: 0 | BN18: 0 | BV18: 0 | BW18: 0 | BX18: 0 | BY18: 0 | BZ18: 0
B19: =Inputs!$C76 -> 2x24W Fluorescent | C19: Old light no volumes | D19: =IF($C19="NA","",'Unsmoothed Prices'!D17) -> 18.322 | E19: =IF($C19="NA","",('Unsmoothed Prices'!E17*(1-E$9))) -> 18.24653594 | F19: 18.55672705 | G19: 18.87219141 | H19: 19.19301866 | I19: 19.51929998 | Q19: 18.68899156 | R19: 19.46759318 | S19: 20.27863209 | T19: 21.12345968 | U19: 22.00348362 | AB19: =IFERROR(VLOOKUP($B19,Volumes!$B$4:$H$33,MATCH(AB$11,Volumes!$B$4:$H$4,0),FALSE),0) -> 0 | AC19: =IFERROR(VLOOKUP($B19,Volumes!$B$4:$H$33,MATCH(AC$11,Volumes!$B$4:$H$4,0),FALSE),0) -> 0 | AD19: =IFERROR(VLOOKUP($B19,Volumes!$B$4:$H$33,MATCH(AD$11,Volumes!$B$4:$H$4,0),FALSE),0) -> 0 | AE19: =IFERROR(VLOOKUP($B19,Volumes!$B$4:$H$33,MATCH(AE$11,Volumes!$B$4:$H$4,0),FALSE),0) -> 0 | AF19: =IFERROR(VLOOKUP($B19,Volumes!$B$4:$H$33,MATCH(AF$11,Volumes!$B$4:$H$4,0),FALSE),0) -> 0 | AM19: 66.78232152 | AN19: 67.73205372 | AO19: 68.88349863 | AP19: 70.05451811 | AQ19: 71.44063792 | AX19: 68.40170911 | AY19: 71.05671509 | AZ19: 74.01700714 | BA19: 77.10062785 | BB19: 80.53275003 | BJ19: 0 | BK19: 0 | BL19: 0 | BM19: 0 | BN19: 0 | BV19: 0 | BW19: 0 | BX19: 0 | BY19: 0 | BZ19: 0
B20: =Inputs!$C77 -> T5 Fluorescent 2 x 24W | C20: Old light no volumes | D20: =IF($C20="NA","",'Unsmoothed Prices'!D18) -> 18.48 | E20: =IF($C20="NA","",('Unsmoothed Prices'!E18*(1-E$9))) -> 18.3647178 | F20: 18.67691801 | G20: 18.99442561 | H20: 19.31733085 | I20: 19.64572547 | Q20: 18.81003919 | R20: 19.59368377 | S20: 20.40997574 | T20: 21.26027524 | U20: 22.14599904 | AB20: =IFERROR(VLOOKUP($B20,Volumes!$B$4:$H$33,MATCH(AB$11,Volumes!$B$4:$H$4,0),FALSE),0) -> 0 | AC20: =IFERROR(VLOOKUP($B20,Volumes!$B$4:$H$33,MATCH(AC$11,Volumes!$B$4:$H$4,0),FALSE),0) -> 0 | AD20: =IFERROR(VLOOKUP($B20,Volumes!$B$4:$H$33,MATCH(AD$11,Volumes!$B$4:$H$4,0),FALSE),0) -> 0 | AE20: =IFERROR(VLOOKUP($B20,Volumes!$B$4:$H$33,MATCH(AE$11,Volumes!$B$4:$H$4,0),FALSE),0) -> 0 | AF20: =IFERROR(VLOOKUP($B20,Volumes!$B$4:$H$33,MATCH(AF$11,Volumes!$B$4:$H$4,0),FALSE),0) -> 0 | AM20: 67.21486716 | AN20: 68.17075072 | AO20: 69.32965348 | AP20: 70.50825759 | AQ20: 71.90335523 | AX20: 68.84474344 | AY20: 71.51694575 | AZ20: 74.49641146 | BA20: 77.60000462 | BB20: 81.05435648 | BJ20: 0 | BK20: 0 | BL20: 0 | BM20: 0 | BN20: 0 | BV20: 0 | BW20: 0 | BX20: 0 | BY20: 0 | BZ20: 0
B21: =Inputs!$C78 -> 20 Fluorescent 1X20FL | C21: Old light no volumes | D21: =IF($C21="NA","",'Unsmoothed Prices'!D19) -> 18.189 | E21: =IF($C21="NA","",('Unsmoothed Prices'!E19*(1-E$9))) -> 18.10788162 | F21: 18.41571561 | G21: 18.72878277 | H21: 19.04717208 | I21: 19.370974 | Q21: 18.54697505 | R21: 19.31966012 | S21: 20.124536 | T21: 20.9629438 | U21: 21.83628048 | AB21: =IFERROR(VLOOKUP($B21,Volumes!$B$4:$H$33,MATCH(AB$11,Volumes!$B$4:$H$4,0),FALSE),0) -> 0 | AC21: =IFERROR(VLOOKUP($B21,Volumes!$B$4:$H$33,MATCH(AC$11,Volumes!$B$4:$H$4,0),FALSE),0) -> 0 | AD21: =IFERROR(VLOOKUP($B21,Volumes!$B$4:$H$33,MATCH(AD$11,Volumes!$B$4:$H$4,0),FALSE),0) -> 0 | AE21: =IFERROR(VLOOKUP($B21,Volumes!$B$4:$H$33,MATCH(AE$11,Volumes!$B$4:$H$4,0),FALSE),0) -> 0 | AF21: =IFERROR(VLOOKUP($B21,Volumes!$B$4:$H$33,MATCH(AF$11,Volumes!$B$4:$H$4,0),FALSE),0) -> 0 | AM21: 66.27484672 | AN21: 67.21736196 | AO21: 68.36005711 | AP21: 69.52217808 | AQ21: 70.89776485 | AX21: 67.88192868 | AY21: 70.51675943 | AZ21: 73.45455641 | BA21: 76.51474486 | BB21: 79.92078656 | BJ21: 0 | BK21: 0 | BL21: 0 | BM21: 0 | BN21: 0 | BV21: 0 | BW21: 0 | BX21: 0 | BY21: 0 | BZ21: 0
B22: =Inputs!$C79 -> 2x40W Fluorescent | C22: Obsolete, no new Connections | D22: =IF($C22="NA","",'Unsmoothed Prices'!D20) -> 18.518 | E22: =IF($C22="NA","",('Unsmoothed Prices'!E20*(1-E$9))) -> 18.39821817 | F22: 18.71098788 | G22: 19.02907468 | H22: 19.35256895 | I22: 19.68156262 | Q22: 18.8443519 | R22: 19.62942598 | S22: 20.44720701 | T22: 21.2990576 | U22: 22.18639711 | AB22: =IFERROR(VLOOKUP($B22,Volumes!$B$4:$H$33,MATCH(AB$11,Volumes!$B$4:$H$4,0),FALSE),0) -> 0 | AC22: =IFERROR(VLOOKUP($B22,Volumes!$B$4:$H$33,MATCH(AC$11,Volumes!$B$4:$H$4,0),FALSE),0) -> 0 | AD22: =IFERROR(VLOOKUP($B22,Volumes!$B$4:$H$33,MATCH(AD$11,Volumes!$B$4:$H$4,0),FALSE),0) -> 0 | AE22: =IFERROR(VLOOKUP($B22,Volumes!$B$4:$H$33,MATCH(AE$11,Volumes!$B$4:$H$4,0),FALSE),0) -> 0 | AF22: =IFERROR(VLOOKUP($B22,Volumes!$B$4:$H$33,MATCH(AF$11,Volumes!$B$4:$H$4,0),FALSE),0) -> 0 | AM22: 67.33747852 | AN22: 68.29510578 | AO22: 69.45612257 | AP22: 70.63687666 | AQ22: 72.03451919 | AX22: 68.97032797 | AY22: 71.64740484 | AZ22: 74.6323056 | BA22: 77.74156024 | BB22: 81.20221343 | BJ22: 0 | BK22: 0 | BL22: 0 | BM22: 0 | BN22: 0 | BV22: 0 | BW22: 0 | BX22: 0 | BY22: 0 | BZ22: 0
B23: =Inputs!$C80 -> 3x40W Fluorescent | C23: Obsolete, no new Connections | D23: =IF($C23="NA","",'Unsmoothed Prices'!D21) -> 22.414 | E23: =IF($C23="NA","",('Unsmoothed Prices'!E21*(1-E$9))) -> 21.7938531 | F23: 22.1643486 | G23: 22.54114253 | H23: 22.92434195 | I23: 23.31405577 | Q23: 22.32232672 | R23: 23.25229662 | S23: 24.22100998 | T23: 25.23008088 | U23: 26.28119065 | AB23: =IFERROR(VLOOKUP($B23,Volumes!$B$4:$H$33,MATCH(AB$11,Volumes!$B$4:$H$4,0),FALSE),0) -> 0 | AC23: =IFERROR(VLOOKUP($B23,Volumes!$B$4:$H$33,MATCH(AC$11,Volumes!$B$4:$H$4,0),FALSE),0) -> 0 | AD23: =IFERROR(VLOOKUP($B23,Volumes!$B$4:$H$33,MATCH(AD$11,Volumes!$B$4:$H$4,0),FALSE),0) -> 0 | AE23: =IFERROR(VLOOKUP($B23,Volumes!$B$4:$H$33,MATCH(AE$11,Volumes!$B$4:$H$4,0),FALSE),0) -> 0 | AF23: =IFERROR(VLOOKUP($B23,Volumes!$B$4:$H$33,MATCH(AF$11,Volumes!$B$4:$H$4,0),FALSE),0) -> 0 | AM23: 79.76550235 | AN23: 80.8998724 | AO23: 82.27517023 | AP23: 83.67384813 | AQ23: 85.3294441 | AX23: 81.6997158 | AY23: 84.87088267 | AZ23: 88.40668642 | BA23: 92.08979519 | BB23: 96.18915778 | BJ23: 0 | BK23: 0 | BL23: 0 | BM23: 0 | BN23: 0 | BV23: 0 | BW23: 0 | BX23: 0 | BY23: 0 | BZ23: 0
B24: =Inputs!$C81 -> 4x20 Fluorescent | C24: Old light no volumes | D24: =IF($C24="NA","",'Unsmoothed Prices'!D22) -> 19.062 | E24: =IF($C24="NA","",('Unsmoothed Prices'!E22*(1-E$9))) -> 18.87839017 | F24: 19.19932281 | G24: 19.52571129 | H24: 19.85764839 | I24: 20.19522841 | Q24: 19.33616747 | R24: 20.14173107 | S24: 20.98085523 | T24: 21.85493812 | U24: 22.76543615 | AB24: =IFERROR(VLOOKUP($B24,Volumes!$B$4:$H$33,MATCH(AB$11,Volumes!$B$4:$H$4,0),FALSE),0) -> 0 | AC24: =IFERROR(VLOOKUP($B24,Volumes!$B$4:$H$33,MATCH(AC$11,Volumes!$B$4:$H$4,0),FALSE),0) -> 0 | AD24: =IFERROR(VLOOKUP($B24,Volumes!$B$4:$H$33,MATCH(AD$11,Volumes!$B$4:$H$4,0),FALSE),0) -> 0 | AE24: =IFERROR(VLOOKUP($B24,Volumes!$B$4:$H$33,MATCH(AE$11,Volumes!$B$4:$H$4,0),FALSE),0) -> 0 | AF24: =IFERROR(VLOOKUP($B24,Volumes!$B$4:$H$33,MATCH(AF$11,Volumes!$B$4:$H$4,0),FALSE),0) -> 0 | AM24: 69.09490803 | AN24: 70.07752824 | AO24: 71.26884622 | AP24: 72.48041661 | AQ24: 73.91453597 | AX24: 70.77037295 | AY24: 73.51731839 | AZ24: 76.58012158 | BA24: 79.77052413 | BB24: 83.32149632 | BJ24: 0 | BK24: 0 | BL24: 0 | BM24: 0 | BN24: 0 | BV24: 0 | BW24: 0 | BX24: 0 | BY24: 0 | BZ24: 0
B25: =Inputs!$C82 -> 4x40W Fluorescent | C25: Obsolete, no new Connections | D25: =IF($C25="NA","",'Unsmoothed Prices'!D23) -> 22.722 | E25: =IF($C25="NA","",('Unsmoothed Prices'!E23*(1-E$9))) -> 22.06650891 | F25: 22.44163956 | G25: 22.82314743 | H25: 23.21114094 | I25: 23.60573033 | Q25: 22.60159409 | R25: 23.54319854 | S25: 24.52403115 | T25: 25.54572621 | U25: 26.60998608 | AB25: =IFERROR(VLOOKUP($B25,Volumes!$B$4:$H$33,MATCH(AB$11,Volumes!$B$4:$H$4,0),FALSE),0) -> 0 | AC25: =IFERROR(VLOOKUP($B25,Volumes!$B$4:$H$33,MATCH(AC$11,Volumes!$B$4:$H$4,0),FALSE),0) -> 0 | AD25: =IFERROR(VLOOKUP($B25,Volumes!$B$4:$H$33,MATCH(AD$11,Volumes!$B$4:$H$4,0),FALSE),0) -> 0 | AE25: =IFERROR(VLOOKUP($B25,Volumes!$B$4:$H$33,MATCH(AE$11,Volumes!$B$4:$H$4,0),FALSE),0) -> 0 | AF25: =IFERROR(VLOOKUP($B25,Volumes!$B$4:$H$33,MATCH(AF$11,Volumes!$B$4:$H$4,0),FALSE),0) -> 0 | AM25: 80.7634226 | AN25: 81.91198438 | AO25: 83.30448812 | AP25: 84.72066442 | AQ25: 86.39697302 | AX25: 82.72183436 | AY25: 85.93267467 | AZ25: 89.51271371 | BA25: 93.24190066 | BB25: 97.39254904 | BJ25: 0 | BK25: 0 | BL25: 0 | BM25: 0 | BN25: 0 | BV25: 0 | BW25: 0 | BX25: 0 | BY25: 0 | BZ25: 0
B26: =Inputs!$C83 -> 100W Sodium Vapour | C26: Old light no volumes | D26: =IF($C26="NA","",'Unsmoothed Prices'!D24) -> 22.559 | E26: =IF($C26="NA","",('Unsmoothed Prices'!E24*(1-E$9))) -> 21.97717458 | F26: 22.35078655 | G26: 22.73074992 | H26: 23.11717267 | I26: 23.5101646 | Q26: 22.51009352 | R26: 23.44788597 | S26: 24.42474776 | T26: 25.44230658 | U26: 26.50225788 | AB26: =IFERROR(VLOOKUP($B26,Volumes!$B$4:$H$33,MATCH(AB$11,Volumes!$B$4:$H$4,0),FALSE),0) -> 5 | AC26: =IFERROR(VLOOKUP($B26,Volumes!$B$4:$H$33,MATCH(AC$11,Volumes!$B$4:$H$4,0),FALSE),0) -> 5 | AD26: =IFERROR(VLOOKUP($B26,Volumes!$B$4:$H$33,MATCH(AD$11,Volumes!$B$4:$H$4,0),FALSE),0) -> 5 | AE26: =IFERROR(VLOOKUP($B26,Volumes!$B$4:$H$33,MATCH(AE$11,Volumes!$B$4:$H$4,0),FALSE),0) -> 5 | AF26: =IFERROR(VLOOKUP($B26,Volumes!$B$4:$H$33,MATCH(AF$11,Volumes!$B$4:$H$4,0),FALSE),0) -> 5 | AM26: 80.43645897 | AN26: 81.5803709 | AO26: 82.96723721 | AP26: 84.37768024 | AQ26: 86.04720245 | AX26: 82.38694227 | AY26: 85.58478378 | AZ26: 89.15032934 | BA26: 92.86441901 | BB26: 96.99826385 | BJ26: 402.1822948 | BK26: 407.9018545 | BL26: 414.836186 | BM26: 421.8884012 | BN26: 430.2360123 | BV26: 411.9347114 | BW26: 427.9239189 | BX26: 445.7516467 | BY26: 464.322095 | BZ26: 484.9913192
B27: =Inputs!$C84 -> 0 | C27: NA | D27: =IF($C27="NA","",'Unsmoothed Prices'!D25) ->  | E27: =IF($C27="NA","",('Unsmoothed Prices'!E25*(1-E$9))) ->  | AB27: =IFERROR(VLOOKUP($B27,Volumes!$B$4:$H$33,MATCH(AB$11,Volumes!$B$4:$H$4,0),FALSE),0) -> 0 | AC27: =IFERROR(VLOOKUP($B27,Volumes!$B$4:$H$33,MATCH(AC$11,Volumes!$B$4:$H$4,0),FALSE),0) -> 0 | AD27: =IFERROR(VLOOKUP($B27,Volumes!$B$4:$H$33,MATCH(AD$11,Volumes!$B$4:$H$4,0),FALSE),0) -> 0 | AE27: =IFERROR(VLOOKUP($B27,Volumes!$B$4:$H$33,MATCH(AE$11,Volumes!$B$4:$H$4,0),FALSE),0) -> 0 | AF27: =IFERROR(VLOOKUP($B27,Volumes!$B$4:$H$33,MATCH(AF$11,Volumes!$B$4:$H$4,0),FALSE),0) -> 0 | BJ27: 0 | BK27: 0 | BL27: 0 | BM27: 0 | BN27: 0 | BV27: 0 | BW27: 0 | BX27: 0 | BY27: 0 | BZ27: 0
B28: =Inputs!$C85 -> 150W Sodium Vapour | C28: Offered | D28: =IF($C28="NA","",'Unsmoothed Prices'!D26) -> 22.555 | E28: =IF($C28="NA","",('Unsmoothed Prices'!E26*(1-E$9))) -> 22.21074662 | F28: 22.58832931 | G28: 22.97233091 | H28: 23.36286053 | I28: 23.76002916 | Q28: 22.74932938 | R28: 23.69708863 | S28: 24.68433246 | T28: 25.71270582 | U28: 26.78392222 | AB28: =IFERROR(VLOOKUP($B28,Volumes!$B$4:$H$33,MATCH(AB$11,Volumes!$B$4:$H$4,0),FALSE),0) -> 163 | AC28: =IFERROR(VLOOKUP($B28,Volumes!$B$4:$H$33,MATCH(AC$11,Volumes!$B$4:$H$4,0),FALSE),0) -> 163 | AD28: =IFERROR(VLOOKUP($B28,Volumes!$B$4:$H$33,MATCH(AD$11,Volumes!$B$4:$H$4,0),FALSE),0) -> 163 | AE28: =IFERROR(VLOOKUP($B28,Volumes!$B$4:$H$33,MATCH(AE$11,Volumes!$B$4:$H$4,0),FALSE),0) -> 163 | AF28: =IFERROR(VLOOKUP($B28,Volumes!$B$4:$H$33,MATCH(AF$11,Volumes!$B$4:$H$4,0),FALSE),0) -> 163 | AM28: 81.29133262 | AN28: 82.44740199 | AO28: 83.84900782 | AP28: 85.27444095 | AQ28: 86.96170674 | AX28: 83.26254555 | AY28: 86.49437351 | AZ28: 90.09781347 | BA28: 93.85137625 | BB28: 98.02915533 | BJ28: 13250.48722 | BK28: 13438.92652 | BL28: 13667.38827 | BM28: 13899.73388 | BN28: 14174.7582 | BV28: 13571.79492 | BW28: 14098.58288 | BX28: 14685.9436 | BY28: 15297.77433 | BZ28: 15978.75232
B29: =Inputs!$C86 -> 0 | C29: NA | D29: =IF($C29="NA","",'Unsmoothed Prices'!D27) ->  | E29: =IF($C29="NA","",('Unsmoothed Prices'!E27*(1-E$9))) ->  | AB29: =IFERROR(VLOOKUP($B29,Volumes!$B$4:$H$33,MATCH(AB$11,Volumes!$B$4:$H$4,0),FALSE),0) -> 0 | AC29: =IFERROR(VLOOKUP($B29,Volumes!$B$4:$H$33,MATCH(AC$11,Volumes!$B$4:$H$4,0),FALSE),0) -> 0 | AD29: =IFERROR(VLOOKUP($B29,Volumes!$B$4:$H$33,MATCH(AD$11,Volumes!$B$4:$H$4,0),FALSE),0) -> 0 | AE29: =IFERROR(VLOOKUP($B29,Volumes!$B$4:$H$33,MATCH(AE$11,Volumes!$B$4:$H$4,0),FALSE),0) -> 0 | AF29: =IFERROR(VLOOKUP($B29,Volumes!$B$4:$H$33,MATCH(AF$11,Volumes!$B$4:$H$4,0),FALSE),0) -> 0 | BJ29: =IFERROR(AM29*AB29,0) -> 0 | BK29: 0 | BL29: 0 | BM29: 0 | BN29: 0 | BV29: 0 | BW29: 0 | BX29: 0 | BY29: 0 | BZ29: 0
B30: =Inputs!$C87 -> 0 | C30: NA | D30: =IF($C30="NA","",'Unsmoothed Prices'!D28) ->  | E30: =IF($C30="NA","",('Unsmoothed Prices'!E28*(1-E$9))) ->  | AB30: =IFERROR(VLOOKUP($B30,Volumes!$B$4:$H$33,MATCH(AB$11,Volumes!$B$4:$H$4,0),FALSE),0) -> 0 | AC30: =IFERROR(VLOOKUP($B30,Volumes!$B$4:$H$33,MATCH(AC$11,Volumes!$B$4:$H$4,0),FALSE),0) -> 0 | AD30: =IFERROR(VLOOKUP($B30,Volumes!$B$4:$H$33,MATCH(AD$11,Volumes!$B$4:$H$4,0),FALSE),0) -> 0 | AE30: =IFERROR(VLOOKUP($B30,Volumes!$B$4:$H$33,MATCH(AE$11,Volumes!$B$4:$H$4,0),FALSE),0) -> 0 | AF30: =IFERROR(VLOOKUP($B30,Volumes!$B$4:$H$33,MATCH(AF$11,Volumes!$B$4:$H$4,0),FALSE),0) -> 0 | BJ30: 0 | BK30: 0 | BL30: 0 | BM30: 0 | BN30: 0 | BV30: 0 | BW30: 0 | BX30: 0 | BY30: 0 | BZ30: 0
B31: =Inputs!$C88 -> 0 | C31: NA | D31: =IF($C31="NA","",'Unsmoothed Prices'!D29) ->  | E31: =IF($C31="NA","",('Unsmoothed Prices'!E29*(1-E$9))) ->  | AB31: =IFERROR(VLOOKUP($B31,Volumes!$B$4:$H$33,MATCH(AB$11,Volumes!$B$4:$H$4,0),FALSE),0) -> 0 | AC31: =IFERROR(VLOOKUP($B31,Volumes!$B$4:$H$33,MATCH(AC$11,Volumes!$B$4:$H$4,0),FALSE),0) -> 0 | AD31: =IFERROR(VLOOKUP($B31,Volumes!$B$4:$H$33,MATCH(AD$11,Volumes!$B$4:$H$4,0),FALSE),0) -> 0 | AE31: =IFERROR(VLOOKUP($B31,Volumes!$B$4:$H$33,MATCH(AE$11,Volumes!$B$4:$H$4,0),FALSE),0) -> 0 | AF31: =IFERROR(VLOOKUP($B31,Volumes!$B$4:$H$33,MATCH(AF$11,Volumes!$B$4:$H$4,0),FALSE),0) -> 0 | BJ31: 0 | BK31: 0 | BL31: 0 | BM31: 0 | BN31: 0 | BV31: 0 | BW31: 0 | BX31: 0 | BY31: 0 | BZ31: 0
B32: =Inputs!$C89 -> 250W Sodium Vapour | C32: Offered | D32: =IF($C32="NA","",'Unsmoothed Prices'!D30) -> 22.688 | E32: =IF($C32="NA","",('Unsmoothed Prices'!E30*(1-E$9))) -> 22.36428999 | F32: 22.74448292 | G32: 23.13113913 | H32: 23.52436849 | I32: 23.92428276 | Q32: 22.90659599 | R32: 23.86090712 | S32: 24.85497578 | T32: 25.89045831 | U32: 26.96908006 | AB32: =IFERROR(VLOOKUP($B32,Volumes!$B$4:$H$33,MATCH(AB$11,Volumes!$B$4:$H$4,0),FALSE),0) -> 165 | AC32: =IFERROR(VLOOKUP($B32,Volumes!$B$4:$H$33,MATCH(AC$11,Volumes!$B$4:$H$4,0),FALSE),0) -> 165 | AD32: =IFERROR(VLOOKUP($B32,Volumes!$B$4:$H$33,MATCH(AD$11,Volumes!$B$4:$H$4,0),FALSE),0) -> 165 | AE32: =IFERROR(VLOOKUP($B32,Volumes!$B$4:$H$33,MATCH(AE$11,Volumes!$B$4:$H$4,0),FALSE),0) -> 165 | AF32: =IFERROR(VLOOKUP($B32,Volumes!$B$4:$H$33,MATCH(AF$11,Volumes!$B$4:$H$4,0),FALSE),0) -> 165 | AM32: 81.85330136 | AN32: 83.01736266 | AO32: 84.42865782 | AP32: 85.86394501 | AQ32: 87.5628749 | AX32: 83.83814133 | AY32: 87.09231099 | AZ32: 90.7206616 | BA32: 94.50017284 | BB32: 98.706833 | BJ32: 13505.79473 | BK32: 13697.86484 | BL32: 13930.72854 | BM32: 14167.55093 | BN32: 14447.87436 | BV32: 13833.29332 | BW32: 14370.23131 | BX32: 14968.90916 | BY32: 15592.52852 | BZ32: 16286.62745
B33: =Inputs!$C90 -> 0 | C33: NA | D33: =IF($C33="NA","",'Unsmoothed Prices'!D31) ->  | E33: =IF($C33="NA","",('Unsmoothed Prices'!E31*(1-E$9))) ->  | AB33: =IFERROR(VLOOKUP($B33,Volumes!$B$4:$H$33,MATCH(AB$11,Volumes!$B$4:$H$4,0),FALSE),0) -> 0 | AC33: =IFERROR(VLOOKUP($B33,Volumes!$B$4:$H$33,MATCH(AC$11,Volumes!$B$4:$H$4,0),FALSE),0) -> 0 | AD33: =IFERROR(VLOOKUP($B33,Volumes!$B$4:$H$33,MATCH(AD$11,Volumes!$B$4:$H$4,0),FALSE),0) -> 0 | AE33: =IFERROR(VLOOKUP($B33,Volumes!$B$4:$H$33,MATCH(AE$11,Volumes!$B$4:$H$4,0),FALSE),0) -> 0 | AF33: =IFERROR(VLOOKUP($B33,Volumes!$B$4:$H$33,MATCH(AF$11,Volumes!$B$4:$H$4,0),FALSE),0) -> 0 | BJ33: 0 | BK33: 0 | BL33: 0 | BM33: 0 | BN33: 0 | BV33: 0 | BW33: 0 | BX33: 0 | BY33: 0 | BZ33: 0
B34: =Inputs!$C91 -> 0 | C34: NA | D34: =IF($C34="NA","",'Unsmoothed Prices'!D32) ->  | E34: =IF($C34="NA","",('Unsmoothed Prices'!E32*(1-E$9))) ->  | AB34: =IFERROR(VLOOKUP($B34,Volumes!$B$4:$H$33,MATCH(AB$11,Volumes!$B$4:$H$4,0),FALSE),0) -> 0 | AC34: =IFERROR(VLOOKUP($B34,Volumes!$B$4:$H$33,MATCH(AC$11,Volumes!$B$4:$H$4,0),FALSE),0) -> 0 | AD34: =IFERROR(VLOOKUP($B34,Volumes!$B$4:$H$33,MATCH(AD$11,Volumes!$B$4:$H$4,0),FALSE),0) -> 0 | AE34: =IFERROR(VLOOKUP($B34,Volumes!$B$4:$H$33,MATCH(AE$11,Volumes!$B$4:$H$4,0),FALSE),0) -> 0 | AF34: =IFERROR(VLOOKUP($B34,Volumes!$B$4:$H$33,MATCH(AF$11,Volumes!$B$4:$H$4,0),FALSE),0) -> 0 | BJ34: 0 | BK34: 0 | BL34: 0 | BM34: 0 | BN34: 0 | BV34: 0 | BW34: 0 | BX34: 0 | BY34: 0 | BZ34: 0
B35: =Inputs!$C92 -> 0 | C35: NA | D35: =IF($C35="NA","",'Unsmoothed Prices'!D33) ->  | E35: =IF($C35="NA","",('Unsmoothed Prices'!E33*(1-E$9))) ->  | AB35: =IFERROR(VLOOKUP($B35,Volumes!$B$4:$H$33,MATCH(AB$11,Volumes!$B$4:$H$4,0),FALSE),0) -> 0 | AC35: =IFERROR(VLOOKUP($B35,Volumes!$B$4:$H$33,MATCH(AC$11,Volumes!$B$4:$H$4,0),FALSE),0) -> 0 | AD35: =IFERROR(VLOOKUP($B35,Volumes!$B$4:$H$33,MATCH(AD$11,Volumes!$B$4:$H$4,0),FALSE),0) -> 0 | AE35: =IFERROR(VLOOKUP($B35,Volumes!$B$4:$H$33,MATCH(AE$11,Volumes!$B$4:$H$4,0),FALSE),0) -> 0 | AF35: =IFERROR(VLOOKUP($B35,Volumes!$B$4:$H$33,MATCH(AF$11,Volumes!$B$4:$H$4,0),FALSE),0) -> 0 | BJ35: 0 | BK35: 0 | BL35: 0 | BM35: 0 | BN35: 0 | BV35: 0 | BW35: 0 | BX35: 0 | BY35: 0 | BZ35: 0
B36: =Inputs!$C93 -> 250W Sodium Vapour - Flood Light | C36: Old light no volumes | D36: =IF($C36="NA","",'Unsmoothed Prices'!D34) -> 22.688 | E36: =IF($C36="NA","",('Unsmoothed Prices'!E34*(1-E$9))) -> 22.36428999 | F36: 22.74448292 | G36: 23.13113913 | H36: 23.52436849 | I36: 23.92428276 | Q36: 22.90659599 | R36: 23.86090712 | S36: 24.85497578 | T36: 25.89045831 | U36: 26.96908006 | AB36: =IFERROR(VLOOKUP($B36,Volumes!$B$4:$H$33,MATCH(AB$11,Volumes!$B$4:$H$4,0),FALSE),0) -> 0 | AC36: =IFERROR(VLOOKUP($B36,Volumes!$B$4:$H$33,MATCH(AC$11,Volumes!$B$4:$H$4,0),FALSE),0) -> 0 | AD36: =IFERROR(VLOOKUP($B36,Volumes!$B$4:$H$33,MATCH(AD$11,Volumes!$B$4:$H$4,0),FALSE),0) -> 0 | AE36: =IFERROR(VLOOKUP($B36,Volumes!$B$4:$H$33,MATCH(AE$11,Volumes!$B$4:$H$4,0),FALSE),0) -> 0 | AF36: =IFERROR(VLOOKUP($B36,Volumes!$B$4:$H$33,MATCH(AF$11,Volumes!$B$4:$H$4,0),FALSE),0) -> 0 | AM36: 81.85330136 | AN36: 83.01736266 | AO36: 84.42865782 | AP36: 85.86394501 | AQ36: 87.5628749 | AX36: 83.83814133 | AY36: 87.09231099 | AZ36: 90.7206616 | BA36: 94.50017284 | BB36: 98.706833 | BJ36: 0 | BK36: 0 | BL36: 0 | BM36: 0 | BN36: 0 | BV36: 0 | BW36: 0 | BX36: 0 | BY36: 0 | BZ36: 0
B37: =Inputs!$C94 -> 400W Sodium Vapour | C37: Offered | D37: =IF($C37="NA","",'Unsmoothed Prices'!D35) -> 22.734 | E37: =IF($C37="NA","",('Unsmoothed Prices'!E35*(1-E$9))) -> 22.41733225 | F37: 22.79842689 | G37: 23.18600015 | H37: 23.58016215 | I37: 23.98102491 | Q37: 22.96092445 | R37: 23.91749896 | S37: 24.91392529 | T37: 25.95186372 | U37: 27.03304367 | AB37: =IFERROR(VLOOKUP($B37,Volumes!$B$4:$H$33,MATCH(AB$11,Volumes!$B$4:$H$4,0),FALSE),0) -> 104 | AC37: =IFERROR(VLOOKUP($B37,Volumes!$B$4:$H$33,MATCH(AC$11,Volumes!$B$4:$H$4,0),FALSE),0) -> 104 | AD37: =IFERROR(VLOOKUP($B37,Volumes!$B$4:$H$33,MATCH(AD$11,Volumes!$B$4:$H$4,0),FALSE),0) -> 104 | AE37: =IFERROR(VLOOKUP($B37,Volumes!$B$4:$H$33,MATCH(AE$11,Volumes!$B$4:$H$4,0),FALSE),0) -> 104 | AF37: =IFERROR(VLOOKUP($B37,Volumes!$B$4:$H$33,MATCH(AF$11,Volumes!$B$4:$H$4,0),FALSE),0) -> 104 | AM37: 82.04743602 | AN37: 83.21425816 | AO37: 84.62890055 | AP37: 86.06759186 | AQ37: 87.77055117 | AX37: 84.0369835 | AY37: 87.2988712 | AZ37: 90.93582732 | BA37: 94.72430257 | BB37: 98.94093984 | BJ37: 8532.933346 | BK37: 8654.282849 | BL37: 8801.405657 | BM37: 8951.029554 | BN37: 9128.137322 | BV37: 8739.846284 | BW37: 9079.082605 | BX37: 9457.326041 | BY37: 9851.327467 | BZ37: 10289.85774
B38: =Inputs!$C95 -> 0 | C38: NA | D38: =IF($C38="NA","",'Unsmoothed Prices'!D36) ->  | E38: =IF($C38="NA","",('Unsmoothed Prices'!E36*(1-E$9))) ->  | Q38: =IF($C38="NA","",E38*Q$9) ->  | AB38: =IFERROR(VLOOKUP($B38,Volumes!$B$4:$H$33,MATCH(AB$11,Volumes!$B$4:$H$4,0),FALSE),0) -> 0 | AC38: =IFERROR(VLOOKUP($B38,Volumes!$B$4:$H$33,MATCH(AC$11,Volumes!$B$4:$H$4,0),FALSE),0) -> 0 | AD38: =IFERROR(VLOOKUP($B38,Volumes!$B$4:$H$33,MATCH(AD$11,Volumes!$B$4:$H$4,0),FALSE),0) -> 0 | AE38: =IFERROR(VLOOKUP($B38,Volumes!$B$4:$H$33,MATCH(AE$11,Volumes!$B$4:$H$4,0),FALSE),0) -> 0 | AF38: =IFERROR(VLOOKUP($B38,Volumes!$B$4:$H$33,MATCH(AF$11,Volumes!$B$4:$H$4,0),FALSE),0) -> 0 | AM38: =IF($C38="NA","",(E38*AM$9)/100) ->  | AX38: =IF($C38="NA","",(Q38*AX$9)/100) ->  | BJ38: 0 | BK38: 0 | BL38: 0 | BM38: 0 | BN38: 0 | BV38: =IFERROR(AX38*AB38,0) -> 0 | BW38: 0 | BX38: 0 | BY38: 0 | BZ38: 0
B39: =Inputs!$C96 -> 400W Sodium Vapour - Flood Light | C39: Old light no volumes | D39: =IF($C39="NA","",'Unsmoothed Prices'!D37) -> 22.734 | E39: =IF($C39="NA","",('Unsmoothed Prices'!E37*(1-E$9))) -> 22.41733225 | F39: 22.79842689 | G39: 23.18600015 | H39: 23.58016215 | I39: 23.98102491 | Q39: 22.96092445 | R39: 23.91749896 | S39: 24.91392529 | T39: 25.95186372 | U39: 27.03304367 | AB39: =IFERROR(VLOOKUP($B39,Volumes!$B$4:$H$33,MATCH(AB$11,Volumes!$B$4:$H$4,0),FALSE),0) -> 0 | AC39: =IFERROR(VLOOKUP($B39,Volumes!$B$4:$H$33,MATCH(AC$11,Volumes!$B$4:$H$4,0),FALSE),0) -> 0 | AD39: =IFERROR(VLOOKUP($B39,Volumes!$B$4:$H$33,MATCH(AD$11,Volumes!$B$4:$H$4,0),FALSE),0) -> 0 | AE39: =IFERROR(VLOOKUP($B39,Volumes!$B$4:$H$33,MATCH(AE$11,Volumes!$B$4:$H$4,0),FALSE),0) -> 0 | AF39: =IFERROR(VLOOKUP($B39,Volumes!$B$4:$H$33,MATCH(AF$11,Volumes!$B$4:$H$4,0),FALSE),0) -> 0 | AM39: 82.04743602 | AN39: 83.21425816 | AO39: 84.62890055 | AP39: 86.06759186 | AQ39: 87.77055117 | AX39: 84.0369835 | AY39: 87.2988712 | AZ39: 90.93582732 | BA39: 94.72430257 | BB39: 98.94093984 | BJ39: 0 | BK39: 0 | BL39: 0 | BM39: 0 | BN39: 0 | BV39: 0 | BW39: 0 | BX39: 0 | BY39: 0 | BZ39: 0
B40: =Inputs!$C97 -> 70W Sodium Vapour | C40: Offered | D40: =IF($C40="NA","",'Unsmoothed Prices'!D38) -> 18.434 | E40: =IF($C40="NA","",('Unsmoothed Prices'!E38*(1-E$9))) -> 18.47080231 | F40: 18.78480595 | G40: 19.10414765 | H40: 19.42891816 | I40: 19.75920977 | Q40: 18.91869612 | R40: 19.70686745 | S40: 20.52787477 | T40: 21.38308605 | U40: 22.27392627 | AB40: =IFERROR(VLOOKUP($B40,Volumes!$B$4:$H$33,MATCH(AB$11,Volumes!$B$4:$H$4,0),FALSE),0) -> 73 | AC40: =IFERROR(VLOOKUP($B40,Volumes!$B$4:$H$33,MATCH(AC$11,Volumes!$B$4:$H$4,0),FALSE),0) -> 73 | AD40: =IFERROR(VLOOKUP($B40,Volumes!$B$4:$H$33,MATCH(AD$11,Volumes!$B$4:$H$4,0),FALSE),0) -> 73 | AE40: =IFERROR(VLOOKUP($B40,Volumes!$B$4:$H$33,MATCH(AE$11,Volumes!$B$4:$H$4,0),FALSE),0) -> 73 | AF40: =IFERROR(VLOOKUP($B40,Volumes!$B$4:$H$33,MATCH(AF$11,Volumes!$B$4:$H$4,0),FALSE),0) -> 73 | AM40: 67.60313647 | AN40: 68.56454173 | AO40: 69.73013894 | AP40: 70.9155513 | AQ40: 72.31870777 | AX40: 69.24242779 | AY40: 71.93006619 | AZ40: 74.9267429 | BA40: 78.04826408 | BB40: 81.52257014 | BJ40: 4935.028962 | BK40: 5005.211546 | BL40: 5090.300143 | BM40: 5176.835245 | BN40: 5279.265667 | BV40: 5054.697229 | BW40: 5250.894832 | BX40: 5469.652232 | BY40: 5697.523278 | BZ40: 5951.147621
B41: =Inputs!$C98 -> 0 | C41: NA | D41: =IF($C41="NA","",'Unsmoothed Prices'!D39) ->  | E41: =IF($C41="NA","",('Unsmoothed Prices'!E39*(1-E$9))) ->  | AB41: =IFERROR(VLOOKUP($B41,Volumes!$B$4:$H$33,MATCH(AB$11,Volumes!$B$4:$H$4,0),FALSE),0) -> 0 | AC41: =IFERROR(VLOOKUP($B41,Volumes!$B$4:$H$33,MATCH(AC$11,Volumes!$B$4:$H$4,0),FALSE),0) -> 0 | AD41: =IFERROR(VLOOKUP($B41,Volumes!$B$4:$H$33,MATCH(AD$11,Volumes!$B$4:$H$4,0),FALSE),0) -> 0 | AE41: =IFERROR(VLOOKUP($B41,Volumes!$B$4:$H$33,MATCH(AE$11,Volumes!$B$4:$H$4,0),FALSE),0) -> 0 | AF41: =IFERROR(VLOOKUP($B41,Volumes!$B$4:$H$33,MATCH(AF$11,Volumes!$B$4:$H$4,0),FALSE),0) -> 0 | BJ41: 0 | BK41: 0 | BL41: 0 | BM41: 0 | BN41: 0 | BV41: 0 | BW41: 0 | BX41: 0 | BY41: 0 | BZ41: 0
B42: =Inputs!$C99 -> 100W Incandescent | C42: Obsolete, no new Connections | D42: =IF($C42="NA","",'Unsmoothed Prices'!D40) -> 21.61 | E42: =IF($C42="NA","",('Unsmoothed Prices'!E40*(1-E$9))) -> 21.08383133 | F42: 21.44225646 | G42: 21.80677482 | H42: 22.17748999 | I42: 22.55450732 | Q42: 21.59508781 | R42: 22.49476023 | S42: 23.43191388 | T42: 24.40811026 | U42: 25.42497594 | AB42: =IFERROR(VLOOKUP($B42,Volumes!$B$4:$H$33,MATCH(AB$11,Volumes!$B$4:$H$4,0),FALSE),0) -> 0 | AC42: =IFERROR(VLOOKUP($B42,Volumes!$B$4:$H$33,MATCH(AC$11,Volumes!$B$4:$H$4,0),FALSE),0) -> 0 | AD42: =IFERROR(VLOOKUP($B42,Volumes!$B$4:$H$33,MATCH(AD$11,Volumes!$B$4:$H$4,0),FALSE),0) -> 0 | AE42: =IFERROR(VLOOKUP($B42,Volumes!$B$4:$H$33,MATCH(AE$11,Volumes!$B$4:$H$4,0),FALSE),0) -> 0 | AF42: =IFERROR(VLOOKUP($B42,Volumes!$B$4:$H$33,MATCH(AF$11,Volumes!$B$4:$H$4,0),FALSE),0) -> 0 | AM42: 77.16682266 | AN42: 78.26423608 | AO42: 79.59472809 | AP42: 80.94783847 | AQ42: 82.5494968 | AX42: 79.03802139 | AY42: 82.10587484 | AZ42: 85.52648566 | BA42: 89.08960246 | BB42: 93.05541195 | BJ42: 0 | BK42: 0 | BL42: 0 | BM42: 0 | BN42: 0 | BV42: 0 | BW42: 0 | BX42: 0 | BY42: 0 | BZ42: 0
B43: =Inputs!$C100 -> 60W Incandescent | C43: Obsolete, no new Connections | D43: =IF($C43="NA","",'Unsmoothed Prices'!D41) -> 18.023 | E43: =IF($C43="NA","",('Unsmoothed Prices'!E41*(1-E$9))) -> 17.96085221 | F43: 18.26618669 | G43: 18.57671187 | H43: 18.89251597 | I43: 19.21368874 | Q43: 18.39638036 | R43: 19.16279151 | S43: 19.96113209 | T43: 20.79273232 | U43: 21.65897783 | AB43: =IFERROR(VLOOKUP($B43,Volumes!$B$4:$H$33,MATCH(AB$11,Volumes!$B$4:$H$4,0),FALSE),0) -> 0 | AC43: =IFERROR(VLOOKUP($B43,Volumes!$B$4:$H$33,MATCH(AC$11,Volumes!$B$4:$H$4,0),FALSE),0) -> 0 | AD43: =IFERROR(VLOOKUP($B43,Volumes!$B$4:$H$33,MATCH(AD$11,Volumes!$B$4:$H$4,0),FALSE),0) -> 0 | AE43: =IFERROR(VLOOKUP($B43,Volumes!$B$4:$H$33,MATCH(AE$11,Volumes!$B$4:$H$4,0),FALSE),0) -> 0 | AF43: =IFERROR(VLOOKUP($B43,Volumes!$B$4:$H$33,MATCH(AF$11,Volumes!$B$4:$H$4,0),FALSE),0) -> 0 | AM43: 65.73671908 | AN43: 66.67158144 | AO43: 67.80499832 | AP43: 68.95768329 | AQ43: 70.3221008 | AX43: 67.33075212 | AY43: 69.944189 | AZ43: 72.85813213 | BA43: 75.89347297 | BB43: 79.27185885 | BJ43: 0 | BK43: 0 | BL43: 0 | BM43: 0 | BN43: 0 | BV43: 0 | BW43: 0 | BX43: 0 | BY43: 0 | BZ43: 0
B44: =Inputs!$C101 -> 18W LED | C44: Offered | D44: =IF($C44="NA","",'Unsmoothed Prices'!D42) -> 12.349 | E44: =IF($C44="NA","",('Unsmoothed Prices'!E42*(1-E$9))) -> 13.1516877 | F44: 13.37526639 | G44: 13.60264592 | H44: 13.8338909 | I44: 14.06906704 | Q44: 13.47059964 | R44: 14.03179796 | S44: 14.61637635 | T44: 15.22530884 | U44: 15.85961005 | AB44: =IFERROR(VLOOKUP($B44,Volumes!$B$4:$H$33,MATCH(AB$11,Volumes!$B$4:$H$4,0),FALSE),0) -> 4980 | AC44: =IFERROR(VLOOKUP($B44,Volumes!$B$4:$H$33,MATCH(AC$11,Volumes!$B$4:$H$4,0),FALSE),0) -> 4980 | AD44: =IFERROR(VLOOKUP($B44,Volumes!$B$4:$H$33,MATCH(AD$11,Volumes!$B$4:$H$4,0),FALSE),0) -> 4980 | AE44: =IFERROR(VLOOKUP($B44,Volumes!$B$4:$H$33,MATCH(AE$11,Volumes!$B$4:$H$4,0),FALSE),0) -> 4980 | AF44: =IFERROR(VLOOKUP($B44,Volumes!$B$4:$H$33,MATCH(AF$11,Volumes!$B$4:$H$4,0),FALSE),0) -> 4980 | AM44: 48.13517697 | AN44: 48.81972232 | AO44: 49.6496576 | AP44: 50.49370178 | AQ44: 51.49278538 | AX44: 49.30239468 | AY44: 51.21606255 | AZ44: 53.34977366 | BA44: 55.57237726 | BB44: 58.0461728 | BJ44: 239713.1813 | BK44: 243122.2171 | BL44: 247255.2948 | BM44: 251458.6348 | BN44: 256434.0712 | BV44: 245525.9255 | BW44: 255055.9915 | BX44: 265681.8728 | BY44: 276750.4388 | BZ44: 289069.9405
B45: =Inputs!$C102 -> 18W LED Decorative - Bottom Pole Entry | C45: Not Offered | D45: =IF($C45="NA","",'Unsmoothed Prices'!D43) -> 12.349 | E45: =IF($C45="NA","",('Unsmoothed Prices'!E43*(1-E$9))) -> 13.1516877 | F45: 13.37526639 | G45: 13.60264592 | H45: 13.8338909 | I45: 14.06906704 | Q45: 13.47059964 | R45: 14.03179796 | S45: 14.61637635 | T45: 15.22530884 | U45: 15.85961005 | AB45: =IFERROR(VLOOKUP($B45,Volumes!$B$4:$H$33,MATCH(AB$11,Volumes!$B$4:$H$4,0),FALSE),0) -> 0 | AC45: =IFERROR(VLOOKUP($B45,Volumes!$B$4:$H$33,MATCH(AC$11,Volumes!$B$4:$H$4,0),FALSE),0) -> 0 | AD45: =IFERROR(VLOOKUP($B45,Volumes!$B$4:$H$33,MATCH(AD$11,Volumes!$B$4:$H$4,0),FALSE),0) -> 0 | AE45: =IFERROR(VLOOKUP($B45,Volumes!$B$4:$H$33,MATCH(AE$11,Volumes!$B$4:$H$4,0),FALSE),0) -> 0 | AF45: =IFERROR(VLOOKUP($B45,Volumes!$B$4:$H$33,MATCH(AF$11,Volumes!$B$4:$H$4,0),FALSE),0) -> 0 | AM45: 48.13517697 | AN45: 48.81972232 | AO45: 49.6496576 | AP45: 50.49370178 | AQ45: 51.49278538 | AX45: 49.30239468 | AY45: 51.21606255 | AZ45: 53.34977366 | BA45: 55.57237726 | BB45: 58.0461728 | BJ45: 0 | BK45: 0 | BL45: 0 | BM45: 0 | BN45: 0 | BV45: 0 | BW45: 0 | BX45: 0 | BY45: 0 | BZ45: 0
B46: =Inputs!$C103 -> 18W LED Decorative - Side Entry | C46: Not Offered | D46: =IF($C46="NA","",'Unsmoothed Prices'!D44) -> 12.349 | E46: =IF($C46="NA","",('Unsmoothed Prices'!E44*(1-E$9))) -> 13.1516877 | F46: 13.37526639 | G46: 13.60264592 | H46: 13.8338909 | I46: 14.06906704 | Q46: 13.47059964 | R46: 14.03179796 | S46: 14.61637635 | T46: 15.22530884 | U46: 15.85961005 | AB46: =IFERROR(VLOOKUP($B46,Volumes!$B$4:$H$33,MATCH(AB$11,Volumes!$B$4:$H$4,0),FALSE),0) -> 0 | AC46: =IFERROR(VLOOKUP($B46,Volumes!$B$4:$H$33,MATCH(AC$11,Volumes!$B$4:$H$4,0),FALSE),0) -> 0 | AD46: =IFERROR(VLOOKUP($B46,Volumes!$B$4:$H$33,MATCH(AD$11,Volumes!$B$4:$H$4,0),FALSE),0) -> 0 | AE46: =IFERROR(VLOOKUP($B46,Volumes!$B$4:$H$33,MATCH(AE$11,Volumes!$B$4:$H$4,0),FALSE),0) -> 0 | AF46: =IFERROR(VLOOKUP($B46,Volumes!$B$4:$H$33,MATCH(AF$11,Volumes!$B$4:$H$4,0),FALSE),0) -> 0 | AM46: 48.13517697 | AN46: 48.81972232 | AO46: 49.6496576 | AP46: 50.49370178 | AQ46: 51.49278538 | AX46: 49.30239468 | AY46: 51.21606255 | AZ46: 53.34977366 | BA46: 55.57237726 | BB46: 58.0461728 | BJ46: 0 | BK46: 0 | BL46: 0 | BM46: 0 | BN46: 0 | BV46: 0 | BW46: 0 | BX46: 0 | BY46: 0 | BZ46: 0
B47: =Inputs!$C104 -> 18W LED Decorative - Top Entry | C47: Not Offered | D47: =IF($C47="NA","",'Unsmoothed Prices'!D45) -> 12.349 | E47: =IF($C47="NA","",('Unsmoothed Prices'!E45*(1-E$9))) -> 13.1516877 | F47: 13.37526639 | G47: 13.60264592 | H47: 13.8338909 | I47: 14.06906704 | Q47: 13.47059964 | R47: 14.03179796 | S47: 14.61637635 | T47: 15.22530884 | U47: 15.85961005 | AB47: =IFERROR(VLOOKUP($B47,Volumes!$B$4:$H$33,MATCH(AB$11,Volumes!$B$4:$H$4,0),FALSE),0) -> 0 | AC47: =IFERROR(VLOOKUP($B47,Volumes!$B$4:$H$33,MATCH(AC$11,Volumes!$B$4:$H$4,0),FALSE),0) -> 0 | AD47: =IFERROR(VLOOKUP($B47,Volumes!$B$4:$H$33,MATCH(AD$11,Volumes!$B$4:$H$4,0),FALSE),0) -> 0 | AE47: =IFERROR(VLOOKUP($B47,Volumes!$B$4:$H$33,MATCH(AE$11,Volumes!$B$4:$H$4,0),FALSE),0) -> 0 | AF47: =IFERROR(VLOOKUP($B47,Volumes!$B$4:$H$33,MATCH(AF$11,Volumes!$B$4:$H$4,0),FALSE),0) -> 0 | AM47: 48.13517697 | AN47: 48.81972232 | AO47: 49.6496576 | AP47: 50.49370178 | AQ47: 51.49278538 | AX47: 49.30239468 | AY47: 51.21606255 | AZ47: 53.34977366 | BA47: 55.57237726 | BB47: 58.0461728 | BJ47: 0 | BK47: 0 | BL47: 0 | BM47: 0 | BN47: 0 | BV47: 0 | BW47: 0 | BX47: 0 | BY47: 0 | BZ47: 0
B48: =Inputs!$C105 -> 25W LED | C48: Offered | D48: =IF($C48="NA","",'Unsmoothed Prices'!D46) -> 12.349 | E48: =IF($C48="NA","",('Unsmoothed Prices'!E46*(1-E$9))) -> 13.1516877 | F48: 13.37526639 | G48: 13.60264592 | H48: 13.8338909 | I48: 14.06906704 | Q48: 13.47059964 | R48: 14.03179796 | S48: 14.61637635 | T48: 15.22530884 | U48: 15.85961005 | AB48: =IFERROR(VLOOKUP($B48,Volumes!$B$4:$H$33,MATCH(AB$11,Volumes!$B$4:$H$4,0),FALSE),0) -> 29 | AC48: =IFERROR(VLOOKUP($B48,Volumes!$B$4:$H$33,MATCH(AC$11,Volumes!$B$4:$H$4,0),FALSE),0) -> 29 | AD48: =IFERROR(VLOOKUP($B48,Volumes!$B$4:$H$33,MATCH(AD$11,Volumes!$B$4:$H$4,0),FALSE),0) -> 29 | AE48: =IFERROR(VLOOKUP($B48,Volumes!$B$4:$H$33,MATCH(AE$11,Volumes!$B$4:$H$4,0),FALSE),0) -> 29 | AF48: =IFERROR(VLOOKUP($B48,Volumes!$B$4:$H$33,MATCH(AF$11,Volumes!$B$4:$H$4,0),FALSE),0) -> 29 | AM48: 48.13517697 | AN48: 48.81972232 | AO48: 49.6496576 | AP48: 50.49370178 | AQ48: 51.49278538 | AX48: 49.30239468 | AY48: 51.21606255 | AZ48: 53.34977366 | BA48: 55.57237726 | BB48: 58.0461728 | BJ48: 1395.920132 | BK48: 1415.771947 | BL48: 1439.84007 | BM48: 1464.317351 | BN48: 1493.290776 | BV48: 1429.769446 | BW48: 1485.265814 | BX48: 1547.143436 | BY48: 1611.598941 | BZ48: 1683.339011
B49: =Inputs!$C106 -> 25W LED Decorative - Bottom Pole Entry | C49: Not Offered | D49: =IF($C49="NA","",'Unsmoothed Prices'!D47) -> 12.349 | E49: =IF($C49="NA","",('Unsmoothed Prices'!E47*(1-E$9))) -> 13.1516877 | F49: 13.37526639 | G49: 13.60264592 | H49: 13.8338909 | I49: 14.06906704 | Q49: 13.47059964 | R49: 14.03179796 | S49: 14.61637635 | T49: 15.22530884 | U49: 15.85961005 | AB49: =IFERROR(VLOOKUP($B49,Volumes!$B$4:$H$33,MATCH(AB$11,Volumes!$B$4:$H$4,0),FALSE),0) -> 0 | AC49: =IFERROR(VLOOKUP($B49,Volumes!$B$4:$H$33,MATCH(AC$11,Volumes!$B$4:$H$4,0),FALSE),0) -> 0 | AD49: =IFERROR(VLOOKUP($B49,Volumes!$B$4:$H$33,MATCH(AD$11,Volumes!$B$4:$H$4,0),FALSE),0) -> 0 | AE49: =IFERROR(VLOOKUP($B49,Volumes!$B$4:$H$33,MATCH(AE$11,Volumes!$B$4:$H$4,0),FALSE),0) -> 0 | AF49: =IFERROR(VLOOKUP($B49,Volumes!$B$4:$H$33,MATCH(AF$11,Volumes!$B$4:$H$4,0),FALSE),0) -> 0 | AM49: 48.13517697 | AN49: 48.81972232 | AO49: 49.6496576 | AP49: 50.49370178 | AQ49: 51.49278538 | AX49: 49.30239468 | AY49: 51.21606255 | AZ49: 53.34977366 | BA49: 55.57237726 | BB49: 58.0461728 | BJ49: 0 | BK49: 0 | BL49: 0 | BM49: 0 | BN49: 0 | BV49: 0 | BW49: 0 | BX49: 0 | BY49: 0 | BZ49: 0
B50: =Inputs!$C107 -> 25W LED Decorative - Side Entry | C50: Not Offered | D50: =IF($C50="NA","",'Unsmoothed Prices'!D48) -> 12.349 | E50: =IF($C50="NA","",('Unsmoothed Prices'!E48*(1-E$9))) -> 13.1516877 | F50: 13.37526639 | G50: 13.60264592 | H50: 13.8338909 | I50: 14.06906704 | Q50: 13.47059964 | R50: 14.03179796 | S50: 14.61637635 | T50: 15.22530884 | U50: 15.85961005 | AB50: =IFERROR(VLOOKUP($B50,Volumes!$B$4:$H$33,MATCH(AB$11,Volumes!$B$4:$H$4,0),FALSE),0) -> 0 | AC50: =IFERROR(VLOOKUP($B50,Volumes!$B$4:$H$33,MATCH(AC$11,Volumes!$B$4:$H$4,0),FALSE),0) -> 0 | AD50: =IFERROR(VLOOKUP($B50,Volumes!$B$4:$H$33,MATCH(AD$11,Volumes!$B$4:$H$4,0),FALSE),0) -> 0 | AE50: =IFERROR(VLOOKUP($B50,Volumes!$B$4:$H$33,MATCH(AE$11,Volumes!$B$4:$H$4,0),FALSE),0) -> 0 | AF50: =IFERROR(VLOOKUP($B50,Volumes!$B$4:$H$33,MATCH(AF$11,Volumes!$B$4:$H$4,0),FALSE),0) -> 0 | AM50: 48.13517697 | AN50: 48.81972232 | AO50: 49.6496576 | AP50: 50.49370178 | AQ50: 51.49278538 | AX50: 49.30239468 | AY50: 51.21606255 | AZ50: 53.34977366 | BA50: 55.57237726 | BB50: 58.0461728 | BJ50: 0 | BK50: 0 | BL50: 0 | BM50: 0 | BN50: 0 | BV50: 0 | BW50: 0 | BX50: 0 | BY50: 0 | BZ50: 0
B51: =Inputs!$C108 -> 25W LED Decorative - Top Entry | C51: Not Offered | D51: =IF($C51="NA","",'Unsmoothed Prices'!D49) -> 12.349 | E51: =IF($C51="NA","",('Unsmoothed Prices'!E49*(1-E$9))) -> 13.1516877 | F51: 13.37526639 | G51: 13.60264592 | H51: 13.8338909 | I51: 14.06906704 | Q51: 13.47059964 | R51: 14.03179796 | S51: 14.61637635 | T51: 15.22530884 | U51: 15.85961005 | AB51: =IFERROR(VLOOKUP($B51,Volumes!$B$4:$H$33,MATCH(AB$11,Volumes!$B$4:$H$4,0),FALSE),0) -> 0 | AC51: =IFERROR(VLOOKUP($B51,Volumes!$B$4:$H$33,MATCH(AC$11,Volumes!$B$4:$H$4,0),FALSE),0) -> 0 | AD51: =IFERROR(VLOOKUP($B51,Volumes!$B$4:$H$33,MATCH(AD$11,Volumes!$B$4:$H$4,0),FALSE),0) -> 0 | AE51: =IFERROR(VLOOKUP($B51,Volumes!$B$4:$H$33,MATCH(AE$11,Volumes!$B$4:$H$4,0),FALSE),0) -> 0 | AF51: =IFERROR(VLOOKUP($B51,Volumes!$B$4:$H$33,MATCH(AF$11,Volumes!$B$4:$H$4,0),FALSE),0) -> 0 | AM51: 48.13517697 | AN51: 48.81972232 | AO51: 49.6496576 | AP51: 50.49370178 | AQ51: 51.49278538 | AX51: 49.30239468 | AY51: 51.21606255 | AZ51: 53.34977366 | BA51: 55.57237726 | BB51: 58.0461728 | BJ51: 0 | BK51: 0 | BL51: 0 | BM51: 0 | BN51: 0 | BV51: 0 | BW51: 0 | BX51: 0 | BY51: 0 | BZ51: 0
B52: =Inputs!$C109 -> 30W LED | C52: Offered | D52: =IF($C52="NA","",'Unsmoothed Prices'!D50) -> 12.349 | E52: =IF($C52="NA","",('Unsmoothed Prices'!E50*(1-E$9))) -> 13.1516877 | F52: 13.37526639 | G52: 13.60264592 | H52: 13.8338909 | I52: 14.06906704 | Q52: 13.47059964 | R52: 14.03179796 | S52: 14.61637635 | T52: 15.22530884 | U52: 15.85961005 | AB52: =IFERROR(VLOOKUP($B52,Volumes!$B$4:$H$33,MATCH(AB$11,Volumes!$B$4:$H$4,0),FALSE),0) -> 32 | AC52: =IFERROR(VLOOKUP($B52,Volumes!$B$4:$H$33,MATCH(AC$11,Volumes!$B$4:$H$4,0),FALSE),0) -> 32 | AD52: =IFERROR(VLOOKUP($B52,Volumes!$B$4:$H$33,MATCH(AD$11,Volumes!$B$4:$H$4,0),FALSE),0) -> 32 | AE52: =IFERROR(VLOOKUP($B52,Volumes!$B$4:$H$33,MATCH(AE$11,Volumes!$B$4:$H$4,0),FALSE),0) -> 32 | AF52: =IFERROR(VLOOKUP($B52,Volumes!$B$4:$H$33,MATCH(AF$11,Volumes!$B$4:$H$4,0),FALSE),0) -> 32 | AM52: 48.13517697 | AN52: 48.81972232 | AO52: 49.6496576 | AP52: 50.49370178 | AQ52: 51.49278538 | AX52: 49.30239468 | AY52: 51.21606255 | AZ52: 53.34977366 | BA52: 55.57237726 | BB52: 58.0461728 | BJ52: 1540.325663 | BK52: 1562.231114 | BL52: 1588.789043 | BM52: 1615.798457 | BN52: 1647.769132 | BV52: 1577.67663 | BW52: 1638.914001 | BX52: 1707.192757 | BY52: 1778.316072 | BZ52: 1857.47753
B53: =Inputs!$C110 -> 88 LED Light | C53: Not Offered | D53: =IF($C53="NA","",'Unsmoothed Prices'!D51) -> 12.349 | E53: =IF($C53="NA","",('Unsmoothed Prices'!E51*(1-E$9))) -> 13.1516877 | F53: 13.37526639 | G53: 13.60264592 | H53: 13.8338909 | I53: 14.06906704 | Q53: 13.47059964 | R53: 14.03179796 | S53: 14.61637635 | T53: 15.22530884 | U53: 15.85961005 | AB53: =IFERROR(VLOOKUP($B53,Volumes!$B$4:$H$33,MATCH(AB$11,Volumes!$B$4:$H$4,0),FALSE),0) -> 0 | AC53: =IFERROR(VLOOKUP($B53,Volumes!$B$4:$H$33,MATCH(AC$11,Volumes!$B$4:$H$4,0),FALSE),0) -> 0 | AD53: =IFERROR(VLOOKUP($B53,Volumes!$B$4:$H$33,MATCH(AD$11,Volumes!$B$4:$H$4,0),FALSE),0) -> 0 | AE53: =IFERROR(VLOOKUP($B53,Volumes!$B$4:$H$33,MATCH(AE$11,Volumes!$B$4:$H$4,0),FALSE),0) -> 0 | AF53: =IFERROR(VLOOKUP($B53,Volumes!$B$4:$H$33,MATCH(AF$11,Volumes!$B$4:$H$4,0),FALSE),0) -> 0 | AM53: 48.13517697 | AN53: 48.81972232 | AO53: 49.6496576 | AP53: 50.49370178 | AQ53: 51.49278538 | AX53: 49.30239468 | AY53: 51.21606255 | AZ53: 53.34977366 | BA53: 55.57237726 | BB53: 58.0461728 | BJ53: 0 | BK53: 0 | BL53: 0 | BM53: 0 | BN53: 0 | BV53: 0 | BW53: 0 | BX53: 0 | BY53: 0 | BZ53: 0
B54: =Inputs!$C111 -> 100W Metal Halide | C54: Offered | D54: =IF($C54="NA","",'Unsmoothed Prices'!D52) -> 22.556 | E54: =IF($C54="NA","",('Unsmoothed Prices'!E52*(1-E$9))) -> 22.21167718 | F54: 22.5892757 | G54: 22.97329338 | H54: 23.36383937 | I54: 23.76102464 | Q54: 22.75028252 | R54: 23.69808147 | S54: 24.68536666 | T54: 25.71378311 | U54: 26.78504439 | AB54: =IFERROR(VLOOKUP($B54,Volumes!$B$4:$H$33,MATCH(AB$11,Volumes!$B$4:$H$4,0),FALSE),0) -> 5 | AC54: =IFERROR(VLOOKUP($B54,Volumes!$B$4:$H$33,MATCH(AC$11,Volumes!$B$4:$H$4,0),FALSE),0) -> 5 | AD54: =IFERROR(VLOOKUP($B54,Volumes!$B$4:$H$33,MATCH(AD$11,Volumes!$B$4:$H$4,0),FALSE),0) -> 5 | AE54: =IFERROR(VLOOKUP($B54,Volumes!$B$4:$H$33,MATCH(AE$11,Volumes!$B$4:$H$4,0),FALSE),0) -> 5 | AF54: =IFERROR(VLOOKUP($B54,Volumes!$B$4:$H$33,MATCH(AF$11,Volumes!$B$4:$H$4,0),FALSE),0) -> 5 | AM54: 81.2947385 | AN54: 82.45085629 | AO54: 83.85252085 | AP54: 85.2780137 | AQ54: 86.96535018 | AX54: 83.26603401 | AY54: 86.49799738 | AZ54: 90.10158831 | BA54: 93.85530835 | BB54: 98.03326247 | BJ54: 406.4736925 | BK54: 412.2542815 | BL54: 419.2626043 | BM54: 426.3900685 | BN54: 434.8267509 | BV54: 416.33017 | BW54: 432.4899869 | BX54: 450.5079415 | BY54: 469.2765417 | BZ54: 490.1663124
B55: =Inputs!$C112 -> 150W Metal Halide | C55: Offered | D55: =IF($C55="NA","",'Unsmoothed Prices'!D53) -> 22.703 | E55: =IF($C55="NA","",('Unsmoothed Prices'!E53*(1-E$9))) -> 22.02742514 | F55: 22.40189137 | G55: 22.78272352 | H55: 23.17002982 | I55: 23.56392033 | Q55: 22.56156259 | R55: 23.50149929 | S55: 24.48059467 | T55: 25.50048012 | U55: 26.56285499 | AB55: =IFERROR(VLOOKUP($B55,Volumes!$B$4:$H$33,MATCH(AB$11,Volumes!$B$4:$H$4,0),FALSE),0) -> 27 | AC55: =IFERROR(VLOOKUP($B55,Volumes!$B$4:$H$33,MATCH(AC$11,Volumes!$B$4:$H$4,0),FALSE),0) -> 27 | AD55: =IFERROR(VLOOKUP($B55,Volumes!$B$4:$H$33,MATCH(AD$11,Volumes!$B$4:$H$4,0),FALSE),0) -> 27 | AE55: =IFERROR(VLOOKUP($B55,Volumes!$B$4:$H$33,MATCH(AE$11,Volumes!$B$4:$H$4,0),FALSE),0) -> 27 | AF55: =IFERROR(VLOOKUP($B55,Volumes!$B$4:$H$33,MATCH(AF$11,Volumes!$B$4:$H$4,0),FALSE),0) -> 27 | AM55: 80.62037601 | AN55: 81.76690349 | AO55: 83.15694085 | AP55: 84.57060884 | AQ55: 86.24394839 | AX55: 82.57531907 | AY55: 85.78047241 | AZ55: 89.35417055 | BA55: 93.07675244 | BB55: 97.22004927 | BJ55: =IFERROR(AM55*AB55,0) -> 2176.750152 | BK55: 2207.706394 | BL55: 2245.237403 | BM55: 2283.406439 | BN55: 2328.586607 | BV55: 2229.533615 | BW55: 2316.072755 | BX55: 2412.562605 | BY55: 2513.072316 | BZ55: 2624.94133
B56: =Inputs!$C113 -> 250W Metal Halide | C56: Offered | D56: =IF($C56="NA","",'Unsmoothed Prices'!D54) -> 22.703 | E56: =IF($C56="NA","",('Unsmoothed Prices'!E54*(1-E$9))) -> 22.02742514 | F56: 22.40189137 | G56: 22.78272352 | H56: 23.17002982 | I56: 23.56392033 | Q56: 22.56156259 | R56: 23.50149929 | S56: 24.48059467 | T56: 25.50048012 | U56: 26.56285499 | AB56: =IFERROR(VLOOKUP($B56,Volumes!$B$4:$H$33,MATCH(AB$11,Volumes!$B$4:$H$4,0),FALSE),0) -> 40 | AC56: =IFERROR(VLOOKUP($B56,Volumes!$B$4:$H$33,MATCH(AC$11,Volumes!$B$4:$H$4,0),FALSE),0) -> 40 | AD56: =IFERROR(VLOOKUP($B56,Volumes!$B$4:$H$33,MATCH(AD$11,Volumes!$B$4:$H$4,0),FALSE),0) -> 40 | AE56: =IFERROR(VLOOKUP($B56,Volumes!$B$4:$H$33,MATCH(AE$11,Volumes!$B$4:$H$4,0),FALSE),0) -> 40 | AF56: =IFERROR(VLOOKUP($B56,Volumes!$B$4:$H$33,MATCH(AF$11,Volumes!$B$4:$H$4,0),FALSE),0) -> 40 | AM56: 80.62037601 | AN56: 81.76690349 | AO56: 83.15694085 | AP56: 84.57060884 | AQ56: 86.24394839 | AX56: 82.57531907 | AY56: 85.78047241 | AZ56: 89.35417055 | BA56: 93.07675244 | BB56: 97.22004927 | BJ56: 3224.81504 | BK56: 3270.676139 | BL56: 3326.277634 | BM56: 3382.824354 | BN56: 3449.757936 | BV56: 3303.012763 | BW56: 3431.218896 | BX56: 3574.166822 | BY56: 3723.070097 | BZ56: 3888.801971
B57: =Inputs!$C114 -> 400W Metal Halide | C57: Offered | D57: =IF($C57="NA","",'Unsmoothed Prices'!D55) -> 23.408 | E57: =IF($C57="NA","",('Unsmoothed Prices'!E55*(1-E$9))) -> 22.63787636 | F57: 23.02272026 | G57: 23.4141065 | H57: 23.81214631 | I57: 24.2169528 | Q57: 23.18681649 | R57: 24.15280188 | S57: 25.15903116 | T57: 26.20718093 | U57: 27.29899765 | AB57: =IFERROR(VLOOKUP($B57,Volumes!$B$4:$H$33,MATCH(AB$11,Volumes!$B$4:$H$4,0),FALSE),0) -> 9 | AC57: =IFERROR(VLOOKUP($B57,Volumes!$B$4:$H$33,MATCH(AC$11,Volumes!$B$4:$H$4,0),FALSE),0) -> 9 | AD57: =IFERROR(VLOOKUP($B57,Volumes!$B$4:$H$33,MATCH(AD$11,Volumes!$B$4:$H$4,0),FALSE),0) -> 9 | AE57: =IFERROR(VLOOKUP($B57,Volumes!$B$4:$H$33,MATCH(AE$11,Volumes!$B$4:$H$4,0),FALSE),0) -> 9 | AF57: =IFERROR(VLOOKUP($B57,Volumes!$B$4:$H$33,MATCH(AF$11,Volumes!$B$4:$H$4,0),FALSE),0) -> 9 | AM57: 82.85462748 | AN57: 84.03292895 | AO57: 85.46148874 | AP57: 86.91433405 | AQ57: 88.63404725 | AX57: 84.86374835 | AY57: 88.15772685 | AZ57: 91.83046373 | BA57: 95.65621041 | BB57: 99.9143314 | BJ57: 745.6916473 | BK57: 756.2963605 | BL57: 769.1533987 | BM57: 782.2290064 | BN57: 797.7064253 | BV57: 763.7737351 | BW57: 793.4195416 | BX57: 826.4741735 | BY57: 860.9058936 | BZ57: 899.2289826
B58: =Inputs!$C115 -> 70W Metal Halide | C58: Old light no volumes | D58: =IF($C58="NA","",'Unsmoothed Prices'!D56) -> 18.95 | E58: =IF($C58="NA","",('Unsmoothed Prices'!E56*(1-E$9))) -> 19.06729505 | F58: 19.39143906 | G58: 19.72109353 | H58: 20.05635212 | I58: 20.3973101 | Q58: 19.52965305 | R58: 20.34327745 | S58: 21.19079823 | T58: 22.07362755 | U58: 22.9932364 | AB58: =IFERROR(VLOOKUP($B58,Volumes!$B$4:$H$33,MATCH(AB$11,Volumes!$B$4:$H$4,0),FALSE),0) -> 0 | AC58: =IFERROR(VLOOKUP($B58,Volumes!$B$4:$H$33,MATCH(AC$11,Volumes!$B$4:$H$4,0),FALSE),0) -> 0 | AD58: =IFERROR(VLOOKUP($B58,Volumes!$B$4:$H$33,MATCH(AD$11,Volumes!$B$4:$H$4,0),FALSE),0) -> 0 | AE58: =IFERROR(VLOOKUP($B58,Volumes!$B$4:$H$33,MATCH(AE$11,Volumes!$B$4:$H$4,0),FALSE),0) -> 0 | AF58: =IFERROR(VLOOKUP($B58,Volumes!$B$4:$H$33,MATCH(AF$11,Volumes!$B$4:$H$4,0),FALSE),0) -> 0 | AM58: 69.78629988 | AN58: 70.77875258 | AO58: 71.98199138 | AP58: 73.20568523 | AQ58: 74.65415498 | AX58: 71.47853018 | AY58: 74.25296268 | AZ58: 77.34641352 | BA58: 80.56874054 | BB58: 84.15524521 | BJ58: 0 | BK58: 0 | BL58: 0 | BM58: 0 | BN58: 0 | BV58: 0 | BW58: 0 | BX58: 0 | BY58: 0 | BZ58: 0
B59: =Inputs!$C116 -> 250W Metal Halide - Flood Light | C59: Old light no volumes | D59: =IF($C59="NA","",'Unsmoothed Prices'!D57) -> 22.703 | E59: =IF($C59="NA","",('Unsmoothed Prices'!E57*(1-E$9))) -> 22.02742514 | F59: 22.40189137 | G59: 22.78272352 | H59: 23.17002982 | I59: 23.56392033 | Q59: 22.56156259 | R59: 23.50149929 | S59: 24.48059467 | T59: 25.50048012 | U59: 26.56285499 | AB59: =IFERROR(VLOOKUP($B59,Volumes!$B$4:$H$33,MATCH(AB$11,Volumes!$B$4:$H$4,0),FALSE),0) -> 0 | AC59: =IFERROR(VLOOKUP($B59,Volumes!$B$4:$H$33,MATCH(AC$11,Volumes!$B$4:$H$4,0),FALSE),0) -> 0 | AD59: =IFERROR(VLOOKUP($B59,Volumes!$B$4:$H$33,MATCH(AD$11,Volumes!$B$4:$H$4,0),FALSE),0) -> 0 | AE59: =IFERROR(VLOOKUP($B59,Volumes!$B$4:$H$33,MATCH(AE$11,Volumes!$B$4:$H$4,0),FALSE),0) -> 0 | AF59: =IFERROR(VLOOKUP($B59,Volumes!$B$4:$H$33,MATCH(AF$11,Volumes!$B$4:$H$4,0),FALSE),0) -> 0 | AM59: 80.62037601 | AN59: 81.76690349 | AO59: 83.15694085 | AP59: 84.57060884 | AQ59: 86.24394839 | AX59: 82.57531907 | AY59: 85.78047241 | AZ59: 89.35417055 | BA59: 93.07675244 | BB59: 97.22004927 | BJ59: 0 | BK59: 0 | BL59: 0 | BM59: 0 | BN59: 0 | BV59: 0 | BW59: 0 | BX59: 0 | BY59: 0 | BZ59: 0
B60: =Inputs!$C117 -> 400W Metal Halide - Flood Light | C60: Old light no volumes | D60: =IF($C60="NA","",'Unsmoothed Prices'!D58) -> 23.408 | E60: =IF($C60="NA","",('Unsmoothed Prices'!E58*(1-E$9))) -> 22.63787636 | F60: 23.02272026 | G60: 23.4141065 | H60: 23.81214631 | I60: 24.2169528 | Q60: 23.18681649 | R60: 24.15280188 | S60: 25.15903116 | T60: 26.20718093 | U60: 27.29899765 | AB60: =IFERROR(VLOOKUP($B60,Volumes!$B$4:$H$33,MATCH(AB$11,Volumes!$B$4:$H$4,0),FALSE),0) -> 0 | AC60: =IFERROR(VLOOKUP($B60,Volumes!$B$4:$H$33,MATCH(AC$11,Volumes!$B$4:$H$4,0),FALSE),0) -> 0 | AD60: =IFERROR(VLOOKUP($B60,Volumes!$B$4:$H$33,MATCH(AD$11,Volumes!$B$4:$H$4,0),FALSE),0) -> 0 | AE60: =IFERROR(VLOOKUP($B60,Volumes!$B$4:$H$33,MATCH(AE$11,Volumes!$B$4:$H$4,0),FALSE),0) -> 0 | AF60: =IFERROR(VLOOKUP($B60,Volumes!$B$4:$H$33,MATCH(AF$11,Volumes!$B$4:$H$4,0),FALSE),0) -> 0 | AM60: 82.85462748 | AN60: 84.03292895 | AO60: 85.46148874 | AP60: 86.91433405 | AQ60: 88.63404725 | AX60: 84.86374835 | AY60: 88.15772685 | AZ60: 91.83046373 | BA60: 95.65621041 | BB60: 99.9143314 | BJ60: 0 | BK60: 0 | BL60: 0 | BM60: 0 | BN60: 0 | BV60: 0 | BW60: 0 | BX60: 0 | BY60: 0 | BZ60: 0
B61: =Inputs!$C118 -> 125W Mercury Vapour | C61: Obsolete, no new Connections | D61: =IF($C61="NA","",'Unsmoothed Prices'!D59) -> 21.646 | E61: =IF($C61="NA","",('Unsmoothed Prices'!E59*(1-E$9))) -> 21.11267887 | F61: 21.47159441 | G61: 21.83661152 | H61: 22.20783391 | I61: 22.58536709 | Q61: 21.62463487 | R61: 22.52553825 | S61: 23.46397414 | T61: 24.44150619 | U61: 25.45976317 | AB61: =IFERROR(VLOOKUP($B61,Volumes!$B$4:$H$33,MATCH(AB$11,Volumes!$B$4:$H$4,0),FALSE),0) -> 314 | AC61: =IFERROR(VLOOKUP($B61,Volumes!$B$4:$H$33,MATCH(AC$11,Volumes!$B$4:$H$4,0),FALSE),0) -> 307 | AD61: =IFERROR(VLOOKUP($B61,Volumes!$B$4:$H$33,MATCH(AD$11,Volumes!$B$4:$H$4,0),FALSE),0) -> 301 | AE61: =IFERROR(VLOOKUP($B61,Volumes!$B$4:$H$33,MATCH(AE$11,Volumes!$B$4:$H$4,0),FALSE),0) -> 295 | AF61: =IFERROR(VLOOKUP($B61,Volumes!$B$4:$H$33,MATCH(AF$11,Volumes!$B$4:$H$4,0),FALSE),0) -> 289 | AM61: 77.27240467 | AN61: 78.3713196 | AO61: 79.70363204 | AP61: 81.05859378 | AQ61: 82.66244354 | AX61: 79.14616362 | AY61: 82.21821461 | AZ61: 85.64350561 | BA61: 89.21149758 | BB61: 93.18273321 | BJ61: 24263.53507 | BK61: 24059.99512 | BL61: 23990.79324 | BM61: 23912.28517 | BN61: 23889.44618 | BV61: 24851.89538 | BW61: 25240.99188 | BX61: 25778.69519 | BY61: 26317.39179 | BZ61: 26929.8099
B62: =Inputs!$C119 -> 250W Mercury Vapour | C62: Obsolete, no new Connections | D62: =IF($C62="NA","",'Unsmoothed Prices'!D60) -> 21.646 | E62: =IF($C62="NA","",('Unsmoothed Prices'!E60*(1-E$9))) -> 21.11267887 | F62: 21.47159441 | G62: 21.83661152 | H62: 22.20783391 | I62: 22.58536709 | Q62: 21.62463487 | R62: 22.52553825 | S62: 23.46397414 | T62: 24.44150619 | U62: 25.45976317 | AB62: =IFERROR(VLOOKUP($B62,Volumes!$B$4:$H$33,MATCH(AB$11,Volumes!$B$4:$H$4,0),FALSE),0) -> 27 | AC62: =IFERROR(VLOOKUP($B62,Volumes!$B$4:$H$33,MATCH(AC$11,Volumes!$B$4:$H$4,0),FALSE),0) -> 27 | AD62: =IFERROR(VLOOKUP($B62,Volumes!$B$4:$H$33,MATCH(AD$11,Volumes!$B$4:$H$4,0),FALSE),0) -> 26 | AE62: =IFERROR(VLOOKUP($B62,Volumes!$B$4:$H$33,MATCH(AE$11,Volumes!$B$4:$H$4,0),FALSE),0) -> 26 | AF62: =IFERROR(VLOOKUP($B62,Volumes!$B$4:$H$33,MATCH(AF$11,Volumes!$B$4:$H$4,0),FALSE),0) -> 25 | AM62: 77.27240467 | AN62: 78.3713196 | AO62: 79.70363204 | AP62: 81.05859378 | AQ62: 82.66244354 | AX62: 79.14616362 | AY62: 82.21821461 | AZ62: 85.64350561 | BA62: 89.21149758 | BB62: 93.18273321 | BJ62: 2086.354926 | BK62: 2116.025629 | BL62: 2072.294433 | BM62: 2107.523438 | BN62: 2066.561089 | BV62: 2136.946418 | BW62: 2219.891794 | BX62: 2226.731146 | BY62: 2319.498937 | BZ62: 2329.56833
B63: =Inputs!$C120 -> 0 | C63: NA | D63: =IF($C63="NA","",'Unsmoothed Prices'!D61) ->  | E63: =IF($C63="NA","",('Unsmoothed Prices'!E61*(1-E$9))) ->  | F63: =IF($C63="NA","",E63*(1-F$9)) ->  | AB63: =IFERROR(VLOOKUP($B63,Volumes!$B$4:$H$33,MATCH(AB$11,Volumes!$B$4:$H$4,0),FALSE),0) -> 0 | AC63: =IFERROR(VLOOKUP($B63,Volumes!$B$4:$H$33,MATCH(AC$11,Volumes!$B$4:$H$4,0),FALSE),0) -> 0 | AD63: =IFERROR(VLOOKUP($B63,Volumes!$B$4:$H$33,MATCH(AD$11,Volumes!$B$4:$H$4,0),FALSE),0) -> 0 | AE63: =IFERROR(VLOOKUP($B63,Volumes!$B$4:$H$33,MATCH(AE$11,Volumes!$B$4:$H$4,0),FALSE),0) -> 0 | AF63: =IFERROR(VLOOKUP($B63,Volumes!$B$4:$H$33,MATCH(AF$11,Volumes!$B$4:$H$4,0),FALSE),0) -> 0 | BJ63: 0 | BK63: 0 | BL63: 0 | BM63: 0 | BN63: 0 | BV63: 0 | BW63: 0 | BX63: 0 | BY63: 0 | BZ63: 0
B64: =Inputs!$C121 -> 400W Mercury Vapour | C64: Obsolete, no new Connections | D64: =IF($C64="NA","",'Unsmoothed Prices'!D62) -> 21.799 | E64: =IF($C64="NA","",('Unsmoothed Prices'!E62*(1-E$9))) -> 21.24574979 | F64: =IF($C64="NA","",E64*(1-F$9)) -> 21.60692754 | G64: 21.97424531 | H64: 22.34780748 | I64: 22.7277202 | Q64: 21.7609326 | R64: 22.66751427 | S64: 23.61186502 | T64: 24.59555835 | U64: 25.62023329 | AB64: =IFERROR(VLOOKUP($B64,Volumes!$B$4:$H$33,MATCH(AB$11,Volumes!$B$4:$H$4,0),FALSE),0) -> 21 | AC64: =IFERROR(VLOOKUP($B64,Volumes!$B$4:$H$33,MATCH(AC$11,Volumes!$B$4:$H$4,0),FALSE),0) -> 20 | AD64: =IFERROR(VLOOKUP($B64,Volumes!$B$4:$H$33,MATCH(AD$11,Volumes!$B$4:$H$4,0),FALSE),0) -> 20 | AE64: =IFERROR(VLOOKUP($B64,Volumes!$B$4:$H$33,MATCH(AE$11,Volumes!$B$4:$H$4,0),FALSE),0) -> 20 | AF64: =IFERROR(VLOOKUP($B64,Volumes!$B$4:$H$33,MATCH(AF$11,Volumes!$B$4:$H$4,0),FALSE),0) -> 19 | AM64: 77.75944424 | AN64: 78.86528552 | AO64: 80.20599537 | AP64: 81.56949729 | AQ64: 83.18345595 | AX64: 79.6450133 | AY64: 82.73642708 | AZ64: 86.18330733 | BA64: 89.77378796 | BB64: 93.77005386 | BJ64: 1632.948329 | BK64: 1577.30571 | BL64: 1604.119907 | BM64: 1631.389946 | BN64: 1580.485663 | BV64: 1672.545279 | BW64: 1654.728542 | BX64: 1723.666147 | BY64: 1795.475759 | BZ64: 1781.631023
B65: =Inputs!$C122 -> 50W Mercury Vapour | C65: Obsolete, no new Connections | D65: =IF($C65="NA","",'Unsmoothed Prices'!D63) -> 18.088 | E65: =IF($C65="NA","",('Unsmoothed Prices'!E63*(1-E$9))) -> 18.06972842 | F65: =IF($C65="NA","",E65*(1-F$9)) -> 18.3769138 | G65: 18.68932133 | H65: 19.0070398 | I65: 19.33015947 | Q65: 18.50789668 | R65: 19.27895371 | S65: 20.08213372 | T65: 20.918775 | U65: 21.79027156 | AB65: =IFERROR(VLOOKUP($B65,Volumes!$B$4:$H$33,MATCH(AB$11,Volumes!$B$4:$H$4,0),FALSE),0) -> 141 | AC65: =IFERROR(VLOOKUP($B65,Volumes!$B$4:$H$33,MATCH(AC$11,Volumes!$B$4:$H$4,0),FALSE),0) -> 130 | AD65: =IFERROR(VLOOKUP($B65,Volumes!$B$4:$H$33,MATCH(AD$11,Volumes!$B$4:$H$4,0),FALSE),0) -> 127 | AE65: =IFERROR(VLOOKUP($B65,Volumes!$B$4:$H$33,MATCH(AE$11,Volumes!$B$4:$H$4,0),FALSE),0) -> 115 | AF65: =IFERROR(VLOOKUP($B65,Volumes!$B$4:$H$33,MATCH(AF$11,Volumes!$B$4:$H$4,0),FALSE),0) -> 108 | AM65: 66.135206 | AN65: 67.07573537 | AO65: 68.21602287 | AP65: 69.37569526 | AQ65: 70.74838367 | AX65: 67.73890185 | AY65: 70.36818103 | AZ65: 73.29978808 | BA65: 76.35352874 | BB65: 79.75239393 | BJ65: 9325.064047 | BK65: 8719.845598 | BL65: 8663.434904 | BM65: 7978.204955 | BN65: 7640.825437 | BV65: 9551.185161 | BW65: 9147.863534 | BX65: 9309.073086 | BY65: 8780.655805 | BZ65: 8613.258544
B66: =Inputs!$C123 -> 80W Mercury Vapour Art decorative | C66: Old light no volumes | D66: =IF($C66="NA","",'Unsmoothed Prices'!D64) -> 18.056 | E66: =IF($C66="NA","",('Unsmoothed Prices'!E64*(1-E$9))) -> 18.03343635 | F66: =IF($C66="NA","",E66*(1-F$9)) -> 18.34000476 | G66: 18.65178485 | H66: 18.96886519 | I66: 19.2913359 | Q66: 18.47072457 | R66: 19.24023297 | S66: 20.04179984 | T66: 20.87676077 | U66: 21.74650699 | AB66: =IFERROR(VLOOKUP($B66,Volumes!$B$4:$H$33,MATCH(AB$11,Volumes!$B$4:$H$4,0),FALSE),0) -> 0 | AC66: =IFERROR(VLOOKUP($B66,Volumes!$B$4:$H$33,MATCH(AC$11,Volumes!$B$4:$H$4,0),FALSE),0) -> 0 | AD66: =IFERROR(VLOOKUP($B66,Volumes!$B$4:$H$33,MATCH(AD$11,Volumes!$B$4:$H$4,0),FALSE),0) -> 0 | AE66: =IFERROR(VLOOKUP($B66,Volumes!$B$4:$H$33,MATCH(AE$11,Volumes!$B$4:$H$4,0),FALSE),0) -> 0 | AF66: =IFERROR(VLOOKUP($B66,Volumes!$B$4:$H$33,MATCH(AF$11,Volumes!$B$4:$H$4,0),FALSE),0) -> 0 | AM66: 66.00237703 | AN66: 66.94101739 | AO66: 68.07901469 | AP66: 69.23635794 | AQ66: 70.60628938 | AX66: 67.60285194 | AY66: 70.22685036 | AZ66: 73.15256943 | BA66: 76.20017682 | BB66: 79.59221557 | BJ66: 0 | BK66: 0 | BL66: 0 | BM66: 0 | BN66: 0 | BV66: 0 | BW66: 0 | BX66: 0 | BY66: 0 | BZ66: 0
B67: =Inputs!$C124 -> 80W Mercury Vapour | C67: Obsolete, no new Connections | D67: =IF($C67="NA","",'Unsmoothed Prices'!D65) -> 18.056 | E67: =IF($C67="NA","",('Unsmoothed Prices'!E65*(1-E$9))) -> 18.03343635 | F67: =IF($C67="NA","",E67*(1-F$9)) -> 18.34000476 | G67: 18.65178485 | H67: 18.96886519 | I67: 19.2913359 | Q67: 18.47072457 | R67: 19.24023297 | S67: 20.04179984 | T67: 20.87676077 | U67: 21.74650699 | AB67: =IFERROR(VLOOKUP($B67,Volumes!$B$4:$H$33,MATCH(AB$11,Volumes!$B$4:$H$4,0),FALSE),0) -> 280 | AC67: =IFERROR(VLOOKUP($B67,Volumes!$B$4:$H$33,MATCH(AC$11,Volumes!$B$4:$H$4,0),FALSE),0) -> 260 | AD67: =IFERROR(VLOOKUP($B67,Volumes!$B$4:$H$33,MATCH(AD$11,Volumes!$B$4:$H$4,0),FALSE),0) -> 240 | AE67: =IFERROR(VLOOKUP($B67,Volumes!$B$4:$H$33,MATCH(AE$11,Volumes!$B$4:$H$4,0),FALSE),0) -> 230 | AF67: =IFERROR(VLOOKUP($B67,Volumes!$B$4:$H$33,MATCH(AF$11,Volumes!$B$4:$H$4,0),FALSE),0) -> 220 | AM67: 66.00237703 | AN67: 66.94101739 | AO67: 68.07901469 | AP67: 69.23635794 | AQ67: 70.60628938 | AX67: 67.60285194 | AY67: 70.22685036 | AZ67: 73.15256943 | BA67: 76.20017682 | BB67: 79.59221557 | BJ67: 18480.66557 | BK67: 17404.66452 | BL67: 16338.96352 | BM67: 15924.36233 | BN67: 15533.38366 | BV67: 18928.79854 | BW67: 18258.98109 | BX67: 17556.61666 | BY67: 17526.04067 | BZ67: 17510.28743
B68: =Inputs!$C125 -> 14W LED | C68: Offered | D68: =IF($C68="NA","",'Unsmoothed Prices'!D66) ->  | E68: =IF($C68="NA","",('Unsmoothed Prices'!E66*(1-E$9-3.9%))) -> 12.76064924 | F68: =IF($C68="NA","",E68*(1-F$9)) -> 12.97758028 | G68: 13.19819914 | H68: 13.42256853 | I68: 13.65075219 | Q68: 13.07007899 | R68: 13.61459123 | S68: 14.18178838 | T68: 14.77261551 | U68: 15.38805708 | AB68: =IFERROR(VLOOKUP($B68,Volumes!$B$4:$H$33,MATCH(AB$11,Volumes!$B$4:$H$4,0),FALSE),0) -> 13129 | AC68: =IFERROR(VLOOKUP($B68,Volumes!$B$4:$H$33,MATCH(AC$11,Volumes!$B$4:$H$4,0),FALSE),0) -> 14029 | AD68: =IFERROR(VLOOKUP($B68,Volumes!$B$4:$H$33,MATCH(AD$11,Volumes!$B$4:$H$4,0),FALSE),0) -> 14059 | AE68: =IFERROR(VLOOKUP($B68,Volumes!$B$4:$H$33,MATCH(AE$11,Volumes!$B$4:$H$4,0),FALSE),0) -> 14089 | AF68: =IFERROR(VLOOKUP($B68,Volumes!$B$4:$H$33,MATCH(AF$11,Volumes!$B$4:$H$4,0),FALSE),0) -> 14129 | AM68: 46.70397623 | AN68: 47.36816802 | AO68: 48.17342687 | AP68: 48.99237513 | AQ68: 49.96175303 | AX68: 47.83648911 | AY68: 49.69325799 | AZ68: 51.76352758 | BA68: 53.92004662 | BB68: 56.32028892 | BJ68: 613176.5039 | BK68: 664528.0291 | BL68: 677270.2084 | BM68: 690253.5732 | BN68: 705909.6086 | BV68: 628045.2655 | BW68: 697146.7163 | BX68: 727743.4342 | BY68: 759679.5368 | BZ68: 795749.3621
B69: =Inputs!$C126 -> New technology - Minor | C69: Offered | D69: =IF($C69="NA","",'Unsmoothed Prices'!D67) ->  | E69: =IF($C69="NA","",('Unsmoothed Prices'!E67*(1-E$9-3.9%))) -> 12.76064924 | F69: =IF($C69="NA","",E69*(1-F$9)) -> 12.97758028 | G69: 13.19819914 | H69: 13.42256853 | I69: 13.65075219 | Q69: 13.07007899 | R69: 13.61459123 | S69: 14.18178838 | T69: 14.77261551 | U69: 15.38805708 | AB69: =IFERROR(VLOOKUP($B69,Volumes!$B$4:$H$33,MATCH(AB$11,Volumes!$B$4:$H$4,0),FALSE),0) -> 0 | AC69: =IFERROR(VLOOKUP($B69,Volumes!$B$4:$H$33,MATCH(AC$11,Volumes!$B$4:$H$4,0),FALSE),0) -> 0 | AD69: =IFERROR(VLOOKUP($B69,Volumes!$B$4:$H$33,MATCH(AD$11,Volumes!$B$4:$H$4,0),FALSE),0) -> 0 | AE69: =IFERROR(VLOOKUP($B69,Volumes!$B$4:$H$33,MATCH(AE$11,Volumes!$B$4:$H$4,0),FALSE),0) -> 0 | AF69: =IFERROR(VLOOKUP($B69,Volumes!$B$4:$H$33,MATCH(AF$11,Volumes!$B$4:$H$4,0),FALSE),0) -> 0 | AM69: 46.70397623 | AN69: 47.36816802 | AO69: 48.17342687 | AP69: 48.99237513 | AQ69: 49.96175303 | AX69: 47.83648911 | AY69: 49.69325799 | AZ69: 51.76352758 | BA69: 53.92004662 | BB69: 56.32028892 | BJ69: 0 | BK69: 0 | BL69: 0 | BM69: 0 | BN69: 0 | BV69: 0 | BW69: 0 | BX69: 0 | BY69: 0 | BZ69: 0
B70: =Inputs!$C127 -> New technology - Major | C70: Offered | D70: =IF($C70="NA","",'Unsmoothed Prices'!D68) ->  | E70: =IF($C70="NA","",('Unsmoothed Prices'!E68*(1-E$9-3.9%))) -> 13.41755208 | F70: =IF($C70="NA","",E70*(1-F$9)) -> 13.64565047 | G70: 13.87762653 | H70: 14.11354618 | I70: 14.35347646 | Q70: =IF($C70="NA","",E70*Q$9) -> 13.7429109 | R70: 14.31545398 | S70: 14.91184975 | T70: 15.53309195 | U70: 16.18021571 | AB70: =IFERROR(VLOOKUP($B70,Volumes!$B$4:$H$33,MATCH(AB$11,Volumes!$B$4:$H$4,0),FALSE),0) -> 0 | AC70: =IFERROR(VLOOKUP($B70,Volumes!$B$4:$H$33,MATCH(AC$11,Volumes!$B$4:$H$4,0),FALSE),0) -> 0 | AD70: =IFERROR(VLOOKUP($B70,Volumes!$B$4:$H$33,MATCH(AD$11,Volumes!$B$4:$H$4,0),FALSE),0) -> 0 | AE70: =IFERROR(VLOOKUP($B70,Volumes!$B$4:$H$33,MATCH(AE$11,Volumes!$B$4:$H$4,0),FALSE),0) -> 0 | AF70: =IFERROR(VLOOKUP($B70,Volumes!$B$4:$H$33,MATCH(AF$11,Volumes!$B$4:$H$4,0),FALSE),0) -> 0 | AM70: =IF($C70="NA","",(E70*AM$9)/100) -> 49.10824063 | AN70: 49.80662421 | AO70: 50.65333682 | AP70: 51.51444355 | AQ70: 52.53372385 | AX70: =IF($C70="NA","",(Q70*AX$9)/100) -> 50.29905391 | AY70: 52.25140701 | AZ70: 54.42825158 | BA70: 56.69578563 | BB70: 59.21958951 | BJ70: 0 | BK70: 0 | BL70: 0 | BM70: 0 | BN70: 0 | BV70: =IFERROR(AX70*AB70,0) -> 0 | BW70: 0 | BX70: 0 | BY70: 0 | BZ70: 0
AB71: =SUM(AB12:AB70) -> 19572 | AC71: =SUM(AC12:AC70) -> 20433 | AD71: =SUM(AD12:AD70) -> 20433 | AE71: =SUM(AE12:AE70) -> 20435 | AF71: =SUM(AF12:AF70) -> 20450 | BJ71: =SUM(BJ12:BJ70) -> 960662.3676 | BK71: 1014251.48 | BL71: 1030814.804 | BM71: 1047797.203 | BN71: 1068664.582 | BV71: =SUM(BV12:BV70) -> 983957.2259 | BW71: 1064036.515 | BX71: 1107635.765 | BY71: 1153185.039 | BZ71: 1204671.461
AB72: =Volumes!D34=AB71 -> TRUE | AC72: =Volumes!E34=AC71 -> TRUE | AD72: =Volumes!F34=AD71 -> TRUE | AE72: =Volumes!G34=AE71 -> TRUE | AF72: =Volumes!H34=AF71 -> TRUE
B73: Public Road Lights
C74: Offered / No Longer Offered / NA | D74: ='Master Data'!J$34 -> 2018-19 | E74: ='Master Data'!K$34 -> 2019-20 | F74: ='Master Data'!L$34 -> 2020-21 | G74: ='Master Data'!M$34 -> 2021-22 | H74: ='Master Data'!N$34 -> 2022-23 | I74: ='Master Data'!O$34 -> 2023-24 | Q74: =Q11 -> 2019-20 | R74: 2020-21 | S74: 2021-22 | T74: 2022-23 | U74: 2023-24 | AB74: =AB11 -> 2019-20 | AC74: =AC11 -> 2020-21 | AD74: =AD11 -> 2021-22 | AE74: =AE11 -> 2022-23 | AF74: =AF11 -> 2023-24 | AM74: ='Master Data'!K$34 -> 2019-20 | AN74: ='Master Data'!L$34 -> 2020-21 | AO74: ='Master Data'!M$34 -> 2021-22 | AP74: ='Master Data'!N$34 -> 2022-23 | AQ74: ='Master Data'!O$34 -> 2023-24 | AX74: ='Master Data'!K$34 -> 2019-20 | AY74: ='Master Data'!L$34 -> 2020-21 | AZ74: ='Master Data'!M$34 -> 2021-22 | BA74: ='Master Data'!N$34 -> 2022-23 | BB74: ='Master Data'!O$34 -> 2023-24 | BJ74: ='Master Data'!K$34 -> 2019-20 | BK74: ='Master Data'!L$34 -> 2020-21 | BL74: ='Master Data'!M$34 -> 2021-22 | BM74: ='Master Data'!N$34 -> 2022-23 | BN74: ='Master Data'!O$34 -> 2023-24 | BV74: ='Master Data'!K$34 -> 2019-20 | BW74: ='Master Data'!L$34 -> 2020-21 | BX74: ='Master Data'!M$34 -> 2021-22 | BY74: ='Master Data'!N$34 -> 2022-23 | BZ74: ='Master Data'!O$34 -> 2023-24
B75: =Inputs!$C69 -> 32W Compact Fluorescent | C75: No Longer Offered | D75: =IF($C75="NA","",'Unsmoothed Prices'!D73) -> 36.021 | E75: =IF($C75="NA","",('Unsmoothed Prices'!E73*(1-E$9))) -> 38.08620067 | F75: =IF($C75="NA","",E75*(1-F$9)) -> 38.73366608 | G75: 39.39213841 | H75: 40.06180476 | I75: 40.74285544 | Q75: =IF($C75="NA","",E75*Q$9) -> 39.0097433 | R75: 40.63492725 | S75: 42.32781795 | T75: 44.09123613 | U75: 45.92812002 | AB75: =IFERROR(VLOOKUP($B75,Volumes!$B$39:$H$81,MATCH(AB$11,Volumes!$B$4:$H$4,0),FALSE),0) -> 0 | AC75: =IFERROR(VLOOKUP($B75,Volumes!$B$39:$H$81,MATCH(AC$11,Volumes!$B$4:$H$4,0),FALSE),0) -> 0 | AD75: =IFERROR(VLOOKUP($B75,Volumes!$B$39:$H$81,MATCH(AD$11,Volumes!$B$4:$H$4,0),FALSE),0) -> 0 | AE75: =IFERROR(VLOOKUP($B75,Volumes!$B$39:$H$81,MATCH(AE$11,Volumes!$B$4:$H$4,0),FALSE),0) -> 0 | AF75: =IFERROR(VLOOKUP($B75,Volumes!$B$39:$H$81,MATCH(AF$11,Volumes!$B$4:$H$4,0),FALSE),0) -> 0 | AM75: =IF($C75="NA","",(E75*AM$9)/100) -> 139.3954945 | AN75: 141.3778812 | AO75: 143.7813052 | AP75: 146.2255874 | AQ75: 149.1188509 | AX75: =IF($C75="NA","",(Q75*AX$9)/100) -> 142.7756605 | AY75: 148.3174845 | AZ75: 154.4965355 | BA75: 160.9330119 | BB75: 168.0969193 | BJ75: =IFERROR(AM75*AB75,0) -> 0 | BK75: 0 | BL75: 0 | BM75: 0 | BN75: 0 | BV75: =IFERROR(AX75*AB75,0) -> 0 | BW75: 0 | BX75: 0 | BY75: 0 | BZ75: 0
B76: =Inputs!$C70 -> 42W Compact Fluorescent | C76: Offered | D76: =IF($C76="NA","",'Unsmoothed Prices'!D74) -> 36.047 | E76: =IF($C76="NA","",('Unsmoothed Prices'!E74*(1-E$9))) -> 38.10574255 | F76: =IF($C76="NA","",E76*(1-F$9)) -> 38.75354018 | G76: 39.41235036 | H76: 40.08236032 | I76: 40.76376044 | Q76: 39.02975905 | R76: 40.65577688 | S76: 42.34953619 | T76: 44.11385917 | U76: 45.95168557 | AB76: =IFERROR(VLOOKUP($B76,Volumes!$B$39:$H$81,MATCH(AB$11,Volumes!$B$4:$H$4,0),FALSE),0) -> 3513 | AC76: =IFERROR(VLOOKUP($B76,Volumes!$B$39:$H$81,MATCH(AC$11,Volumes!$B$4:$H$4,0),FALSE),0) -> 3470 | AD76: =IFERROR(VLOOKUP($B76,Volumes!$B$39:$H$81,MATCH(AD$11,Volumes!$B$4:$H$4,0),FALSE),0) -> 3270 | AE76: =IFERROR(VLOOKUP($B76,Volumes!$B$39:$H$81,MATCH(AE$11,Volumes!$B$4:$H$4,0),FALSE),0) -> 3110 | AF76: =IFERROR(VLOOKUP($B76,Volumes!$B$39:$H$81,MATCH(AF$11,Volumes!$B$4:$H$4,0),FALSE),0) -> 2890 | AM76: 139.4670177 | AN76: 141.4504216 | AO76: 143.8550788 | AP76: 146.3006152 | AQ76: 149.1953632 | AX76: 142.8489181 | AY76: 148.3935856 | AZ76: 154.5758071 | BA76: 161.015586 | BB76: 168.1831692 | BJ76: 489947.6334 | BK76: 490832.9631 | BL76: 470406.1077 | BM76: 454994.9131 | BN76: 431174.5997 | BV76: 501828.2493 | BW76: 514925.742 | BX76: 505462.8892 | BY76: 500758.4724 | BZ76: 486049.3589
B77: =Inputs!$C71 -> 42W Compact Fluorescent - Bottom Pole Entry | C77: No Longer Offered | D77: =IF($C77="NA","",'Unsmoothed Prices'!D75) -> 36.047 | E77: =IF($C77="NA","",('Unsmoothed Prices'!E75*(1-E$9))) -> 38.10574255 | F77: 38.75354018 | G77: 39.41235036 | H77: 40.08236032 | I77: 40.76376044 | Q77: 39.02975905 | R77: 40.65577688 | S77: 42.34953619 | T77: 44.11385917 | U77: 45.95168557 | AB77: =IFERROR(VLOOKUP($B77,Volumes!$B$39:$H$81,MATCH(AB$11,Volumes!$B$4:$H$4,0),FALSE),0) -> 204 | AC77: =IFERROR(VLOOKUP($B77,Volumes!$B$39:$H$81,MATCH(AC$11,Volumes!$B$4:$H$4,0),FALSE),0) -> 204 | AD77: =IFERROR(VLOOKUP($B77,Volumes!$B$39:$H$81,MATCH(AD$11,Volumes!$B$4:$H$4,0),FALSE),0) -> 204 | AE77: =IFERROR(VLOOKUP($B77,Volumes!$B$39:$H$81,MATCH(AE$11,Volumes!$B$4:$H$4,0),FALSE),0) -> 204 | AF77: =IFERROR(VLOOKUP($B77,Volumes!$B$39:$H$81,MATCH(AF$11,Volumes!$B$4:$H$4,0),FALSE),0) -> 204 | AM77: 139.4670177 | AN77: 141.4504216 | AO77: 143.8550788 | AP77: 146.3006152 | AQ77: 149.1953632 | AX77: 142.8489181 | AY77: 148.3935856 | AZ77: 154.5758071 | BA77: 161.015586 | BB77: 168.1831692 | BJ77: 28451.27162 | BK77: 28855.88602 | BL77: 29346.43608 | BM77: 29845.32549 | BN77: 30435.8541 | BV77: 29141.1793 | BW77: 30272.29146 | BX77: 31533.46465 | BY77: 32847.17954 | BZ77: 34309.36651
B78: =Inputs!$C72 -> 2x24W Compact Fluorescent | C78: Old light no volumes | D78: =IF($C78="NA","",'Unsmoothed Prices'!D76) -> 36.369 | E78: =IF($C78="NA","",('Unsmoothed Prices'!E76*(1-E$9))) -> 38.72177717 | F78: 39.38004738 | G78: 40.04950819 | H78: 40.73034983 | I78: 41.42276578 | Q78: 39.66073173 | R78: 41.3130365 | S78: 43.03417789 | T78: 44.82702371 | U78: 46.69456124 | AB78: =IFERROR(VLOOKUP($B78,Volumes!$B$39:$H$81,MATCH(AB$11,Volumes!$B$4:$H$4,0),FALSE),0) -> 0 | AC78: =IFERROR(VLOOKUP($B78,Volumes!$B$39:$H$81,MATCH(AC$11,Volumes!$B$4:$H$4,0),FALSE),0) -> 0 | AD78: =IFERROR(VLOOKUP($B78,Volumes!$B$39:$H$81,MATCH(AD$11,Volumes!$B$4:$H$4,0),FALSE),0) -> 0 | AE78: =IFERROR(VLOOKUP($B78,Volumes!$B$39:$H$81,MATCH(AE$11,Volumes!$B$4:$H$4,0),FALSE),0) -> 0 | AF78: =IFERROR(VLOOKUP($B78,Volumes!$B$39:$H$81,MATCH(AF$11,Volumes!$B$4:$H$4,0),FALSE),0) -> 0 | AM78: 141.7217045 | AN78: 143.737173 | AO78: 146.1807049 | AP78: 148.6657769 | AQ78: 151.6073227 | AX78: 145.1582781 | AY78: 150.7925832 | AZ78: 157.0747493 | BA78: 163.6186365 | BB78: 170.9020941 | BJ78: 0 | BK78: 0 | BL78: 0 | BM78: 0 | BN78: 0 | BV78: 0 | BW78: 0 | BX78: 0 | BY78: 0 | BZ78: 0
B79: =Inputs!$C73 -> 1x20W Fluorescent | C79: Old light no volumes | D79: =IF($C79="NA","",'Unsmoothed Prices'!D77) -> 37.742 | E79: =IF($C79="NA","",('Unsmoothed Prices'!E77*(1-E$9))) -> 39.75656644 | F79: 40.43242807 | G79: 41.11977935 | H79: 41.8188156 | I79: 42.52973546 | Q79: 40.72061334 | R79: 42.41707381 | S79: 44.18421047 | T79: 46.02496777 | U79: 47.94241282 | AB79: =IFERROR(VLOOKUP($B79,Volumes!$B$39:$H$81,MATCH(AB$11,Volumes!$B$4:$H$4,0),FALSE),0) -> 0 | AC79: =IFERROR(VLOOKUP($B79,Volumes!$B$39:$H$81,MATCH(AC$11,Volumes!$B$4:$H$4,0),FALSE),0) -> 0 | AD79: =IFERROR(VLOOKUP($B79,Volumes!$B$39:$H$81,MATCH(AD$11,Volumes!$B$4:$H$4,0),FALSE),0) -> 0 | AE79: =IFERROR(VLOOKUP($B79,Volumes!$B$39:$H$81,MATCH(AE$11,Volumes!$B$4:$H$4,0),FALSE),0) -> 0 | AF79: =IFERROR(VLOOKUP($B79,Volumes!$B$39:$H$81,MATCH(AF$11,Volumes!$B$4:$H$4,0),FALSE),0) -> 0 | AM79: 145.5090332 | AN79: 147.5783625 | AO79: 150.0871946 | AP79: 152.6386769 | AQ79: 155.6588318 | AX79: 149.0374448 | AY79: 154.8223194 | AZ79: 161.2723682 | BA79: 167.9911324 | BB79: 175.4692309 | BJ79: 0 | BK79: 0 | BL79: 0 | BM79: 0 | BN79: 0 | BV79: 0 | BW79: 0 | BX79: 0 | BY79: 0 | BZ79: 0
B80: =Inputs!$C74 -> 1x40W Fluorescent | C80: Old light no volumes | D80: =IF($C80="NA","",'Unsmoothed Prices'!D78) -> 36.579 | E80: =IF($C80="NA","",('Unsmoothed Prices'!E78*(1-E$9))) -> 38.82693112 | F80: 39.48698895 | G80: 40.15826776 | H80: 40.84095831 | I80: 41.5352546 | Q80: 39.76843553 | R80: 41.42522734 | S80: 43.15104271 | T80: 44.94875723 | U80: 46.8213663 | AB80: =IFERROR(VLOOKUP($B80,Volumes!$B$39:$H$81,MATCH(AB$11,Volumes!$B$4:$H$4,0),FALSE),0) -> 0 | AC80: =IFERROR(VLOOKUP($B80,Volumes!$B$39:$H$81,MATCH(AC$11,Volumes!$B$4:$H$4,0),FALSE),0) -> 0 | AD80: =IFERROR(VLOOKUP($B80,Volumes!$B$39:$H$81,MATCH(AD$11,Volumes!$B$4:$H$4,0),FALSE),0) -> 0 | AE80: =IFERROR(VLOOKUP($B80,Volumes!$B$39:$H$81,MATCH(AE$11,Volumes!$B$4:$H$4,0),FALSE),0) -> 0 | AF80: =IFERROR(VLOOKUP($B80,Volumes!$B$39:$H$81,MATCH(AF$11,Volumes!$B$4:$H$4,0),FALSE),0) -> 0 | AM80: 142.1065679 | AN80: 144.1275097 | AO80: 146.5776773 | AP80: 149.0694978 | AQ80: 152.0190318 | AX80: 145.552474 | AY80: 151.2020798 | AZ80: 157.5013059 | BA80: 164.0629639 | BB80: 171.3662007 | BJ80: 0 | BK80: 0 | BL80: 0 | BM80: 0 | BN80: 0 | BV80: 0 | BW80: 0 | BX80: 0 | BY80: 0 | BZ80: 0
B81: =Inputs!$C75 -> 2x20W Fluorescent | C81: Old light no volumes | D81: =IF($C81="NA","",'Unsmoothed Prices'!D79) -> 38.031 | E81: =IF($C81="NA","",('Unsmoothed Prices'!E79*(1-E$9))) -> 40.01340263 | F81: 40.69363047 | G81: 41.38542219 | H81: 42.08897436 | I81: 42.80448693 | Q81: 40.98367749 | R81: 42.69109746 | S81: 44.46965021 | T81: 46.32229921 | U81: 48.25213137 | AB81: =IFERROR(VLOOKUP($B81,Volumes!$B$39:$H$81,MATCH(AB$11,Volumes!$B$4:$H$4,0),FALSE),0) -> 0 | AC81: =IFERROR(VLOOKUP($B81,Volumes!$B$39:$H$81,MATCH(AC$11,Volumes!$B$4:$H$4,0),FALSE),0) -> 0 | AD81: =IFERROR(VLOOKUP($B81,Volumes!$B$39:$H$81,MATCH(AD$11,Volumes!$B$4:$H$4,0),FALSE),0) -> 0 | AE81: =IFERROR(VLOOKUP($B81,Volumes!$B$39:$H$81,MATCH(AE$11,Volumes!$B$4:$H$4,0),FALSE),0) -> 0 | AF81: =IFERROR(VLOOKUP($B81,Volumes!$B$39:$H$81,MATCH(AF$11,Volumes!$B$4:$H$4,0),FALSE),0) -> 0 | AM81: 146.4490536 | AN81: 148.5317512 | AO81: 151.056791 | AP81: 153.6247564 | AQ81: 156.6644222 | AX81: 150.0002596 | AY81: 155.8225057 | AZ81: 162.3142233 | BA81: 169.0763921 | BB81: 176.6028008 | BJ81: 0 | BK81: 0 | BL81: 0 | BM81: 0 | BN81: 0 | BV81: 0 | BW81: 0 | BX81: 0 | BY81: 0 | BZ81: 0
B82: =Inputs!$C76 -> 2x24W Fluorescent | C82: Old light no volumes | D82: =IF($C82="NA","",'Unsmoothed Prices'!D80) -> 37.982 | E82: =IF($C82="NA","",('Unsmoothed Prices'!E80*(1-E$9))) -> 39.98176338 | F82: 40.66145336 | G82: 41.35269807 | H82: 42.05569394 | I82: 42.77064073 | Q82: 40.95127103 | R82: 42.65734092 | S82: 44.43448735 | T82: 46.28567143 | U82: 48.21397764 | AB82: =IFERROR(VLOOKUP($B82,Volumes!$B$39:$H$81,MATCH(AB$11,Volumes!$B$4:$H$4,0),FALSE),0) -> 0 | AC82: =IFERROR(VLOOKUP($B82,Volumes!$B$39:$H$81,MATCH(AC$11,Volumes!$B$4:$H$4,0),FALSE),0) -> 0 | AD82: =IFERROR(VLOOKUP($B82,Volumes!$B$39:$H$81,MATCH(AD$11,Volumes!$B$4:$H$4,0),FALSE),0) -> 0 | AE82: =IFERROR(VLOOKUP($B82,Volumes!$B$39:$H$81,MATCH(AE$11,Volumes!$B$4:$H$4,0),FALSE),0) -> 0 | AF82: =IFERROR(VLOOKUP($B82,Volumes!$B$39:$H$81,MATCH(AF$11,Volumes!$B$4:$H$4,0),FALSE),0) -> 0 | AM82: 146.333254 | AN82: 148.4143048 | AO82: 150.937348 | AP82: 153.5032829 | AQ82: 156.5405451 | AX82: 149.881652 | AY82: 155.6992944 | AZ82: 162.1858788 | BA82: 168.9427007 | BB82: 176.4631582 | BJ82: 0 | BK82: 0 | BL82: 0 | BM82: 0 | BN82: 0 | BV82: 0 | BW82: 0 | BX82: 0 | BY82: 0 | BZ82: 0
B83: =Inputs!$C77 -> T5 Fluorescent 2 x 24W | C83: Obsolete, no new Connections | D83: =IF($C83="NA","",'Unsmoothed Prices'!D81) -> 38.032 | E83: =IF($C83="NA","",('Unsmoothed Prices'!E81*(1-E$9))) -> 40.01340263 | F83: 40.69363047 | G83: 41.38542219 | H83: 42.08897436 | I83: 42.80448693 | Q83: 40.98367749 | R83: 42.69109746 | S83: 44.46965021 | T83: 46.32229921 | U83: 48.25213137 | AB83: =IFERROR(VLOOKUP($B83,Volumes!$B$39:$H$81,MATCH(AB$11,Volumes!$B$4:$H$4,0),FALSE),0) -> 83 | AC83: =IFERROR(VLOOKUP($B83,Volumes!$B$39:$H$81,MATCH(AC$11,Volumes!$B$4:$H$4,0),FALSE),0) -> 83 | AD83: =IFERROR(VLOOKUP($B83,Volumes!$B$39:$H$81,MATCH(AD$11,Volumes!$B$4:$H$4,0),FALSE),0) -> 83 | AE83: =IFERROR(VLOOKUP($B83,Volumes!$B$39:$H$81,MATCH(AE$11,Volumes!$B$4:$H$4,0),FALSE),0) -> 83 | AF83: =IFERROR(VLOOKUP($B83,Volumes!$B$39:$H$81,MATCH(AF$11,Volumes!$B$4:$H$4,0),FALSE),0) -> 83 | AM83: 146.4490536 | AN83: 148.5317512 | AO83: 151.056791 | AP83: 153.6247564 | AQ83: 156.6644222 | AX83: 150.0002596 | AY83: 155.8225057 | AZ83: 162.3142233 | BA83: 169.0763921 | BB83: 176.6028008 | BJ83: 12155.27145 | BK83: 12328.13535 | BL83: 12537.71365 | BM83: 12750.85478 | BN83: 13003.14704 | BV83: 12450.02155 | BW83: 12933.26798 | BX83: 13472.08053 | BY83: 14033.34055 | BZ83: 14658.03247
B84: =Inputs!$C78 -> 20 Fluorescent 1X20FL | C84: Old light no volumes | D84: =IF($C84="NA","",'Unsmoothed Prices'!D82) -> 37.742 | E84: =IF($C84="NA","",('Unsmoothed Prices'!E82*(1-E$9))) -> 39.75656644 | F84: 40.43242807 | G84: 41.11977935 | H84: 41.8188156 | I84: 42.52973546 | Q84: 40.72061334 | R84: 42.41707381 | S84: 44.18421047 | T84: 46.02496777 | U84: 47.94241282 | AB84: =IFERROR(VLOOKUP($B84,Volumes!$B$39:$H$81,MATCH(AB$11,Volumes!$B$4:$H$4,0),FALSE),0) -> 0 | AC84: =IFERROR(VLOOKUP($B84,Volumes!$B$39:$H$81,MATCH(AC$11,Volumes!$B$4:$H$4,0),FALSE),0) -> 0 | AD84: =IFERROR(VLOOKUP($B84,Volumes!$B$39:$H$81,MATCH(AD$11,Volumes!$B$4:$H$4,0),FALSE),0) -> 0 | AE84: =IFERROR(VLOOKUP($B84,Volumes!$B$39:$H$81,MATCH(AE$11,Volumes!$B$4:$H$4,0),FALSE),0) -> 0 | AF84: =IFERROR(VLOOKUP($B84,Volumes!$B$39:$H$81,MATCH(AF$11,Volumes!$B$4:$H$4,0),FALSE),0) -> 0 | AM84: 145.5090332 | AN84: 147.5783625 | AO84: 150.0871946 | AP84: 152.6386769 | AQ84: 155.6588318 | AX84: 149.0374448 | AY84: 154.8223194 | AZ84: 161.2723682 | BA84: 167.9911324 | BB84: 175.4692309 | BJ84: 0 | BK84: 0 | BL84: 0 | BM84: 0 | BN84: 0 | BV84: 0 | BW84: 0 | BX84: 0 | BY84: 0 | BZ84: 0
B85: =Inputs!$C79 -> 2x40W Fluorescent | C85: Old light no volumes | D85: =IF($C85="NA","",'Unsmoothed Prices'!D83) -> 36.888 | E85: =IF($C85="NA","",('Unsmoothed Prices'!E83*(1-E$9))) -> 39.10051749 | F85: 39.76522629 | G85: 40.44123513 | H85: 41.12873613 | I85: 41.82792464 | Q85: 40.04865603 | R85: 41.7171221 | S85: 43.45509809 | T85: 45.26547986 | U85: 47.15128389 | AB85: =IFERROR(VLOOKUP($B85,Volumes!$B$39:$H$81,MATCH(AB$11,Volumes!$B$4:$H$4,0),FALSE),0) -> 0 | AC85: =IFERROR(VLOOKUP($B85,Volumes!$B$39:$H$81,MATCH(AC$11,Volumes!$B$4:$H$4,0),FALSE),0) -> 0 | AD85: =IFERROR(VLOOKUP($B85,Volumes!$B$39:$H$81,MATCH(AD$11,Volumes!$B$4:$H$4,0),FALSE),0) -> 0 | AE85: =IFERROR(VLOOKUP($B85,Volumes!$B$39:$H$81,MATCH(AE$11,Volumes!$B$4:$H$4,0),FALSE),0) -> 0 | AF85: =IFERROR(VLOOKUP($B85,Volumes!$B$39:$H$81,MATCH(AF$11,Volumes!$B$4:$H$4,0),FALSE),0) -> 0 | AM85: 143.107894 | AN85: 145.1430759 | AO85: 147.6105082 | AP85: 150.1198869 | AQ85: 153.0902042 | AX85: 146.5780811 | AY85: 152.2674957 | AZ85: 158.611108 | BA85: 165.2190015 | BB85: 172.573699 | BJ85: 0 | BK85: 0 | BL85: 0 | BM85: 0 | BN85: 0 | BV85: 0 | BW85: 0 | BX85: 0 | BY85: 0 | BZ85: 0
B86: =Inputs!$C80 -> 3x40W Fluorescent | C86: Old light no volumes | D86: =IF($C86="NA","",'Unsmoothed Prices'!D84) -> 46.387 | E86: =IF($C86="NA","",('Unsmoothed Prices'!E84*(1-E$9))) -> 45.14733463 | F86: 45.91483932 | G86: 46.69539159 | H86: 47.48921324 | I86: 48.29652987 | Q86: 46.24210091 | R86: 48.16859193 | S86: 50.17534245 | T86: 52.26569615 | U86: 54.44313602 | AB86: =IFERROR(VLOOKUP($B86,Volumes!$B$39:$H$81,MATCH(AB$11,Volumes!$B$4:$H$4,0),FALSE),0) -> 0 | AC86: =IFERROR(VLOOKUP($B86,Volumes!$B$39:$H$81,MATCH(AC$11,Volumes!$B$4:$H$4,0),FALSE),0) -> 0 | AD86: =IFERROR(VLOOKUP($B86,Volumes!$B$39:$H$81,MATCH(AD$11,Volumes!$B$4:$H$4,0),FALSE),0) -> 0 | AE86: =IFERROR(VLOOKUP($B86,Volumes!$B$39:$H$81,MATCH(AE$11,Volumes!$B$4:$H$4,0),FALSE),0) -> 0 | AF86: =IFERROR(VLOOKUP($B86,Volumes!$B$39:$H$81,MATCH(AF$11,Volumes!$B$4:$H$4,0),FALSE),0) -> 0 | AM86: 165.2392447 | AN86: 167.5891635 | AO86: 170.4381793 | AP86: 173.3356283 | AQ86: 176.7652993 | AX86: 169.2460893 | AY86: 175.8153605 | AZ86: 183.1399999 | BA86: 190.7697909 | BB86: 199.2618778 | BJ86: 0 | BK86: 0 | BL86: 0 | BM86: 0 | BN86: 0 | BV86: 0 | BW86: 0 | BX86: 0 | BY86: 0 | BZ86: 0
B87: =Inputs!$C81 -> 4x20 Fluorescent | C87: Old light no volumes | D87: =IF($C87="NA","",'Unsmoothed Prices'!D85) -> 38.612 | E87: =IF($C87="NA","",('Unsmoothed Prices'!E85*(1-E$9))) -> 40.52614443 | F87: 41.21508888 | G87: 41.9157454 | H87: 42.62831307 | I87: 43.35299439 | Q87: 41.50885264 | R87: 43.23815192 | S87: 45.0394955 | T87: 46.9158848 | U87: 48.87044632 | AB87: =IFERROR(VLOOKUP($B87,Volumes!$B$39:$H$81,MATCH(AB$11,Volumes!$B$4:$H$4,0),FALSE),0) -> 0 | AC87: =IFERROR(VLOOKUP($B87,Volumes!$B$39:$H$81,MATCH(AC$11,Volumes!$B$4:$H$4,0),FALSE),0) -> 0 | AD87: =IFERROR(VLOOKUP($B87,Volumes!$B$39:$H$81,MATCH(AD$11,Volumes!$B$4:$H$4,0),FALSE),0) -> 0 | AE87: =IFERROR(VLOOKUP($B87,Volumes!$B$39:$H$81,MATCH(AE$11,Volumes!$B$4:$H$4,0),FALSE),0) -> 0 | AF87: =IFERROR(VLOOKUP($B87,Volumes!$B$39:$H$81,MATCH(AF$11,Volumes!$B$4:$H$4,0),FALSE),0) -> 0 | AM87: 148.3256886 | AN87: 150.4350744 | AO87: 152.9924707 | AP87: 155.5933427 | AQ87: 158.6719595 | AX87: 151.9224006 | AY87: 157.8192545 | AZ87: 164.3941586 | BA87: 171.2429795 | BB87: 178.8658335 | BJ87: 0 | BK87: 0 | BL87: 0 | BM87: 0 | BN87: 0 | BV87: 0 | BW87: 0 | BX87: 0 | BY87: 0 | BZ87: 0
B88: =Inputs!$C82 -> 4x40W Fluorescent | C88: Old light no volumes | D88: =IF($C88="NA","",'Unsmoothed Prices'!D86) -> 47.878 | E88: =IF($C88="NA","",('Unsmoothed Prices'!E86*(1-E$9))) -> 46.36730651 | F88: 47.15555072 | G88: 47.95719508 | H88: 48.7724674 | I88: 49.60159934 | Q88: 47.49165557 | R88: 49.47020426 | S88: 51.53118122 | T88: 53.67802049 | U88: 55.91429917 | AB88: =IFERROR(VLOOKUP($B88,Volumes!$B$39:$H$81,MATCH(AB$11,Volumes!$B$4:$H$4,0),FALSE),0) -> 0 | AC88: =IFERROR(VLOOKUP($B88,Volumes!$B$39:$H$81,MATCH(AC$11,Volumes!$B$4:$H$4,0),FALSE),0) -> 0 | AD88: =IFERROR(VLOOKUP($B88,Volumes!$B$39:$H$81,MATCH(AD$11,Volumes!$B$4:$H$4,0),FALSE),0) -> 0 | AE88: =IFERROR(VLOOKUP($B88,Volumes!$B$39:$H$81,MATCH(AE$11,Volumes!$B$4:$H$4,0),FALSE),0) -> 0 | AF88: =IFERROR(VLOOKUP($B88,Volumes!$B$39:$H$81,MATCH(AF$11,Volumes!$B$4:$H$4,0),FALSE),0) -> 0 | AM88: 169.7043418 | AN88: 172.1177601 | AO88: 175.0437621 | AP88: 178.019506 | AQ88: 181.5418536 | AX88: 173.8194594 | AY88: 180.5662456 | AZ88: 188.0888114 | BA88: 195.9247748 | BB88: 204.646335 | BJ88: 0 | BK88: 0 | BL88: 0 | BM88: 0 | BN88: 0 | BV88: 0 | BW88: 0 | BX88: 0 | BY88: 0 | BZ88: 0
B89: =Inputs!$C83 -> 100W Sodium Vapour | C89: Offered | D89: =IF($C89="NA","",'Unsmoothed Prices'!D87) -> 45.521 | E89: =IF($C89="NA","",('Unsmoothed Prices'!E87*(1-E$9))) -> 44.43917399 | F89: 45.19463995 | G89: 45.96294883 | H89: 46.74431896 | I89: 47.53897238 | Q89: 45.51676826 | R89: 47.41304121 | S89: 49.38831475 | T89: 51.44588011 | U89: 53.58916565 | AB89: =IFERROR(VLOOKUP($B89,Volumes!$B$39:$H$81,MATCH(AB$11,Volumes!$B$4:$H$4,0),FALSE),0) -> 444 | AC89: =IFERROR(VLOOKUP($B89,Volumes!$B$39:$H$81,MATCH(AC$11,Volumes!$B$4:$H$4,0),FALSE),0) -> 466 | AD89: =IFERROR(VLOOKUP($B89,Volumes!$B$39:$H$81,MATCH(AD$11,Volumes!$B$4:$H$4,0),FALSE),0) -> 490 | AE89: =IFERROR(VLOOKUP($B89,Volumes!$B$39:$H$81,MATCH(AE$11,Volumes!$B$4:$H$4,0),FALSE),0) -> 514 | AF89: =IFERROR(VLOOKUP($B89,Volumes!$B$39:$H$81,MATCH(AF$11,Volumes!$B$4:$H$4,0),FALSE),0) -> 540 | AM89: 162.6473768 | AN89: 164.9604358 | AO89: 167.7647632 | AP89: 170.6167642 | AQ89: 173.9926389 | AX89: 166.5913718 | AY89: 173.0576004 | AZ89: 180.2673488 | BA89: 187.7774624 | BB89: 196.1363463 | BJ89: 72215.4353 | BK89: 76871.56309 | BL89: 82204.73398 | BM89: 87697.01679 | BN89: 93956.02501 | BV89: 73966.56909 | BW89: 80644.8418 | BX89: 88331.00093 | BY89: 96517.61568 | BZ89: 105913.627
B90: =Inputs!$C84 -> 0 | C90: NA | D90: =IF($C90="NA","",'Unsmoothed Prices'!D88) ->  | E90: =IF($C90="NA","",('Unsmoothed Prices'!E88*(1-E$9))) ->  | AB90: =IFERROR(VLOOKUP($B90,Volumes!$B$39:$H$81,MATCH(AB$11,Volumes!$B$4:$H$4,0),FALSE),0) -> 0 | AC90: =IFERROR(VLOOKUP($B90,Volumes!$B$39:$H$81,MATCH(AC$11,Volumes!$B$4:$H$4,0),FALSE),0) -> 0 | AD90: =IFERROR(VLOOKUP($B90,Volumes!$B$39:$H$81,MATCH(AD$11,Volumes!$B$4:$H$4,0),FALSE),0) -> 0 | AE90: =IFERROR(VLOOKUP($B90,Volumes!$B$39:$H$81,MATCH(AE$11,Volumes!$B$4:$H$4,0),FALSE),0) -> 0 | AF90: =IFERROR(VLOOKUP($B90,Volumes!$B$39:$H$81,MATCH(AF$11,Volumes!$B$4:$H$4,0),FALSE),0) -> 0 | BJ90: 0 | BK90: 0 | BL90: 0 | BM90: 0 | BN90: 0 | BV90: 0 | BW90: 0 | BX90: 0 | BY90: 0 | BZ90: 0
B91: =Inputs!$C85 -> 150W Sodium Vapour | C91: Offered | D91: =IF($C91="NA","",'Unsmoothed Prices'!D89) -> 47.881 | E91: =IF($C91="NA","",('Unsmoothed Prices'!E89*(1-E$9))) -> 46.71440759 | F91: 47.50855251 | G91: 48.31619791 | H91: 49.13757327 | I91: 49.97291202 | Q91: 47.84717342 | R91: 49.84053333 | S91: 51.91693855 | T91: 54.07984884 | U91: 56.33286809 | AB91: =IFERROR(VLOOKUP($B91,Volumes!$B$39:$H$81,MATCH(AB$11,Volumes!$B$4:$H$4,0),FALSE),0) -> 5322 | AC91: =IFERROR(VLOOKUP($B91,Volumes!$B$39:$H$81,MATCH(AC$11,Volumes!$B$4:$H$4,0),FALSE),0) -> 5588 | AD91: =IFERROR(VLOOKUP($B91,Volumes!$B$39:$H$81,MATCH(AD$11,Volumes!$B$4:$H$4,0),FALSE),0) -> 5762 | AE91: =IFERROR(VLOOKUP($B91,Volumes!$B$39:$H$81,MATCH(AE$11,Volumes!$B$4:$H$4,0),FALSE),0) -> 6008 | AF91: =IFERROR(VLOOKUP($B91,Volumes!$B$39:$H$81,MATCH(AF$11,Volumes!$B$4:$H$4,0),FALSE),0) -> 6328 | AM91: 170.9747318 | AN91: 173.4062167 | AO91: 176.3541224 | AP91: 179.3521424 | AQ91: 182.900858 | AX91: 175.1206547 | AY91: 181.9179466 | AZ91: 189.4968257 | BA91: 197.3914483 | BB91: 206.1782972 | BJ91: 909927.5224 | BK91: 968993.9388 | BL91: 1016152.453 | BM91: 1077547.672 | BN91: 1157396.629 | BV91: 931992.1243 | BW91: 1016557.486 | BX91: 1091880.71 | BY91: 1185927.821 | BZ91: 1304696.265
B92: =Inputs!$C86 -> 0 | C92: NA | D92: =IF($C92="NA","",'Unsmoothed Prices'!D90) ->  | E92: =IF($C92="NA","",('Unsmoothed Prices'!E90*(1-E$9))) ->  | AB92: =IFERROR(VLOOKUP($B92,Volumes!$B$39:$H$81,MATCH(AB$11,Volumes!$B$4:$H$4,0),FALSE),0) -> 0 | AC92: =IFERROR(VLOOKUP($B92,Volumes!$B$39:$H$81,MATCH(AC$11,Volumes!$B$4:$H$4,0),FALSE),0) -> 0 | AD92: =IFERROR(VLOOKUP($B92,Volumes!$B$39:$H$81,MATCH(AD$11,Volumes!$B$4:$H$4,0),FALSE),0) -> 0 | AE92: =IFERROR(VLOOKUP($B92,Volumes!$B$39:$H$81,MATCH(AE$11,Volumes!$B$4:$H$4,0),FALSE),0) -> 0 | AF92: =IFERROR(VLOOKUP($B92,Volumes!$B$39:$H$81,MATCH(AF$11,Volumes!$B$4:$H$4,0),FALSE),0) -> 0 | BJ92: 0 | BK92: 0 | BL92: 0 | BM92: 0 | BN92: 0 | BV92: 0 | BW92: 0 | BX92: 0 | BY92: 0 | BZ92: 0
B93: =Inputs!$C87 -> 0 | C93: NA | D93: =IF($C93="NA","",'Unsmoothed Prices'!D91) ->  | E93: =IF($C93="NA","",('Unsmoothed Prices'!E91*(1-E$9))) ->  | AB93: =IFERROR(VLOOKUP($B93,Volumes!$B$39:$H$81,MATCH(AB$11,Volumes!$B$4:$H$4,0),FALSE),0) -> 0 | AC93: =IFERROR(VLOOKUP($B93,Volumes!$B$39:$H$81,MATCH(AC$11,Volumes!$B$4:$H$4,0),FALSE),0) -> 0 | AD93: =IFERROR(VLOOKUP($B93,Volumes!$B$39:$H$81,MATCH(AD$11,Volumes!$B$4:$H$4,0),FALSE),0) -> 0 | AE93: =IFERROR(VLOOKUP($B93,Volumes!$B$39:$H$81,MATCH(AE$11,Volumes!$B$4:$H$4,0),FALSE),0) -> 0 | AF93: =IFERROR(VLOOKUP($B93,Volumes!$B$39:$H$81,MATCH(AF$11,Volumes!$B$4:$H$4,0),FALSE),0) -> 0 | BJ93: 0 | BK93: 0 | BL93: 0 | BM93: 0 | BN93: 0 | BV93: 0 | BW93: 0 | BX93: 0 | BY93: 0 | BZ93: 0
B94: =Inputs!$C88 -> 0 | C94: NA | D94: =IF($C94="NA","",'Unsmoothed Prices'!D92) ->  | E94: =IF($C94="NA","",('Unsmoothed Prices'!E92*(1-E$9))) ->  | AB94: =IFERROR(VLOOKUP($B94,Volumes!$B$39:$H$81,MATCH(AB$11,Volumes!$B$4:$H$4,0),FALSE),0) -> 0 | AC94: =IFERROR(VLOOKUP($B94,Volumes!$B$39:$H$81,MATCH(AC$11,Volumes!$B$4:$H$4,0),FALSE),0) -> 0 | AD94: =IFERROR(VLOOKUP($B94,Volumes!$B$39:$H$81,MATCH(AD$11,Volumes!$B$4:$H$4,0),FALSE),0) -> 0 | AE94: =IFERROR(VLOOKUP($B94,Volumes!$B$39:$H$81,MATCH(AE$11,Volumes!$B$4:$H$4,0),FALSE),0) -> 0 | AF94: =IFERROR(VLOOKUP($B94,Volumes!$B$39:$H$81,MATCH(AF$11,Volumes!$B$4:$H$4,0),FALSE),0) -> 0 | BJ94: 0 | BK94: 0 | BL94: 0 | BM94: 0 | BN94: 0 | BV94: 0 | BW94: 0 | BX94: 0 | BY94: 0 | BZ94: 0
B95: =Inputs!$C89 -> 250W Sodium Vapour | C95: Offered | D95: =IF($C95="NA","",'Unsmoothed Prices'!D93) -> 49.024 | E95: =IF($C95="NA","",('Unsmoothed Prices'!E93*(1-E$9))) -> 47.78735005 | F95: 48.59973501 | G95: 49.4259305 | H95: 50.26617132 | I95: 51.12069623 | Q95: 48.9461334 | R95: 50.98527705 | S95: 53.10937341 | T95: 55.32196171 | U95: 57.62672859 | AB95: =IFERROR(VLOOKUP($B95,Volumes!$B$39:$H$81,MATCH(AB$11,Volumes!$B$4:$H$4,0),FALSE),0) -> 6615 | AC95: =IFERROR(VLOOKUP($B95,Volumes!$B$39:$H$81,MATCH(AC$11,Volumes!$B$4:$H$4,0),FALSE),0) -> 6946 | AD95: =IFERROR(VLOOKUP($B95,Volumes!$B$39:$H$81,MATCH(AD$11,Volumes!$B$4:$H$4,0),FALSE),0) -> 7293 | AE95: =IFERROR(VLOOKUP($B95,Volumes!$B$39:$H$81,MATCH(AE$11,Volumes!$B$4:$H$4,0),FALSE),0) -> 7654 | AF95: =IFERROR(VLOOKUP($B95,Volumes!$B$39:$H$81,MATCH(AF$11,Volumes!$B$4:$H$4,0),FALSE),0) -> 8040 | AM95: 174.9017012 | AN95: 177.3890328 | AO95: 180.4046463 | AP95: 183.4715253 | AQ95: 187.1017482 | AX95: 179.1428482 | AY95: 186.0962612 | AZ95: 193.849213 | BA95: 201.9251602 | BB95: 210.9138266 | BJ95: 1156974.753 | BK95: 1232144.222 | BL95: 1315691.086 | BM95: 1404291.055 | BN95: 1504298.056 | BV95: 1185029.941 | BW95: 1292624.63 | BX95: 1413742.31 | BY95: 1545535.176 | BZ95: 1695747.166
B96: =Inputs!$C90 -> 0 | C96: NA | D96: =IF($C96="NA","",'Unsmoothed Prices'!D94) ->  | E96: =IF($C96="NA","",('Unsmoothed Prices'!E94*(1-E$9))) ->  | AB96: =IFERROR(VLOOKUP($B96,Volumes!$B$39:$H$81,MATCH(AB$11,Volumes!$B$4:$H$4,0),FALSE),0) -> 0 | AC96: =IFERROR(VLOOKUP($B96,Volumes!$B$39:$H$81,MATCH(AC$11,Volumes!$B$4:$H$4,0),FALSE),0) -> 0 | AD96: =IFERROR(VLOOKUP($B96,Volumes!$B$39:$H$81,MATCH(AD$11,Volumes!$B$4:$H$4,0),FALSE),0) -> 0 | AE96: =IFERROR(VLOOKUP($B96,Volumes!$B$39:$H$81,MATCH(AE$11,Volumes!$B$4:$H$4,0),FALSE),0) -> 0 | AF96: =IFERROR(VLOOKUP($B96,Volumes!$B$39:$H$81,MATCH(AF$11,Volumes!$B$4:$H$4,0),FALSE),0) -> 0 | BJ96: 0 | BK96: 0 | BL96: 0 | BM96: 0 | BN96: 0 | BV96: 0 | BW96: 0 | BX96: 0 | BY96: 0 | BZ96: 0
B97: =Inputs!$C91 -> 0 | C97: NA | D97: =IF($C97="NA","",'Unsmoothed Prices'!D95) ->  | E97: =IF($C97="NA","",('Unsmoothed Prices'!E95*(1-E$9))) ->  | AB97: =IFERROR(VLOOKUP($B97,Volumes!$B$39:$H$81,MATCH(AB$11,Volumes!$B$4:$H$4,0),FALSE),0) -> 0 | AC97: =IFERROR(VLOOKUP($B97,Volumes!$B$39:$H$81,MATCH(AC$11,Volumes!$B$4:$H$4,0),FALSE),0) -> 0 | AD97: =IFERROR(VLOOKUP($B97,Volumes!$B$39:$H$81,MATCH(AD$11,Volumes!$B$4:$H$4,0),FALSE),0) -> 0 | AE97: =IFERROR(VLOOKUP($B97,Volumes!$B$39:$H$81,MATCH(AE$11,Volumes!$B$4:$H$4,0),FALSE),0) -> 0 | AF97: =IFERROR(VLOOKUP($B97,Volumes!$B$39:$H$81,MATCH(AF$11,Volumes!$B$4:$H$4,0),FALSE),0) -> 0 | BJ97: 0 | BK97: 0 | BL97: 0 | BM97: 0 | BN97: 0 | BV97: 0 | BW97: 0 | BX97: 0 | BY97: 0 | BZ97: 0
B98: =Inputs!$C92 -> 0 | C98: NA | D98: =IF($C98="NA","",'Unsmoothed Prices'!D96) ->  | E98: =IF($C98="NA","",('Unsmoothed Prices'!E96*(1-E$9))) ->  | AB98: =IFERROR(VLOOKUP($B98,Volumes!$B$39:$H$81,MATCH(AB$11,Volumes!$B$4:$H$4,0),FALSE),0) -> 0 | AC98: =IFERROR(VLOOKUP($B98,Volumes!$B$39:$H$81,MATCH(AC$11,Volumes!$B$4:$H$4,0),FALSE),0) -> 0 | AD98: =IFERROR(VLOOKUP($B98,Volumes!$B$39:$H$81,MATCH(AD$11,Volumes!$B$4:$H$4,0),FALSE),0) -> 0 | AE98: =IFERROR(VLOOKUP($B98,Volumes!$B$39:$H$81,MATCH(AE$11,Volumes!$B$4:$H$4,0),FALSE),0) -> 0 | AF98: =IFERROR(VLOOKUP($B98,Volumes!$B$39:$H$81,MATCH(AF$11,Volumes!$B$4:$H$4,0),FALSE),0) -> 0 | BJ98: 0 | BK98: 0 | BL98: 0 | BM98: 0 | BN98: 0 | BV98: 0 | BW98: 0 | BX98: 0 | BY98: 0 | BZ98: 0
B99: =Inputs!$C93 -> 250W Sodium Vapour - Flood Light | C99: Offered | D99: =IF($C99="NA","",'Unsmoothed Prices'!D97) -> 53.133 | E99: =IF($C99="NA","",('Unsmoothed Prices'!E97*(1-E$9))) -> 51.00989973 | F99: 51.87706802 | G99: 52.75897818 | H99: 53.65588081 | I99: 54.56803078 | Q99: 52.24682586 | R99: 54.42347958 | S99: 56.69081481 | T99: 59.05260945 | U99: 61.51279875 | AB99: =IFERROR(VLOOKUP($B99,Volumes!$B$39:$H$81,MATCH(AB$11,Volumes!$B$4:$H$4,0),FALSE),0) -> 36 | AC99: =IFERROR(VLOOKUP($B99,Volumes!$B$39:$H$81,MATCH(AC$11,Volumes!$B$4:$H$4,0),FALSE),0) -> 38 | AD99: =IFERROR(VLOOKUP($B99,Volumes!$B$39:$H$81,MATCH(AD$11,Volumes!$B$4:$H$4,0),FALSE),0) -> 40 | AE99: =IFERROR(VLOOKUP($B99,Volumes!$B$39:$H$81,MATCH(AE$11,Volumes!$B$4:$H$4,0),FALSE),0) -> 42 | AF99: =IFERROR(VLOOKUP($B99,Volumes!$B$39:$H$81,MATCH(AF$11,Volumes!$B$4:$H$4,0),FALSE),0) -> 44 | AM99: 186.696233 | AN99: 189.3512983 | AO99: 192.5702703 | AP99: 195.8439649 | AQ99: 199.7189927 | AX99: 191.2233826 | AY99: 198.6457005 | AZ99: 206.9214741 | BA99: 215.5420245 | BB99: 225.1368434 | BJ99: 6721.064388 | BK99: 7195.349335 | BL99: 7702.810814 | BM99: 8225.446528 | BN99: 8787.635677 | BV99: 6884.041775 | BW99: 7548.536617 | BX99: 8276.858963 | BY99: 9052.765028 | BZ99: 9906.02111
B100: =Inputs!$C94 -> 400W Sodium Vapour | C100: Offered | D100: =IF($C100="NA","",'Unsmoothed Prices'!D98) -> 49.888 | E100: =IF($C100="NA","",('Unsmoothed Prices'!E98*(1-E$9))) -> 48.32149487 | F100: 49.14296029 | G100: 49.97839061 | H100: 50.82802325 | I100: 51.69209965 | Q100: 49.49323056 | R100: 51.55516681 | S100: 53.70300534 | T100: 55.94032492 | U100: 58.27085341 | AB100: =IFERROR(VLOOKUP($B100,Volumes!$B$39:$H$81,MATCH(AB$11,Volumes!$B$4:$H$4,0),FALSE),0) -> 674 | AC100: =IFERROR(VLOOKUP($B100,Volumes!$B$39:$H$81,MATCH(AC$11,Volumes!$B$4:$H$4,0),FALSE),0) -> 708 | AD100: =IFERROR(VLOOKUP($B100,Volumes!$B$39:$H$81,MATCH(AD$11,Volumes!$B$4:$H$4,0),FALSE),0) -> 733 | AE100: =IFERROR(VLOOKUP($B100,Volumes!$B$39:$H$81,MATCH(AE$11,Volumes!$B$4:$H$4,0),FALSE),0) -> 764 | AF100: =IFERROR(VLOOKUP($B100,Volumes!$B$39:$H$81,MATCH(AF$11,Volumes!$B$4:$H$4,0),FALSE),0) -> 806 | AM100: 176.8566712 | AN100: 179.371805 | AO100: 182.4211257 | AP100: 185.5222849 | AQ100: 189.1930847 | AX100: 181.1452238 | AY100: 188.1763589 | AZ100: 196.0159695 | BA100: 204.182186 | BB100: 213.2713235 | BJ100: 119201.3964 | BK100: 126995.238 | BL100: 133714.6852 | BM100: 141739.0256 | BN100: 152489.6263 | BV100: 122091.8809 | BW100: 133228.8621 | BX100: 143679.7056 | BY100: 155995.1901 | BZ100: 171896.6867
B101: =Inputs!$C95 -> 0 | C101: NA | D101: =IF($C101="NA","",'Unsmoothed Prices'!D99) ->  | E101: =IF($C101="NA","",('Unsmoothed Prices'!E99*(1-E$9))) ->  | Q101: =IF($C101="NA","",E101*Q$9) ->  | AB101: =IFERROR(VLOOKUP($B101,Volumes!$B$39:$H$81,MATCH(AB$11,Volumes!$B$4:$H$4,0),FALSE),0) -> 0 | AC101: =IFERROR(VLOOKUP($B101,Volumes!$B$39:$H$81,MATCH(AC$11,Volumes!$B$4:$H$4,0),FALSE),0) -> 0 | AD101: =IFERROR(VLOOKUP($B101,Volumes!$B$39:$H$81,MATCH(AD$11,Volumes!$B$4:$H$4,0),FALSE),0) -> 0 | AE101: =IFERROR(VLOOKUP($B101,Volumes!$B$39:$H$81,MATCH(AE$11,Volumes!$B$4:$H$4,0),FALSE),0) -> 0 | AF101: =IFERROR(VLOOKUP($B101,Volumes!$B$39:$H$81,MATCH(AF$11,Volumes!$B$4:$H$4,0),FALSE),0) -> 0 | AM101: =IF($C101="NA","",(E101*AM$9)/100) ->  | AX101: =IF($C101="NA","",(Q101*AX$9)/100) ->  | BJ101: =IFERROR(AM101*AB101,0) -> 0 | BK101: 0 | BL101: 0 | BM101: 0 | BN101: 0 | BV101: =IFERROR(AX101*AB101,0) -> 0 | BW101: 0 | BX101: 0 | BY101: 0 | BZ101: 0
B102: =Inputs!$C96 -> 400W Sodium Vapour - Flood Light | C102: Offered | D102: =IF($C102="NA","",'Unsmoothed Prices'!D100) -> 52.599 | E102: =IF($C102="NA","",('Unsmoothed Prices'!E100*(1-E$9))) -> 50.44690736 | F102: 51.30450479 | G102: 52.17668137 | H102: 53.06368495 | I102: 53.9657676 | Q102: 51.67018164 | R102: 53.82281179 | S102: 56.06512263 | T102: 58.40085031 | U102: 60.83388669 | AB102: =IFERROR(VLOOKUP($B102,Volumes!$B$39:$H$81,MATCH(AB$11,Volumes!$B$4:$H$4,0),FALSE),0) -> 36 | AC102: =IFERROR(VLOOKUP($B102,Volumes!$B$39:$H$81,MATCH(AC$11,Volumes!$B$4:$H$4,0),FALSE),0) -> 38 | AD102: =IFERROR(VLOOKUP($B102,Volumes!$B$39:$H$81,MATCH(AD$11,Volumes!$B$4:$H$4,0),FALSE),0) -> 40 | AE102: =IFERROR(VLOOKUP($B102,Volumes!$B$39:$H$81,MATCH(AE$11,Volumes!$B$4:$H$4,0),FALSE),0) -> 42 | AF102: =IFERROR(VLOOKUP($B102,Volumes!$B$39:$H$81,MATCH(AF$11,Volumes!$B$4:$H$4,0),FALSE),0) -> 44 | AM102: 184.6356809 | AN102: 187.2614425 | AO102: 190.444887 | AP102: 193.6824501 | AQ102: 197.5147094 | AX102: 189.1128648 | AY102: 196.4532631 | AZ102: 204.6376976 | BA102: 213.1631036 | BB102: 222.6520253 | BJ102: 6646.884514 | BK102: 7115.934814 | BL102: 7617.79548 | BM102: 8134.662903 | BN102: 8690.647214 | BV102: 6808.063132 | BW102: 7465.223996 | BX102: 8185.507903 | BY102: 8952.850353 | BZ102: 9796.689113
B103: =Inputs!$C97 -> 70W Sodium Vapour | C103: Offered | D103: =IF($C103="NA","",'Unsmoothed Prices'!D101) -> 35.882 | E103: =IF($C103="NA","",('Unsmoothed Prices'!E101*(1-E$9))) -> 38.34210629 | F103: 38.9939221 | G103: 39.65681877 | H103: 40.33098469 | I103: 41.01661143 | Q103: 39.27185431 | R103: 40.90795806 | S103: 42.61222349 | T103: 44.38749028 | U103: 46.23671641 | AB103: =IFERROR(VLOOKUP($B103,Volumes!$B$39:$H$81,MATCH(AB$11,Volumes!$B$4:$H$4,0),FALSE),0) -> 236 | AC103: =IFERROR(VLOOKUP($B103,Volumes!$B$39:$H$81,MATCH(AC$11,Volumes!$B$4:$H$4,0),FALSE),0) -> 248 | AD103: =IFERROR(VLOOKUP($B103,Volumes!$B$39:$H$81,MATCH(AD$11,Volumes!$B$4:$H$4,0),FALSE),0) -> 260 | AE103: =IFERROR(VLOOKUP($B103,Volumes!$B$39:$H$81,MATCH(AE$11,Volumes!$B$4:$H$4,0),FALSE),0) -> 272 | AF103: =IFERROR(VLOOKUP($B103,Volumes!$B$39:$H$81,MATCH(AF$11,Volumes!$B$4:$H$4,0),FALSE),0) -> 286 | AM103: 140.332109 | AN103: 142.3278157 | AO103: 144.7473885 | AP103: 147.2080941 | AQ103: 150.1207978 | AX103: 143.7349868 | AY103: 149.3140469 | AZ103: 155.5346157 | BA103: 162.0143395 | BB103: 169.2263821 | BJ103: 33118.37773 | BK103: 35297.29828 | BL103: 37634.32102 | BM103: 40040.6016 | BN103: 42934.54818 | BV103: 33921.45688 | BW103: 37029.88364 | BX103: 40439.00009 | BY103: 44067.90035 | BZ103: 48398.74527
B104: =Inputs!$C98 -> 0 | C104: NA | D104: =IF($C104="NA","",'Unsmoothed Prices'!D102) ->  | E104: =IF($C104="NA","",('Unsmoothed Prices'!E102*(1-E$9))) ->  | AB104: =IFERROR(VLOOKUP($B104,Volumes!$B$39:$H$81,MATCH(AB$11,Volumes!$B$4:$H$4,0),FALSE),0) -> 0 | AC104: =IFERROR(VLOOKUP($B104,Volumes!$B$39:$H$81,MATCH(AC$11,Volumes!$B$4:$H$4,0),FALSE),0) -> 0 | AD104: =IFERROR(VLOOKUP($B104,Volumes!$B$39:$H$81,MATCH(AD$11,Volumes!$B$4:$H$4,0),FALSE),0) -> 0 | AE104: =IFERROR(VLOOKUP($B104,Volumes!$B$39:$H$81,MATCH(AE$11,Volumes!$B$4:$H$4,0),FALSE),0) -> 0 | AF104: =IFERROR(VLOOKUP($B104,Volumes!$B$39:$H$81,MATCH(AF$11,Volumes!$B$4:$H$4,0),FALSE),0) -> 0 | BJ104: 0 | BK104: 0 | BL104: 0 | BM104: 0 | BN104: 0 | BV104: 0 | BW104: 0 | BX104: 0 | BY104: 0 | BZ104: 0
B105: =Inputs!$C99 -> 100W Incandescent | C105: Old light no volumes | D105: =IF($C105="NA","",'Unsmoothed Prices'!D103) -> 41.975 | E105: =IF($C105="NA","",('Unsmoothed Prices'!E103*(1-E$9))) -> 41.45764088 | F105: 42.16242078 | G105: 42.87918193 | H105: 43.60812802 | I105: 44.3494662 | Q105: 42.46293671 | R105: 44.23198407 | S105: 46.07473166 | T105: 47.99424992 | U105: 49.99373718 | AB105: =IFERROR(VLOOKUP($B105,Volumes!$B$39:$H$81,MATCH(AB$11,Volumes!$B$4:$H$4,0),FALSE),0) -> 0 | AC105: =IFERROR(VLOOKUP($B105,Volumes!$B$39:$H$81,MATCH(AC$11,Volumes!$B$4:$H$4,0),FALSE),0) -> 0 | AD105: =IFERROR(VLOOKUP($B105,Volumes!$B$39:$H$81,MATCH(AD$11,Volumes!$B$4:$H$4,0),FALSE),0) -> 0 | AE105: =IFERROR(VLOOKUP($B105,Volumes!$B$39:$H$81,MATCH(AE$11,Volumes!$B$4:$H$4,0),FALSE),0) -> 0 | AF105: =IFERROR(VLOOKUP($B105,Volumes!$B$39:$H$81,MATCH(AF$11,Volumes!$B$4:$H$4,0),FALSE),0) -> 0 | AM105: 151.7349656 | AN105: 153.8928358 | AO105: 156.5090141 | AP105: 159.1696673 | AQ105: 162.3190463 | AX105: 155.4143484 | AY105: 161.4467418 | AZ105: 168.1727706 | BA105: 175.1790122 | BB105: 182.9770781 | BJ105: 0 | BK105: 0 | BL105: 0 | BM105: 0 | BN105: 0 | BV105: 0 | BW105: 0 | BX105: 0 | BY105: 0 | BZ105: 0
B106: =Inputs!$C100 -> 60W Incandescent | C106: Old light no volumes | D106: =IF($C106="NA","",'Unsmoothed Prices'!D104) -> 32.786 | E106: =IF($C106="NA","",('Unsmoothed Prices'!E104*(1-E$9))) -> 35.68347955 | F106: 36.2900987 | G106: 36.90703038 | H106: 37.53444989 | I106: 38.17253554 | Q106: 36.5487592 | R106: 38.07141615 | S106: 39.65750848 | T106: 41.30967896 | U106: 43.03068047 | AB106: =IFERROR(VLOOKUP($B106,Volumes!$B$39:$H$81,MATCH(AB$11,Volumes!$B$4:$H$4,0),FALSE),0) -> 0 | AC106: =IFERROR(VLOOKUP($B106,Volumes!$B$39:$H$81,MATCH(AC$11,Volumes!$B$4:$H$4,0),FALSE),0) -> 0 | AD106: =IFERROR(VLOOKUP($B106,Volumes!$B$39:$H$81,MATCH(AD$11,Volumes!$B$4:$H$4,0),FALSE),0) -> 0 | AE106: =IFERROR(VLOOKUP($B106,Volumes!$B$39:$H$81,MATCH(AE$11,Volumes!$B$4:$H$4,0),FALSE),0) -> 0 | AF106: =IFERROR(VLOOKUP($B106,Volumes!$B$39:$H$81,MATCH(AF$11,Volumes!$B$4:$H$4,0),FALSE),0) -> 0 | AM106: 130.6015351 | AN106: 132.4588603 | AO106: 134.7106609 | AP106: 137.0007421 | AQ106: 139.7114801 | AX106: 133.7684587 | AY106: 138.960669 | AZ106: 144.749906 | BA106: 150.7803282 | BB106: 157.4922905 | BJ106: 0 | BK106: 0 | BL106: 0 | BM106: 0 | BN106: 0 | BV106: 0 | BW106: 0 | BX106: 0 | BY106: 0 | BZ106: 0
B107: =Inputs!$C101 -> 18W LED | C107: Offered | D107: =IF($C107="NA","",'Unsmoothed Prices'!D105) -> 34.339 | E107: =IF($C107="NA","",('Unsmoothed Prices'!E105*(1-E$9))) -> 36.36000095 | F107: 36.97812096 | G107: 37.60674902 | H107: 38.24606375 | I107: 38.89624684 | Q107: 37.2416854 | R107: 38.79321033 | S107: 40.40937331 | T107: 42.09286721 | U107: 43.84649711 | AB107: =IFERROR(VLOOKUP($B107,Volumes!$B$39:$H$81,MATCH(AB$11,Volumes!$B$4:$H$4,0),FALSE),0) -> 360 | AC107: =IFERROR(VLOOKUP($B107,Volumes!$B$39:$H$81,MATCH(AC$11,Volumes!$B$4:$H$4,0),FALSE),0) -> 360 | AD107: =IFERROR(VLOOKUP($B107,Volumes!$B$39:$H$81,MATCH(AD$11,Volumes!$B$4:$H$4,0),FALSE),0) -> 360 | AE107: =IFERROR(VLOOKUP($B107,Volumes!$B$39:$H$81,MATCH(AE$11,Volumes!$B$4:$H$4,0),FALSE),0) -> 360 | AF107: =IFERROR(VLOOKUP($B107,Volumes!$B$39:$H$81,MATCH(AF$11,Volumes!$B$4:$H$4,0),FALSE),0) -> 360 | AM107: 133.0776035 | AN107: 134.9701415 | AO107: 137.2646339 | AP107: 139.5981327 | AQ107: 142.3602634 | AX107: 136.3045686 | AY107: 141.5952177 | AZ107: 147.4942126 | BA107: 153.6389653 | BB107: 160.4781794 | BJ107: 47907.93725 | BK107: 48589.25095 | BL107: 49415.26821 | BM107: 50255.32777 | BN107: 51249.69483 | BV107: 49069.64468 | BW107: 50974.27837 | BX107: 53097.91653 | BY107: 55310.02751 | BZ107: 57772.14459
B108: =Inputs!$C102 -> 18W LED Decorative - Bottom Pole Entry | C108: Offered | D108: =IF($C108="NA","",'Unsmoothed Prices'!D106) -> 48.088 | E108: =IF($C108="NA","",('Unsmoothed Prices'!E106*(1-E$9))) -> 47.70173799 | F108: 48.51266754 | G108: 49.33738289 | H108: 50.1761184 | I108: 51.02911241 | Q108: 48.85844535 | R108: 50.89393583 | S108: 53.01422683 | T108: 55.22285123 | U108: 57.52348907 | AB108: =IFERROR(VLOOKUP($B108,Volumes!$B$39:$H$81,MATCH(AB$11,Volumes!$B$4:$H$4,0),FALSE),0) -> 36 | AC108: =IFERROR(VLOOKUP($B108,Volumes!$B$39:$H$81,MATCH(AC$11,Volumes!$B$4:$H$4,0),FALSE),0) -> 38 | AD108: =IFERROR(VLOOKUP($B108,Volumes!$B$39:$H$81,MATCH(AD$11,Volumes!$B$4:$H$4,0),FALSE),0) -> 40 | AE108: =IFERROR(VLOOKUP($B108,Volumes!$B$39:$H$81,MATCH(AE$11,Volumes!$B$4:$H$4,0),FALSE),0) -> 42 | AF108: =IFERROR(VLOOKUP($B108,Volumes!$B$39:$H$81,MATCH(AF$11,Volumes!$B$4:$H$4,0),FALSE),0) -> 44 | AM108: 174.5883611 | AN108: 177.0712365 | AO108: 180.0814475 | AP108: 183.1428321 | AQ108: 186.7665514 | AX108: 178.82191 | AY108: 185.7628658 | AZ108: 193.5019279 | BA108: 201.563407 | BB108: 210.53597 | BJ108: 6285.180998 | BK108: 6728.706988 | BL108: 7203.257902 | BM108: 7691.99895 | BN108: 8217.728262 | BV108: 6437.588759 | BW108: 7058.9889 | BX108: 7740.077118 | BY108: 8465.663093 | BZ108: 9263.582679
B109: =Inputs!$C103 -> 18W LED Decorative - Side Entry | C109: Offered | D109: =IF($C109="NA","",'Unsmoothed Prices'!D107) -> 48.088 | E109: =IF($C109="NA","",('Unsmoothed Prices'!E107*(1-E$9))) -> 47.70173799 | F109: 48.51266754 | G109: 49.33738289 | H109: 50.1761184 | I109: 51.02911241 | Q109: 48.85844535 | R109: 50.89393583 | S109: 53.01422683 | T109: 55.22285123 | U109: 57.52348907 | AB109: =IFERROR(VLOOKUP($B109,Volumes!$B$39:$H$81,MATCH(AB$11,Volumes!$B$4:$H$4,0),FALSE),0) -> 36 | AC109: =IFERROR(VLOOKUP($B109,Volumes!$B$39:$H$81,MATCH(AC$11,Volumes!$B$4:$H$4,0),FALSE),0) -> 38 | AD109: =IFERROR(VLOOKUP($B109,Volumes!$B$39:$H$81,MATCH(AD$11,Volumes!$B$4:$H$4,0),FALSE),0) -> 40 | AE109: =IFERROR(VLOOKUP($B109,Volumes!$B$39:$H$81,MATCH(AE$11,Volumes!$B$4:$H$4,0),FALSE),0) -> 42 | AF109: =IFERROR(VLOOKUP($B109,Volumes!$B$39:$H$81,MATCH(AF$11,Volumes!$B$4:$H$4,0),FALSE),0) -> 44 | AM109: 174.5883611 | AN109: 177.0712365 | AO109: 180.0814475 | AP109: 183.1428321 | AQ109: 186.7665514 | AX109: 178.82191 | AY109: 185.7628658 | AZ109: 193.5019279 | BA109: 201.563407 | BB109: 210.53597 | BJ109: 6285.180998 | BK109: 6728.706988 | BL109: 7203.257902 | BM109: 7691.99895 | BN109: 8217.728262 | BV109: 6437.588759 | BW109: 7058.9889 | BX109: 7740.077118 | BY109: 8465.663093 | BZ109: 9263.582679
B110: =Inputs!$C104 -> 18W LED Decorative - Top Entry | C110: Offered | D110: =IF($C110="NA","",'Unsmoothed Prices'!D108) -> 48.088 | E110: =IF($C110="NA","",('Unsmoothed Prices'!E108*(1-E$9))) -> 47.70173799 | F110: 48.51266754 | G110: 49.33738289 | H110: 50.1761184 | I110: 51.02911241 | Q110: 48.85844535 | R110: 50.89393583 | S110: 53.01422683 | T110: 55.22285123 | U110: 57.52348907 | AB110: =IFERROR(VLOOKUP($B110,Volumes!$B$39:$H$81,MATCH(AB$11,Volumes!$B$4:$H$4,0),FALSE),0) -> 36 | AC110: =IFERROR(VLOOKUP($B110,Volumes!$B$39:$H$81,MATCH(AC$11,Volumes!$B$4:$H$4,0),FALSE),0) -> 38 | AD110: =IFERROR(VLOOKUP($B110,Volumes!$B$39:$H$81,MATCH(AD$11,Volumes!$B$4:$H$4,0),FALSE),0) -> 40 | AE110: =IFERROR(VLOOKUP($B110,Volumes!$B$39:$H$81,MATCH(AE$11,Volumes!$B$4:$H$4,0),FALSE),0) -> 42 | AF110: =IFERROR(VLOOKUP($B110,Volumes!$B$39:$H$81,MATCH(AF$11,Volumes!$B$4:$H$4,0),FALSE),0) -> 44 | AM110: 174.5883611 | AN110: 177.0712365 | AO110: 180.0814475 | AP110: 183.1428321 | AQ110: 186.7665514 | AX110: 178.82191 | AY110: 185.7628658 | AZ110: 193.5019279 | BA110: 201.563407 | BB110: 210.53597 | BJ110: 6285.180998 | BK110: 6728.706988 | BL110: 7203.257902 | BM110: 7691.99895 | BN110: 8217.728262 | BV110: 6437.588759 | BW110: 7058.9889 | BX110: 7740.077118 | BY110: 8465.663093 | BZ110: 9263.582679
B111: =Inputs!$C105 -> 25W LED | C111: Offered | D111: =IF($C111="NA","",'Unsmoothed Prices'!D109) -> 34.339 | E111: =IF($C111="NA","",('Unsmoothed Prices'!E109*(1-E$9))) -> 36.55541978 | F111: 37.17686192 | G111: 37.80886857 | H111: 38.45161934 | I111: 39.10529687 | Q111: 37.4418429 | R111: 39.00170659 | S111: 40.62655572 | T111: 42.31909765 | U111: 44.08215253 | AB111: =IFERROR(VLOOKUP($B111,Volumes!$B$39:$H$81,MATCH(AB$11,Volumes!$B$4:$H$4,0),FALSE),0) -> 21 | AC111: =IFERROR(VLOOKUP($B111,Volumes!$B$39:$H$81,MATCH(AC$11,Volumes!$B$4:$H$4,0),FALSE),0) -> 21 | AD111: =IFERROR(VLOOKUP($B111,Volumes!$B$39:$H$81,MATCH(AD$11,Volumes!$B$4:$H$4,0),FALSE),0) -> 21 | AE111: =IFERROR(VLOOKUP($B111,Volumes!$B$39:$H$81,MATCH(AE$11,Volumes!$B$4:$H$4,0),FALSE),0) -> 21 | AF111: =IFERROR(VLOOKUP($B111,Volumes!$B$39:$H$81,MATCH(AF$11,Volumes!$B$4:$H$4,0),FALSE),0) -> 21 | AM111: 133.7928364 | AN111: 135.695546 | AO111: 138.0023703 | AP111: 140.3484106 | AQ111: 143.1253865 | AX111: 137.037145 | AY111: 142.356229 | AZ111: 148.2869284 | BA111: 154.4647064 | BB111: 161.3406783 | BJ111: 2809.649565 | BK111: 2849.606466 | BL111: 2898.049776 | BM111: 2947.316622 | BN111: 3005.633117 | BV111: 2877.780045 | BW111: 2989.48081 | BX111: 3114.025496 | BY111: 3243.758835 | BZ111: 3388.154244
B112: =Inputs!$C106 -> 25W LED Decorative - Bottom Pole Entry | C112: Offered | D112: =IF($C112="NA","",'Unsmoothed Prices'!D110) -> 48.088 | E112: =IF($C112="NA","",('Unsmoothed Prices'!E110*(1-E$9))) -> 47.89715683 | F112: 48.7114085 | G112: 49.53950244 | H112: 50.38167398 | I112: 51.23816244 | Q112: 49.05860285 | R112: 51.10243209 | S112: 53.23140925 | T112: 55.44908167 | U112: 57.75914449 | AB112: =IFERROR(VLOOKUP($B112,Volumes!$B$39:$H$81,MATCH(AB$11,Volumes!$B$4:$H$4,0),FALSE),0) -> 36 | AC112: =IFERROR(VLOOKUP($B112,Volumes!$B$39:$H$81,MATCH(AC$11,Volumes!$B$4:$H$4,0),FALSE),0) -> 38 | AD112: =IFERROR(VLOOKUP($B112,Volumes!$B$39:$H$81,MATCH(AD$11,Volumes!$B$4:$H$4,0),FALSE),0) -> 40 | AE112: =IFERROR(VLOOKUP($B112,Volumes!$B$39:$H$81,MATCH(AE$11,Volumes!$B$4:$H$4,0),FALSE),0) -> 42 | AF112: =IFERROR(VLOOKUP($B112,Volumes!$B$39:$H$81,MATCH(AF$11,Volumes!$B$4:$H$4,0),FALSE),0) -> 44 | AM112: 175.303594 | AN112: 177.796641 | AO112: 180.8191839 | AP112: 183.89311 | AQ112: 187.5316745 | AX112: 179.5544864 | AY112: 186.5238771 | AZ112: 194.2946437 | BA112: 202.3891481 | BB112: 211.3984688 | BJ112: 6310.929384 | BK112: 6756.272358 | BL112: 7232.767356 | BM112: 7723.510621 | BN112: 8251.393679 | BV112: 6463.961511 | BW112: 7087.90733 | BX112: 7771.78575 | BY112: 8500.34422 | BZ112: 9301.532629
B113: =Inputs!$C107 -> 25W LED Decorative - Side Entry | C113: Offered | D113: =IF($C113="NA","",'Unsmoothed Prices'!D111) -> 48.088 | E113: =IF($C113="NA","",('Unsmoothed Prices'!E111*(1-E$9))) -> 47.89715683 | F113: 48.7114085 | G113: 49.53950244 | H113: 50.38167398 | I113: 51.23816244 | Q113: 49.05860285 | R113: 51.10243209 | S113: 53.23140925 | T113: 55.44908167 | U113: 57.75914449 | AB113: =IFERROR(VLOOKUP($B113,Volumes!$B$39:$H$81,MATCH(AB$11,Volumes!$B$4:$H$4,0),FALSE),0) -> 36 | AC113: =IFERROR(VLOOKUP($B113,Volumes!$B$39:$H$81,MATCH(AC$11,Volumes!$B$4:$H$4,0),FALSE),0) -> 38 | AD113: =IFERROR(VLOOKUP($B113,Volumes!$B$39:$H$81,MATCH(AD$11,Volumes!$B$4:$H$4,0),FALSE),0) -> 40 | AE113: =IFERROR(VLOOKUP($B113,Volumes!$B$39:$H$81,MATCH(AE$11,Volumes!$B$4:$H$4,0),FALSE),0) -> 42 | AF113: =IFERROR(VLOOKUP($B113,Volumes!$B$39:$H$81,MATCH(AF$11,Volumes!$B$4:$H$4,0),FALSE),0) -> 44 | AM113: 175.303594 | AN113: 177.796641 | AO113: 180.8191839 | AP113: 183.89311 | AQ113: 187.5316745 | AX113: 179.5544864 | AY113: 186.5238771 | AZ113: 194.2946437 | BA113: 202.3891481 | BB113: 211.3984688 | BJ113: 6310.929384 | BK113: 6756.272358 | BL113: 7232.767356 | BM113: 7723.510621 | BN113: 8251.393679 | BV113: 6463.961511 | BW113: 7087.90733 | BX113: 7771.78575 | BY113: 8500.34422 | BZ113: 9301.532629
B114: =Inputs!$C108 -> 25W LED Decorative - Top Entry | C114: Offered | D114: =IF($C114="NA","",'Unsmoothed Prices'!D112) -> 48.088 | E114: =IF($C114="NA","",('Unsmoothed Prices'!E112*(1-E$9))) -> 47.89715683 | F114: 48.7114085 | G114: 49.53950244 | H114: 50.38167398 | I114: 51.23816244 | Q114: 49.05860285 | R114: 51.10243209 | S114: 53.23140925 | T114: 55.44908167 | U114: 57.75914449 | AB114: =IFERROR(VLOOKUP($B114,Volumes!$B$39:$H$81,MATCH(AB$11,Volumes!$B$4:$H$4,0),FALSE),0) -> 36 | AC114: =IFERROR(VLOOKUP($B114,Volumes!$B$39:$H$81,MATCH(AC$11,Volumes!$B$4:$H$4,0),FALSE),0) -> 38 | AD114: =IFERROR(VLOOKUP($B114,Volumes!$B$39:$H$81,MATCH(AD$11,Volumes!$B$4:$H$4,0),FALSE),0) -> 40 | AE114: =IFERROR(VLOOKUP($B114,Volumes!$B$39:$H$81,MATCH(AE$11,Volumes!$B$4:$H$4,0),FALSE),0) -> 42 | AF114: =IFERROR(VLOOKUP($B114,Volumes!$B$39:$H$81,MATCH(AF$11,Volumes!$B$4:$H$4,0),FALSE),0) -> 44 | AM114: 175.303594 | AN114: 177.796641 | AO114: 180.8191839 | AP114: 183.89311 | AQ114: 187.5316745 | AX114: 179.5544864 | AY114: 186.5238771 | AZ114: 194.2946437 | BA114: 202.3891481 | BB114: 211.3984688 | BJ114: 6310.929384 | BK114: 6756.272358 | BL114: 7232.767356 | BM114: 7723.510621 | BN114: 8251.393679 | BV114: 6463.961511 | BW114: 7087.90733 | BX114: 7771.78575 | BY114: 8500.34422 | BZ114: 9301.532629
B115: =Inputs!$C109 -> 30W LED | C115: Not Offered | D115: =IF($C115="NA","",'Unsmoothed Prices'!D113) -> 34.339 | E115: =IF($C115="NA","",('Unsmoothed Prices'!E113*(1-E$9))) -> 36.55541978 | F115: 37.17686192 | G115: 37.80886857 | H115: 38.45161934 | I115: 39.10529687 | Q115: 37.4418429 | R115: 39.00170659 | S115: 40.62655572 | T115: 42.31909765 | U115: 44.08215253 | AB115: =IFERROR(VLOOKUP($B115,Volumes!$B$39:$H$81,MATCH(AB$11,Volumes!$B$4:$H$4,0),FALSE),0) -> 0 | AC115: =IFERROR(VLOOKUP($B115,Volumes!$B$39:$H$81,MATCH(AC$11,Volumes!$B$4:$H$4,0),FALSE),0) -> 0 | AD115: =IFERROR(VLOOKUP($B115,Volumes!$B$39:$H$81,MATCH(AD$11,Volumes!$B$4:$H$4,0),FALSE),0) -> 0 | AE115: =IFERROR(VLOOKUP($B115,Volumes!$B$39:$H$81,MATCH(AE$11,Volumes!$B$4:$H$4,0),FALSE),0) -> 0 | AF115: =IFERROR(VLOOKUP($B115,Volumes!$B$39:$H$81,MATCH(AF$11,Volumes!$B$4:$H$4,0),FALSE),0) -> 0 | AM115: 133.7928364 | AN115: 135.695546 | AO115: 138.0023703 | AP115: 140.3484106 | AQ115: 143.1253865 | AX115: 137.037145 | AY115: 142.356229 | AZ115: 148.2869284 | BA115: 154.4647064 | BB115: 161.3406783 | BJ115: 0 | BK115: 0 | BL115: 0 | BM115: 0 | BN115: 0 | BV115: 0 | BW115: 0 | BX115: 0 | BY115: 0 | BZ115: 0
B116: =Inputs!$C110 -> 88 LED Light | C116: Not Offered | D116: =IF($C116="NA","",'Unsmoothed Prices'!D114) -> 34.339 | E116: =IF($C116="NA","",('Unsmoothed Prices'!E114*(1-E$9))) -> 36.55541978 | F116: 37.17686192 | G116: 37.80886857 | H116: 38.45161934 | I116: 39.10529687 | Q116: 37.4418429 | R116: 39.00170659 | S116: 40.62655572 | T116: 42.31909765 | U116: 44.08215253 | AB116: =IFERROR(VLOOKUP($B116,Volumes!$B$39:$H$81,MATCH(AB$11,Volumes!$B$4:$H$4,0),FALSE),0) -> 0 | AC116: =IFERROR(VLOOKUP($B116,Volumes!$B$39:$H$81,MATCH(AC$11,Volumes!$B$4:$H$4,0),FALSE),0) -> 0 | AD116: =IFERROR(VLOOKUP($B116,Volumes!$B$39:$H$81,MATCH(AD$11,Volumes!$B$4:$H$4,0),FALSE),0) -> 0 | AE116: =IFERROR(VLOOKUP($B116,Volumes!$B$39:$H$81,MATCH(AE$11,Volumes!$B$4:$H$4,0),FALSE),0) -> 0 | AF116: =IFERROR(VLOOKUP($B116,Volumes!$B$39:$H$81,MATCH(AF$11,Volumes!$B$4:$H$4,0),FALSE),0) -> 0 | AM116: 133.7928364 | AN116: 135.695546 | AO116: 138.0023703 | AP116: 140.3484106 | AQ116: 143.1253865 | AX116: 137.037145 | AY116: 142.356229 | AZ116: 148.2869284 | BA116: 154.4647064 | BB116: 161.3406783 | BJ116: 0 | BK116: 0 | BL116: 0 | BM116: 0 | BN116: 0 | BV116: 0 | BW116: 0 | BX116: 0 | BY116: 0 | BZ116: 0
B117: =Inputs!$C111 -> 100W Metal Halide | C117: Offered | D117: =IF($C117="NA","",'Unsmoothed Prices'!D115) -> 45.676 | E117: =IF($C117="NA","",('Unsmoothed Prices'!E115*(1-E$9))) -> 44.79837242 | F117: 45.55994475 | G117: 46.33446381 | H117: 47.1221497 | I117: 47.92322624 | Q117: 45.8846768 | R117: 47.79627719 | S117: 49.78751671 | T117: 51.86171321 | U117: 54.02232276 | AB117: =IFERROR(VLOOKUP($B117,Volumes!$B$39:$H$81,MATCH(AB$11,Volumes!$B$4:$H$4,0),FALSE),0) -> 18 | AC117: =IFERROR(VLOOKUP($B117,Volumes!$B$39:$H$81,MATCH(AC$11,Volumes!$B$4:$H$4,0),FALSE),0) -> 19 | AD117: =IFERROR(VLOOKUP($B117,Volumes!$B$39:$H$81,MATCH(AD$11,Volumes!$B$4:$H$4,0),FALSE),0) -> 20 | AE117: =IFERROR(VLOOKUP($B117,Volumes!$B$39:$H$81,MATCH(AE$11,Volumes!$B$4:$H$4,0),FALSE),0) -> 21 | AF117: =IFERROR(VLOOKUP($B117,Volumes!$B$39:$H$81,MATCH(AF$11,Volumes!$B$4:$H$4,0),FALSE),0) -> 22 | AM117: 163.9620431 | AN117: 166.2937983 | AO117: 169.1207929 | AP117: 171.9958464 | AQ117: 175.3990081 | AX117: 167.9379171 | AY117: 174.4564117 | AZ117: 181.724436 | BA117: 189.2952532 | BB117: 197.7217013 | BJ117: 2951.316775 | BK117: 3159.582169 | BL117: 3382.415858 | BM117: 3611.912774 | BN117: 3858.778177 | BV117: 3022.882508 | BW117: 3314.671823 | BX117: 3634.48872 | BY117: 3975.200318 | BZ117: 4349.877429
B118: =Inputs!$C112 -> 150W Metal Halide | C118: Offered | D118: =IF($C118="NA","",'Unsmoothed Prices'!D116) -> 48.462 | E118: =IF($C118="NA","",('Unsmoothed Prices'!E116*(1-E$9))) -> 46.87074266 | F118: 47.66754528 | G118: 48.47789355 | H118: 49.30201774 | I118: 50.14015204 | Q118: 48.00729942 | R118: 50.00733033 | S118: 52.09068448 | T118: 54.2608332 | U118: 56.52139243 | AB118: =IFERROR(VLOOKUP($B118,Volumes!$B$39:$H$81,MATCH(AB$11,Volumes!$B$4:$H$4,0),FALSE),0) -> 15 | AC118: =IFERROR(VLOOKUP($B118,Volumes!$B$39:$H$81,MATCH(AC$11,Volumes!$B$4:$H$4,0),FALSE),0) -> 15 | AD118: =IFERROR(VLOOKUP($B118,Volumes!$B$39:$H$81,MATCH(AD$11,Volumes!$B$4:$H$4,0),FALSE),0) -> 15 | AE118: =IFERROR(VLOOKUP($B118,Volumes!$B$39:$H$81,MATCH(AE$11,Volumes!$B$4:$H$4,0),FALSE),0) -> 16 | AF118: =IFERROR(VLOOKUP($B118,Volumes!$B$39:$H$81,MATCH(AF$11,Volumes!$B$4:$H$4,0),FALSE),0) -> 16 | AM118: 171.5469181 | AN118: 173.9865403 | AO118: 176.9443115 | AP118: 179.9523648 | AQ118: 183.5129565 | AX118: 175.7067159 | AY118: 182.5267557 | AZ118: 190.1309984 | BA118: 198.0520412 | BB118: 206.8682963 | BJ118: 2573.203772 | BK118: 2609.798104 | BL118: 2654.164672 | BM118: 2879.237836 | BN118: 2936.207304 | BV118: 2635.600738 | BW118: 2737.901336 | BX118: 2851.964975 | BY118: 3168.832659 | BZ118: 3309.892741
B119: =Inputs!$C113 -> 250W Metal Halide | C119: Offered | D119: =IF($C119="NA","",'Unsmoothed Prices'!D117) -> 49.327 | E119: =IF($C119="NA","",('Unsmoothed Prices'!E117*(1-E$9))) -> 47.67475158 | F119: 48.48522236 | G119: 49.30947114 | H119: 50.14773215 | I119: 51.0002436 | Q119: 48.83080455 | R119: 50.86514349 | S119: 52.98423498 | T119: 55.19160988 | U119: 57.49094617 | AB119: =IFERROR(VLOOKUP($B119,Volumes!$B$39:$H$81,MATCH(AB$11,Volumes!$B$4:$H$4,0),FALSE),0) -> 91 | AC119: =IFERROR(VLOOKUP($B119,Volumes!$B$39:$H$81,MATCH(AC$11,Volumes!$B$4:$H$4,0),FALSE),0) -> 93 | AD119: =IFERROR(VLOOKUP($B119,Volumes!$B$39:$H$81,MATCH(AD$11,Volumes!$B$4:$H$4,0),FALSE),0) -> 95 | AE119: =IFERROR(VLOOKUP($B119,Volumes!$B$39:$H$81,MATCH(AE$11,Volumes!$B$4:$H$4,0),FALSE),0) -> 97 | AF119: =IFERROR(VLOOKUP($B119,Volumes!$B$39:$H$81,MATCH(AF$11,Volumes!$B$4:$H$4,0),FALSE),0) -> 99 | AM119: 174.4895908 | AN119: 176.9710616 | AO119: 179.9795697 | AP119: 183.0392223 | AQ119: 186.6608916 | AX119: 178.7207447 | AY119: 185.6577737 | AZ119: 193.3924577 | BA119: 201.4493761 | BB119: 210.416863 | BJ119: 15878.55276 | BK119: 16458.30873 | BL119: 17098.05912 | BM119: 17754.80457 | BN119: 18479.42826 | BV119: 16263.58776 | BW119: 17266.17296 | BX119: 18372.28348 | BY119: 19540.58948 | BZ119: 20831.26944
B120: =Inputs!$C114 -> 400W Metal Halide | C120: Not Offered | D120: =IF($C120="NA","",'Unsmoothed Prices'!D118) -> 54.733 | E120: =IF($C120="NA","",('Unsmoothed Prices'!E118*(1-E$9))) -> 51.81297809 | F120: 52.69379871 | G120: 53.58959329 | H120: 54.50061638 | I120: 55.42712686 | Q120: 53.06937786 | R120: 55.2802999 | S120: 57.58333111 | T120: 59.98230884 | U120: 62.48123033 | AB120: =IFERROR(VLOOKUP($B120,Volumes!$B$39:$H$81,MATCH(AB$11,Volumes!$B$4:$H$4,0),FALSE),0) -> 18 | AC120: =IFERROR(VLOOKUP($B120,Volumes!$B$39:$H$81,MATCH(AC$11,Volumes!$B$4:$H$4,0),FALSE),0) -> 19 | AD120: =IFERROR(VLOOKUP($B120,Volumes!$B$39:$H$81,MATCH(AD$11,Volumes!$B$4:$H$4,0),FALSE),0) -> 20 | AE120: =IFERROR(VLOOKUP($B120,Volumes!$B$39:$H$81,MATCH(AE$11,Volumes!$B$4:$H$4,0),FALSE),0) -> 21 | AF120: =IFERROR(VLOOKUP($B120,Volumes!$B$39:$H$81,MATCH(AF$11,Volumes!$B$4:$H$4,0),FALSE),0) -> 22 | AM120: 189.6354998 | AN120: 192.3323653 | AO120: 195.6020155 | AP120: 198.9272498 | AQ120: 202.8632843 | AX120: 194.233923 | AY120: 201.7730946 | AZ120: 210.1791585 | BA120: 218.9354273 | BB120: 228.681303 | BJ120: 3413.438996 | BK120: 3654.314941 | BL120: 3912.04031 | BM120: 4177.472245 | BN120: 4462.992255 | BV120: 3496.210614 | BW120: 3833.688798 | BX120: 4203.583171 | BY120: 4597.643973 | BZ120: 5030.988666
B121: =Inputs!$C115 -> 70W Metal Halide | C121: Old light no volumes | D121: =IF($C121="NA","",'Unsmoothed Prices'!D119) -> 34.676 | E121: =IF($C121="NA","",('Unsmoothed Prices'!E119*(1-E$9))) -> 37.68419621 | F121: 38.32482754 | G121: 38.97634961 | H121: 39.63894755 | I121: 40.31280966 | Q121: 38.59799073 | R121: 40.20602067 | S121: 41.8810427 | T121: 43.62584778 | U121: 45.44334315 | AB121: =IFERROR(VLOOKUP($B121,Volumes!$B$39:$H$81,MATCH(AB$11,Volumes!$B$4:$H$4,0),FALSE),0) -> 0 | AC121: =IFERROR(VLOOKUP($B121,Volumes!$B$39:$H$81,MATCH(AC$11,Volumes!$B$4:$H$4,0),FALSE),0) -> 0 | AD121: =IFERROR(VLOOKUP($B121,Volumes!$B$39:$H$81,MATCH(AD$11,Volumes!$B$4:$H$4,0),FALSE),0) -> 0 | AE121: =IFERROR(VLOOKUP($B121,Volumes!$B$39:$H$81,MATCH(AE$11,Volumes!$B$4:$H$4,0),FALSE),0) -> 0 | AF121: =IFERROR(VLOOKUP($B121,Volumes!$B$39:$H$81,MATCH(AF$11,Volumes!$B$4:$H$4,0),FALSE),0) -> 0 | AM121: 137.9241581 | AN121: 139.8856205 | AO121: 142.2636761 | AP121: 144.6821586 | AQ121: 147.5448834 | AX121: 141.2686461 | AY121: 146.7519754 | AZ121: 152.8658059 | BA121: 159.2343444 | BB121: 166.3226359 | BJ121: 0 | BK121: 0 | BL121: 0 | BM121: 0 | BN121: 0 | BV121: 0 | BW121: 0 | BX121: 0 | BY121: 0 | BZ121: 0
B122: =Inputs!$C116 -> 250W Metal Halide - Flood Light | C122: Obsolete, no new Connections | D122: =IF($C122="NA","",'Unsmoothed Prices'!D120) -> 54.883 | E122: =IF($C122="NA","",('Unsmoothed Prices'!E120*(1-E$9))) -> 52.0335222 | F122: 52.91809208 | G122: 53.81769965 | H122: 54.73260054 | I122: 55.66305475 | Q122: 53.2952699 | R122: 55.51560282 | S122: 57.82843697 | T122: 60.23762606 | U122: 62.7471843 | AB122: =IFERROR(VLOOKUP($B122,Volumes!$B$39:$H$81,MATCH(AB$11,Volumes!$B$4:$H$4,0),FALSE),0) -> 36 | AC122: =IFERROR(VLOOKUP($B122,Volumes!$B$39:$H$81,MATCH(AC$11,Volumes!$B$4:$H$4,0),FALSE),0) -> 38 | AD122: =IFERROR(VLOOKUP($B122,Volumes!$B$39:$H$81,MATCH(AD$11,Volumes!$B$4:$H$4,0),FALSE),0) -> 40 | AE122: =IFERROR(VLOOKUP($B122,Volumes!$B$39:$H$81,MATCH(AE$11,Volumes!$B$4:$H$4,0),FALSE),0) -> 42 | AF122: =IFERROR(VLOOKUP($B122,Volumes!$B$39:$H$81,MATCH(AF$11,Volumes!$B$4:$H$4,0),FALSE),0) -> 44 | AM122: 190.4426913 | AN122: 193.1510361 | AO122: 196.4346037 | AP122: 199.773992 | AQ122: 203.7267804 | AX122: 195.0606878 | AY122: 202.6319503 | AZ122: 211.073795 | BA122: 219.8673351 | BB122: 229.6546946 | BJ122: 6855.936885 | BK122: 7339.739371 | BL122: 7857.384148 | BM122: 8390.507663 | BN122: 8963.978337 | BV122: 7022.184761 | BW122: 7700.014111 | BX122: 8442.951798 | BY122: 9234.428074 | BZ122: 10104.80656
B123: =Inputs!$C117 -> 400W Metal Halide - Flood Light | C123: Obsolete, no new Connections | D123: =IF($C123="NA","",'Unsmoothed Prices'!D121) -> 54.733 | E123: =IF($C123="NA","",('Unsmoothed Prices'!E121*(1-E$9))) -> 51.81297809 | F123: 52.69379871 | G123: 53.58959329 | H123: 54.50061638 | I123: 55.42712686 | Q123: 53.06937786 | R123: 55.2802999 | S123: 57.58333111 | T123: 59.98230884 | U123: 62.48123033 | AB123: =IFERROR(VLOOKUP($B123,Volumes!$B$39:$H$81,MATCH(AB$11,Volumes!$B$4:$H$4,0),FALSE),0) -> 36 | AC123: =IFERROR(VLOOKUP($B123,Volumes!$B$39:$H$81,MATCH(AC$11,Volumes!$B$4:$H$4,0),FALSE),0) -> 38 | AD123: =IFERROR(VLOOKUP($B123,Volumes!$B$39:$H$81,MATCH(AD$11,Volumes!$B$4:$H$4,0),FALSE),0) -> 40 | AE123: =IFERROR(VLOOKUP($B123,Volumes!$B$39:$H$81,MATCH(AE$11,Volumes!$B$4:$H$4,0),FALSE),0) -> 42 | AF123: =IFERROR(VLOOKUP($B123,Volumes!$B$39:$H$81,MATCH(AF$11,Volumes!$B$4:$H$4,0),FALSE),0) -> 44 | AM123: 189.6354998 | AN123: 192.3323653 | AO123: 195.6020155 | AP123: 198.9272498 | AQ123: 202.8632843 | AX123: 194.233923 | AY123: 201.7730946 | AZ123: 210.1791585 | BA123: 218.9354273 | BB123: 228.681303 | BJ123: 6826.877993 | BK123: 7308.629882 | BL123: 7824.080621 | BM123: 8354.944491 | BN123: 8925.984509 | BV123: 6992.421227 | BW123: 7667.377596 | BX123: 8407.166342 | BY123: 9195.287945 | BZ123: 10061.97733
B124: =Inputs!$C118 -> 125W Mercury Vapour | C124: Obsolete, no new Connections | D124: =IF($C124="NA","",'Unsmoothed Prices'!D122) -> 45.386 | E124: =IF($C124="NA","",('Unsmoothed Prices'!E122*(1-E$9))) -> 44.44382682 | F124: 45.19937187 | G124: 45.9677612 | H124: 46.74921314 | I124: 47.54394976 | Q124: 45.52153391 | R124: 47.41800541 | S124: 49.39348576 | T124: 51.45126655 | U124: 53.59477649 | AB124: =IFERROR(VLOOKUP($B124,Volumes!$B$39:$H$81,MATCH(AB$11,Volumes!$B$4:$H$4,0),FALSE),0) -> 0 | AC124: =IFERROR(VLOOKUP($B124,Volumes!$B$39:$H$81,MATCH(AC$11,Volumes!$B$4:$H$4,0),FALSE),0) -> 0 | AD124: =IFERROR(VLOOKUP($B124,Volumes!$B$39:$H$81,MATCH(AD$11,Volumes!$B$4:$H$4,0),FALSE),0) -> 0 | AE124: =IFERROR(VLOOKUP($B124,Volumes!$B$39:$H$81,MATCH(AE$11,Volumes!$B$4:$H$4,0),FALSE),0) -> 0 | AF124: =IFERROR(VLOOKUP($B124,Volumes!$B$39:$H$81,MATCH(AF$11,Volumes!$B$4:$H$4,0),FALSE),0) -> 0 | AM124: 162.6644062 | AN124: 164.9777073 | AO124: 167.7823284 | AP124: 170.6346279 | AQ124: 174.0108561 | AX124: 166.6088141 | AY124: 173.0757197 | AZ124: 180.286223 | BA124: 187.7971229 | BB124: 196.156882 | BJ124: 0 | BK124: 0 | BL124: 0 | BM124: 0 | BN124: 0 | BV124: 0 | BW124: 0 | BX124: 0 | BY124: 0 | BZ124: 0
B125: =Inputs!$C119 -> 250W Mercury Vapour | C125: Obsolete, no new Connections | D125: =IF($C125="NA","",'Unsmoothed Prices'!D123) -> 45.865 | E125: =IF($C125="NA","",('Unsmoothed Prices'!E123*(1-E$9))) -> 44.8262894 | F125: 45.58833632 | G125: 46.36333804 | H125: 47.15151478 | I125: 47.95309053 | Q125: 45.91327073 | R125: 47.82606237 | S125: 49.81854277 | T125: 51.89403185 | U125: 54.05598782 | AB125: =IFERROR(VLOOKUP($B125,Volumes!$B$39:$H$81,MATCH(AB$11,Volumes!$B$4:$H$4,0),FALSE),0) -> 386 | AC125: =IFERROR(VLOOKUP($B125,Volumes!$B$39:$H$81,MATCH(AC$11,Volumes!$B$4:$H$4,0),FALSE),0) -> 356 | AD125: =IFERROR(VLOOKUP($B125,Volumes!$B$39:$H$81,MATCH(AD$11,Volumes!$B$4:$H$4,0),FALSE),0) -> 301 | AE125: =IFERROR(VLOOKUP($B125,Volumes!$B$39:$H$81,MATCH(AE$11,Volumes!$B$4:$H$4,0),FALSE),0) -> 248 | AF125: =IFERROR(VLOOKUP($B125,Volumes!$B$39:$H$81,MATCH(AF$11,Volumes!$B$4:$H$4,0),FALSE),0) -> 231 | AM125: 164.0642192 | AN125: 166.3974276 | AO125: 169.2261838 | AP125: 172.103029 | AQ125: 175.5083114 | AX125: 168.0425709 | AY125: 174.5651276 | AZ125: 181.8376811 | BA125: 189.4132162 | BB125: 197.8449154 | BJ125: 63328.78861 | BK125: 59237.48421 | BL125: 50937.08133 | BM125: 42681.55118 | BN125: 40542.41992 | BV125: 64864.43236 | BW125: 62145.18544 | BX125: 54733.14201 | BY125: 46974.47763 | BZ125: 45702.17547
B126: =Inputs!$C120 -> 0 | C126: NA | D126: =IF($C126="NA","",'Unsmoothed Prices'!D124) ->  | E126: =IF($C126="NA","",('Unsmoothed Prices'!E124*(1-E$9))) ->  | F126: =IF($C126="NA","",E126*(1-F$9)) ->  | AB126: =IFERROR(VLOOKUP($B126,Volumes!$B$39:$H$81,MATCH(AB$11,Volumes!$B$4:$H$4,0),FALSE),0) -> 0 | AC126: =IFERROR(VLOOKUP($B126,Volumes!$B$39:$H$81,MATCH(AC$11,Volumes!$B$4:$H$4,0),FALSE),0) -> 0 | AD126: =IFERROR(VLOOKUP($B126,Volumes!$B$39:$H$81,MATCH(AD$11,Volumes!$B$4:$H$4,0),FALSE),0) -> 0 | AE126: =IFERROR(VLOOKUP($B126,Volumes!$B$39:$H$81,MATCH(AE$11,Volumes!$B$4:$H$4,0),FALSE),0) -> 0 | AF126: =IFERROR(VLOOKUP($B126,Volumes!$B$39:$H$81,MATCH(AF$11,Volumes!$B$4:$H$4,0),FALSE),0) -> 0 | BJ126: 0 | BK126: 0 | BL126: 0 | BM126: 0 | BN126: 0 | BV126: 0 | BW126: 0 | BX126: 0 | BY126: 0 | BZ126: 0
B127: =Inputs!$C121 -> 400W Mercury Vapour | C127: Obsolete, no new Connections | D127: =IF($C127="NA","",'Unsmoothed Prices'!D125) -> 48.033 | E127: =IF($C127="NA","",('Unsmoothed Prices'!E125*(1-E$9))) -> 46.17281824 | F127: =IF($C127="NA","",E127*(1-F$9)) -> 46.95775615 | G127: 47.756038 | H127: 48.56789065 | I127: 49.39354479 | Q127: 47.29245121 | R127: 49.26270085 | S127: 51.31503301 | T127: 53.45286733 | U127: 55.67976591 | AB127: =IFERROR(VLOOKUP($B127,Volumes!$B$39:$H$81,MATCH(AB$11,Volumes!$B$4:$H$4,0),FALSE),0) -> 29 | AC127: =IFERROR(VLOOKUP($B127,Volumes!$B$39:$H$81,MATCH(AC$11,Volumes!$B$4:$H$4,0),FALSE),0) -> 27 | AD127: =IFERROR(VLOOKUP($B127,Volumes!$B$39:$H$81,MATCH(AD$11,Volumes!$B$4:$H$4,0),FALSE),0) -> 23 | AE127: =IFERROR(VLOOKUP($B127,Volumes!$B$39:$H$81,MATCH(AE$11,Volumes!$B$4:$H$4,0),FALSE),0) -> 20 | AF127: =IFERROR(VLOOKUP($B127,Volumes!$B$39:$H$81,MATCH(AF$11,Volumes!$B$4:$H$4,0),FALSE),0) -> 17 | AM127: 168.9925148 | AN127: 171.3958099 | AO127: 174.3095387 | AP127: 177.2728009 | AQ127: 180.7803739 | AX127: 173.0903714 | AY127: 179.8088581 | AZ127: 187.2998705 | BA127: 195.1029658 | BB127: 203.7879432 | BJ127: 4900.782928 | BK127: 4627.686868 | BL127: 4009.11939 | BM127: 3545.456017 | BN127: 3073.266357 | BV127: 5019.620771 | BW127: 4854.839168 | BX127: 4307.897021 | BY127: 3902.059315 | BZ127: 3464.395035
B128: =Inputs!$C122 -> 50W Mercury Vapour | C128: Obsolete, no new Connections | D128: =IF($C128="NA","",'Unsmoothed Prices'!D126) -> 33.519 | E128: =IF($C128="NA","",('Unsmoothed Prices'!E126*(1-E$9))) -> 36.16179041 | F128: =IF($C128="NA","",E128*(1-F$9)) -> 36.77654085 | G128: 37.40174205 | H128: 38.03757166 | I128: 38.68421038 | Q128: 37.03866851 | R128: 38.58173556 | S128: 40.18908829 | T128: 41.8634049 | U128: 43.60747518 | AB128: =IFERROR(VLOOKUP($B128,Volumes!$B$39:$H$81,MATCH(AB$11,Volumes!$B$4:$H$4,0),FALSE),0) -> 0 | AC128: =IFERROR(VLOOKUP($B128,Volumes!$B$39:$H$81,MATCH(AC$11,Volumes!$B$4:$H$4,0),FALSE),0) -> 0 | AD128: =IFERROR(VLOOKUP($B128,Volumes!$B$39:$H$81,MATCH(AD$11,Volumes!$B$4:$H$4,0),FALSE),0) -> 0 | AE128: =IFERROR(VLOOKUP($B128,Volumes!$B$39:$H$81,MATCH(AE$11,Volumes!$B$4:$H$4,0),FALSE),0) -> 0 | AF128: =IFERROR(VLOOKUP($B128,Volumes!$B$39:$H$81,MATCH(AF$11,Volumes!$B$4:$H$4,0),FALSE),0) -> 0 | AM128: 132.3521529 | AN128: 134.2343741 | AO128: 136.5163585 | AP128: 138.8371366 | AQ128: 141.58421 | AX128: 135.5615267 | AY128: 140.8233348 | AZ128: 146.6901723 | BA128: 152.8014279 | BB128: 159.6033592 | BJ128: 0 | BK128: 0 | BL128: 0 | BM128: 0 | BN128: 0 | BV128: 0 | BW128: 0 | BX128: 0 | BY128: 0 | BZ128: 0
B129: =Inputs!$C123 -> 80W Mercury Vapour Art decorative | C129: Obsolete, no new Connections | D129: =IF($C129="NA","",'Unsmoothed Prices'!D127) -> 50.566 | E129: =IF($C129="NA","",('Unsmoothed Prices'!E127*(1-E$9))) -> 50.36036474 | F129: =IF($C129="NA","",E129*(1-F$9)) -> 51.21649094 | G129: 52.08717128 | H129: 52.97265319 | I129: 53.8731883 | Q129: 51.58154046 | R129: 53.73047774 | S129: 55.96894184 | T129: 58.30066254 | U129: 60.72952501 | AB129: =IFERROR(VLOOKUP($B129,Volumes!$B$39:$H$81,MATCH(AB$11,Volumes!$B$4:$H$4,0),FALSE),0) -> 40 | AC129: =IFERROR(VLOOKUP($B129,Volumes!$B$39:$H$81,MATCH(AC$11,Volumes!$B$4:$H$4,0),FALSE),0) -> 40 | AD129: =IFERROR(VLOOKUP($B129,Volumes!$B$39:$H$81,MATCH(AD$11,Volumes!$B$4:$H$4,0),FALSE),0) -> 40 | AE129: =IFERROR(VLOOKUP($B129,Volumes!$B$39:$H$81,MATCH(AE$11,Volumes!$B$4:$H$4,0),FALSE),0) -> 40 | AF129: =IFERROR(VLOOKUP($B129,Volumes!$B$39:$H$81,MATCH(AF$11,Volumes!$B$4:$H$4,0),FALSE),0) -> 40 | AM129: 184.3189349 | AN129: 186.9401919 | AO129: 190.1181752 | AP129: 193.3501842 | AQ129: 197.1758692 | AX129: 188.7884381 | AY129: 196.1162437 | AZ129: 204.2866377 | BA129: 212.7974183 | BB129: 222.2700615 | BJ129: 7372.757397 | BK129: 7477.607677 | BL129: 7604.727007 | BM129: 7734.007366 | BN129: 7887.034767 | BV129: 7551.537523 | BW129: =IFERROR(AY129*AC129,0) -> 7844.64975 | BX129: 8171.465509 | BY129: 8511.896732 | BZ129: 8890.802461
B130: =Inputs!$C124 -> 80W Mercury Vapour | C130: Obsolete, no new Connections | D130: =IF($C130="NA","",'Unsmoothed Prices'!D128) -> 33.52 | E130: =IF($C130="NA","",('Unsmoothed Prices'!E128*(1-E$9))) -> 36.14876249 | F130: =IF($C130="NA","",E130*(1-F$9)) -> 36.76329145 | G130: 37.38826741 | H130: 38.02386795 | I130: 38.67027371 | Q130: 37.02532467 | R130: 38.56783581 | S130: 40.17460946 | T130: 41.84832287 | U130: 43.59176482 | AB130: =IFERROR(VLOOKUP($B130,Volumes!$B$39:$H$81,MATCH(AB$11,Volumes!$B$4:$H$4,0),FALSE),0) -> 3200 | AC130: =IFERROR(VLOOKUP($B130,Volumes!$B$39:$H$81,MATCH(AC$11,Volumes!$B$4:$H$4,0),FALSE),0) -> 0 | AD130: =IFERROR(VLOOKUP($B130,Volumes!$B$39:$H$81,MATCH(AD$11,Volumes!$B$4:$H$4,0),FALSE),0) -> 0 | AE130: =IFERROR(VLOOKUP($B130,Volumes!$B$39:$H$81,MATCH(AE$11,Volumes!$B$4:$H$4,0),FALSE),0) -> 0 | AF130: =IFERROR(VLOOKUP($B130,Volumes!$B$39:$H$81,MATCH(AF$11,Volumes!$B$4:$H$4,0),FALSE),0) -> 0 | AM130: 132.3044707 | AN130: 134.1860138 | AO130: 136.467176 | AP130: 138.787118 | AQ130: 141.5332018 | AX130: 135.5126883 | AY130: 140.7726007 | AZ130: 146.6373245 | BA130: 152.7463785 | BB130: 159.5458592 | BJ130: 423374.3063 | BK130: 0 | BL130: 0 | BM130: 0 | BN130: 0 | BV130: 433640.6026 | BW130: 0 | BX130: 0 | BY130: 0 | BZ130: 0
B131: =Inputs!$C125 -> 14W LED | C131: Offered | D131: =IF($C131="NA","",'Unsmoothed Prices'!D129) ->  | E131: =IF($C131="NA","",('Unsmoothed Prices'!E129*(1-E$9+3.1%))) -> 36.0096291 | F131: =IF($C131="NA","",E131*(1-F$9)) -> 36.6217928 | G131: 37.24436328 | H131: 37.87751745 | I131: 38.52143525 | Q131: 36.88281747 | R131: =IF($C131="NA","",F131*R$9) -> 38.41939162 | S131: 40.01998094 | T131: 41.68725238 | U131: 43.42398397 | AB131: =IFERROR(VLOOKUP($B131,Volumes!$B$39:$H$81,MATCH(AB$11,Volumes!$B$4:$H$4,0),FALSE),0) -> 10871 | AC131: =IFERROR(VLOOKUP($B131,Volumes!$B$39:$H$81,MATCH(AC$11,Volumes!$B$4:$H$4,0),FALSE),0) -> 12681 | AD131: =IFERROR(VLOOKUP($B131,Volumes!$B$39:$H$81,MATCH(AD$11,Volumes!$B$4:$H$4,0),FALSE),0) -> 12761 | AE131: =IFERROR(VLOOKUP($B131,Volumes!$B$39:$H$81,MATCH(AE$11,Volumes!$B$4:$H$4,0),FALSE),0) -> 12841 | AF131: =IFERROR(VLOOKUP($B131,Volumes!$B$39:$H$81,MATCH(AF$11,Volumes!$B$4:$H$4,0),FALSE),0) -> 12876 | AM131: 131.7952425 | AN131: 133.6695437 | AO131: 135.941926 | AP131: 138.2529387 | AQ131: 140.988453 | AX131: 134.991112 | AY131: =IF($C131="NA","",(R131*AY$9)/100) -> 140.2307794 | AZ131: 146.0729304 | BA131: 152.1584712 | BB131: 158.9317813 | BJ131: 1432746.081 | BK131: 1695063.484 | BL131: 1734754.917 | BM131: 1775305.986 | BN131: 1815367.321 | BV131: 1467488.378 | BW131: =IFERROR(AY131*AC131,0) -> 1778266.514 | BX131: 1864036.665 | BY131: 1953866.929 | BZ131: 2046405.616
B132: =Inputs!$C126 -> New technology - Minor | C132: Offered | D132: =IF($C132="NA","",'Unsmoothed Prices'!D130) ->  | E132: =IF($C132="NA","",('Unsmoothed Prices'!E130*(1-E$9+3.1%))) -> 36.0096291 | F132: =IF($C132="NA","",E132*(1-F$9)) -> 36.6217928 | G132: 37.24436328 | H132: 37.87751745 | I132: 38.52143525 | Q132: 36.88281747 | R132: 38.41939162 | S132: 40.01998094 | T132: 41.68725238 | U132: 43.42398397 | AB132: =IFERROR(VLOOKUP($B132,Volumes!$B$39:$H$81,MATCH(AB$11,Volumes!$B$4:$H$4,0),FALSE),0) -> 0 | AC132: =IFERROR(VLOOKUP($B132,Volumes!$B$39:$H$81,MATCH(AC$11,Volumes!$B$4:$H$4,0),FALSE),0) -> 0 | AD132: =IFERROR(VLOOKUP($B132,Volumes!$B$39:$H$81,MATCH(AD$11,Volumes!$B$4:$H$4,0),FALSE),0) -> 0 | AE132: =IFERROR(VLOOKUP($B132,Volumes!$B$39:$H$81,MATCH(AE$11,Volumes!$B$4:$H$4,0),FALSE),0) -> 0 | AF132: =IFERROR(VLOOKUP($B132,Volumes!$B$39:$H$81,MATCH(AF$11,Volumes!$B$4:$H$4,0),FALSE),0) -> 0 | AM132: 131.7952425 | AN132: 133.6695437 | AO132: 135.941926 | AP132: 138.2529387 | AQ132: 140.988453 | AX132: 134.991112 | AY132: 140.2307794 | AZ132: 146.0729304 | BA132: 152.1584712 | BB132: 158.9317813 | BJ132: 0 | BK132: 0 | BL132: 0 | BM132: 0 | BN132: 0 | BV132: 0 | BW132: 0 | BX132: 0 | BY132: 0 | BZ132: 0
B133: =Inputs!$C127 -> New technology - Major | C133: Offered | D133: =IF($C133="NA","",'Unsmoothed Prices'!D131) ->  | E133: =IF($C133="NA","",('Unsmoothed Prices'!E131*(1-E$9+2.1%))) -> 46.20319308 | F133: =IF($C133="NA","",E133*(1-F$9)) -> 46.98864736 | G133: 47.78745437 | H133: 48.59984109 | I133: 49.42603839 | Q133: =IF($C133="NA","",E133*Q$9) -> 47.3235626 | R133: 49.29510837 | S133: 51.34879066 | T133: 53.48803136 | U133: 55.71639491 | AB133: =IFERROR(VLOOKUP($B133,Volumes!$B$39:$H$81,MATCH(AB$11,Volumes!$B$4:$H$4,0),FALSE),0) -> 0 | AC133: =IFERROR(VLOOKUP($B133,Volumes!$B$39:$H$81,MATCH(AC$11,Volumes!$B$4:$H$4,0),FALSE),0) -> 0 | AD133: =IFERROR(VLOOKUP($B133,Volumes!$B$39:$H$81,MATCH(AD$11,Volumes!$B$4:$H$4,0),FALSE),0) -> 0 | AE133: =IFERROR(VLOOKUP($B133,Volumes!$B$39:$H$81,MATCH(AE$11,Volumes!$B$4:$H$4,0),FALSE),0) -> 0 | AF133: =IFERROR(VLOOKUP($B133,Volumes!$B$39:$H$81,MATCH(AF$11,Volumes!$B$4:$H$4,0),FALSE),0) -> 0 | AM133: =IF($C133="NA","",(E133*AM$9)/100) -> 169.1036867 | AN133: 171.5085629 | AO133: 174.4242084 | AP133: 177.38942 | AQ133: 180.8993005 | AX133: =IF($C133="NA","",(Q133*AX$9)/100) -> 173.2042391 | AY133: 179.9271455 | AZ133: 187.4230859 | BA133: 195.2313145 | BB133: 203.9220054 | BJ133: =IFERROR(AM133*AB133,0) -> 0 | BK133: 0 | BL133: 0 | BM133: 0 | BN133: 0 | BV133: =IFERROR(AX133*AB133,0) -> 0 | BW133: 0 | BX133: 0 | BY133: 0 | BZ133: 0
AB134: =SUM(AB75:AB131) -> 32500 | AC134: 31724 | AD134: 32151 | AE134: 32714 | AF134: 33321 | BJ134: =SUM(BJ75:BJ133) -> 4894087.572 | BK134: 4885460.96 | BL134: 5048663.526 | BM134: 5239151.626 | BN134: 5461326.873 | BV134: =SUM(BV75:BV133) -> 5012763.062 | BW134: 5125266.228 | BX134: 5424912.667 | BY134: 5766107.465 | BZ134: 6156379.404
AB135: =Volumes!D82=AB134 -> TRUE | AC135: =Volumes!E82=AC134 -> TRUE | AD135: =Volumes!F82=AD134 -> TRUE | AE135: =Volumes!G82=AE134 -> TRUE | AF135: =Volumes!H82=AF134 -> TRUE
B136: Total | AB136: =SUM(AB71,AB134) -> 52072 | AC136: 52157 | AD136: 52584 | AE136: 53149 | AF136: 53771 | BJ136: =BJ134+BJ71 -> 5854749.94 | BK136: 5899712.439 | BL136: 6079478.33 | BM136: 6286948.83 | BN136: 6529991.455 | BV136: =BV134+BV71 -> 5996720.288 | BW136: 6189302.744 | BX136: 6532548.432 | BY136: 6919292.504 | BZ136: 7361050.866
AB137: =Volumes!D86=AB136 -> TRUE | AC137: =Volumes!E86=AC136 -> TRUE | AD137: =Volumes!F86=AD136 -> TRUE | AE137: =Volumes!G86=AE136 -> TRUE | AF137: =Volumes!H86=AF136 -> TRUE
P138: Nominal Vanilla WACC | Q138: ='Master Data'!B45 -> 0.05284251509
Q140: =E11 -> 2019-20 | R140: 2020-21 | S140: 2021-22 | T140: 2022-23 | U140: 2023-24
P141: Unsmoothed Nominal Revenue | Q141: ='Unsmoothed Prices'!Q137*10^6 -> 6661537.622 | R141: ='Unsmoothed Prices'!R137*10^6 -> 6731203.633 | S141: ='Unsmoothed Prices'!S137*10^6 -> 6247139.293 | T141: ='Unsmoothed Prices'!T137*10^6 -> 6463000.886 | U141: ='Unsmoothed Prices'!U137*10^6 -> 6708521.356
P142: NPV | Q142: =NPV($Q$138,Q141:U141) -> 28198257.8
P144: Smoothed Nominal Revenue | Q144: =BV136 -> 5996720.288 | R144: =BW136 -> 6189302.744 | S144: =BX136 -> 6532548.432 | T144: 6919292.504 | U144: 7361050.866
Q145: =NPV($Q$138,Q144:U144) -> 28198257.8
P146: Difference in NPVs | Q146: =Q145-Q142 -> 0
R148: X_01 | S148: X_02 | T148: X_03 | U148: X_04
P149: X Factors | Q149: 0.1028725005 | R149: -0.017 | S149: =R149 -> -0.017 | T149: =S149 -> -0.017 | U149: -0.017
Q150: applied to
Q151: unsmoothed
Q152: prices

Sheet Unsmoothed Prices
B1: $2018-19 base data
B4: Private Contract Lights
O6: Days | Q6: ='Master Data'!K28 -> 366 | R6: ='Master Data'!L28 -> 365 | S6: ='Master Data'!M28 -> 365 | T6: ='Master Data'!N28 -> 365 | U6: ='Master Data'!O28 -> 366
D7: 2 | E7: 16 | F7: =E7+1 -> 17 | G7: 18 | H7: 19 | I7: 20 | AB7: Lookup | AC7: 5 | AD7: =AC7+1 -> 6 | AE7: 7 | AF7: 8 | AG7: 9
C8: Price (cents) per Light per day | P8: Revenue ($m) - Real | AB8: Volumes
B9: Private Contract Lights | C9: Offered / No Longer Offered / NA | D9: ='Master Data'!J$34 -> 2018-19 | E9: ='Master Data'!K$34 -> 2019-20 | F9: ='Master Data'!L$34 -> 2020-21 | G9: ='Master Data'!M$34 -> 2021-22 | H9: ='Master Data'!N$34 -> 2022-23 | I9: ='Master Data'!O$34 -> 2023-24 | Q9: =E9 -> 2019-20 | R9: =F9 -> 2020-21 | S9: =G9 -> 2021-22 | T9: =H9 -> 2022-23 | U9: =I9 -> 2023-24 | AC9: =Q9 -> 2019-20 | AD9: =R9 -> 2020-21 | AE9: =S9 -> 2021-22 | AF9: =T9 -> 2022-23 | AG9: =U9 -> 2023-24
B10: =Inputs!$C69 -> 32W Compact Fluorescent | C10: Not Offered | D10: 18.221 | E10: =IF($C10="NA","",OFFSET('Combined Annuity Prices CL'!$B$10,MATCH($B10,'Combined Annuity Prices CL'!$B$10:$B$3811,0)+12,E$7)*'Master Data'!$J$37) -> 20.31498636 | F10: =IF($C10="NA","",OFFSET('Combined Annuity Prices CL'!$B$10,MATCH($B10,'Combined Annuity Prices CL'!$B$10:$B$3811,0)+12,F$7)*'Master Data'!$J$37) -> 20.38552091 | G10: =IF($C10="NA","",OFFSET('Combined Annuity Prices CL'!$B$10,MATCH($B10,'Combined Annuity Prices CL'!$B$10:$B$3811,0)+12,G$7)*'Master Data'!$J$37) -> 19.98824545 | H10: =IF($C10="NA","",OFFSET('Combined Annuity Prices CL'!$B$10,MATCH($B10,'Combined Annuity Prices CL'!$B$10:$B$3811,0)+12,H$7)*'Master Data'!$J$37) -> 19.89074182 | I10: =IF($C10="NA","",OFFSET('Combined Annuity Prices CL'!$B$10,MATCH($B10,'Combined Annuity Prices CL'!$B$10:$B$3811,0)+12,I$7)*'Master Data'!$J$37) -> 19.72789 | Q10: =IF($C10="NA","",E10*AC10*Q$6/100/10^6) -> 0 | R10: =IF($C10="NA","",F10*AD10*R$6/100/10^6) -> 0 | S10: =IF($C10="NA","",G10*AE10*S$6/100/10^6) -> 0 | T10: =IF($C10="NA","",H10*AF10*T$6/100/10^6) -> 0 | U10: =IF($C10="NA","",I10*AG10*U$6/100/10^6) -> 0 | AC10: =IFERROR(VLOOKUP($B10,Volumes!$B$4:$H$33,MATCH(AC$9,Volumes!$B$4:$H$4,0),FALSE),0) -> 0 | AD10: =IFERROR(VLOOKUP($B10,Volumes!$B$4:$H$33,MATCH(AD$9,Volumes!$B$4:$H$4,0),FALSE),0) -> 0 | AE10: =IFERROR(VLOOKUP($B10,Volumes!$B$4:$H$33,MATCH(AE$9,Volumes!$B$4:$H$4,0),FALSE),0) -> 0 | AF10: =IFERROR(VLOOKUP($B10,Volumes!$B$4:$H$33,MATCH(AF$9,Volumes!$B$4:$H$4,0),FALSE),0) -> 0 | AG10: =IFERROR(VLOOKUP($B10,Volumes!$B$4:$H$33,MATCH(AG$9,Volumes!$B$4:$H$4,0),FALSE),0) -> 0
B11: =Inputs!$C70 -> 42W Compact Fluorescent | C11: Offered | D11: 18.222 | E11: =IF($C11="NA","",OFFSET('Combined Annuity Prices CL'!$B$10,MATCH($B11,'Combined Annuity Prices CL'!$B$10:$B$3811,0)+12,E$7)*'Master Data'!$J$37) -> 20.31498636 | F11: =IF($C11="NA","",OFFSET('Combined Annuity Prices CL'!$B$10,MATCH($B11,'Combined Annuity Prices CL'!$B$10:$B$3811,0)+12,F$7)*'Master Data'!$J$37) -> 20.38552091 | G11: =IF($C11="NA","",OFFSET('Combined Annuity Prices CL'!$B$10,MATCH($B11,'Combined Annuity Prices CL'!$B$10:$B$3811,0)+12,G$7)*'Master Data'!$J$37) -> 19.98824545 | H11: =IF($C11="NA","",OFFSET('Combined Annuity Prices CL'!$B$10,MATCH($B11,'Combined Annuity Prices CL'!$B$10:$B$3811,0)+12,H$7)*'Master Data'!$J$37) -> 19.89074182 | I11: =IF($C11="NA","",OFFSET('Combined Annuity Prices CL'!$B$10,MATCH($B11,'Combined Annuity Prices CL'!$B$10:$B$3811,0)+12,I$7)*'Master Data'!$J$37) -> 19.72789 | Q11: 0.002081879803 | R11: 0.002083400237 | S11: 0.002042798685 | T11: 0.002032833814 | U11: 0.002021714167 | AC11: =IFERROR(VLOOKUP($B11,Volumes!$B$4:$H$33,MATCH(AC$9,Volumes!$B$4:$H$4,0),FALSE),0) -> 28 | AD11: =IFERROR(VLOOKUP($B11,Volumes!$B$4:$H$33,MATCH(AD$9,Volumes!$B$4:$H$4,0),FALSE),0) -> 28 | AE11: =IFERROR(VLOOKUP($B11,Volumes!$B$4:$H$33,MATCH(AE$9,Volumes!$B$4:$H$4,0),FALSE),0) -> 28 | AF11: =IFERROR(VLOOKUP($B11,Volumes!$B$4:$H$33,MATCH(AF$9,Volumes!$B$4:$H$4,0),FALSE),0) -> 28 | AG11: =IFERROR(VLOOKUP($B11,Volumes!$B$4:$H$33,MATCH(AG$9,Volumes!$B$4:$H$4,0),FALSE),0) -> 28
B12: =Inputs!$C71 -> 42W Compact Fluorescent - Bottom Pole Entry | C12: Offered | D12: 18.222 | E12: =IF($C12="NA","",OFFSET('Combined Annuity Prices CL'!$B$10,MATCH($B12,'Combined Annuity Prices CL'!$B$10:$B$3811,0)+12,E$7)*'Master Data'!$J$37) -> 20.31498636 | F12: =IF($C12="NA","",OFFSET('Combined Annuity Prices CL'!$B$10,MATCH($B12,'Combined Annuity Prices CL'!$B$10:$B$3811,0)+12,F$7)*'Master Data'!$J$37) -> 20.38552091 | G12: =IF($C12="NA","",OFFSET('Combined Annuity Prices CL'!$B$10,MATCH($B12,'Combined Annuity Prices CL'!$B$10:$B$3811,0)+12,G$7)*'Master Data'!$J$37) -> 19.98824545 | H12: =IF($C12="NA","",OFFSET('Combined Annuity Prices CL'!$B$10,MATCH($B12,'Combined Annuity Prices CL'!$B$10:$B$3811,0)+12,H$7)*'Master Data'!$J$37) -> 19.89074182 | I12: =IF($C12="NA","",OFFSET('Combined Annuity Prices CL'!$B$10,MATCH($B12,'Combined Annuity Prices CL'!$B$10:$B$3811,0)+12,I$7)*'Master Data'!$J$37) -> 19.72789 | Q12: 0 | R12: 0 | S12: 0 | T12: 0 | U12: 0 | AC12: =IFERROR(VLOOKUP($B12,Volumes!$B$4:$H$33,MATCH(AC$9,Volumes!$B$4:$H$4,0),FALSE),0) -> 0 | AD12: =IFERROR(VLOOKUP($B12,Volumes!$B$4:$H$33,MATCH(AD$9,Volumes!$B$4:$H$4,0),FALSE),0) -> 0 | AE12: =IFERROR(VLOOKUP($B12,Volumes!$B$4:$H$33,MATCH(AE$9,Volumes!$B$4:$H$4,0),FALSE),0) -> 0 | AF12: =IFERROR(VLOOKUP($B12,Volumes!$B$4:$H$33,MATCH(AF$9,Volumes!$B$4:$H$4,0),FALSE),0) -> 0 | AG12: =IFERROR(VLOOKUP($B12,Volumes!$B$4:$H$33,MATCH(AG$9,Volumes!$B$4:$H$4,0),FALSE),0) -> 0
B13: =Inputs!$C72 -> 2x24W Compact Fluorescent | C13: Not Offered | D13: 18.545 | E13: =IF($C13="NA","",OFFSET('Combined Annuity Prices CL'!$B$10,MATCH($B13,'Combined Annuity Prices CL'!$B$10:$B$3811,0)+12,E$7)*'Master Data'!$J$37) -> 20.73093273 | F13: =IF($C13="NA","",OFFSET('Combined Annuity Prices CL'!$B$10,MATCH($B13,'Combined Annuity Prices CL'!$B$10:$B$3811,0)+12,F$7)*'Master Data'!$J$37) -> 20.80354182 | G13: =IF($C13="NA","",OFFSET('Combined Annuity Prices CL'!$B$10,MATCH($B13,'Combined Annuity Prices CL'!$B$10:$B$3811,0)+12,G$7)*'Master Data'!$J$37) -> 20.40522909 | H13: =IF($C13="NA","",OFFSET('Combined Annuity Prices CL'!$B$10,MATCH($B13,'Combined Annuity Prices CL'!$B$10:$B$3811,0)+12,H$7)*'Master Data'!$J$37) -> 20.30772545 | I13: =IF($C13="NA","",OFFSET('Combined Annuity Prices CL'!$B$10,MATCH($B13,'Combined Annuity Prices CL'!$B$10:$B$3811,0)+12,I$7)*'Master Data'!$J$37) -> 20.14383636 | Q13: 0 | R13: 0 | S13: 0 | T13: 0 | U13: 0 | AC13: =IFERROR(VLOOKUP($B13,Volumes!$B$4:$H$33,MATCH(AC$9,Volumes!$B$4:$H$4,0),FALSE),0) -> 0 | AD13: =IFERROR(VLOOKUP($B13,Volumes!$B$4:$H$33,MATCH(AD$9,Volumes!$B$4:$H$4,0),FALSE),0) -> 0 | AE13: =IFERROR(VLOOKUP($B13,Volumes!$B$4:$H$33,MATCH(AE$9,Volumes!$B$4:$H$4,0),FALSE),0) -> 0 | AF13: =IFERROR(VLOOKUP($B13,Volumes!$B$4:$H$33,MATCH(AF$9,Volumes!$B$4:$H$4,0),FALSE),0) -> 0 | AG13: =IFERROR(VLOOKUP($B13,Volumes!$B$4:$H$33,MATCH(AG$9,Volumes!$B$4:$H$4,0),FALSE),0) -> 0
B14: =Inputs!$C73 -> 1x20W Fluorescent | C14: Obsolete, no new Connections | D14: 18.189 | E14: =IF($C14="NA","",OFFSET('Combined Annuity Prices CL'!$B$10,MATCH($B14,'Combined Annuity Prices CL'!$B$10:$B$3811,0)+12,E$7)*'Master Data'!$J$37) -> 20.18429 | F14: =IF($C14="NA","",OFFSET('Combined Annuity Prices CL'!$B$10,MATCH($B14,'Combined Annuity Prices CL'!$B$10:$B$3811,0)+12,F$7)*'Master Data'!$J$37) -> 20.25586182 | G14: =IF($C14="NA","",OFFSET('Combined Annuity Prices CL'!$B$10,MATCH($B14,'Combined Annuity Prices CL'!$B$10:$B$3811,0)+12,G$7)*'Master Data'!$J$37) -> 19.85754909 | H14: =IF($C14="NA","",OFFSET('Combined Annuity Prices CL'!$B$10,MATCH($B14,'Combined Annuity Prices CL'!$B$10:$B$3811,0)+12,H$7)*'Master Data'!$J$37) -> 19.76004545 | I14: =IF($C14="NA","",OFFSET('Combined Annuity Prices CL'!$B$10,MATCH($B14,'Combined Annuity Prices CL'!$B$10:$B$3811,0)+12,I$7)*'Master Data'!$J$37) -> 19.59823091 | Q14: 0 | R14: 0 | S14: 0 | T14: 0 | U14: 0 | AC14: =IFERROR(VLOOKUP($B14,Volumes!$B$4:$H$33,MATCH(AC$9,Volumes!$B$4:$H$4,0),FALSE),0) -> 0 | AD14: =IFERROR(VLOOKUP($B14,Volumes!$B$4:$H$33,MATCH(AD$9,Volumes!$B$4:$H$4,0),FALSE),0) -> 0 | AE14: =IFERROR(VLOOKUP($B14,Volumes!$B$4:$H$33,MATCH(AE$9,Volumes!$B$4:$H$4,0),FALSE),0) -> 0 | AF14: =IFERROR(VLOOKUP($B14,Volumes!$B$4:$H$33,MATCH(AF$9,Volumes!$B$4:$H$4,0),FALSE),0) -> 0 | AG14: =IFERROR(VLOOKUP($B14,Volumes!$B$4:$H$33,MATCH(AG$9,Volumes!$B$4:$H$4,0),FALSE),0) -> 0
B15: =Inputs!$C74 -> 1x40W Fluorescent | C15: Obsolete, no new Connections | D15: 18.208 | E15: =IF($C15="NA","",OFFSET('Combined Annuity Prices CL'!$B$10,MATCH($B15,'Combined Annuity Prices CL'!$B$10:$B$3811,0)+12,E$7)*'Master Data'!$J$37) -> 20.20296091 | F15: =IF($C15="NA","",OFFSET('Combined Annuity Prices CL'!$B$10,MATCH($B15,'Combined Annuity Prices CL'!$B$10:$B$3811,0)+12,F$7)*'Master Data'!$J$37) -> 20.27453273 | G15: =IF($C15="NA","",OFFSET('Combined Annuity Prices CL'!$B$10,MATCH($B15,'Combined Annuity Prices CL'!$B$10:$B$3811,0)+12,G$7)*'Master Data'!$J$37) -> 19.87622 | H15: =IF($C15="NA","",OFFSET('Combined Annuity Prices CL'!$B$10,MATCH($B15,'Combined Annuity Prices CL'!$B$10:$B$3811,0)+12,H$7)*'Master Data'!$J$37) -> 19.77871636 | I15: =IF($C15="NA","",OFFSET('Combined Annuity Prices CL'!$B$10,MATCH($B15,'Combined Annuity Prices CL'!$B$10:$B$3811,0)+12,I$7)*'Master Data'!$J$37) -> 19.61690182 | Q15: 0 | R15: 0 | S15: 0 | T15: 0 | U15: 0 | AC15: =IFERROR(VLOOKUP($B15,Volumes!$B$4:$H$33,MATCH(AC$9,Volumes!$B$4:$H$4,0),FALSE),0) -> 0 | AD15: =IFERROR(VLOOKUP($B15,Volumes!$B$4:$H$33,MATCH(AD$9,Volumes!$B$4:$H$4,0),FALSE),0) -> 0 | AE15: =IFERROR(VLOOKUP($B15,Volumes!$B$4:$H$33,MATCH(AE$9,Volumes!$B$4:$H$4,0),FALSE),0) -> 0 | AF15: =IFERROR(VLOOKUP($B15,Volumes!$B$4:$H$33,MATCH(AF$9,Volumes!$B$4:$H$4,0),FALSE),0) -> 0 | AG15: =IFERROR(VLOOKUP($B15,Volumes!$B$4:$H$33,MATCH(AG$9,Volumes!$B$4:$H$4,0),FALSE),0) -> 0
B16: =Inputs!$C75 -> 2x20W Fluorescent | C16: Obsolete, no new Connections | D16: 18.48 | E16: =IF($C16="NA","",OFFSET('Combined Annuity Prices CL'!$B$10,MATCH($B16,'Combined Annuity Prices CL'!$B$10:$B$3811,0)+12,E$7)*'Master Data'!$J$37) -> 20.47057727 | F16: =IF($C16="NA","",OFFSET('Combined Annuity Prices CL'!$B$10,MATCH($B16,'Combined Annuity Prices CL'!$B$10:$B$3811,0)+12,F$7)*'Master Data'!$J$37) -> 20.54214909 | G16: =IF($C16="NA","",OFFSET('Combined Annuity Prices CL'!$B$10,MATCH($B16,'Combined Annuity Prices CL'!$B$10:$B$3811,0)+12,G$7)*'Master Data'!$J$37) -> 20.14383636 | H16: =IF($C16="NA","",OFFSET('Combined Annuity Prices CL'!$B$10,MATCH($B16,'Combined Annuity Prices CL'!$B$10:$B$3811,0)+12,H$7)*'Master Data'!$J$37) -> 20.04633273 | I16: =IF($C16="NA","",OFFSET('Combined Annuity Prices CL'!$B$10,MATCH($B16,'Combined Annuity Prices CL'!$B$10:$B$3811,0)+12,I$7)*'Master Data'!$J$37) -> 19.88348091 | Q16: 0 | R16: 0 | S16: 0 | T16: 0 | U16: 0 | AC16: =IFERROR(VLOOKUP($B16,Volumes!$B$4:$H$33,MATCH(AC$9,Volumes!$B$4:$H$4,0),FALSE),0) -> 0 | AD16: =IFERROR(VLOOKUP($B16,Volumes!$B$4:$H$33,MATCH(AD$9,Volumes!$B$4:$H$4,0),FALSE),0) -> 0 | AE16: =IFERROR(VLOOKUP($B16,Volumes!$B$4:$H$33,MATCH(AE$9,Volumes!$B$4:$H$4,0),FALSE),0) -> 0 | AF16: =IFERROR(VLOOKUP($B16,Volumes!$B$4:$H$33,MATCH(AF$9,Volumes!$B$4:$H$4,0),FALSE),0) -> 0 | AG16: =IFERROR(VLOOKUP($B16,Volumes!$B$4:$H$33,MATCH(AG$9,Volumes!$B$4:$H$4,0),FALSE),0) -> 0
B17: =Inputs!$C76 -> 2x24W Fluorescent | C17: Obsolete, no new Connections | D17: 18.322 | E17: =IF($C17="NA","",OFFSET('Combined Annuity Prices CL'!$B$10,MATCH($B17,'Combined Annuity Prices CL'!$B$10:$B$3811,0)+12,E$7)*'Master Data'!$J$37) -> 20.33884364 | F17: =IF($C17="NA","",OFFSET('Combined Annuity Prices CL'!$B$10,MATCH($B17,'Combined Annuity Prices CL'!$B$10:$B$3811,0)+12,F$7)*'Master Data'!$J$37) -> 20.40937818 | G17: =IF($C17="NA","",OFFSET('Combined Annuity Prices CL'!$B$10,MATCH($B17,'Combined Annuity Prices CL'!$B$10:$B$3811,0)+12,G$7)*'Master Data'!$J$37) -> 20.01210273 | H17: =IF($C17="NA","",OFFSET('Combined Annuity Prices CL'!$B$10,MATCH($B17,'Combined Annuity Prices CL'!$B$10:$B$3811,0)+12,H$7)*'Master Data'!$J$37) -> 19.91459909 | I17: =IF($C17="NA","",OFFSET('Combined Annuity Prices CL'!$B$10,MATCH($B17,'Combined Annuity Prices CL'!$B$10:$B$3811,0)+12,I$7)*'Master Data'!$J$37) -> 19.75174727 | Q17: 0 | R17: 0 | S17: 0 | T17: 0 | U17: 0 | AC17: =IFERROR(VLOOKUP($B17,Volumes!$B$4:$H$33,MATCH(AC$9,Volumes!$B$4:$H$4,0),FALSE),0) -> 0 | AD17: =IFERROR(VLOOKUP($B17,Volumes!$B$4:$H$33,MATCH(AD$9,Volumes!$B$4:$H$4,0),FALSE),0) -> 0 | AE17: =IFERROR(VLOOKUP($B17,Volumes!$B$4:$H$33,MATCH(AE$9,Volumes!$B$4:$H$4,0),FALSE),0) -> 0 | AF17: =IFERROR(VLOOKUP($B17,Volumes!$B$4:$H$33,MATCH(AF$9,Volumes!$B$4:$H$4,0),FALSE),0) -> 0 | AG17: =IFERROR(VLOOKUP($B17,Volumes!$B$4:$H$33,MATCH(AG$9,Volumes!$B$4:$H$4,0),FALSE),0) -> 0
B18: =Inputs!$C77 -> T5 Fluorescent 2 x 24W | C18: Obsolete, no new Connections | D18: 18.48 | E18: =IF($C18="NA","",OFFSET('Combined Annuity Prices CL'!$B$10,MATCH($B18,'Combined Annuity Prices CL'!$B$10:$B$3811,0)+12,E$7)*'Master Data'!$J$37) -> 20.47057727 | F18: =IF($C18="NA","",OFFSET('Combined Annuity Prices CL'!$B$10,MATCH($B18,'Combined Annuity Prices CL'!$B$10:$B$3811,0)+12,F$7)*'Master Data'!$J$37) -> 20.54214909 | G18: =IF($C18="NA","",OFFSET('Combined Annuity Prices CL'!$B$10,MATCH($B18,'Combined Annuity Prices CL'!$B$10:$B$3811,0)+12,G$7)*'Master Data'!$J$37) -> 20.14383636 | H18: =IF($C18="NA","",OFFSET('Combined Annuity Prices CL'!$B$10,MATCH($B18,'Combined Annuity Prices CL'!$B$10:$B$3811,0)+12,H$7)*'Master Data'!$J$37) -> 20.04633273 | I18: =IF($C18="NA","",OFFSET('Combined Annuity Prices CL'!$B$10,MATCH($B18,'Combined Annuity Prices CL'!$B$10:$B$3811,0)+12,I$7)*'Master Data'!$J$37) -> 19.88348091 | Q18: 0 | R18: 0 | S18: 0 | T18: 0 | U18: 0 | AC18: =IFERROR(VLOOKUP($B18,Volumes!$B$4:$H$33,MATCH(AC$9,Volumes!$B$4:$H$4,0),FALSE),0) -> 0 | AD18: =IFERROR(VLOOKUP($B18,Volumes!$B$4:$H$33,MATCH(AD$9,Volumes!$B$4:$H$4,0),FALSE),0) -> 0 | AE18: =IFERROR(VLOOKUP($B18,Volumes!$B$4:$H$33,MATCH(AE$9,Volumes!$B$4:$H$4,0),FALSE),0) -> 0 | AF18: =IFERROR(VLOOKUP($B18,Volumes!$B$4:$H$33,MATCH(AF$9,Volumes!$B$4:$H$4,0),FALSE),0) -> 0 | AG18: =IFERROR(VLOOKUP($B18,Volumes!$B$4:$H$33,MATCH(AG$9,Volumes!$B$4:$H$4,0),FALSE),0) -> 0
B19: =Inputs!$C78 -> 20 Fluorescent 1X20FL | C19: Obsolete, no new Connections | D19: 18.189 | E19: =IF($C19="NA","",OFFSET('Combined Annuity Prices CL'!$B$10,MATCH($B19,'Combined Annuity Prices CL'!$B$10:$B$3811,0)+12,E$7)*'Master Data'!$J$37) -> 20.18429 | F19: =IF($C19="NA","",OFFSET('Combined Annuity Prices CL'!$B$10,MATCH($B19,'Combined Annuity Prices CL'!$B$10:$B$3811,0)+12,F$7)*'Master Data'!$J$37) -> 20.25586182 | G19: =IF($C19="NA","",OFFSET('Combined Annuity Prices CL'!$B$10,MATCH($B19,'Combined Annuity Prices CL'!$B$10:$B$3811,0)+12,G$7)*'Master Data'!$J$37) -> 19.85754909 | H19: =IF($C19="NA","",OFFSET('Combined Annuity Prices CL'!$B$10,MATCH($B19,'Combined Annuity Prices CL'!$B$10:$B$3811,0)+12,H$7)*'Master Data'!$J$37) -> 19.76004545 | I19: =IF($C19="NA","",OFFSET('Combined Annuity Prices CL'!$B$10,MATCH($B19,'Combined Annuity Prices CL'!$B$10:$B$3811,0)+12,I$7)*'Master Data'!$J$37) -> 19.59823091 | Q19: 0 | R19: 0 | S19: 0 | T19: 0 | U19: 0 | AC19: =IFERROR(VLOOKUP($B19,Volumes!$B$4:$H$33,MATCH(AC$9,Volumes!$B$4:$H$4,0),FALSE),0) -> 0 | AD19: =IFERROR(VLOOKUP($B19,Volumes!$B$4:$H$33,MATCH(AD$9,Volumes!$B$4:$H$4,0),FALSE),0) -> 0 | AE19: =IFERROR(VLOOKUP($B19,Volumes!$B$4:$H$33,MATCH(AE$9,Volumes!$B$4:$H$4,0),FALSE),0) -> 0 | AF19: =IFERROR(VLOOKUP($B19,Volumes!$B$4:$H$33,MATCH(AF$9,Volumes!$B$4:$H$4,0),FALSE),0) -> 0 | AG19: =IFERROR(VLOOKUP($B19,Volumes!$B$4:$H$33,MATCH(AG$9,Volumes!$B$4:$H$4,0),FALSE),0) -> 0
B20: =Inputs!$C79 -> 2x40W Fluorescent | C20: Obsolete, no new Connections | D20: 18.518 | E20: =IF($C20="NA","",OFFSET('Combined Annuity Prices CL'!$B$10,MATCH($B20,'Combined Annuity Prices CL'!$B$10:$B$3811,0)+12,E$7)*'Master Data'!$J$37) -> 20.50791909 | F20: =IF($C20="NA","",OFFSET('Combined Annuity Prices CL'!$B$10,MATCH($B20,'Combined Annuity Prices CL'!$B$10:$B$3811,0)+12,F$7)*'Master Data'!$J$37) -> 20.57949091 | G20: =IF($C20="NA","",OFFSET('Combined Annuity Prices CL'!$B$10,MATCH($B20,'Combined Annuity Prices CL'!$B$10:$B$3811,0)+12,G$7)*'Master Data'!$J$37) -> 20.18117818 | H20: =IF($C20="NA","",OFFSET('Combined Annuity Prices CL'!$B$10,MATCH($B20,'Combined Annuity Prices CL'!$B$10:$B$3811,0)+12,H$7)*'Master Data'!$J$37) -> 20.08367455 | I20: =IF($C20="NA","",OFFSET('Combined Annuity Prices CL'!$B$10,MATCH($B20,'Combined Annuity Prices CL'!$B$10:$B$3811,0)+12,I$7)*'Master Data'!$J$37) -> 19.92082273 | Q20: 0 | R20: 0 | S20: 0 | T20: 0 | U20: 0 | AC20: =IFERROR(VLOOKUP($B20,Volumes!$B$4:$H$33,MATCH(AC$9,Volumes!$B$4:$H$4,0),FALSE),0) -> 0 | AD20: =IFERROR(VLOOKUP($B20,Volumes!$B$4:$H$33,MATCH(AD$9,Volumes!$B$4:$H$4,0),FALSE),0) -> 0 | AE20: =IFERROR(VLOOKUP($B20,Volumes!$B$4:$H$33,MATCH(AE$9,Volumes!$B$4:$H$4,0),FALSE),0) -> 0 | AF20: =IFERROR(VLOOKUP($B20,Volumes!$B$4:$H$33,MATCH(AF$9,Volumes!$B$4:$H$4,0),FALSE),0) -> 0 | AG20: =IFERROR(VLOOKUP($B20,Volumes!$B$4:$H$33,MATCH(AG$9,Volumes!$B$4:$H$4,0),FALSE),0) -> 0
B21: =Inputs!$C80 -> 3x40W Fluorescent | C21: Obsolete, no new Connections | D21: 22.414 | E21: =IF($C21="NA","",OFFSET('Combined Annuity Prices CL'!$B$10,MATCH($B21,'Combined Annuity Prices CL'!$B$10:$B$3811,0)+12,E$7)*'Master Data'!$J$37) -> 24.29292727 | F21: =IF($C21="NA","",OFFSET('Combined Annuity Prices CL'!$B$10,MATCH($B21,'Combined Annuity Prices CL'!$B$10:$B$3811,0)+12,F$7)*'Master Data'!$J$37) -> 24.37590909 | G21: =IF($C21="NA","",OFFSET('Combined Annuity Prices CL'!$B$10,MATCH($B21,'Combined Annuity Prices CL'!$B$10:$B$3811,0)+12,G$7)*'Master Data'!$J$37) -> 23.97759636 | H21: =IF($C21="NA","",OFFSET('Combined Annuity Prices CL'!$B$10,MATCH($B21,'Combined Annuity Prices CL'!$B$10:$B$3811,0)+12,H$7)*'Master Data'!$J$37) -> 23.88113 | I21: =IF($C21="NA","",OFFSET('Combined Annuity Prices CL'!$B$10,MATCH($B21,'Combined Annuity Prices CL'!$B$10:$B$3811,0)+12,I$7)*'Master Data'!$J$37) -> 23.70894273 | Q21: 0 | R21: 0 | S21: 0 | T21: 0 | U21: 0 | AC21: =IFERROR(VLOOKUP($B21,Volumes!$B$4:$H$33,MATCH(AC$9,Volumes!$B$4:$H$4,0),FALSE),0) -> 0 | AD21: =IFERROR(VLOOKUP($B21,Volumes!$B$4:$H$33,MATCH(AD$9,Volumes!$B$4:$H$4,0),FALSE),0) -> 0 | AE21: =IFERROR(VLOOKUP($B21,Volumes!$B$4:$H$33,MATCH(AE$9,Volumes!$B$4:$H$4,0),FALSE),0) -> 0 | AF21: =IFERROR(VLOOKUP($B21,Volumes!$B$4:$H$33,MATCH(AF$9,Volumes!$B$4:$H$4,0),FALSE),0) -> 0 | AG21: =IFERROR(VLOOKUP($B21,Volumes!$B$4:$H$33,MATCH(AG$9,Volumes!$B$4:$H$4,0),FALSE),0) -> 0
B22: =Inputs!$C81 -> 4x20 Fluorescent | C22: Obsolete, no new Connections | D22: 19.062 | E22: =IF($C22="NA","",OFFSET('Combined Annuity Prices CL'!$B$10,MATCH($B22,'Combined Annuity Prices CL'!$B$10:$B$3811,0)+12,E$7)*'Master Data'!$J$37) -> 21.04315182 | F22: =IF($C22="NA","",OFFSET('Combined Annuity Prices CL'!$B$10,MATCH($B22,'Combined Annuity Prices CL'!$B$10:$B$3811,0)+12,F$7)*'Master Data'!$J$37) -> 21.11576091 | G22: =IF($C22="NA","",OFFSET('Combined Annuity Prices CL'!$B$10,MATCH($B22,'Combined Annuity Prices CL'!$B$10:$B$3811,0)+12,G$7)*'Master Data'!$J$37) -> 20.71744818 | H22: =IF($C22="NA","",OFFSET('Combined Annuity Prices CL'!$B$10,MATCH($B22,'Combined Annuity Prices CL'!$B$10:$B$3811,0)+12,H$7)*'Master Data'!$J$37) -> 20.61994455 | I22: =IF($C22="NA","",OFFSET('Combined Annuity Prices CL'!$B$10,MATCH($B22,'Combined Annuity Prices CL'!$B$10:$B$3811,0)+12,I$7)*'Master Data'!$J$37) -> 20.45605545 | Q22: 0 | R22: 0 | S22: 0 | T22: 0 | U22: 0 | AC22: =IFERROR(VLOOKUP($B22,Volumes!$B$4:$H$33,MATCH(AC$9,Volumes!$B$4:$H$4,0),FALSE),0) -> 0 | AD22: =IFERROR(VLOOKUP($B22,Volumes!$B$4:$H$33,MATCH(AD$9,Volumes!$B$4:$H$4,0),FALSE),0) -> 0 | AE22: =IFERROR(VLOOKUP($B22,Volumes!$B$4:$H$33,MATCH(AE$9,Volumes!$B$4:$H$4,0),FALSE),0) -> 0 | AF22: =IFERROR(VLOOKUP($B22,Volumes!$B$4:$H$33,MATCH(AF$9,Volumes!$B$4:$H$4,0),FALSE),0) -> 0 | AG22: =IFERROR(VLOOKUP($B22,Volumes!$B$4:$H$33,MATCH(AG$9,Volumes!$B$4:$H$4,0),FALSE),0) -> 0
B23: =Inputs!$C82 -> 4x40W Fluorescent | C23: Obsolete, no new Connections | D23: 22.722 | E23: =IF($C23="NA","",OFFSET('Combined Annuity Prices CL'!$B$10,MATCH($B23,'Combined Annuity Prices CL'!$B$10:$B$3811,0)+12,E$7)*'Master Data'!$J$37) -> 24.59684818 | F23: =IF($C23="NA","",OFFSET('Combined Annuity Prices CL'!$B$10,MATCH($B23,'Combined Annuity Prices CL'!$B$10:$B$3811,0)+12,F$7)*'Master Data'!$J$37) -> 24.68086727 | G23: =IF($C23="NA","",OFFSET('Combined Annuity Prices CL'!$B$10,MATCH($B23,'Combined Annuity Prices CL'!$B$10:$B$3811,0)+12,G$7)*'Master Data'!$J$37) -> 24.28359182 | H23: =IF($C23="NA","",OFFSET('Combined Annuity Prices CL'!$B$10,MATCH($B23,'Combined Annuity Prices CL'!$B$10:$B$3811,0)+12,H$7)*'Master Data'!$J$37) -> 24.18712545 | I23: =IF($C23="NA","",OFFSET('Combined Annuity Prices CL'!$B$10,MATCH($B23,'Combined Annuity Prices CL'!$B$10:$B$3811,0)+12,I$7)*'Master Data'!$J$37) -> 24.01390091 | Q23: 0 | R23: 0 | S23: 0 | T23: 0 | U23: 0 | AC23: =IFERROR(VLOOKUP($B23,Volumes!$B$4:$H$33,MATCH(AC$9,Volumes!$B$4:$H$4,0),FALSE),0) -> 0 | AD23: =IFERROR(VLOOKUP($B23,Volumes!$B$4:$H$33,MATCH(AD$9,Volumes!$B$4:$H$4,0),FALSE),0) -> 0 | AE23: =IFERROR(VLOOKUP($B23,Volumes!$B$4:$H$33,MATCH(AE$9,Volumes!$B$4:$H$4,0),FALSE),0) -> 0 | AF23: =IFERROR(VLOOKUP($B23,Volumes!$B$4:$H$33,MATCH(AF$9,Volumes!$B$4:$H$4,0),FALSE),0) -> 0 | AG23: =IFERROR(VLOOKUP($B23,Volumes!$B$4:$H$33,MATCH(AG$9,Volumes!$B$4:$H$4,0),FALSE),0) -> 0
B24: =Inputs!$C83 -> 100W Sodium Vapour | C24: Offered | D24: 22.559 | E24: =IF($C24="NA","",OFFSET('Combined Annuity Prices CL'!$B$10,MATCH($B24,'Combined Annuity Prices CL'!$B$10:$B$3811,0)+12,E$7)*'Master Data'!$J$37) -> 24.49727 | F24: =IF($C24="NA","",OFFSET('Combined Annuity Prices CL'!$B$10,MATCH($B24,'Combined Annuity Prices CL'!$B$10:$B$3811,0)+12,F$7)*'Master Data'!$J$37) -> 24.58025182 | G24: =IF($C24="NA","",OFFSET('Combined Annuity Prices CL'!$B$10,MATCH($B24,'Combined Annuity Prices CL'!$B$10:$B$3811,0)+12,G$7)*'Master Data'!$J$37) -> 24.18297636 | H24: =IF($C24="NA","",OFFSET('Combined Annuity Prices CL'!$B$10,MATCH($B24,'Combined Annuity Prices CL'!$B$10:$B$3811,0)+12,H$7)*'Master Data'!$J$37) -> 24.08651 | I24: =IF($C24="NA","",OFFSET('Combined Annuity Prices CL'!$B$10,MATCH($B24,'Combined Annuity Prices CL'!$B$10:$B$3811,0)+12,I$7)*'Master Data'!$J$37) -> 23.91328545 | Q24: 0.000448300041 | R24: 0.0004485895957 | S24: 0.0004413393186 | T24: 0.0004395788075 | U24: 0.0004376131238 | AC24: =IFERROR(VLOOKUP($B24,Volumes!$B$4:$H$33,MATCH(AC$9,Volumes!$B$4:$H$4,0),FALSE),0) -> 5 | AD24: =IFERROR(VLOOKUP($B24,Volumes!$B$4:$H$33,MATCH(AD$9,Volumes!$B$4:$H$4,0),FALSE),0) -> 5 | AE24: =IFERROR(VLOOKUP($B24,Volumes!$B$4:$H$33,MATCH(AE$9,Volumes!$B$4:$H$4,0),FALSE),0) -> 5 | AF24: =IFERROR(VLOOKUP($B24,Volumes!$B$4:$H$33,MATCH(AF$9,Volumes!$B$4:$H$4,0),FALSE),0) -> 5 | AG24: =IFERROR(VLOOKUP($B24,Volumes!$B$4:$H$33,MATCH(AG$9,Volumes!$B$4:$H$4,0),FALSE),0) -> 5
B25: =Inputs!$C84 -> 0 | C25: NA | E25: =IF($C25="NA","",OFFSET('Combined Annuity Prices CL'!$B$10,MATCH($B25,'Combined Annuity Prices CL'!$B$10:$B$3811,0)+12,E$7)*'Master Data'!$J$37) ->  | F25: =IF($C25="NA","",OFFSET('Combined Annuity Prices CL'!$B$10,MATCH($B25,'Combined Annuity Prices CL'!$B$10:$B$3811,0)+12,F$7)*'Master Data'!$J$37) ->  | G25: =IF($C25="NA","",OFFSET('Combined Annuity Prices CL'!$B$10,MATCH($B25,'Combined Annuity Prices CL'!$B$10:$B$3811,0)+12,G$7)*'Master Data'!$J$37) ->  | H25: =IF($C25="NA","",OFFSET('Combined Annuity Prices CL'!$B$10,MATCH($B25,'Combined Annuity Prices CL'!$B$10:$B$3811,0)+12,H$7)*'Master Data'!$J$37) ->  | I25: =IF($C25="NA","",OFFSET('Combined Annuity Prices CL'!$B$10,MATCH($B25,'Combined Annuity Prices CL'!$B$10:$B$3811,0)+12,I$7)*'Master Data'!$J$37) ->  | AC25: =IFERROR(VLOOKUP($B25,Volumes!$B$4:$H$33,MATCH(AC$9,Volumes!$B$4:$H$4,0),FALSE),0) -> 0 | AD25: =IFERROR(VLOOKUP($B25,Volumes!$B$4:$H$33,MATCH(AD$9,Volumes!$B$4:$H$4,0),FALSE),0) -> 0 | AE25: =IFERROR(VLOOKUP($B25,Volumes!$B$4:$H$33,MATCH(AE$9,Volumes!$B$4:$H$4,0),FALSE),0) -> 0 | AF25: =IFERROR(VLOOKUP($B25,Volumes!$B$4:$H$33,MATCH(AF$9,Volumes!$B$4:$H$4,0),FALSE),0) -> 0 | AG25: =IFERROR(VLOOKUP($B25,Volumes!$B$4:$H$33,MATCH(AG$9,Volumes!$B$4:$H$4,0),FALSE),0) -> 0
B26: =Inputs!$C85 -> 150W Sodium Vapour | C26: Offered | D26: 22.555 | E26: =IF($C26="NA","",OFFSET('Combined Annuity Prices CL'!$B$10,MATCH($B26,'Combined Annuity Prices CL'!$B$10:$B$3811,0)+12,E$7)*'Master Data'!$J$37) -> 24.75762545 | F26: =IF($C26="NA","",OFFSET('Combined Annuity Prices CL'!$B$10,MATCH($B26,'Combined Annuity Prices CL'!$B$10:$B$3811,0)+12,F$7)*'Master Data'!$J$37) -> 24.84164455 | G26: =IF($C26="NA","",OFFSET('Combined Annuity Prices CL'!$B$10,MATCH($B26,'Combined Annuity Prices CL'!$B$10:$B$3811,0)+12,G$7)*'Master Data'!$J$37) -> 24.44436909 | H26: =IF($C26="NA","",OFFSET('Combined Annuity Prices CL'!$B$10,MATCH($B26,'Combined Annuity Prices CL'!$B$10:$B$3811,0)+12,H$7)*'Master Data'!$J$37) -> 24.34790273 | I26: =IF($C26="NA","",OFFSET('Combined Annuity Prices CL'!$B$10,MATCH($B26,'Combined Annuity Prices CL'!$B$10:$B$3811,0)+12,I$7)*'Master Data'!$J$37) -> 24.17364091 | Q26: 0.01476990419 | R26: 0.01477953642 | S26: 0.01454317739 | T26: 0.01448578473 | U26: 0.01442151069 | AC26: =IFERROR(VLOOKUP($B26,Volumes!$B$4:$H$33,MATCH(AC$9,Volumes!$B$4:$H$4,0),FALSE),0) -> 163 | AD26: =IFERROR(VLOOKUP($B26,Volumes!$B$4:$H$33,MATCH(AD$9,Volumes!$B$4:$H$4,0),FALSE),0) -> 163 | AE26: =IFERROR(VLOOKUP($B26,Volumes!$B$4:$H$33,MATCH(AE$9,Volumes!$B$4:$H$4,0),FALSE),0) -> 163 | AF26: =IFERROR(VLOOKUP($B26,Volumes!$B$4:$H$33,MATCH(AF$9,Volumes!$B$4:$H$4,0),FALSE),0) -> 163 | AG26: =IFERROR(VLOOKUP($B26,Volumes!$B$4:$H$33,MATCH(AG$9,Volumes!$B$4:$H$4,0),FALSE),0) -> 163
B27: =Inputs!$C86 -> 0 | C27: NA | E27: =IF($C27="NA","",OFFSET('Combined Annuity Prices CL'!$B$10,MATCH($B27,'Combined Annuity Prices CL'!$B$10:$B$3811,0)+12,E$7)*'Master Data'!$J$37) ->  | F27: =IF($C27="NA","",OFFSET('Combined Annuity Prices CL'!$B$10,MATCH($B27,'Combined Annuity Prices CL'!$B$10:$B$3811,0)+12,F$7)*'Master Data'!$J$37) ->  | G27: =IF($C27="NA","",OFFSET('Combined Annuity Prices CL'!$B$10,MATCH($B27,'Combined Annuity Prices CL'!$B$10:$B$3811,0)+12,G$7)*'Master Data'!$J$37) ->  | H27: =IF($C27="NA","",OFFSET('Combined Annuity Prices CL'!$B$10,MATCH($B27,'Combined Annuity Prices CL'!$B$10:$B$3811,0)+12,H$7)*'Master Data'!$J$37) ->  | I27: =IF($C27="NA","",OFFSET('Combined Annuity Prices CL'!$B$10,MATCH($B27,'Combined Annuity Prices CL'!$B$10:$B$3811,0)+12,I$7)*'Master Data'!$J$37) ->  | AC27: =IFERROR(VLOOKUP($B27,Volumes!$B$4:$H$33,MATCH(AC$9,Volumes!$B$4:$H$4,0),FALSE),0) -> 0 | AD27: =IFERROR(VLOOKUP($B27,Volumes!$B$4:$H$33,MATCH(AD$9,Volumes!$B$4:$H$4,0),FALSE),0) -> 0 | AE27: =IFERROR(VLOOKUP($B27,Volumes!$B$4:$H$33,MATCH(AE$9,Volumes!$B$4:$H$4,0),FALSE),0) -> 0 | AF27: =IFERROR(VLOOKUP($B27,Volumes!$B$4:$H$33,MATCH(AF$9,Volumes!$B$4:$H$4,0),FALSE),0) -> 0 | AG27: =IFERROR(VLOOKUP($B27,Volumes!$B$4:$H$33,MATCH(AG$9,Volumes!$B$4:$H$4,0),FALSE),0) -> 0
B28: =Inputs!$C87 -> 0 | C28: NA | E28: =IF($C28="NA","",OFFSET('Combined Annuity Prices CL'!$B$10,MATCH($B28,'Combined Annuity Prices CL'!$B$10:$B$3811,0)+12,E$7)*'Master Data'!$J$37) ->  | F28: =IF($C28="NA","",OFFSET('Combined Annuity Prices CL'!$B$10,MATCH($B28,'Combined Annuity Prices CL'!$B$10:$B$3811,0)+12,F$7)*'Master Data'!$J$37) ->  | G28: =IF($C28="NA","",OFFSET('Combined Annuity Prices CL'!$B$10,MATCH($B28,'Combined Annuity Prices CL'!$B$10:$B$3811,0)+12,G$7)*'Master Data'!$J$37) ->  | H28: =IF($C28="NA","",OFFSET('Combined Annuity Prices CL'!$B$10,MATCH($B28,'Combined Annuity Prices CL'!$B$10:$B$3811,0)+12,H$7)*'Master Data'!$J$37) ->  | I28: =IF($C28="NA","",OFFSET('Combined Annuity Prices CL'!$B$10,MATCH($B28,'Combined Annuity Prices CL'!$B$10:$B$3811,0)+12,I$7)*'Master Data'!$J$37) ->  | AC28: =IFERROR(VLOOKUP($B28,Volumes!$B$4:$H$33,MATCH(AC$9,Volumes!$B$4:$H$4,0),FALSE),0) -> 0 | AD28: =IFERROR(VLOOKUP($B28,Volumes!$B$4:$H$33,MATCH(AD$9,Volumes!$B$4:$H$4,0),FALSE),0) -> 0 | AE28: =IFERROR(VLOOKUP($B28,Volumes!$B$4:$H$33,MATCH(AE$9,Volumes!$B$4:$H$4,0),FALSE),0) -> 0 | AF28: =IFERROR(VLOOKUP($B28,Volumes!$B$4:$H$33,MATCH(AF$9,Volumes!$B$4:$H$4,0),FALSE),0) -> 0 | AG28: =IFERROR(VLOOKUP($B28,Volumes!$B$4:$H$33,MATCH(AG$9,Volumes!$B$4:$H$4,0),FALSE),0) -> 0
B29: =Inputs!$C88 -> 0 | C29: NA | E29: =IF($C29="NA","",OFFSET('Combined Annuity Prices CL'!$B$10,MATCH($B29,'Combined Annuity Prices CL'!$B$10:$B$3811,0)+12,E$7)*'Master Data'!$J$37) ->  | F29: =IF($C29="NA","",OFFSET('Combined Annuity Prices CL'!$B$10,MATCH($B29,'Combined Annuity Prices CL'!$B$10:$B$3811,0)+12,F$7)*'Master Data'!$J$37) ->  | G29: =IF($C29="NA","",OFFSET('Combined Annuity Prices CL'!$B$10,MATCH($B29,'Combined Annuity Prices CL'!$B$10:$B$3811,0)+12,G$7)*'Master Data'!$J$37) ->  | H29: =IF($C29="NA","",OFFSET('Combined Annuity Prices CL'!$B$10,MATCH($B29,'Combined Annuity Prices CL'!$B$10:$B$3811,0)+12,H$7)*'Master Data'!$J$37) ->  | I29: =IF($C29="NA","",OFFSET('Combined Annuity Prices CL'!$B$10,MATCH($B29,'Combined Annuity Prices CL'!$B$10:$B$3811,0)+12,I$7)*'Master Data'!$J$37) ->  | AC29: =IFERROR(VLOOKUP($B29,Volumes!$B$4:$H$33,MATCH(AC$9,Volumes!$B$4:$H$4,0),FALSE),0) -> 0 | AD29: =IFERROR(VLOOKUP($B29,Volumes!$B$4:$H$33,MATCH(AD$9,Volumes!$B$4:$H$4,0),FALSE),0) -> 0 | AE29: =IFERROR(VLOOKUP($B29,Volumes!$B$4:$H$33,MATCH(AE$9,Volumes!$B$4:$H$4,0),FALSE),0) -> 0 | AF29: =IFERROR(VLOOKUP($B29,Volumes!$B$4:$H$33,MATCH(AF$9,Volumes!$B$4:$H$4,0),FALSE),0) -> 0 | AG29: =IFERROR(VLOOKUP($B29,Volumes!$B$4:$H$33,MATCH(AG$9,Volumes!$B$4:$H$4,0),FALSE),0) -> 0
B30: =Inputs!$C89 -> 250W Sodium Vapour | C30: Offered | D30: 22.688 | E30: =IF($C30="NA","",OFFSET('Combined Annuity Prices CL'!$B$10,MATCH($B30,'Combined Annuity Prices CL'!$B$10:$B$3811,0)+12,E$7)*'Master Data'!$J$37) -> 24.92877545 | F30: =IF($C30="NA","",OFFSET('Combined Annuity Prices CL'!$B$10,MATCH($B30,'Combined Annuity Prices CL'!$B$10:$B$3811,0)+12,F$7)*'Master Data'!$J$37) -> 25.01383182 | G30: =IF($C30="NA","",OFFSET('Combined Annuity Prices CL'!$B$10,MATCH($B30,'Combined Annuity Prices CL'!$B$10:$B$3811,0)+12,G$7)*'Master Data'!$J$37) -> 24.61655636 | H30: =IF($C30="NA","",OFFSET('Combined Annuity Prices CL'!$B$10,MATCH($B30,'Combined Annuity Prices CL'!$B$10:$B$3811,0)+12,H$7)*'Master Data'!$J$37) -> 24.52009 | I30: =IF($C30="NA","",OFFSET('Combined Annuity Prices CL'!$B$10,MATCH($B30,'Combined Annuity Prices CL'!$B$10:$B$3811,0)+12,I$7)*'Master Data'!$J$37) -> 24.34582818 | Q30: 0.0150544875 | R30: 0.01506458021 | S30: 0.01482532107 | T30: 0.0147672242 | U30: 0.01470244564 | AC30: =IFERROR(VLOOKUP($B30,Volumes!$B$4:$H$33,MATCH(AC$9,Volumes!$B$4:$H$4,0),FALSE),0) -> 165 | AD30: =IFERROR(VLOOKUP($B30,Volumes!$B$4:$H$33,MATCH(AD$9,Volumes!$B$4:$H$4,0),FALSE),0) -> 165 | AE30: =IFERROR(VLOOKUP($B30,Volumes!$B$4:$H$33,MATCH(AE$9,Volumes!$B$4:$H$4,0),FALSE),0) -> 165 | AF30: =IFERROR(VLOOKUP($B30,Volumes!$B$4:$H$33,MATCH(AF$9,Volumes!$B$4:$H$4,0),FALSE),0) -> 165 | AG30: =IFERROR(VLOOKUP($B30,Volumes!$B$4:$H$33,MATCH(AG$9,Volumes!$B$4:$H$4,0),FALSE),0) -> 165
B31: =Inputs!$C90 -> 0 | C31: NA | E31: =IF($C31="NA","",OFFSET('Combined Annuity Prices CL'!$B$10,MATCH($B31,'Combined Annuity Prices CL'!$B$10:$B$3811,0)+12,E$7)*'Master Data'!$J$37) ->  | F31: =IF($C31="NA","",OFFSET('Combined Annuity Prices CL'!$B$10,MATCH($B31,'Combined Annuity Prices CL'!$B$10:$B$3811,0)+12,F$7)*'Master Data'!$J$37) ->  | G31: =IF($C31="NA","",OFFSET('Combined Annuity Prices CL'!$B$10,MATCH($B31,'Combined Annuity Prices CL'!$B$10:$B$3811,0)+12,G$7)*'Master Data'!$J$37) ->  | H31: =IF($C31="NA","",OFFSET('Combined Annuity Prices CL'!$B$10,MATCH($B31,'Combined Annuity Prices CL'!$B$10:$B$3811,0)+12,H$7)*'Master Data'!$J$37) ->  | I31: =IF($C31="NA","",OFFSET('Combined Annuity Prices CL'!$B$10,MATCH($B31,'Combined Annuity Prices CL'!$B$10:$B$3811,0)+12,I$7)*'Master Data'!$J$37) ->  | AC31: =IFERROR(VLOOKUP($B31,Volumes!$B$4:$H$33,MATCH(AC$9,Volumes!$B$4:$H$4,0),FALSE),0) -> 0 | AD31: =IFERROR(VLOOKUP($B31,Volumes!$B$4:$H$33,MATCH(AD$9,Volumes!$B$4:$H$4,0),FALSE),0) -> 0 | AE31: =IFERROR(VLOOKUP($B31,Volumes!$B$4:$H$33,MATCH(AE$9,Volumes!$B$4:$H$4,0),FALSE),0) -> 0 | AF31: =IFERROR(VLOOKUP($B31,Volumes!$B$4:$H$33,MATCH(AF$9,Volumes!$B$4:$H$4,0),FALSE),0) -> 0 | AG31: =IFERROR(VLOOKUP($B31,Volumes!$B$4:$H$33,MATCH(AG$9,Volumes!$B$4:$H$4,0),FALSE),0) -> 0
B32: =Inputs!$C91 -> 0 | C32: NA | E32: =IF($C32="NA","",OFFSET('Combined Annuity Prices CL'!$B$10,MATCH($B32,'Combined Annuity Prices CL'!$B$10:$B$3811,0)+12,E$7)*'Master Data'!$J$37) ->  | F32: =IF($C32="NA","",OFFSET('Combined Annuity Prices CL'!$B$10,MATCH($B32,'Combined Annuity Prices CL'!$B$10:$B$3811,0)+12,F$7)*'Master Data'!$J$37) ->  | G32: =IF($C32="NA","",OFFSET('Combined Annuity Prices CL'!$B$10,MATCH($B32,'Combined Annuity Prices CL'!$B$10:$B$3811,0)+12,G$7)*'Master Data'!$J$37) ->  | H32: =IF($C32="NA","",OFFSET('Combined Annuity Prices CL'!$B$10,MATCH($B32,'Combined Annuity Prices CL'!$B$10:$B$3811,0)+12,H$7)*'Master Data'!$J$37) ->  | I32: =IF($C32="NA","",OFFSET('Combined Annuity Prices CL'!$B$10,MATCH($B32,'Combined Annuity Prices CL'!$B$10:$B$3811,0)+12,I$7)*'Master Data'!$J$37) ->  | AC32: =IFERROR(VLOOKUP($B32,Volumes!$B$4:$H$33,MATCH(AC$9,Volumes!$B$4:$H$4,0),FALSE),0) -> 0 | AD32: =IFERROR(VLOOKUP($B32,Volumes!$B$4:$H$33,MATCH(AD$9,Volumes!$B$4:$H$4,0),FALSE),0) -> 0 | AE32: =IFERROR(VLOOKUP($B32,Volumes!$B$4:$H$33,MATCH(AE$9,Volumes!$B$4:$H$4,0),FALSE),0) -> 0 | AF32: =IFERROR(VLOOKUP($B32,Volumes!$B$4:$H$33,MATCH(AF$9,Volumes!$B$4:$H$4,0),FALSE),0) -> 0 | AG32: =IFERROR(VLOOKUP($B32,Volumes!$B$4:$H$33,MATCH(AG$9,Volumes!$B$4:$H$4,0),FALSE),0) -> 0
B33: =Inputs!$C92 -> 0 | C33: NA | E33: =IF($C33="NA","",OFFSET('Combined Annuity Prices CL'!$B$10,MATCH($B33,'Combined Annuity Prices CL'!$B$10:$B$3811,0)+12,E$7)*'Master Data'!$J$37) ->  | F33: =IF($C33="NA","",OFFSET('Combined Annuity Prices CL'!$B$10,MATCH($B33,'Combined Annuity Prices CL'!$B$10:$B$3811,0)+12,F$7)*'Master Data'!$J$37) ->  | G33: =IF($C33="NA","",OFFSET('Combined Annuity Prices CL'!$B$10,MATCH($B33,'Combined Annuity Prices CL'!$B$10:$B$3811,0)+12,G$7)*'Master Data'!$J$37) ->  | H33: =IF($C33="NA","",OFFSET('Combined Annuity Prices CL'!$B$10,MATCH($B33,'Combined Annuity Prices CL'!$B$10:$B$3811,0)+12,H$7)*'Master Data'!$J$37) ->  | I33: =IF($C33="NA","",OFFSET('Combined Annuity Prices CL'!$B$10,MATCH($B33,'Combined Annuity Prices CL'!$B$10:$B$3811,0)+12,I$7)*'Master Data'!$J$37) ->  | AC33: =IFERROR(VLOOKUP($B33,Volumes!$B$4:$H$33,MATCH(AC$9,Volumes!$B$4:$H$4,0),FALSE),0) -> 0 | AD33: =IFERROR(VLOOKUP($B33,Volumes!$B$4:$H$33,MATCH(AD$9,Volumes!$B$4:$H$4,0),FALSE),0) -> 0 | AE33: =IFERROR(VLOOKUP($B33,Volumes!$B$4:$H$33,MATCH(AE$9,Volumes!$B$4:$H$4,0),FALSE),0) -> 0 | AF33: =IFERROR(VLOOKUP($B33,Volumes!$B$4:$H$33,MATCH(AF$9,Volumes!$B$4:$H$4,0),FALSE),0) -> 0 | AG33: =IFERROR(VLOOKUP($B33,Volumes!$B$4:$H$33,MATCH(AG$9,Volumes!$B$4:$H$4,0),FALSE),0) -> 0
B34: =Inputs!$C93 -> 250W Sodium Vapour - Flood Light | C34: Old light no volumes | D34: 22.688 | E34: =IF($C34="NA","",OFFSET('Combined Annuity Prices CL'!$B$10,MATCH($B34,'Combined Annuity Prices CL'!$B$10:$B$3811,0)+12,E$7)*'Master Data'!$J$37) -> 24.92877545 | F34: =IF($C34="NA","",OFFSET('Combined Annuity Prices CL'!$B$10,MATCH($B34,'Combined Annuity Prices CL'!$B$10:$B$3811,0)+12,F$7)*'Master Data'!$J$37) -> 25.01383182 | G34: =IF($C34="NA","",OFFSET('Combined Annuity Prices CL'!$B$10,MATCH($B34,'Combined Annuity Prices CL'!$B$10:$B$3811,0)+12,G$7)*'Master Data'!$J$37) -> 24.61655636 | H34: =IF($C34="NA","",OFFSET('Combined Annuity Prices CL'!$B$10,MATCH($B34,'Combined Annuity Prices CL'!$B$10:$B$3811,0)+12,H$7)*'Master Data'!$J$37) -> 24.52009 | I34: =IF($C34="NA","",OFFSET('Combined Annuity Prices CL'!$B$10,MATCH($B34,'Combined Annuity Prices CL'!$B$10:$B$3811,0)+12,I$7)*'Master Data'!$J$37) -> 24.34582818 | Q34: 0 | R34: 0 | S34: 0 | T34: 0 | U34: 0 | AC34: =IFERROR(VLOOKUP($B34,Volumes!$B$4:$H$33,MATCH(AC$9,Volumes!$B$4:$H$4,0),FALSE),0) -> 0 | AD34: =IFERROR(VLOOKUP($B34,Volumes!$B$4:$H$33,MATCH(AD$9,Volumes!$B$4:$H$4,0),FALSE),0) -> 0 | AE34: =IFERROR(VLOOKUP($B34,Volumes!$B$4:$H$33,MATCH(AE$9,Volumes!$B$4:$H$4,0),FALSE),0) -> 0 | AF34: =IFERROR(VLOOKUP($B34,Volumes!$B$4:$H$33,MATCH(AF$9,Volumes!$B$4:$H$4,0),FALSE),0) -> 0 | AG34: =IFERROR(VLOOKUP($B34,Volumes!$B$4:$H$33,MATCH(AG$9,Volumes!$B$4:$H$4,0),FALSE),0) -> 0
B35: =Inputs!$C94 -> 400W Sodium Vapour | C35: Offered | D35: 22.734 | E35: =IF($C35="NA","",OFFSET('Combined Annuity Prices CL'!$B$10,MATCH($B35,'Combined Annuity Prices CL'!$B$10:$B$3811,0)+12,E$7)*'Master Data'!$J$37) -> 24.9879 | F35: =IF($C35="NA","",OFFSET('Combined Annuity Prices CL'!$B$10,MATCH($B35,'Combined Annuity Prices CL'!$B$10:$B$3811,0)+12,F$7)*'Master Data'!$J$37) -> 25.07191909 | G35: =IF($C35="NA","",OFFSET('Combined Annuity Prices CL'!$B$10,MATCH($B35,'Combined Annuity Prices CL'!$B$10:$B$3811,0)+12,G$7)*'Master Data'!$J$37) -> 24.67464364 | H35: =IF($C35="NA","",OFFSET('Combined Annuity Prices CL'!$B$10,MATCH($B35,'Combined Annuity Prices CL'!$B$10:$B$3811,0)+12,H$7)*'Master Data'!$J$37) -> 24.57817727 | I35: =IF($C35="NA","",OFFSET('Combined Annuity Prices CL'!$B$10,MATCH($B35,'Combined Annuity Prices CL'!$B$10:$B$3811,0)+12,I$7)*'Master Data'!$J$37) -> 24.40391545 | Q35: 0.009511394256 | R35: 0.009517300487 | S35: 0.009366494724 | T35: 0.009329876093 | U35: 0.009289106379 | AC35: =IFERROR(VLOOKUP($B35,Volumes!$B$4:$H$33,MATCH(AC$9,Volumes!$B$4:$H$4,0),FALSE),0) -> 104 | AD35: =IFERROR(VLOOKUP($B35,Volumes!$B$4:$H$33,MATCH(AD$9,Volumes!$B$4:$H$4,0),FALSE),0) -> 104 | AE35: =IFERROR(VLOOKUP($B35,Volumes!$B$4:$H$33,MATCH(AE$9,Volumes!$B$4:$H$4,0),FALSE),0) -> 104 | AF35: =IFERROR(VLOOKUP($B35,Volumes!$B$4:$H$33,MATCH(AF$9,Volumes!$B$4:$H$4,0),FALSE),0) -> 104 | AG35: =IFERROR(VLOOKUP($B35,Volumes!$B$4:$H$33,MATCH(AG$9,Volumes!$B$4:$H$4,0),FALSE),0) -> 104
B36: =Inputs!$C95 -> 0 | C36: NA | E36: =IF($C36="NA","",OFFSET('Combined Annuity Prices CL'!$B$10,MATCH($B36,'Combined Annuity Prices CL'!$B$10:$B$3811,0)+12,E$7)*'Master Data'!$J$37) ->  | F36: =IF($C36="NA","",OFFSET('Combined Annuity Prices CL'!$B$10,MATCH($B36,'Combined Annuity Prices CL'!$B$10:$B$3811,0)+12,F$7)*'Master Data'!$J$37) ->  | G36: =IF($C36="NA","",OFFSET('Combined Annuity Prices CL'!$B$10,MATCH($B36,'Combined Annuity Prices CL'!$B$10:$B$3811,0)+12,G$7)*'Master Data'!$J$37) ->  | H36: =IF($C36="NA","",OFFSET('Combined Annuity Prices CL'!$B$10,MATCH($B36,'Combined Annuity Prices CL'!$B$10:$B$3811,0)+12,H$7)*'Master Data'!$J$37) ->  | I36: =IF($C36="NA","",OFFSET('Combined Annuity Prices CL'!$B$10,MATCH($B36,'Combined Annuity Prices CL'!$B$10:$B$3811,0)+12,I$7)*'Master Data'!$J$37) ->  | AC36: =IFERROR(VLOOKUP($B36,Volumes!$B$4:$H$33,MATCH(AC$9,Volumes!$B$4:$H$4,0),FALSE),0) -> 0 | AD36: =IFERROR(VLOOKUP($B36,Volumes!$B$4:$H$33,MATCH(AD$9,Volumes!$B$4:$H$4,0),FALSE),0) -> 0 | AE36: =IFERROR(VLOOKUP($B36,Volumes!$B$4:$H$33,MATCH(AE$9,Volumes!$B$4:$H$4,0),FALSE),0) -> 0 | AF36: =IFERROR(VLOOKUP($B36,Volumes!$B$4:$H$33,MATCH(AF$9,Volumes!$B$4:$H$4,0),FALSE),0) -> 0 | AG36: =IFERROR(VLOOKUP($B36,Volumes!$B$4:$H$33,MATCH(AG$9,Volumes!$B$4:$H$4,0),FALSE),0) -> 0
B37: =Inputs!$C96 -> 400W Sodium Vapour - Flood Light | C37: Old light no volumes | D37: 22.734 | E37: =IF($C37="NA","",OFFSET('Combined Annuity Prices CL'!$B$10,MATCH($B37,'Combined Annuity Prices CL'!$B$10:$B$3811,0)+12,E$7)*'Master Data'!$J$37) -> 24.9879 | F37: =IF($C37="NA","",OFFSET('Combined Annuity Prices CL'!$B$10,MATCH($B37,'Combined Annuity Prices CL'!$B$10:$B$3811,0)+12,F$7)*'Master Data'!$J$37) -> 25.07191909 | G37: =IF($C37="NA","",OFFSET('Combined Annuity Prices CL'!$B$10,MATCH($B37,'Combined Annuity Prices CL'!$B$10:$B$3811,0)+12,G$7)*'Master Data'!$J$37) -> 24.67464364 | H37: =IF($C37="NA","",OFFSET('Combined Annuity Prices CL'!$B$10,MATCH($B37,'Combined Annuity Prices CL'!$B$10:$B$3811,0)+12,H$7)*'Master Data'!$J$37) -> 24.57817727 | I37: =IF($C37="NA","",OFFSET('Combined Annuity Prices CL'!$B$10,MATCH($B37,'Combined Annuity Prices CL'!$B$10:$B$3811,0)+12,I$7)*'Master Data'!$J$37) -> 24.40391545 | Q37: 0 | R37: 0 | S37: 0 | T37: 0 | U37: 0 | AC37: =IFERROR(VLOOKUP($B37,Volumes!$B$4:$H$33,MATCH(AC$9,Volumes!$B$4:$H$4,0),FALSE),0) -> 0 | AD37: =IFERROR(VLOOKUP($B37,Volumes!$B$4:$H$33,MATCH(AD$9,Volumes!$B$4:$H$4,0),FALSE),0) -> 0 | AE37: =IFERROR(VLOOKUP($B37,Volumes!$B$4:$H$33,MATCH(AE$9,Volumes!$B$4:$H$4,0),FALSE),0) -> 0 | AF37: =IFERROR(VLOOKUP($B37,Volumes!$B$4:$H$33,MATCH(AF$9,Volumes!$B$4:$H$4,0),FALSE),0) -> 0 | AG37: =IFERROR(VLOOKUP($B37,Volumes!$B$4:$H$33,MATCH(AG$9,Volumes!$B$4:$H$4,0),FALSE),0) -> 0
B38: =Inputs!$C97 -> 70W Sodium Vapour | C38: Offered | D38: 18.434 | E38: =IF($C38="NA","",OFFSET('Combined Annuity Prices CL'!$B$10,MATCH($B38,'Combined Annuity Prices CL'!$B$10:$B$3811,0)+12,E$7)*'Master Data'!$J$37) -> 20.58882636 | F38: =IF($C38="NA","",OFFSET('Combined Annuity Prices CL'!$B$10,MATCH($B38,'Combined Annuity Prices CL'!$B$10:$B$3811,0)+12,F$7)*'Master Data'!$J$37) -> 20.66039818 | G38: =IF($C38="NA","",OFFSET('Combined Annuity Prices CL'!$B$10,MATCH($B38,'Combined Annuity Prices CL'!$B$10:$B$3811,0)+12,G$7)*'Master Data'!$J$37) -> 20.26208545 | H38: =IF($C38="NA","",OFFSET('Combined Annuity Prices CL'!$B$10,MATCH($B38,'Combined Annuity Prices CL'!$B$10:$B$3811,0)+12,H$7)*'Master Data'!$J$37) -> 20.16458182 | I38: =IF($C38="NA","",OFFSET('Combined Annuity Prices CL'!$B$10,MATCH($B38,'Combined Annuity Prices CL'!$B$10:$B$3811,0)+12,I$7)*'Master Data'!$J$37) -> 20.00173 | Q38: 0.005500922628 | R38: 0.005504963096 | S38: 0.005398832669 | T38: 0.005372852825 | U38: 0.005344062221 | AC38: =IFERROR(VLOOKUP($B38,Volumes!$B$4:$H$33,MATCH(AC$9,Volumes!$B$4:$H$4,0),FALSE),0) -> 73 | AD38: =IFERROR(VLOOKUP($B38,Volumes!$B$4:$H$33,MATCH(AD$9,Volumes!$B$4:$H$4,0),FALSE),0) -> 73 | AE38: =IFERROR(VLOOKUP($B38,Volumes!$B$4:$H$33,MATCH(AE$9,Volumes!$B$4:$H$4,0),FALSE),0) -> 73 | AF38: =IFERROR(VLOOKUP($B38,Volumes!$B$4:$H$33,MATCH(AF$9,Volumes!$B$4:$H$4,0),FALSE),0) -> 73 | AG38: =IFERROR(VLOOKUP($B38,Volumes!$B$4:$H$33,MATCH(AG$9,Volumes!$B$4:$H$4,0),FALSE),0) -> 73
B39: =Inputs!$C98 -> 0 | C39: NA | E39: =IF($C39="NA","",OFFSET('Combined Annuity Prices CL'!$B$10,MATCH($B39,'Combined Annuity Prices CL'!$B$10:$B$3811,0)+12,E$7)*'Master Data'!$J$37) ->  | F39: =IF($C39="NA","",OFFSET('Combined Annuity Prices CL'!$B$10,MATCH($B39,'Combined Annuity Prices CL'!$B$10:$B$3811,0)+12,F$7)*'Master Data'!$J$37) ->  | G39: =IF($C39="NA","",OFFSET('Combined Annuity Prices CL'!$B$10,MATCH($B39,'Combined Annuity Prices CL'!$B$10:$B$3811,0)+12,G$7)*'Master Data'!$J$37) ->  | H39: =IF($C39="NA","",OFFSET('Combined Annuity Prices CL'!$B$10,MATCH($B39,'Combined Annuity Prices CL'!$B$10:$B$3811,0)+12,H$7)*'Master Data'!$J$37) ->  | I39: =IF($C39="NA","",OFFSET('Combined Annuity Prices CL'!$B$10,MATCH($B39,'Combined Annuity Prices CL'!$B$10:$B$3811,0)+12,I$7)*'Master Data'!$J$37) ->  | AC39: =IFERROR(VLOOKUP($B39,Volumes!$B$4:$H$33,MATCH(AC$9,Volumes!$B$4:$H$4,0),FALSE),0) -> 0 | AD39: =IFERROR(VLOOKUP($B39,Volumes!$B$4:$H$33,MATCH(AD$9,Volumes!$B$4:$H$4,0),FALSE),0) -> 0 | AE39: =IFERROR(VLOOKUP($B39,Volumes!$B$4:$H$33,MATCH(AE$9,Volumes!$B$4:$H$4,0),FALSE),0) -> 0 | AF39: =IFERROR(VLOOKUP($B39,Volumes!$B$4:$H$33,MATCH(AF$9,Volumes!$B$4:$H$4,0),FALSE),0) -> 0 | AG39: =IFERROR(VLOOKUP($B39,Volumes!$B$4:$H$33,MATCH(AG$9,Volumes!$B$4:$H$4,0),FALSE),0) -> 0
B40: =Inputs!$C99 -> 100W Incandescent | C40: Obsolete, no new Connections | D40: 21.61 | E40: =IF($C40="NA","",OFFSET('Combined Annuity Prices CL'!$B$10,MATCH($B40,'Combined Annuity Prices CL'!$B$10:$B$3811,0)+12,E$7)*'Master Data'!$J$37) -> 23.50148818 | F40: =IF($C40="NA","",OFFSET('Combined Annuity Prices CL'!$B$10,MATCH($B40,'Combined Annuity Prices CL'!$B$10:$B$3811,0)+12,F$7)*'Master Data'!$J$37) -> 23.58135818 | G40: =IF($C40="NA","",OFFSET('Combined Annuity Prices CL'!$B$10,MATCH($B40,'Combined Annuity Prices CL'!$B$10:$B$3811,0)+12,G$7)*'Master Data'!$J$37) -> 23.18408273 | H40: =IF($C40="NA","",OFFSET('Combined Annuity Prices CL'!$B$10,MATCH($B40,'Combined Annuity Prices CL'!$B$10:$B$3811,0)+12,H$7)*'Master Data'!$J$37) -> 23.08761636 | I40: =IF($C40="NA","",OFFSET('Combined Annuity Prices CL'!$B$10,MATCH($B40,'Combined Annuity Prices CL'!$B$10:$B$3811,0)+12,I$7)*'Master Data'!$J$37) -> 22.91750364 | Q40: 0 | R40: 0 | S40: 0 | T40: 0 | U40: 0 | AC40: =IFERROR(VLOOKUP($B40,Volumes!$B$4:$H$33,MATCH(AC$9,Volumes!$B$4:$H$4,0),FALSE),0) -> 0 | AD40: =IFERROR(VLOOKUP($B40,Volumes!$B$4:$H$33,MATCH(AD$9,Volumes!$B$4:$H$4,0),FALSE),0) -> 0 | AE40: =IFERROR(VLOOKUP($B40,Volumes!$B$4:$H$33,MATCH(AE$9,Volumes!$B$4:$H$4,0),FALSE),0) -> 0 | AF40: =IFERROR(VLOOKUP($B40,Volumes!$B$4:$H$33,MATCH(AF$9,Volumes!$B$4:$H$4,0),FALSE),0) -> 0 | AG40: =IFERROR(VLOOKUP($B40,Volumes!$B$4:$H$33,MATCH(AG$9,Volumes!$B$4:$H$4,0),FALSE),0) -> 0
B41: =Inputs!$C100 -> 60W Incandescent | C41: Obsolete, no new Connections | D41: 18.023 | E41: =IF($C41="NA","",OFFSET('Combined Annuity Prices CL'!$B$10,MATCH($B41,'Combined Annuity Prices CL'!$B$10:$B$3811,0)+12,E$7)*'Master Data'!$J$37) -> 20.02040091 | F41: =IF($C41="NA","",OFFSET('Combined Annuity Prices CL'!$B$10,MATCH($B41,'Combined Annuity Prices CL'!$B$10:$B$3811,0)+12,F$7)*'Master Data'!$J$37) -> 20.09093545 | G41: =IF($C41="NA","",OFFSET('Combined Annuity Prices CL'!$B$10,MATCH($B41,'Combined Annuity Prices CL'!$B$10:$B$3811,0)+12,G$7)*'Master Data'!$J$37) -> 19.69262273 | H41: =IF($C41="NA","",OFFSET('Combined Annuity Prices CL'!$B$10,MATCH($B41,'Combined Annuity Prices CL'!$B$10:$B$3811,0)+12,H$7)*'Master Data'!$J$37) -> 19.59615636 | I41: =IF($C41="NA","",OFFSET('Combined Annuity Prices CL'!$B$10,MATCH($B41,'Combined Annuity Prices CL'!$B$10:$B$3811,0)+12,I$7)*'Master Data'!$J$37) -> 19.43434182 | Q41: 0 | R41: 0 | S41: 0 | T41: 0 | U41: 0 | AC41: =IFERROR(VLOOKUP($B41,Volumes!$B$4:$H$33,MATCH(AC$9,Volumes!$B$4:$H$4,0),FALSE),0) -> 0 | AD41: =IFERROR(VLOOKUP($B41,Volumes!$B$4:$H$33,MATCH(AD$9,Volumes!$B$4:$H$4,0),FALSE),0) -> 0 | AE41: =IFERROR(VLOOKUP($B41,Volumes!$B$4:$H$33,MATCH(AE$9,Volumes!$B$4:$H$4,0),FALSE),0) -> 0 | AF41: =IFERROR(VLOOKUP($B41,Volumes!$B$4:$H$33,MATCH(AF$9,Volumes!$B$4:$H$4,0),FALSE),0) -> 0 | AG41: =IFERROR(VLOOKUP($B41,Volumes!$B$4:$H$33,MATCH(AG$9,Volumes!$B$4:$H$4,0),FALSE),0) -> 0
B42: =Inputs!$C101 -> 18W LED | C42: Offered | D42: 12.349 | E42: =IF($C42="NA","",OFFSET('Combined Annuity Prices CL'!$B$10,MATCH($B42,'Combined Annuity Prices CL'!$B$10:$B$3811,0)+12,E$7)*'Master Data'!$J$37) -> 14.65977545 | F42: =IF($C42="NA","",OFFSET('Combined Annuity Prices CL'!$B$10,MATCH($B42,'Combined Annuity Prices CL'!$B$10:$B$3811,0)+12,F$7)*'Master Data'!$J$37) -> 14.71475091 | G42: =IF($C42="NA","",OFFSET('Combined Annuity Prices CL'!$B$10,MATCH($B42,'Combined Annuity Prices CL'!$B$10:$B$3811,0)+12,G$7)*'Master Data'!$J$37) -> 14.31540091 | H42: =IF($C42="NA","",OFFSET('Combined Annuity Prices CL'!$B$10,MATCH($B42,'Combined Annuity Prices CL'!$B$10:$B$3811,0)+12,H$7)*'Master Data'!$J$37) -> 14.21686 | I42: =IF($C42="NA","",OFFSET('Combined Annuity Prices CL'!$B$10,MATCH($B42,'Combined Annuity Prices CL'!$B$10:$B$3811,0)+12,I$7)*'Master Data'!$J$37) -> 14.06749273 | Q42: =IF($C42="NA","",E42*AC42*Q$6/100/10^6) -> 0.2672007953 | R42: =IF($C42="NA","",F42*AD42*R$6/100/10^6) -> 0.2674700273 | S42: =IF($C42="NA","",G42*AE42*S$6/100/10^6) -> 0.2602110423 | T42: =IF($C42="NA","",H42*AF42*T$6/100/10^6) -> 0.2584198642 | U42: =IF($C42="NA","",I42*AG42*U$6/100/10^6) -> 0.2564053764 | AC42: =IFERROR(VLOOKUP($B42,Volumes!$B$4:$H$33,MATCH(AC$9,Volumes!$B$4:$H$4,0),FALSE),0) -> 4980 | AD42: =IFERROR(VLOOKUP($B42,Volumes!$B$4:$H$33,MATCH(AD$9,Volumes!$B$4:$H$4,0),FALSE),0) -> 4980 | AE42: =IFERROR(VLOOKUP($B42,Volumes!$B$4:$H$33,MATCH(AE$9,Volumes!$B$4:$H$4,0),FALSE),0) -> 4980 | AF42: =IFERROR(VLOOKUP($B42,Volumes!$B$4:$H$33,MATCH(AF$9,Volumes!$B$4:$H$4,0),FALSE),0) -> 4980 | AG42: =IFERROR(VLOOKUP($B42,Volumes!$B$4:$H$33,MATCH(AG$9,Volumes!$B$4:$H$4,0),FALSE),0) -> 4980
B43: =Inputs!$C102 -> 18W LED Decorative - Bottom Pole Entry | C43: Not Offered | D43: 12.349 | E43: =IF($C43="NA","",OFFSET('Combined Annuity Prices CL'!$B$10,MATCH($B43,'Combined Annuity Prices CL'!$B$10:$B$3811,0)+12,E$7)*'Master Data'!$J$37) -> 14.65977545 | F43: =IF($C43="NA","",OFFSET('Combined Annuity Prices CL'!$B$10,MATCH($B43,'Combined Annuity Prices CL'!$B$10:$B$3811,0)+12,F$7)*'Master Data'!$J$37) -> 14.71475091 | G43: =IF($C43="NA","",OFFSET('Combined Annuity Prices CL'!$B$10,MATCH($B43,'Combined Annuity Prices CL'!$B$10:$B$3811,0)+12,G$7)*'Master Data'!$J$37) -> 14.31540091 | H43: =IF($C43="NA","",OFFSET('Combined Annuity Prices CL'!$B$10,MATCH($B43,'Combined Annuity Prices CL'!$B$10:$B$3811,0)+12,H$7)*'Master Data'!$J$37) -> 14.21686 | I43: =IF($C43="NA","",OFFSET('Combined Annuity Prices CL'!$B$10,MATCH($B43,'Combined Annuity Prices CL'!$B$10:$B$3811,0)+12,I$7)*'Master Data'!$J$37) -> 14.06749273 | Q43: 0 | R43: 0 | S43: 0 | T43: 0 | U43: 0 | AC43: =IFERROR(VLOOKUP($B43,Volumes!$B$4:$H$33,MATCH(AC$9,Volumes!$B$4:$H$4,0),FALSE),0) -> 0 | AD43: =IFERROR(VLOOKUP($B43,Volumes!$B$4:$H$33,MATCH(AD$9,Volumes!$B$4:$H$4,0),FALSE),0) -> 0 | AE43: =IFERROR(VLOOKUP($B43,Volumes!$B$4:$H$33,MATCH(AE$9,Volumes!$B$4:$H$4,0),FALSE),0) -> 0 | AF43: =IFERROR(VLOOKUP($B43,Volumes!$B$4:$H$33,MATCH(AF$9,Volumes!$B$4:$H$4,0),FALSE),0) -> 0 | AG43: =IFERROR(VLOOKUP($B43,Volumes!$B$4:$H$33,MATCH(AG$9,Volumes!$B$4:$H$4,0),FALSE),0) -> 0
B44: =Inputs!$C103 -> 18W LED Decorative - Side Entry | C44: Not Offered | D44: 12.349 | E44: =IF($C44="NA","",OFFSET('Combined Annuity Prices CL'!$B$10,MATCH($B44,'Combined Annuity Prices CL'!$B$10:$B$3811,0)+12,E$7)*'Master Data'!$J$37) -> 14.65977545 | F44: =IF($C44="NA","",OFFSET('Combined Annuity Prices CL'!$B$10,MATCH($B44,'Combined Annuity Prices CL'!$B$10:$B$3811,0)+12,F$7)*'Master Data'!$J$37) -> 14.71475091 | G44: =IF($C44="NA","",OFFSET('Combined Annuity Prices CL'!$B$10,MATCH($B44,'Combined Annuity Prices CL'!$B$10:$B$3811,0)+12,G$7)*'Master Data'!$J$37) -> 14.31540091 | H44: =IF($C44="NA","",OFFSET('Combined Annuity Prices CL'!$B$10,MATCH($B44,'Combined Annuity Prices CL'!$B$10:$B$3811,0)+12,H$7)*'Master Data'!$J$37) -> 14.21686 | I44: =IF($C44="NA","",OFFSET('Combined Annuity Prices CL'!$B$10,MATCH($B44,'Combined Annuity Prices CL'!$B$10:$B$3811,0)+12,I$7)*'Master Data'!$J$37) -> 14.06749273 | Q44: 0 | R44: 0 | S44: 0 | T44: 0 | U44: 0 | AC44: =IFERROR(VLOOKUP($B44,Volumes!$B$4:$H$33,MATCH(AC$9,Volumes!$B$4:$H$4,0),FALSE),0) -> 0 | AD44: =IFERROR(VLOOKUP($B44,Volumes!$B$4:$H$33,MATCH(AD$9,Volumes!$B$4:$H$4,0),FALSE),0) -> 0 | AE44: =IFERROR(VLOOKUP($B44,Volumes!$B$4:$H$33,MATCH(AE$9,Volumes!$B$4:$H$4,0),FALSE),0) -> 0 | AF44: =IFERROR(VLOOKUP($B44,Volumes!$B$4:$H$33,MATCH(AF$9,Volumes!$B$4:$H$4,0),FALSE),0) -> 0 | AG44: =IFERROR(VLOOKUP($B44,Volumes!$B$4:$H$33,MATCH(AG$9,Volumes!$B$4:$H$4,0),FALSE),0) -> 0
B45: =Inputs!$C104 -> 18W LED Decorative - Top Entry | C45: Not Offered | D45: 12.349 | E45: =IF($C45="NA","",OFFSET('Combined Annuity Prices CL'!$B$10,MATCH($B45,'Combined Annuity Prices CL'!$B$10:$B$3811,0)+12,E$7)*'Master Data'!$J$37) -> 14.65977545 | F45: =IF($C45="NA","",OFFSET('Combined Annuity Prices CL'!$B$10,MATCH($B45,'Combined Annuity Prices CL'!$B$10:$B$3811,0)+12,F$7)*'Master Data'!$J$37) -> 14.71475091 | G45: =IF($C45="NA","",OFFSET('Combined Annuity Prices CL'!$B$10,MATCH($B45,'Combined Annuity Prices CL'!$B$10:$B$3811,0)+12,G$7)*'Master Data'!$J$37) -> 14.31540091 | H45: =IF($C45="NA","",OFFSET('Combined Annuity Prices CL'!$B$10,MATCH($B45,'Combined Annuity Prices CL'!$B$10:$B$3811,0)+12,H$7)*'Master Data'!$J$37) -> 14.21686 | I45: =IF($C45="NA","",OFFSET('Combined Annuity Prices CL'!$B$10,MATCH($B45,'Combined Annuity Prices CL'!$B$10:$B$3811,0)+12,I$7)*'Master Data'!$J$37) -> 14.06749273 | Q45: 0 | R45: 0 | S45: 0 | T45: 0 | U45: 0 | AC45: =IFERROR(VLOOKUP($B45,Volumes!$B$4:$H$33,MATCH(AC$9,Volumes!$B$4:$H$4,0),FALSE),0) -> 0 | AD45: =IFERROR(VLOOKUP($B45,Volumes!$B$4:$H$33,MATCH(AD$9,Volumes!$B$4:$H$4,0),FALSE),0) -> 0 | AE45: =IFERROR(VLOOKUP($B45,Volumes!$B$4:$H$33,MATCH(AE$9,Volumes!$B$4:$H$4,0),FALSE),0) -> 0 | AF45: =IFERROR(VLOOKUP($B45,Volumes!$B$4:$H$33,MATCH(AF$9,Volumes!$B$4:$H$4,0),FALSE),0) -> 0 | AG45: =IFERROR(VLOOKUP($B45,Volumes!$B$4:$H$33,MATCH(AG$9,Volumes!$B$4:$H$4,0),FALSE),0) -> 0
B46: =Inputs!$C105 -> 25W LED | C46: Offered | D46: 12.349 | E46: =IF($C46="NA","",OFFSET('Combined Annuity Prices CL'!$B$10,MATCH($B46,'Combined Annuity Prices CL'!$B$10:$B$3811,0)+12,E$7)*'Master Data'!$J$37) -> 14.65977545 | F46: =IF($C46="NA","",OFFSET('Combined Annuity Prices CL'!$B$10,MATCH($B46,'Combined Annuity Prices CL'!$B$10:$B$3811,0)+12,F$7)*'Master Data'!$J$37) -> 14.71475091 | G46: =IF($C46="NA","",OFFSET('Combined Annuity Prices CL'!$B$10,MATCH($B46,'Combined Annuity Prices CL'!$B$10:$B$3811,0)+12,G$7)*'Master Data'!$J$37) -> 14.31540091 | H46: =IF($C46="NA","",OFFSET('Combined Annuity Prices CL'!$B$10,MATCH($B46,'Combined Annuity Prices CL'!$B$10:$B$3811,0)+12,H$7)*'Master Data'!$J$37) -> 14.21686 | I46: =IF($C46="NA","",OFFSET('Combined Annuity Prices CL'!$B$10,MATCH($B46,'Combined Annuity Prices CL'!$B$10:$B$3811,0)+12,I$7)*'Master Data'!$J$37) -> 14.06749273 | Q46: 0.001555988567 | R46: 0.001557556384 | S46: 0.001515285186 | T46: 0.001504854631 | U46: 0.001493123678 | AC46: =IFERROR(VLOOKUP($B46,Volumes!$B$4:$H$33,MATCH(AC$9,Volumes!$B$4:$H$4,0),FALSE),0) -> 29 | AD46: =IFERROR(VLOOKUP($B46,Volumes!$B$4:$H$33,MATCH(AD$9,Volumes!$B$4:$H$4,0),FALSE),0) -> 29 | AE46: =IFERROR(VLOOKUP($B46,Volumes!$B$4:$H$33,MATCH(AE$9,Volumes!$B$4:$H$4,0),FALSE),0) -> 29 | AF46: =IFERROR(VLOOKUP($B46,Volumes!$B$4:$H$33,MATCH(AF$9,Volumes!$B$4:$H$4,0),FALSE),0) -> 29 | AG46: =IFERROR(VLOOKUP($B46,Volumes!$B$4:$H$33,MATCH(AG$9,Volumes!$B$4:$H$4,0),FALSE),0) -> 29
B47: =Inputs!$C106 -> 25W LED Decorative - Bottom Pole Entry | C47: Not Offered | D47: 12.349 | E47: =IF($C47="NA","",OFFSET('Combined Annuity Prices CL'!$B$10,MATCH($B47,'Combined Annuity Prices CL'!$B$10:$B$3811,0)+12,E$7)*'Master Data'!$J$37) -> 14.65977545 | F47: =IF($C47="NA","",OFFSET('Combined Annuity Prices CL'!$B$10,MATCH($B47,'Combined Annuity Prices CL'!$B$10:$B$3811,0)+12,F$7)*'Master Data'!$J$37) -> 14.71475091 | G47: =IF($C47="NA","",OFFSET('Combined Annuity Prices CL'!$B$10,MATCH($B47,'Combined Annuity Prices CL'!$B$10:$B$3811,0)+12,G$7)*'Master Data'!$J$37) -> 14.31540091 | H47: =IF($C47="NA","",OFFSET('Combined Annuity Prices CL'!$B$10,MATCH($B47,'Combined Annuity Prices CL'!$B$10:$B$3811,0)+12,H$7)*'Master Data'!$J$37) -> 14.21686 | I47: =IF($C47="NA","",OFFSET('Combined Annuity Prices CL'!$B$10,MATCH($B47,'Combined Annuity Prices CL'!$B$10:$B$3811,0)+12,I$7)*'Master Data'!$J$37) -> 14.06749273 | Q47: 0 | R47: 0 | S47: 0 | T47: 0 | U47: 0 | AC47: =IFERROR(VLOOKUP($B47,Volumes!$B$4:$H$33,MATCH(AC$9,Volumes!$B$4:$H$4,0),FALSE),0) -> 0 | AD47: =IFERROR(VLOOKUP($B47,Volumes!$B$4:$H$33,MATCH(AD$9,Volumes!$B$4:$H$4,0),FALSE),0) -> 0 | AE47: =IFERROR(VLOOKUP($B47,Volumes!$B$4:$H$33,MATCH(AE$9,Volumes!$B$4:$H$4,0),FALSE),0) -> 0 | AF47: =IFERROR(VLOOKUP($B47,Volumes!$B$4:$H$33,MATCH(AF$9,Volumes!$B$4:$H$4,0),FALSE),0) -> 0 | AG47: =IFERROR(VLOOKUP($B47,Volumes!$B$4:$H$33,MATCH(AG$9,Volumes!$B$4:$H$4,0),FALSE),0) -> 0
B48: =Inputs!$C107 -> 25W LED Decorative - Side Entry | C48: Not Offered | D48: 12.349 | E48: =IF($C48="NA","",OFFSET('Combined Annuity Prices CL'!$B$10,MATCH($B48,'Combined Annuity Prices CL'!$B$10:$B$3811,0)+12,E$7)*'Master Data'!$J$37) -> 14.65977545 | F48: =IF($C48="NA","",OFFSET('Combined Annuity Prices CL'!$B$10,MATCH($B48,'Combined Annuity Prices CL'!$B$10:$B$3811,0)+12,F$7)*'Master Data'!$J$37) -> 14.71475091 | G48: =IF($C48="NA","",OFFSET('Combined Annuity Prices CL'!$B$10,MATCH($B48,'Combined Annuity Prices CL'!$B$10:$B$3811,0)+12,G$7)*'Master Data'!$J$37) -> 14.31540091 | H48: =IF($C48="NA","",OFFSET('Combined Annuity Prices CL'!$B$10,MATCH($B48,'Combined Annuity Prices CL'!$B$10:$B$3811,0)+12,H$7)*'Master Data'!$J$37) -> 14.21686 | I48: =IF($C48="NA","",OFFSET('Combined Annuity Prices CL'!$B$10,MATCH($B48,'Combined Annuity Prices CL'!$B$10:$B$3811,0)+12,I$7)*'Master Data'!$J$37) -> 14.06749273 | Q48: 0 | R48: 0 | S48: 0 | T48: 0 | U48: 0 | AC48: =IFERROR(VLOOKUP($B48,Volumes!$B$4:$H$33,MATCH(AC$9,Volumes!$B$4:$H$4,0),FALSE),0) -> 0 | AD48: =IFERROR(VLOOKUP($B48,Volumes!$B$4:$H$33,MATCH(AD$9,Volumes!$B$4:$H$4,0),FALSE),0) -> 0 | AE48: =IFERROR(VLOOKUP($B48,Volumes!$B$4:$H$33,MATCH(AE$9,Volumes!$B$4:$H$4,0),FALSE),0) -> 0 | AF48: =IFERROR(VLOOKUP($B48,Volumes!$B$4:$H$33,MATCH(AF$9,Volumes!$B$4:$H$4,0),FALSE),0) -> 0 | AG48: =IFERROR(VLOOKUP($B48,Volumes!$B$4:$H$33,MATCH(AG$9,Volumes!$B$4:$H$4,0),FALSE),0) -> 0
B49: =Inputs!$C108 -> 25W LED Decorative - Top Entry | C49: Not Offered | D49: 12.349 | E49: =IF($C49="NA","",OFFSET('Combined Annuity Prices CL'!$B$10,MATCH($B49,'Combined Annuity Prices CL'!$B$10:$B$3811,0)+12,E$7)*'Master Data'!$J$37) -> 14.65977545 | F49: =IF($C49="NA","",OFFSET('Combined Annuity Prices CL'!$B$10,MATCH($B49,'Combined Annuity Prices CL'!$B$10:$B$3811,0)+12,F$7)*'Master Data'!$J$37) -> 14.71475091 | G49: =IF($C49="NA","",OFFSET('Combined Annuity Prices CL'!$B$10,MATCH($B49,'Combined Annuity Prices CL'!$B$10:$B$3811,0)+12,G$7)*'Master Data'!$J$37) -> 14.31540091 | H49: =IF($C49="NA","",OFFSET('Combined Annuity Prices CL'!$B$10,MATCH($B49,'Combined Annuity Prices CL'!$B$10:$B$3811,0)+12,H$7)*'Master Data'!$J$37) -> 14.21686 | I49: =IF($C49="NA","",OFFSET('Combined Annuity Prices CL'!$B$10,MATCH($B49,'Combined Annuity Prices CL'!$B$10:$B$3811,0)+12,I$7)*'Master Data'!$J$37) -> 14.06749273 | Q49: 0 | R49: 0 | S49: 0 | T49: 0 | U49: 0 | AC49: =IFERROR(VLOOKUP($B49,Volumes!$B$4:$H$33,MATCH(AC$9,Volumes!$B$4:$H$4,0),FALSE),0) -> 0 | AD49: =IFERROR(VLOOKUP($B49,Volumes!$B$4:$H$33,MATCH(AD$9,Volumes!$B$4:$H$4,0),FALSE),0) -> 0 | AE49: =IFERROR(VLOOKUP($B49,Volumes!$B$4:$H$33,MATCH(AE$9,Volumes!$B$4:$H$4,0),FALSE),0) -> 0 | AF49: =IFERROR(VLOOKUP($B49,Volumes!$B$4:$H$33,MATCH(AF$9,Volumes!$B$4:$H$4,0),FALSE),0) -> 0 | AG49: =IFERROR(VLOOKUP($B49,Volumes!$B$4:$H$33,MATCH(AG$9,Volumes!$B$4:$H$4,0),FALSE),0) -> 0
B50: =Inputs!$C109 -> 30W LED | C50: Offered | D50: 12.349 | E50: =IF($C50="NA","",OFFSET('Combined Annuity Prices CL'!$B$10,MATCH($B50,'Combined Annuity Prices CL'!$B$10:$B$3811,0)+12,E$7)*'Master Data'!$J$37) -> 14.65977545 | F50: =IF($C50="NA","",OFFSET('Combined Annuity Prices CL'!$B$10,MATCH($B50,'Combined Annuity Prices CL'!$B$10:$B$3811,0)+12,F$7)*'Master Data'!$J$37) -> 14.71475091 | G50: =IF($C50="NA","",OFFSET('Combined Annuity Prices CL'!$B$10,MATCH($B50,'Combined Annuity Prices CL'!$B$10:$B$3811,0)+12,G$7)*'Master Data'!$J$37) -> 14.31540091 | H50: =IF($C50="NA","",OFFSET('Combined Annuity Prices CL'!$B$10,MATCH($B50,'Combined Annuity Prices CL'!$B$10:$B$3811,0)+12,H$7)*'Master Data'!$J$37) -> 14.21686 | I50: =IF($C50="NA","",OFFSET('Combined Annuity Prices CL'!$B$10,MATCH($B50,'Combined Annuity Prices CL'!$B$10:$B$3811,0)+12,I$7)*'Master Data'!$J$37) -> 14.06749273 | Q50: 0.001716952901 | R50: 0.001718682906 | S50: 0.001672038826 | T50: 0.001660529248 | U50: 0.001647584748 | AC50: =IFERROR(VLOOKUP($B50,Volumes!$B$4:$H$33,MATCH(AC$9,Volumes!$B$4:$H$4,0),FALSE),0) -> 32 | AD50: =IFERROR(VLOOKUP($B50,Volumes!$B$4:$H$33,MATCH(AD$9,Volumes!$B$4:$H$4,0),FALSE),0) -> 32 | AE50: =IFERROR(VLOOKUP($B50,Volumes!$B$4:$H$33,MATCH(AE$9,Volumes!$B$4:$H$4,0),FALSE),0) -> 32 | AF50: =IFERROR(VLOOKUP($B50,Volumes!$B$4:$H$33,MATCH(AF$9,Volumes!$B$4:$H$4,0),FALSE),0) -> 32 | AG50: =IFERROR(VLOOKUP($B50,Volumes!$B$4:$H$33,MATCH(AG$9,Volumes!$B$4:$H$4,0),FALSE),0) -> 32
B51: =Inputs!$C110 -> 88 LED Light | C51: Not Offered | D51: 12.349 | E51: =IF($C51="NA","",OFFSET('Combined Annuity Prices CL'!$B$10,MATCH($B51,'Combined Annuity Prices CL'!$B$10:$B$3811,0)+12,E$7)*'Master Data'!$J$37) -> 14.65977545 | F51: =IF($C51="NA","",OFFSET('Combined Annuity Prices CL'!$B$10,MATCH($B51,'Combined Annuity Prices CL'!$B$10:$B$3811,0)+12,F$7)*'Master Data'!$J$37) -> 14.71475091 | G51: =IF($C51="NA","",OFFSET('Combined Annuity Prices CL'!$B$10,MATCH($B51,'Combined Annuity Prices CL'!$B$10:$B$3811,0)+12,G$7)*'Master Data'!$J$37) -> 14.31540091 | H51: =IF($C51="NA","",OFFSET('Combined Annuity Prices CL'!$B$10,MATCH($B51,'Combined Annuity Prices CL'!$B$10:$B$3811,0)+12,H$7)*'Master Data'!$J$37) -> 14.21686 | I51: =IF($C51="NA","",OFFSET('Combined Annuity Prices CL'!$B$10,MATCH($B51,'Combined Annuity Prices CL'!$B$10:$B$3811,0)+12,I$7)*'Master Data'!$J$37) -> 14.06749273 | Q51: 0 | R51: 0 | S51: 0 | T51: 0 | U51: 0 | AC51: =IFERROR(VLOOKUP($B51,Volumes!$B$4:$H$33,MATCH(AC$9,Volumes!$B$4:$H$4,0),FALSE),0) -> 0 | AD51: =IFERROR(VLOOKUP($B51,Volumes!$B$4:$H$33,MATCH(AD$9,Volumes!$B$4:$H$4,0),FALSE),0) -> 0 | AE51: =IFERROR(VLOOKUP($B51,Volumes!$B$4:$H$33,MATCH(AE$9,Volumes!$B$4:$H$4,0),FALSE),0) -> 0 | AF51: =IFERROR(VLOOKUP($B51,Volumes!$B$4:$H$33,MATCH(AF$9,Volumes!$B$4:$H$4,0),FALSE),0) -> 0 | AG51: =IFERROR(VLOOKUP($B51,Volumes!$B$4:$H$33,MATCH(AG$9,Volumes!$B$4:$H$4,0),FALSE),0) -> 0
B52: =Inputs!$C111 -> 100W Metal Halide | C52: Offered | D52: 22.556 | E52: =IF($C52="NA","",OFFSET('Combined Annuity Prices CL'!$B$10,MATCH($B52,'Combined Annuity Prices CL'!$B$10:$B$3811,0)+12,E$7)*'Master Data'!$J$37) -> 24.75866273 | F52: =IF($C52="NA","",OFFSET('Combined Annuity Prices CL'!$B$10,MATCH($B52,'Combined Annuity Prices CL'!$B$10:$B$3811,0)+12,F$7)*'Master Data'!$J$37) -> 24.84268182 | G52: =IF($C52="NA","",OFFSET('Combined Annuity Prices CL'!$B$10,MATCH($B52,'Combined Annuity Prices CL'!$B$10:$B$3811,0)+12,G$7)*'Master Data'!$J$37) -> 24.44540636 | H52: =IF($C52="NA","",OFFSET('Combined Annuity Prices CL'!$B$10,MATCH($B52,'Combined Annuity Prices CL'!$B$10:$B$3811,0)+12,H$7)*'Master Data'!$J$37) -> 24.34894 | I52: =IF($C52="NA","",OFFSET('Combined Annuity Prices CL'!$B$10,MATCH($B52,'Combined Annuity Prices CL'!$B$10:$B$3811,0)+12,I$7)*'Master Data'!$J$37) -> 24.17467818 | Q52: 0.0004530835279 | R52: 0.0004533789432 | S52: 0.0004461286661 | T52: 0.000444368155 | U52: 0.0004423966107 | AC52: =IFERROR(VLOOKUP($B52,Volumes!$B$4:$H$33,MATCH(AC$9,Volumes!$B$4:$H$4,0),FALSE),0) -> 5 | AD52: =IFERROR(VLOOKUP($B52,Volumes!$B$4:$H$33,MATCH(AD$9,Volumes!$B$4:$H$4,0),FALSE),0) -> 5 | AE52: =IFERROR(VLOOKUP($B52,Volumes!$B$4:$H$33,MATCH(AE$9,Volumes!$B$4:$H$4,0),FALSE),0) -> 5 | AF52: =IFERROR(VLOOKUP($B52,Volumes!$B$4:$H$33,MATCH(AF$9,Volumes!$B$4:$H$4,0),FALSE),0) -> 5 | AG52: =IFERROR(VLOOKUP($B52,Volumes!$B$4:$H$33,MATCH(AG$9,Volumes!$B$4:$H$4,0),FALSE),0) -> 5
B53: =Inputs!$C112 -> 150W Metal Halide | C53: Offered | D53: 22.703 | E53: =IF($C53="NA","",OFFSET('Combined Annuity Prices CL'!$B$10,MATCH($B53,'Combined Annuity Prices CL'!$B$10:$B$3811,0)+12,E$7)*'Master Data'!$J$37) -> 24.55328273 | F53: =IF($C53="NA","",OFFSET('Combined Annuity Prices CL'!$B$10,MATCH($B53,'Combined Annuity Prices CL'!$B$10:$B$3811,0)+12,F$7)*'Master Data'!$J$37) -> 24.63626455 | G53: =IF($C53="NA","",OFFSET('Combined Annuity Prices CL'!$B$10,MATCH($B53,'Combined Annuity Prices CL'!$B$10:$B$3811,0)+12,G$7)*'Master Data'!$J$37) -> 24.23898909 | H53: =IF($C53="NA","",OFFSET('Combined Annuity Prices CL'!$B$10,MATCH($B53,'Combined Annuity Prices CL'!$B$10:$B$3811,0)+12,H$7)*'Master Data'!$J$37) -> 24.14252273 | I53: =IF($C53="NA","",OFFSET('Combined Annuity Prices CL'!$B$10,MATCH($B53,'Combined Annuity Prices CL'!$B$10:$B$3811,0)+12,I$7)*'Master Data'!$J$37) -> 23.96929818 | Q53: 0.002426355399 | R53: 0.002427903871 | S53: 0.002388752375 | T53: 0.002379245615 | U53: 0.002368646046 | AC53: =IFERROR(VLOOKUP($B53,Volumes!$B$4:$H$33,MATCH(AC$9,Volumes!$B$4:$H$4,0),FALSE),0) -> 27 | AD53: =IFERROR(VLOOKUP($B53,Volumes!$B$4:$H$33,MATCH(AD$9,Volumes!$B$4:$H$4,0),FALSE),0) -> 27 | AE53: =IFERROR(VLOOKUP($B53,Volumes!$B$4:$H$33,MATCH(AE$9,Volumes!$B$4:$H$4,0),FALSE),0) -> 27 | AF53: =IFERROR(VLOOKUP($B53,Volumes!$B$4:$H$33,MATCH(AF$9,Volumes!$B$4:$H$4,0),FALSE),0) -> 27 | AG53: =IFERROR(VLOOKUP($B53,Volumes!$B$4:$H$33,MATCH(AG$9,Volumes!$B$4:$H$4,0),FALSE),0) -> 27
B54: =Inputs!$C113 -> 250W Metal Halide | C54: Offered | D54: 22.703 | E54: =IF($C54="NA","",OFFSET('Combined Annuity Prices CL'!$B$10,MATCH($B54,'Combined Annuity Prices CL'!$B$10:$B$3811,0)+12,E$7)*'Master Data'!$J$37) -> 24.55328273 | F54: =IF($C54="NA","",OFFSET('Combined Annuity Prices CL'!$B$10,MATCH($B54,'Combined Annuity Prices CL'!$B$10:$B$3811,0)+12,F$7)*'Master Data'!$J$37) -> 24.63626455 | G54: =IF($C54="NA","",OFFSET('Combined Annuity Prices CL'!$B$10,MATCH($B54,'Combined Annuity Prices CL'!$B$10:$B$3811,0)+12,G$7)*'Master Data'!$J$37) -> 24.23898909 | H54: =IF($C54="NA","",OFFSET('Combined Annuity Prices CL'!$B$10,MATCH($B54,'Combined Annuity Prices CL'!$B$10:$B$3811,0)+12,H$7)*'Master Data'!$J$37) -> 24.14252273 | I54: =IF($C54="NA","",OFFSET('Combined Annuity Prices CL'!$B$10,MATCH($B54,'Combined Annuity Prices CL'!$B$10:$B$3811,0)+12,I$7)*'Master Data'!$J$37) -> 23.96929818 | Q54: 0.003594600591 | R54: 0.003596894624 | S54: 0.003538892407 | T54: 0.003524808318 | U54: 0.003509105254 | AC54: =IFERROR(VLOOKUP($B54,Volumes!$B$4:$H$33,MATCH(AC$9,Volumes!$B$4:$H$4,0),FALSE),0) -> 40 | AD54: =IFERROR(VLOOKUP($B54,Volumes!$B$4:$H$33,MATCH(AD$9,Volumes!$B$4:$H$4,0),FALSE),0) -> 40 | AE54: =IFERROR(VLOOKUP($B54,Volumes!$B$4:$H$33,MATCH(AE$9,Volumes!$B$4:$H$4,0),FALSE),0) -> 40 | AF54: =IFERROR(VLOOKUP($B54,Volumes!$B$4:$H$33,MATCH(AF$9,Volumes!$B$4:$H$4,0),FALSE),0) -> 40 | AG54: =IFERROR(VLOOKUP($B54,Volumes!$B$4:$H$33,MATCH(AG$9,Volumes!$B$4:$H$4,0),FALSE),0) -> 40
B55: =Inputs!$C114 -> 400W Metal Halide | C55: Offered | D55: 23.408 | E55: =IF($C55="NA","",OFFSET('Combined Annuity Prices CL'!$B$10,MATCH($B55,'Combined Annuity Prices CL'!$B$10:$B$3811,0)+12,E$7)*'Master Data'!$J$37) -> 25.23373364 | F55: =IF($C55="NA","",OFFSET('Combined Annuity Prices CL'!$B$10,MATCH($B55,'Combined Annuity Prices CL'!$B$10:$B$3811,0)+12,F$7)*'Master Data'!$J$37) -> 25.31879 | G55: =IF($C55="NA","",OFFSET('Combined Annuity Prices CL'!$B$10,MATCH($B55,'Combined Annuity Prices CL'!$B$10:$B$3811,0)+12,G$7)*'Master Data'!$J$37) -> 24.92151455 | H55: =IF($C55="NA","",OFFSET('Combined Annuity Prices CL'!$B$10,MATCH($B55,'Combined Annuity Prices CL'!$B$10:$B$3811,0)+12,H$7)*'Master Data'!$J$37) -> 24.82504818 | I55: =IF($C55="NA","",OFFSET('Combined Annuity Prices CL'!$B$10,MATCH($B55,'Combined Annuity Prices CL'!$B$10:$B$3811,0)+12,I$7)*'Master Data'!$J$37) -> 24.64974909 | Q55: 0.000831199186 | R55: 0.0008317222515 | S55: 0.0008186717528 | T55: 0.0008155028328 | U55: 0.0008119627351 | AC55: =IFERROR(VLOOKUP($B55,Volumes!$B$4:$H$33,MATCH(AC$9,Volumes!$B$4:$H$4,0),FALSE),0) -> 9 | AD55: =IFERROR(VLOOKUP($B55,Volumes!$B$4:$H$33,MATCH(AD$9,Volumes!$B$4:$H$4,0),FALSE),0) -> 9 | AE55: =IFERROR(VLOOKUP($B55,Volumes!$B$4:$H$33,MATCH(AE$9,Volumes!$B$4:$H$4,0),FALSE),0) -> 9 | AF55: =IFERROR(VLOOKUP($B55,Volumes!$B$4:$H$33,MATCH(AF$9,Volumes!$B$4:$H$4,0),FALSE),0) -> 9 | AG55: =IFERROR(VLOOKUP($B55,Volumes!$B$4:$H$33,MATCH(AG$9,Volumes!$B$4:$H$4,0),FALSE),0) -> 9
B56: =Inputs!$C115 -> 70W Metal Halide | C56: Old light no volumes | D56: 18.95 | E56: =IF($C56="NA","",OFFSET('Combined Annuity Prices CL'!$B$10,MATCH($B56,'Combined Annuity Prices CL'!$B$10:$B$3811,0)+12,E$7)*'Master Data'!$J$37) -> 21.25371818 | F56: =IF($C56="NA","",OFFSET('Combined Annuity Prices CL'!$B$10,MATCH($B56,'Combined Annuity Prices CL'!$B$10:$B$3811,0)+12,F$7)*'Master Data'!$J$37) -> 21.32736455 | G56: =IF($C56="NA","",OFFSET('Combined Annuity Prices CL'!$B$10,MATCH($B56,'Combined Annuity Prices CL'!$B$10:$B$3811,0)+12,G$7)*'Master Data'!$J$37) -> 20.92905182 | H56: =IF($C56="NA","",OFFSET('Combined Annuity Prices CL'!$B$10,MATCH($B56,'Combined Annuity Prices CL'!$B$10:$B$3811,0)+12,H$7)*'Master Data'!$J$37) -> 20.83154818 | I56: =IF($C56="NA","",OFFSET('Combined Annuity Prices CL'!$B$10,MATCH($B56,'Combined Annuity Prices CL'!$B$10:$B$3811,0)+12,I$7)*'Master Data'!$J$37) -> 20.66662182 | Q56: 0 | R56: 0 | S56: 0 | T56: 0 | U56: 0 | AC56: =IFERROR(VLOOKUP($B56,Volumes!$B$4:$H$33,MATCH(AC$9,Volumes!$B$4:$H$4,0),FALSE),0) -> 0 | AD56: =IFERROR(VLOOKUP($B56,Volumes!$B$4:$H$33,MATCH(AD$9,Volumes!$B$4:$H$4,0),FALSE),0) -> 0 | AE56: =IFERROR(VLOOKUP($B56,Volumes!$B$4:$H$33,MATCH(AE$9,Volumes!$B$4:$H$4,0),FALSE),0) -> 0 | AF56: =IFERROR(VLOOKUP($B56,Volumes!$B$4:$H$33,MATCH(AF$9,Volumes!$B$4:$H$4,0),FALSE),0) -> 0 | AG56: =IFERROR(VLOOKUP($B56,Volumes!$B$4:$H$33,MATCH(AG$9,Volumes!$B$4:$H$4,0),FALSE),0) -> 0
B57: =Inputs!$C116 -> 250W Metal Halide - Flood Light | C57: Old light no volumes | D57: 22.703 | E57: =IF($C57="NA","",OFFSET('Combined Annuity Prices CL'!$B$10,MATCH($B57,'Combined Annuity Prices CL'!$B$10:$B$3811,0)+12,E$7)*'Master Data'!$J$37) -> 24.55328273 | F57: =IF($C57="NA","",OFFSET('Combined Annuity Prices CL'!$B$10,MATCH($B57,'Combined Annuity Prices CL'!$B$10:$B$3811,0)+12,F$7)*'Master Data'!$J$37) -> 24.63626455 | G57: =IF($C57="NA","",OFFSET('Combined Annuity Prices CL'!$B$10,MATCH($B57,'Combined Annuity Prices CL'!$B$10:$B$3811,0)+12,G$7)*'Master Data'!$J$37) -> 24.23898909 | H57: =IF($C57="NA","",OFFSET('Combined Annuity Prices CL'!$B$10,MATCH($B57,'Combined Annuity Prices CL'!$B$10:$B$3811,0)+12,H$7)*'Master Data'!$J$37) -> 24.14252273 | I57: =IF($C57="NA","",OFFSET('Combined Annuity Prices CL'!$B$10,MATCH($B57,'Combined Annuity Prices CL'!$B$10:$B$3811,0)+12,I$7)*'Master Data'!$J$37) -> 23.96929818 | Q57: 0 | R57: 0 | S57: 0 | T57: 0 | U57: 0 | AC57: =IFERROR(VLOOKUP($B57,Volumes!$B$4:$H$33,MATCH(AC$9,Volumes!$B$4:$H$4,0),FALSE),0) -> 0 | AD57: =IFERROR(VLOOKUP($B57,Volumes!$B$4:$H$33,MATCH(AD$9,Volumes!$B$4:$H$4,0),FALSE),0) -> 0 | AE57: =IFERROR(VLOOKUP($B57,Volumes!$B$4:$H$33,MATCH(AE$9,Volumes!$B$4:$H$4,0),FALSE),0) -> 0 | AF57: =IFERROR(VLOOKUP($B57,Volumes!$B$4:$H$33,MATCH(AF$9,Volumes!$B$4:$H$4,0),FALSE),0) -> 0 | AG57: =IFERROR(VLOOKUP($B57,Volumes!$B$4:$H$33,MATCH(AG$9,Volumes!$B$4:$H$4,0),FALSE),0) -> 0
B58: =Inputs!$C117 -> 400W Metal Halide - Flood Light | C58: Old light no volumes | D58: 23.408 | E58: =IF($C58="NA","",OFFSET('Combined Annuity Prices CL'!$B$10,MATCH($B58,'Combined Annuity Prices CL'!$B$10:$B$3811,0)+12,E$7)*'Master Data'!$J$37) -> 25.23373364 | F58: =IF($C58="NA","",OFFSET('Combined Annuity Prices CL'!$B$10,MATCH($B58,'Combined Annuity Prices CL'!$B$10:$B$3811,0)+12,F$7)*'Master Data'!$J$37) -> 25.31879 | G58: =IF($C58="NA","",OFFSET('Combined Annuity Prices CL'!$B$10,MATCH($B58,'Combined Annuity Prices CL'!$B$10:$B$3811,0)+12,G$7)*'Master Data'!$J$37) -> 24.92151455 | H58: =IF($C58="NA","",OFFSET('Combined Annuity Prices CL'!$B$10,MATCH($B58,'Combined Annuity Prices CL'!$B$10:$B$3811,0)+12,H$7)*'Master Data'!$J$37) -> 24.82504818 | I58: =IF($C58="NA","",OFFSET('Combined Annuity Prices CL'!$B$10,MATCH($B58,'Combined Annuity Prices CL'!$B$10:$B$3811,0)+12,I$7)*'Master Data'!$J$37) -> 24.64974909 | Q58: 0 | R58: 0 | S58: 0 | T58: 0 | U58: 0 | AC58: =IFERROR(VLOOKUP($B58,Volumes!$B$4:$H$33,MATCH(AC$9,Volumes!$B$4:$H$4,0),FALSE),0) -> 0 | AD58: =IFERROR(VLOOKUP($B58,Volumes!$B$4:$H$33,MATCH(AD$9,Volumes!$B$4:$H$4,0),FALSE),0) -> 0 | AE58: =IFERROR(VLOOKUP($B58,Volumes!$B$4:$H$33,MATCH(AE$9,Volumes!$B$4:$H$4,0),FALSE),0) -> 0 | AF58: =IFERROR(VLOOKUP($B58,Volumes!$B$4:$H$33,MATCH(AF$9,Volumes!$B$4:$H$4,0),FALSE),0) -> 0 | AG58: =IFERROR(VLOOKUP($B58,Volumes!$B$4:$H$33,MATCH(AG$9,Volumes!$B$4:$H$4,0),FALSE),0) -> 0
B59: =Inputs!$C118 -> 125W Mercury Vapour | C59: Obsolete, no new Connections | D59: 21.646 | E59: =IF($C59="NA","",OFFSET('Combined Annuity Prices CL'!$B$10,MATCH($B59,'Combined Annuity Prices CL'!$B$10:$B$3811,0)+12,E$7)*'Master Data'!$J$37) -> 23.53364364 | F59: =IF($C59="NA","",OFFSET('Combined Annuity Prices CL'!$B$10,MATCH($B59,'Combined Annuity Prices CL'!$B$10:$B$3811,0)+12,F$7)*'Master Data'!$J$37) -> 23.61455091 | G59: =IF($C59="NA","",OFFSET('Combined Annuity Prices CL'!$B$10,MATCH($B59,'Combined Annuity Prices CL'!$B$10:$B$3811,0)+12,G$7)*'Master Data'!$J$37) -> 23.21623818 | H59: =IF($C59="NA","",OFFSET('Combined Annuity Prices CL'!$B$10,MATCH($B59,'Combined Annuity Prices CL'!$B$10:$B$3811,0)+12,H$7)*'Master Data'!$J$37) -> 23.11977182 | I59: =IF($C59="NA","",OFFSET('Combined Annuity Prices CL'!$B$10,MATCH($B59,'Combined Annuity Prices CL'!$B$10:$B$3811,0)+12,I$7)*'Master Data'!$J$37) -> 22.94965909 | Q59: 0.02704580461 | R59: 0.02646128502 | S59: 0.02550652008 | T59: 0.02489421431 | U59: 0.02427477241 | AC59: =IFERROR(VLOOKUP($B59,Volumes!$B$4:$H$33,MATCH(AC$9,Volumes!$B$4:$H$4,0),FALSE),0) -> 314 | AD59: =IFERROR(VLOOKUP($B59,Volumes!$B$4:$H$33,MATCH(AD$9,Volumes!$B$4:$H$4,0),FALSE),0) -> 307 | AE59: =IFERROR(VLOOKUP($B59,Volumes!$B$4:$H$33,MATCH(AE$9,Volumes!$B$4:$H$4,0),FALSE),0) -> 301 | AF59: =IFERROR(VLOOKUP($B59,Volumes!$B$4:$H$33,MATCH(AF$9,Volumes!$B$4:$H$4,0),FALSE),0) -> 295 | AG59: =IFERROR(VLOOKUP($B59,Volumes!$B$4:$H$33,MATCH(AG$9,Volumes!$B$4:$H$4,0),FALSE),0) -> 289
B60: =Inputs!$C119 -> 250W Mercury Vapour | C60: Obsolete, no new Connections | D60: 21.646 | E60: =IF($C60="NA","",OFFSET('Combined Annuity Prices CL'!$B$10,MATCH($B60,'Combined Annuity Prices CL'!$B$10:$B$3811,0)+12,E$7)*'Master Data'!$J$37) -> 23.53364364 | F60: =IF($C60="NA","",OFFSET('Combined Annuity Prices CL'!$B$10,MATCH($B60,'Combined Annuity Prices CL'!$B$10:$B$3811,0)+12,F$7)*'Master Data'!$J$37) -> 23.61455091 | G60: =IF($C60="NA","",OFFSET('Combined Annuity Prices CL'!$B$10,MATCH($B60,'Combined Annuity Prices CL'!$B$10:$B$3811,0)+12,G$7)*'Master Data'!$J$37) -> 23.21623818 | H60: =IF($C60="NA","",OFFSET('Combined Annuity Prices CL'!$B$10,MATCH($B60,'Combined Annuity Prices CL'!$B$10:$B$3811,0)+12,H$7)*'Master Data'!$J$37) -> 23.11977182 | I60: =IF($C60="NA","",OFFSET('Combined Annuity Prices CL'!$B$10,MATCH($B60,'Combined Annuity Prices CL'!$B$10:$B$3811,0)+12,I$7)*'Master Data'!$J$37) -> 22.94965909 | Q60: 0.002325594664 | R60: 0.002327213992 | S60: 0.002203221003 | T60: 0.002194066346 | U60: 0.002099893807 | AC60: =IFERROR(VLOOKUP($B60,Volumes!$B$4:$H$33,MATCH(AC$9,Volumes!$B$4:$H$4,0),FALSE),0) -> 27 | AD60: =IFERROR(VLOOKUP($B60,Volumes!$B$4:$H$33,MATCH(AD$9,Volumes!$B$4:$H$4,0),FALSE),0) -> 27 | AE60: =IFERROR(VLOOKUP($B60,Volumes!$B$4:$H$33,MATCH(AE$9,Volumes!$B$4:$H$4,0),FALSE),0) -> 26 | AF60: =IFERROR(VLOOKUP($B60,Volumes!$B$4:$H$33,MATCH(AF$9,Volumes!$B$4:$H$4,0),FALSE),0) -> 26 | AG60: =IFERROR(VLOOKUP($B60,Volumes!$B$4:$H$33,MATCH(AG$9,Volumes!$B$4:$H$4,0),FALSE),0) -> 25
B61: =Inputs!$C120 -> 0 | C61: NA | E61: =IF($C61="NA","",OFFSET('Combined Annuity Prices CL'!$B$10,MATCH($B61,'Combined Annuity Prices CL'!$B$10:$B$3811,0)+12,E$7)*'Master Data'!$J$37) ->  | F61: =IF($C61="NA","",OFFSET('Combined Annuity Prices CL'!$B$10,MATCH($B61,'Combined Annuity Prices CL'!$B$10:$B$3811,0)+12,F$7)*'Master Data'!$J$37) ->  | G61: =IF($C61="NA","",OFFSET('Combined Annuity Prices CL'!$B$10,MATCH($B61,'Combined Annuity Prices CL'!$B$10:$B$3811,0)+12,G$7)*'Master Data'!$J$37) ->  | H61: =IF($C61="NA","",OFFSET('Combined Annuity Prices CL'!$B$10,MATCH($B61,'Combined Annuity Prices CL'!$B$10:$B$3811,0)+12,H$7)*'Master Data'!$J$37) ->  | I61: =IF($C61="NA","",OFFSET('Combined Annuity Prices CL'!$B$10,MATCH($B61,'Combined Annuity Prices CL'!$B$10:$B$3811,0)+12,I$7)*'Master Data'!$J$37) ->  | AC61: =IFERROR(VLOOKUP($B61,Volumes!$B$4:$H$33,MATCH(AC$9,Volumes!$B$4:$H$4,0),FALSE),0) -> 0 | AD61: =IFERROR(VLOOKUP($B61,Volumes!$B$4:$H$33,MATCH(AD$9,Volumes!$B$4:$H$4,0),FALSE),0) -> 0 | AE61: =IFERROR(VLOOKUP($B61,Volumes!$B$4:$H$33,MATCH(AE$9,Volumes!$B$4:$H$4,0),FALSE),0) -> 0 | AF61: =IFERROR(VLOOKUP($B61,Volumes!$B$4:$H$33,MATCH(AF$9,Volumes!$B$4:$H$4,0),FALSE),0) -> 0 | AG61: =IFERROR(VLOOKUP($B61,Volumes!$B$4:$H$33,MATCH(AG$9,Volumes!$B$4:$H$4,0),FALSE),0) -> 0
B62: =Inputs!$C121 -> 400W Mercury Vapour | C62: Obsolete, no new Connections | D62: 21.799 | E62: =IF($C62="NA","",OFFSET('Combined Annuity Prices CL'!$B$10,MATCH($B62,'Combined Annuity Prices CL'!$B$10:$B$3811,0)+12,E$7)*'Master Data'!$J$37) -> 23.68197364 | F62: =IF($C62="NA","",OFFSET('Combined Annuity Prices CL'!$B$10,MATCH($B62,'Combined Annuity Prices CL'!$B$10:$B$3811,0)+12,F$7)*'Master Data'!$J$37) -> 23.76288091 | G62: =IF($C62="NA","",OFFSET('Combined Annuity Prices CL'!$B$10,MATCH($B62,'Combined Annuity Prices CL'!$B$10:$B$3811,0)+12,G$7)*'Master Data'!$J$37) -> 23.36560545 | H62: =IF($C62="NA","",OFFSET('Combined Annuity Prices CL'!$B$10,MATCH($B62,'Combined Annuity Prices CL'!$B$10:$B$3811,0)+12,H$7)*'Master Data'!$J$37) -> 23.26913909 | I62: =IF($C62="NA","",OFFSET('Combined Annuity Prices CL'!$B$10,MATCH($B62,'Combined Annuity Prices CL'!$B$10:$B$3811,0)+12,I$7)*'Master Data'!$J$37) -> 23.09798909 | Q62: 0.001820196494 | R62: 0.001734690306 | S62: 0.001705689198 | T62: 0.001698647154 | U62: 0.001606234161 | AC62: =IFERROR(VLOOKUP($B62,Volumes!$B$4:$H$33,MATCH(AC$9,Volumes!$B$4:$H$4,0),FALSE),0) -> 21 | AD62: =IFERROR(VLOOKUP($B62,Volumes!$B$4:$H$33,MATCH(AD$9,Volumes!$B$4:$H$4,0),FALSE),0) -> 20 | AE62: =IFERROR(VLOOKUP($B62,Volumes!$B$4:$H$33,MATCH(AE$9,Volumes!$B$4:$H$4,0),FALSE),0) -> 20 | AF62: =IFERROR(VLOOKUP($B62,Volumes!$B$4:$H$33,MATCH(AF$9,Volumes!$B$4:$H$4,0),FALSE),0) -> 20 | AG62: =IFERROR(VLOOKUP($B62,Volumes!$B$4:$H$33,MATCH(AG$9,Volumes!$B$4:$H$4,0),FALSE),0) -> 19
B63: =Inputs!$C122 -> 50W Mercury Vapour | C63: Obsolete, no new Connections | D63: 18.088 | E63: =IF($C63="NA","",OFFSET('Combined Annuity Prices CL'!$B$10,MATCH($B63,'Combined Annuity Prices CL'!$B$10:$B$3811,0)+12,E$7)*'Master Data'!$J$37) -> 20.14176182 | F63: =IF($C63="NA","",OFFSET('Combined Annuity Prices CL'!$B$10,MATCH($B63,'Combined Annuity Prices CL'!$B$10:$B$3811,0)+12,F$7)*'Master Data'!$J$37) -> 20.21229636 | G63: =IF($C63="NA","",OFFSET('Combined Annuity Prices CL'!$B$10,MATCH($B63,'Combined Annuity Prices CL'!$B$10:$B$3811,0)+12,G$7)*'Master Data'!$J$37) -> 19.81398364 | H63: =IF($C63="NA","",OFFSET('Combined Annuity Prices CL'!$B$10,MATCH($B63,'Combined Annuity Prices CL'!$B$10:$B$3811,0)+12,H$7)*'Master Data'!$J$37) -> 19.71751727 | I63: =IF($C63="NA","",OFFSET('Combined Annuity Prices CL'!$B$10,MATCH($B63,'Combined Annuity Prices CL'!$B$10:$B$3811,0)+12,I$7)*'Master Data'!$J$37) -> 19.55466545 | Q63: 0.0103943576 | R63: 0.009590734625 | S63: 0.009184772115 | T63: 0.008276427875 | U63: 0.007729568161 | AC63: =IFERROR(VLOOKUP($B63,Volumes!$B$4:$H$33,MATCH(AC$9,Volumes!$B$4:$H$4,0),FALSE),0) -> 141 | AD63: =IFERROR(VLOOKUP($B63,Volumes!$B$4:$H$33,MATCH(AD$9,Volumes!$B$4:$H$4,0),FALSE),0) -> 130 | AE63: =IFERROR(VLOOKUP($B63,Volumes!$B$4:$H$33,MATCH(AE$9,Volumes!$B$4:$H$4,0),FALSE),0) -> 127 | AF63: =IFERROR(VLOOKUP($B63,Volumes!$B$4:$H$33,MATCH(AF$9,Volumes!$B$4:$H$4,0),FALSE),0) -> 115 | AG63: =IFERROR(VLOOKUP($B63,Volumes!$B$4:$H$33,MATCH(AG$9,Volumes!$B$4:$H$4,0),FALSE),0) -> 108
B64: =Inputs!$C123 -> 80W Mercury Vapour Art decorative | C64: Old light no volumes | D64: 18.056 | E64: =IF($C64="NA","",OFFSET('Combined Annuity Prices CL'!$B$10,MATCH($B64,'Combined Annuity Prices CL'!$B$10:$B$3811,0)+12,E$7)*'Master Data'!$J$37) -> 20.10130818 | F64: =IF($C64="NA","",OFFSET('Combined Annuity Prices CL'!$B$10,MATCH($B64,'Combined Annuity Prices CL'!$B$10:$B$3811,0)+12,F$7)*'Master Data'!$J$37) -> 20.17184273 | G64: =IF($C64="NA","",OFFSET('Combined Annuity Prices CL'!$B$10,MATCH($B64,'Combined Annuity Prices CL'!$B$10:$B$3811,0)+12,G$7)*'Master Data'!$J$37) -> 19.77353 | H64: =IF($C64="NA","",OFFSET('Combined Annuity Prices CL'!$B$10,MATCH($B64,'Combined Annuity Prices CL'!$B$10:$B$3811,0)+12,H$7)*'Master Data'!$J$37) -> 19.67602636 | I64: =IF($C64="NA","",OFFSET('Combined Annuity Prices CL'!$B$10,MATCH($B64,'Combined Annuity Prices CL'!$B$10:$B$3811,0)+12,I$7)*'Master Data'!$J$37) -> 19.51421182 | Q64: 0 | R64: 0 | S64: 0 | T64: 0 | U64: 0 | AC64: =IFERROR(VLOOKUP($B64,Volumes!$B$4:$H$33,MATCH(AC$9,Volumes!$B$4:$H$4,0),FALSE),0) -> 0 | AD64: =IFERROR(VLOOKUP($B64,Volumes!$B$4:$H$33,MATCH(AD$9,Volumes!$B$4:$H$4,0),FALSE),0) -> 0 | AE64: =IFERROR(VLOOKUP($B64,Volumes!$B$4:$H$33,MATCH(AE$9,Volumes!$B$4:$H$4,0),FALSE),0) -> 0 | AF64: =IFERROR(VLOOKUP($B64,Volumes!$B$4:$H$33,MATCH(AF$9,Volumes!$B$4:$H$4,0),FALSE),0) -> 0 | AG64: =IFERROR(VLOOKUP($B64,Volumes!$B$4:$H$33,MATCH(AG$9,Volumes!$B$4:$H$4,0),FALSE),0) -> 0
B65: =Inputs!$C124 -> 80W Mercury Vapour | C65: Obsolete, no new Connections | D65: 18.056 | E65: =IF($C65="NA","",OFFSET('Combined Annuity Prices CL'!$B$10,MATCH($B65,'Combined Annuity Prices CL'!$B$10:$B$3811,0)+12,E$7)*'Master Data'!$J$37) -> 20.10130818 | F65: =IF($C65="NA","",OFFSET('Combined Annuity Prices CL'!$B$10,MATCH($B65,'Combined Annuity Prices CL'!$B$10:$B$3811,0)+12,F$7)*'Master Data'!$J$37) -> 20.17184273 | G65: =IF($C65="NA","",OFFSET('Combined Annuity Prices CL'!$B$10,MATCH($B65,'Combined Annuity Prices CL'!$B$10:$B$3811,0)+12,G$7)*'Master Data'!$J$37) -> 19.77353 | H65: =IF($C65="NA","",OFFSET('Combined Annuity Prices CL'!$B$10,MATCH($B65,'Combined Annuity Prices CL'!$B$10:$B$3811,0)+12,H$7)*'Master Data'!$J$37) -> 19.67602636 | I65: =IF($C65="NA","",OFFSET('Combined Annuity Prices CL'!$B$10,MATCH($B65,'Combined Annuity Prices CL'!$B$10:$B$3811,0)+12,I$7)*'Master Data'!$J$37) -> 19.51421182 | Q65: 0.02059982062 | R65: 0.01914307875 | S65: 0.01732161228 | T65: 0.01651802413 | U65: 0.01571284336 | AC65: =IFERROR(VLOOKUP($B65,Volumes!$B$4:$H$33,MATCH(AC$9,Volumes!$B$4:$H$4,0),FALSE),0) -> 280 | AD65: =IFERROR(VLOOKUP($B65,Volumes!$B$4:$H$33,MATCH(AD$9,Volumes!$B$4:$H$4,0),FALSE),0) -> 260 | AE65: =IFERROR(VLOOKUP($B65,Volumes!$B$4:$H$33,MATCH(AE$9,Volumes!$B$4:$H$4,0),FALSE),0) -> 240 | AF65: =IFERROR(VLOOKUP($B65,Volumes!$B$4:$H$33,MATCH(AF$9,Volumes!$B$4:$H$4,0),FALSE),0) -> 230 | AG65: =IFERROR(VLOOKUP($B65,Volumes!$B$4:$H$33,MATCH(AG$9,Volumes!$B$4:$H$4,0),FALSE),0) -> 220
B66: =Inputs!$C125 -> 14W LED | C66: Obsolete, no new Connections | E66: =IF($C66="NA","",OFFSET('Combined Annuity Prices CL'!$B$10,MATCH($B66,'Combined Annuity Prices CL'!$B$10:$B$3811,0)+12,E$7)*'Master Data'!$J$37) -> 14.87034182 | F66: =IF($C66="NA","",OFFSET('Combined Annuity Prices CL'!$B$10,MATCH($B66,'Combined Annuity Prices CL'!$B$10:$B$3811,0)+12,F$7)*'Master Data'!$J$37) -> 14.92635455 | G66: =IF($C66="NA","",OFFSET('Combined Annuity Prices CL'!$B$10,MATCH($B66,'Combined Annuity Prices CL'!$B$10:$B$3811,0)+12,G$7)*'Master Data'!$J$37) -> 14.52596727 | H66: =IF($C66="NA","",OFFSET('Combined Annuity Prices CL'!$B$10,MATCH($B66,'Combined Annuity Prices CL'!$B$10:$B$3811,0)+12,H$7)*'Master Data'!$J$37) -> 14.42742636 | I66: =IF($C66="NA","",OFFSET('Combined Annuity Prices CL'!$B$10,MATCH($B66,'Combined Annuity Prices CL'!$B$10:$B$3811,0)+12,I$7)*'Master Data'!$J$37) -> 14.27805909 | Q66: 0.7145517469 | R66: 0.7643166719 | S66: 0.7454050947 | T66: 0.7419282366 | U66: 0.7383489906 | AC66: =IFERROR(VLOOKUP($B66,Volumes!$B$4:$H$33,MATCH(AC$9,Volumes!$B$4:$H$4,0),FALSE),0) -> 13129 | AD66: =IFERROR(VLOOKUP($B66,Volumes!$B$4:$H$33,MATCH(AD$9,Volumes!$B$4:$H$4,0),FALSE),0) -> 14029 | AE66: =IFERROR(VLOOKUP($B66,Volumes!$B$4:$H$33,MATCH(AE$9,Volumes!$B$4:$H$4,0),FALSE),0) -> 14059 | AF66: =IFERROR(VLOOKUP($B66,Volumes!$B$4:$H$33,MATCH(AF$9,Volumes!$B$4:$H$4,0),FALSE),0) -> 14089 | AG66: =IFERROR(VLOOKUP($B66,Volumes!$B$4:$H$33,MATCH(AG$9,Volumes!$B$4:$H$4,0),FALSE),0) -> 14129
B67: =Inputs!$C126 -> New technology - Minor | C67: Offered | E67: =IF($C67="NA","",OFFSET('Combined Annuity Prices CL'!$B$10,MATCH($B67,'Combined Annuity Prices CL'!$B$10:$B$3811,0)+12,E$7)*'Master Data'!$J$37) -> 14.87034182 | F67: =IF($C67="NA","",OFFSET('Combined Annuity Prices CL'!$B$10,MATCH($B67,'Combined Annuity Prices CL'!$B$10:$B$3811,0)+12,F$7)*'Master Data'!$J$37) -> 14.92635455 | G67: =IF($C67="NA","",OFFSET('Combined Annuity Prices CL'!$B$10,MATCH($B67,'Combined Annuity Prices CL'!$B$10:$B$3811,0)+12,G$7)*'Master Data'!$J$37) -> 14.52596727 | H67: =IF($C67="NA","",OFFSET('Combined Annuity Prices CL'!$B$10,MATCH($B67,'Combined Annuity Prices CL'!$B$10:$B$3811,0)+12,H$7)*'Master Data'!$J$37) -> 14.42742636 | I67: =IF($C67="NA","",OFFSET('Combined Annuity Prices CL'!$B$10,MATCH($B67,'Combined Annuity Prices CL'!$B$10:$B$3811,0)+12,I$7)*'Master Data'!$J$37) -> 14.27805909 | Q67: 0 | R67: 0 | S67: 0 | T67: 0 | U67: 0 | AC67: =IFERROR(VLOOKUP($B67,Volumes!$B$4:$H$33,MATCH(AC$9,Volumes!$B$4:$H$4,0),FALSE),0) -> 0 | AD67: =IFERROR(VLOOKUP($B67,Volumes!$B$4:$H$33,MATCH(AD$9,Volumes!$B$4:$H$4,0),FALSE),0) -> 0 | AE67: =IFERROR(VLOOKUP($B67,Volumes!$B$4:$H$33,MATCH(AE$9,Volumes!$B$4:$H$4,0),FALSE),0) -> 0 | AF67: =IFERROR(VLOOKUP($B67,Volumes!$B$4:$H$33,MATCH(AF$9,Volumes!$B$4:$H$4,0),FALSE),0) -> 0 | AG67: =IFERROR(VLOOKUP($B67,Volumes!$B$4:$H$33,MATCH(AG$9,Volumes!$B$4:$H$4,0),FALSE),0) -> 0
B68: =Inputs!$C127 -> New technology - Major | C68: Offered | E68: =IF($C68="NA","",OFFSET('Combined Annuity Prices CL'!$B$10,MATCH($B68,'Combined Annuity Prices CL'!$B$10:$B$3811,0)+12,E$7)*'Master Data'!$J$37) -> 15.63584909 | F68: =IF($C68="NA","",OFFSET('Combined Annuity Prices CL'!$B$10,MATCH($B68,'Combined Annuity Prices CL'!$B$10:$B$3811,0)+12,F$7)*'Master Data'!$J$37) -> 15.69289909 | G68: =IF($C68="NA","",OFFSET('Combined Annuity Prices CL'!$B$10,MATCH($B68,'Combined Annuity Prices CL'!$B$10:$B$3811,0)+12,G$7)*'Master Data'!$J$37) -> 15.29354909 | H68: =IF($C68="NA","",OFFSET('Combined Annuity Prices CL'!$B$10,MATCH($B68,'Combined Annuity Prices CL'!$B$10:$B$3811,0)+12,H$7)*'Master Data'!$J$37) -> 15.19500818 | I68: =IF($C68="NA","",OFFSET('Combined Annuity Prices CL'!$B$10,MATCH($B68,'Combined Annuity Prices CL'!$B$10:$B$3811,0)+12,I$7)*'Master Data'!$J$37) -> 15.04356636 | Q68: 0 | R68: 0 | S68: 0 | T68: 0 | U68: 0 | AC68: =IFERROR(VLOOKUP($B68,Volumes!$B$4:$H$33,MATCH(AC$9,Volumes!$B$4:$H$4,0),FALSE),0) -> 0 | AD68: =IFERROR(VLOOKUP($B68,Volumes!$B$4:$H$33,MATCH(AD$9,Volumes!$B$4:$H$4,0),FALSE),0) -> 0 | AE68: =IFERROR(VLOOKUP($B68,Volumes!$B$4:$H$33,MATCH(AE$9,Volumes!$B$4:$H$4,0),FALSE),0) -> 0 | AF68: =IFERROR(VLOOKUP($B68,Volumes!$B$4:$H$33,MATCH(AF$9,Volumes!$B$4:$H$4,0),FALSE),0) -> 0 | AG68: =IFERROR(VLOOKUP($B68,Volumes!$B$4:$H$33,MATCH(AG$9,Volumes!$B$4:$H$4,0),FALSE),0) -> 0
Q69: =SUM(Q10:Q68) -> 1.101883385 | R69: =SUM(R10:R68) -> 1.149028211 | S69: =SUM(S10:S68) -> 1.118535685 | T69: =SUM(T10:T68) -> 1.11068694 | U69: =SUM(U10:U68) -> 1.10266695 | AC69: =SUM(AC10:AC68) -> 19572 | AD69: =SUM(AD10:AD68) -> 20433 | AE69: =SUM(AE10:AE68) -> 20433 | AF69: =SUM(AF10:AF68) -> 20435 | AG69: =SUM(AG10:AG68) -> 20450
AC70: =Volumes!D34=AC69 -> TRUE | AD70: =Volumes!E34=AD69 -> TRUE | AE70: =Volumes!F34=AE69 -> TRUE | AF70: =Volumes!G34=AF69 -> TRUE | AG70: =Volumes!H34=AG69 -> TRUE
B72: Public Road Lights | C72: Offered / No Longer Offered / NA | D72: ='Master Data'!J$34 -> 2018-19 | E72: ='Master Data'!K$34 -> 2019-20 | F72: ='Master Data'!L$34 -> 2020-21 | G72: ='Master Data'!M$34 -> 2021-22 | H72: ='Master Data'!N$34 -> 2022-23 | I72: ='Master Data'!O$34 -> 2023-24 | Q72: =Q9 -> 2019-20 | R72: 2020-21 | S72: 2021-22 | T72: 2022-23 | U72: 2023-24 | AC72: =AC9 -> 2019-20 | AD72: 2020-21 | AE72: 2021-22 | AF72: 2022-23 | AG72: 2023-24
B73: =Inputs!$C69 -> 32W Compact Fluorescent | C73: No Longer Offered | D73: 36.021 | E73: =IF($C73="NA","",IF($B73=0,"",OFFSET('Combined Annuity Prices PL'!$B$10,MATCH($B73,'Combined Annuity Prices PL'!$B$10:$B$3811,0)+12,E$7)*'Master Data'!$J$37)) -> 42.45349818 | F73: =IF($C73="NA","",IF($B73=0,"",OFFSET('Combined Annuity Prices PL'!$B$10,MATCH($B73,'Combined Annuity Prices PL'!$B$10:$B$3811,0)+12,F$7)*'Master Data'!$J$37)) -> 42.22529818 | G73: =IF($C73="NA","",IF($B73=0,"",OFFSET('Combined Annuity Prices PL'!$B$10,MATCH($B73,'Combined Annuity Prices PL'!$B$10:$B$3811,0)+12,G$7)*'Master Data'!$J$37)) -> 36.61987636 | H73: =IF($C73="NA","",IF($B73=0,"",OFFSET('Combined Annuity Prices PL'!$B$10,MATCH($B73,'Combined Annuity Prices PL'!$B$10:$B$3811,0)+12,H$7)*'Master Data'!$J$37)) -> 36.34811091 | I73: =IF($C73="NA","",IF($B73=0,"",OFFSET('Combined Annuity Prices PL'!$B$10,MATCH($B73,'Combined Annuity Prices PL'!$B$10:$B$3811,0)+12,I$7)*'Master Data'!$J$37)) -> 36.06078636 | Q73: =IF($C73="NA","",E73*AC73*Q$6/100/10^6) -> 0 | R73: =IF($C73="NA","",F73*AD73*R$6/100/10^6) -> 0 | S73: =IF($C73="NA","",G73*AE73*S$6/100/10^6) -> 0 | T73: =IF($C73="NA","",H73*AF73*T$6/100/10^6) -> 0 | U73: =IF($C73="NA","",I73*AG73*U$6/100/10^6) -> 0 | AC73: =IFERROR(VLOOKUP($B73,Volumes!$B$39:$H$81,MATCH(AC$9,Volumes!$B$4:$H$4,0),FALSE),0) -> 0 | AD73: =IFERROR(VLOOKUP($B73,Volumes!$B$39:$H$81,MATCH(AD$9,Volumes!$B$4:$H$4,0),FALSE),0) -> 0 | AE73: =IFERROR(VLOOKUP($B73,Volumes!$B$39:$H$81,MATCH(AE$9,Volumes!$B$4:$H$4,0),FALSE),0) -> 0 | AF73: =IFERROR(VLOOKUP($B73,Volumes!$B$39:$H$81,MATCH(AF$9,Volumes!$B$4:$H$4,0),FALSE),0) -> 0 | AG73: =IFERROR(VLOOKUP($B73,Volumes!$B$39:$H$81,MATCH(AG$9,Volumes!$B$4:$H$4,0),FALSE),0) -> 0
B74: =Inputs!$C70 -> 42W Compact Fluorescent | C74: Offered | D74: 36.047 | E74: =IF($C74="NA","",IF($B74=0,"",OFFSET('Combined Annuity Prices PL'!$B$10,MATCH($B74,'Combined Annuity Prices PL'!$B$10:$B$3811,0)+12,E$7)*'Master Data'!$J$37)) -> 42.47528091 | F74: =IF($C74="NA","",IF($B74=0,"",OFFSET('Combined Annuity Prices PL'!$B$10,MATCH($B74,'Combined Annuity Prices PL'!$B$10:$B$3811,0)+12,F$7)*'Master Data'!$J$37)) -> 42.24604364 | G74: =IF($C74="NA","",IF($B74=0,"",OFFSET('Combined Annuity Prices PL'!$B$10,MATCH($B74,'Combined Annuity Prices PL'!$B$10:$B$3811,0)+12,G$7)*'Master Data'!$J$37)) -> 36.64165909 | H74: =IF($C74="NA","",IF($B74=0,"",OFFSET('Combined Annuity Prices PL'!$B$10,MATCH($B74,'Combined Annuity Prices PL'!$B$10:$B$3811,0)+12,H$7)*'Master Data'!$J$37)) -> 36.36989364 | I74: =IF($C74="NA","",IF($B74=0,"",OFFSET('Combined Annuity Prices PL'!$B$10,MATCH($B74,'Combined Annuity Prices PL'!$B$10:$B$3811,0)+12,I$7)*'Master Data'!$J$37)) -> 36.08256909 | Q74: 0.5461293223 | R74: 0.5350672657 | S74: 0.4373365221 | T74: 0.4128528476 | U74: 0.3816597663 | AC74: =IFERROR(VLOOKUP($B74,Volumes!$B$39:$H$81,MATCH(AC$9,Volumes!$B$4:$H$4,0),FALSE),0) -> 3513 | AD74: =IFERROR(VLOOKUP($B74,Volumes!$B$39:$H$81,MATCH(AD$9,Volumes!$B$4:$H$4,0),FALSE),0) -> 3470 | AE74: =IFERROR(VLOOKUP($B74,Volumes!$B$39:$H$81,MATCH(AE$9,Volumes!$B$4:$H$4,0),FALSE),0) -> 3270 | AF74: =IFERROR(VLOOKUP($B74,Volumes!$B$39:$H$81,MATCH(AF$9,Volumes!$B$4:$H$4,0),FALSE),0) -> 3110 | AG74: =IFERROR(VLOOKUP($B74,Volumes!$B$39:$H$81,MATCH(AG$9,Volumes!$B$4:$H$4,0),FALSE),0) -> 2890
B75: =Inputs!$C71 -> 42W Compact Fluorescent - Bottom Pole Entry | C75: No Longer Offered | D75: 36.047 | E75: =IF($C75="NA","",IF($B75=0,"",OFFSET('Combined Annuity Prices PL'!$B$10,MATCH($B75,'Combined Annuity Prices PL'!$B$10:$B$3811,0)+12,E$7)*'Master Data'!$J$37)) -> 42.47528091 | F75: =IF($C75="NA","",IF($B75=0,"",OFFSET('Combined Annuity Prices PL'!$B$10,MATCH($B75,'Combined Annuity Prices PL'!$B$10:$B$3811,0)+12,F$7)*'Master Data'!$J$37)) -> 42.24604364 | G75: =IF($C75="NA","",IF($B75=0,"",OFFSET('Combined Annuity Prices PL'!$B$10,MATCH($B75,'Combined Annuity Prices PL'!$B$10:$B$3811,0)+12,G$7)*'Master Data'!$J$37)) -> 36.64165909 | H75: =IF($C75="NA","",IF($B75=0,"",OFFSET('Combined Annuity Prices PL'!$B$10,MATCH($B75,'Combined Annuity Prices PL'!$B$10:$B$3811,0)+12,H$7)*'Master Data'!$J$37)) -> 36.36989364 | I75: =IF($C75="NA","",IF($B75=0,"",OFFSET('Combined Annuity Prices PL'!$B$10,MATCH($B75,'Combined Annuity Prices PL'!$B$10:$B$3811,0)+12,I$7)*'Master Data'!$J$37)) -> 36.08256909 | Q75: 0.03171374374 | R75: 0.03145640409 | S75: 0.02728337936 | T75: 0.0270810228 | U75: 0.02694068939 | AC75: =IFERROR(VLOOKUP($B75,Volumes!$B$39:$H$81,MATCH(AC$9,Volumes!$B$4:$H$4,0),FALSE),0) -> 204 | AD75: =IFERROR(VLOOKUP($B75,Volumes!$B$39:$H$81,MATCH(AD$9,Volumes!$B$4:$H$4,0),FALSE),0) -> 204 | AE75: =IFERROR(VLOOKUP($B75,Volumes!$B$39:$H$81,MATCH(AE$9,Volumes!$B$4:$H$4,0),FALSE),0) -> 204 | AF75: =IFERROR(VLOOKUP($B75,Volumes!$B$39:$H$81,MATCH(AF$9,Volumes!$B$4:$H$4,0),FALSE),0) -> 204 | AG75: =IFERROR(VLOOKUP($B75,Volumes!$B$39:$H$81,MATCH(AG$9,Volumes!$B$4:$H$4,0),FALSE),0) -> 204
B76: =Inputs!$C72 -> 2x24W Compact Fluorescent | C76: Old light no volumes | D76: 36.369 | E76: =IF($C76="NA","",IF($B76=0,"",OFFSET('Combined Annuity Prices PL'!$B$10,MATCH($B76,'Combined Annuity Prices PL'!$B$10:$B$3811,0)+12,E$7)*'Master Data'!$J$37)) -> 43.16195545 | F76: =IF($C76="NA","",IF($B76=0,"",OFFSET('Combined Annuity Prices PL'!$B$10,MATCH($B76,'Combined Annuity Prices PL'!$B$10:$B$3811,0)+12,F$7)*'Master Data'!$J$37)) -> 42.93479273 | G76: =IF($C76="NA","",IF($B76=0,"",OFFSET('Combined Annuity Prices PL'!$B$10,MATCH($B76,'Combined Annuity Prices PL'!$B$10:$B$3811,0)+12,G$7)*'Master Data'!$J$37)) -> 37.32937091 | H76: =IF($C76="NA","",IF($B76=0,"",OFFSET('Combined Annuity Prices PL'!$B$10,MATCH($B76,'Combined Annuity Prices PL'!$B$10:$B$3811,0)+12,H$7)*'Master Data'!$J$37)) -> 37.05760545 | I76: =IF($C76="NA","",IF($B76=0,"",OFFSET('Combined Annuity Prices PL'!$B$10,MATCH($B76,'Combined Annuity Prices PL'!$B$10:$B$3811,0)+12,I$7)*'Master Data'!$J$37)) -> 36.76924364 | Q76: 0 | R76: 0 | S76: 0 | T76: 0 | U76: 0 | AC76: =IFERROR(VLOOKUP($B76,Volumes!$B$39:$H$81,MATCH(AC$9,Volumes!$B$4:$H$4,0),FALSE),0) -> 0 | AD76: =IFERROR(VLOOKUP($B76,Volumes!$B$39:$H$81,MATCH(AD$9,Volumes!$B$4:$H$4,0),FALSE),0) -> 0 | AE76: =IFERROR(VLOOKUP($B76,Volumes!$B$39:$H$81,MATCH(AE$9,Volumes!$B$4:$H$4,0),FALSE),0) -> 0 | AF76: =IFERROR(VLOOKUP($B76,Volumes!$B$39:$H$81,MATCH(AF$9,Volumes!$B$4:$H$4,0),FALSE),0) -> 0 | AG76: =IFERROR(VLOOKUP($B76,Volumes!$B$39:$H$81,MATCH(AG$9,Volumes!$B$4:$H$4,0),FALSE),0) -> 0
B77: =Inputs!$C73 -> 1x20W Fluorescent | C77: Old light no volumes | D77: 37.742 | E77: =IF($C77="NA","",IF($B77=0,"",OFFSET('Combined Annuity Prices PL'!$B$10,MATCH($B77,'Combined Annuity Prices PL'!$B$10:$B$3811,0)+12,E$7)*'Master Data'!$J$37)) -> 44.31540273 | F77: =IF($C77="NA","",IF($B77=0,"",OFFSET('Combined Annuity Prices PL'!$B$10,MATCH($B77,'Combined Annuity Prices PL'!$B$10:$B$3811,0)+12,F$7)*'Master Data'!$J$37)) -> 44.09135182 | G77: =IF($C77="NA","",IF($B77=0,"",OFFSET('Combined Annuity Prices PL'!$B$10,MATCH($B77,'Combined Annuity Prices PL'!$B$10:$B$3811,0)+12,G$7)*'Master Data'!$J$37)) -> 38.48696727 | H77: =IF($C77="NA","",IF($B77=0,"",OFFSET('Combined Annuity Prices PL'!$B$10,MATCH($B77,'Combined Annuity Prices PL'!$B$10:$B$3811,0)+12,H$7)*'Master Data'!$J$37)) -> 38.21520182 | I77: =IF($C77="NA","",IF($B77=0,"",OFFSET('Combined Annuity Prices PL'!$B$10,MATCH($B77,'Combined Annuity Prices PL'!$B$10:$B$3811,0)+12,I$7)*'Master Data'!$J$37)) -> 37.92269091 | Q77: 0 | R77: 0 | S77: 0 | T77: 0 | U77: 0 | AC77: =IFERROR(VLOOKUP($B77,Volumes!$B$39:$H$81,MATCH(AC$9,Volumes!$B$4:$H$4,0),FALSE),0) -> 0 | AD77: =IFERROR(VLOOKUP($B77,Volumes!$B$39:$H$81,MATCH(AD$9,Volumes!$B$4:$H$4,0),FALSE),0) -> 0 | AE77: =IFERROR(VLOOKUP($B77,Volumes!$B$39:$H$81,MATCH(AE$9,Volumes!$B$4:$H$4,0),FALSE),0) -> 0 | AF77: =IFERROR(VLOOKUP($B77,Volumes!$B$39:$H$81,MATCH(AF$9,Volumes!$B$4:$H$4,0),FALSE),0) -> 0 | AG77: =IFERROR(VLOOKUP($B77,Volumes!$B$39:$H$81,MATCH(AG$9,Volumes!$B$4:$H$4,0),FALSE),0) -> 0
B78: =Inputs!$C74 -> 1x40W Fluorescent | C78: Old light no volumes | D78: 36.579 | E78: =IF($C78="NA","",IF($B78=0,"",OFFSET('Combined Annuity Prices PL'!$B$10,MATCH($B78,'Combined Annuity Prices PL'!$B$10:$B$3811,0)+12,E$7)*'Master Data'!$J$37)) -> 43.27916727 | F78: =IF($C78="NA","",IF($B78=0,"",OFFSET('Combined Annuity Prices PL'!$B$10,MATCH($B78,'Combined Annuity Prices PL'!$B$10:$B$3811,0)+12,F$7)*'Master Data'!$J$37)) -> 43.05304182 | G78: =IF($C78="NA","",IF($B78=0,"",OFFSET('Combined Annuity Prices PL'!$B$10,MATCH($B78,'Combined Annuity Prices PL'!$B$10:$B$3811,0)+12,G$7)*'Master Data'!$J$37)) -> 37.44762 | H78: =IF($C78="NA","",IF($B78=0,"",OFFSET('Combined Annuity Prices PL'!$B$10,MATCH($B78,'Combined Annuity Prices PL'!$B$10:$B$3811,0)+12,H$7)*'Master Data'!$J$37)) -> 37.17585455 | I78: =IF($C78="NA","",IF($B78=0,"",OFFSET('Combined Annuity Prices PL'!$B$10,MATCH($B78,'Combined Annuity Prices PL'!$B$10:$B$3811,0)+12,I$7)*'Master Data'!$J$37)) -> 36.88645545 | Q78: 0 | R78: 0 | S78: 0 | T78: 0 | U78: 0 | AC78: =IFERROR(VLOOKUP($B78,Volumes!$B$39:$H$81,MATCH(AC$9,Volumes!$B$4:$H$4,0),FALSE),0) -> 0 | AD78: =IFERROR(VLOOKUP($B78,Volumes!$B$39:$H$81,MATCH(AD$9,Volumes!$B$4:$H$4,0),FALSE),0) -> 0 | AE78: =IFERROR(VLOOKUP($B78,Volumes!$B$39:$H$81,MATCH(AE$9,Volumes!$B$4:$H$4,0),FALSE),0) -> 0 | AF78: =IFERROR(VLOOKUP($B78,Volumes!$B$39:$H$81,MATCH(AF$9,Volumes!$B$4:$H$4,0),FALSE),0) -> 0 | AG78: =IFERROR(VLOOKUP($B78,Volumes!$B$39:$H$81,MATCH(AG$9,Volumes!$B$4:$H$4,0),FALSE),0) -> 0
B79: =Inputs!$C75 -> 2x20W Fluorescent | C79: Old light no volumes | D79: 38.031 | E79: =IF($C79="NA","",IF($B79=0,"",OFFSET('Combined Annuity Prices PL'!$B$10,MATCH($B79,'Combined Annuity Prices PL'!$B$10:$B$3811,0)+12,E$7)*'Master Data'!$J$37)) -> 44.60169 | F79: =IF($C79="NA","",IF($B79=0,"",OFFSET('Combined Annuity Prices PL'!$B$10,MATCH($B79,'Combined Annuity Prices PL'!$B$10:$B$3811,0)+12,F$7)*'Master Data'!$J$37)) -> 44.37867636 | G79: =IF($C79="NA","",IF($B79=0,"",OFFSET('Combined Annuity Prices PL'!$B$10,MATCH($B79,'Combined Annuity Prices PL'!$B$10:$B$3811,0)+12,G$7)*'Master Data'!$J$37)) -> 38.77325455 | H79: =IF($C79="NA","",IF($B79=0,"",OFFSET('Combined Annuity Prices PL'!$B$10,MATCH($B79,'Combined Annuity Prices PL'!$B$10:$B$3811,0)+12,H$7)*'Master Data'!$J$37)) -> 38.50148909 | I79: =IF($C79="NA","",IF($B79=0,"",OFFSET('Combined Annuity Prices PL'!$B$10,MATCH($B79,'Combined Annuity Prices PL'!$B$10:$B$3811,0)+12,I$7)*'Master Data'!$J$37)) -> 38.20897818 | Q79: 0 | R79: 0 | S79: 0 | T79: 0 | U79: 0 | AC79: =IFERROR(VLOOKUP($B79,Volumes!$B$39:$H$81,MATCH(AC$9,Volumes!$B$4:$H$4,0),FALSE),0) -> 0 | AD79: =IFERROR(VLOOKUP($B79,Volumes!$B$39:$H$81,MATCH(AD$9,Volumes!$B$4:$H$4,0),FALSE),0) -> 0 | AE79: =IFERROR(VLOOKUP($B79,Volumes!$B$39:$H$81,MATCH(AE$9,Volumes!$B$4:$H$4,0),FALSE),0) -> 0 | AF79: =IFERROR(VLOOKUP($B79,Volumes!$B$39:$H$81,MATCH(AF$9,Volumes!$B$4:$H$4,0),FALSE),0) -> 0 | AG79: =IFERROR(VLOOKUP($B79,Volumes!$B$39:$H$81,MATCH(AG$9,Volumes!$B$4:$H$4,0),FALSE),0) -> 0
B80: =Inputs!$C76 -> 2x24W Fluorescent | C80: Old light no volumes | D80: 37.982 | E80: =IF($C80="NA","",IF($B80=0,"",OFFSET('Combined Annuity Prices PL'!$B$10,MATCH($B80,'Combined Annuity Prices PL'!$B$10:$B$3811,0)+12,E$7)*'Master Data'!$J$37)) -> 44.56642273 | F80: =IF($C80="NA","",IF($B80=0,"",OFFSET('Combined Annuity Prices PL'!$B$10,MATCH($B80,'Combined Annuity Prices PL'!$B$10:$B$3811,0)+12,F$7)*'Master Data'!$J$37)) -> 44.34340909 | G80: =IF($C80="NA","",IF($B80=0,"",OFFSET('Combined Annuity Prices PL'!$B$10,MATCH($B80,'Combined Annuity Prices PL'!$B$10:$B$3811,0)+12,G$7)*'Master Data'!$J$37)) -> 38.73798727 | H80: =IF($C80="NA","",IF($B80=0,"",OFFSET('Combined Annuity Prices PL'!$B$10,MATCH($B80,'Combined Annuity Prices PL'!$B$10:$B$3811,0)+12,H$7)*'Master Data'!$J$37)) -> 38.46622182 | I80: =IF($C80="NA","",IF($B80=0,"",OFFSET('Combined Annuity Prices PL'!$B$10,MATCH($B80,'Combined Annuity Prices PL'!$B$10:$B$3811,0)+12,I$7)*'Master Data'!$J$37)) -> 38.17371091 | Q80: 0 | R80: 0 | S80: 0 | T80: 0 | U80: 0 | AC80: =IFERROR(VLOOKUP($B80,Volumes!$B$39:$H$81,MATCH(AC$9,Volumes!$B$4:$H$4,0),FALSE),0) -> 0 | AD80: =IFERROR(VLOOKUP($B80,Volumes!$B$39:$H$81,MATCH(AD$9,Volumes!$B$4:$H$4,0),FALSE),0) -> 0 | AE80: =IFERROR(VLOOKUP($B80,Volumes!$B$39:$H$81,MATCH(AE$9,Volumes!$B$4:$H$4,0),FALSE),0) -> 0 | AF80: =IFERROR(VLOOKUP($B80,Volumes!$B$39:$H$81,MATCH(AF$9,Volumes!$B$4:$H$4,0),FALSE),0) -> 0 | AG80: =IFERROR(VLOOKUP($B80,Volumes!$B$39:$H$81,MATCH(AG$9,Volumes!$B$4:$H$4,0),FALSE),0) -> 0
B81: =Inputs!$C77 -> T5 Fluorescent 2 x 24W | C81: Obsolete, no new Connections | D81: 38.032 | E81: =IF($C81="NA","",IF($B81=0,"",OFFSET('Combined Annuity Prices PL'!$B$10,MATCH($B81,'Combined Annuity Prices PL'!$B$10:$B$3811,0)+12,E$7)*'Master Data'!$J$37)) -> 44.60169 | F81: =IF($C81="NA","",IF($B81=0,"",OFFSET('Combined Annuity Prices PL'!$B$10,MATCH($B81,'Combined Annuity Prices PL'!$B$10:$B$3811,0)+12,F$7)*'Master Data'!$J$37)) -> 44.37867636 | G81: =IF($C81="NA","",IF($B81=0,"",OFFSET('Combined Annuity Prices PL'!$B$10,MATCH($B81,'Combined Annuity Prices PL'!$B$10:$B$3811,0)+12,G$7)*'Master Data'!$J$37)) -> 38.77325455 | H81: =IF($C81="NA","",IF($B81=0,"",OFFSET('Combined Annuity Prices PL'!$B$10,MATCH($B81,'Combined Annuity Prices PL'!$B$10:$B$3811,0)+12,H$7)*'Master Data'!$J$37)) -> 38.50148909 | I81: =IF($C81="NA","",IF($B81=0,"",OFFSET('Combined Annuity Prices PL'!$B$10,MATCH($B81,'Combined Annuity Prices PL'!$B$10:$B$3811,0)+12,I$7)*'Master Data'!$J$37)) -> 38.20897818 | Q81: 0.01354910139 | R81: 0.01344452 | S81: 0.01174635746 | T81: 0.01166402612 | U81: 0.01160712339 | AC81: =IFERROR(VLOOKUP($B81,Volumes!$B$39:$H$81,MATCH(AC$9,Volumes!$B$4:$H$4,0),FALSE),0) -> 83 | AD81: =IFERROR(VLOOKUP($B81,Volumes!$B$39:$H$81,MATCH(AD$9,Volumes!$B$4:$H$4,0),FALSE),0) -> 83 | AE81: =IFERROR(VLOOKUP($B81,Volumes!$B$39:$H$81,MATCH(AE$9,Volumes!$B$4:$H$4,0),FALSE),0) -> 83 | AF81: =IFERROR(VLOOKUP($B81,Volumes!$B$39:$H$81,MATCH(AF$9,Volumes!$B$4:$H$4,0),FALSE),0) -> 83 | AG81: =IFERROR(VLOOKUP($B81,Volumes!$B$39:$H$81,MATCH(AG$9,Volumes!$B$4:$H$4,0),FALSE),0) -> 83
B82: =Inputs!$C78 -> 20 Fluorescent 1X20FL | C82: Old light no volumes | D82: 37.742 | E82: =IF($C82="NA","",IF($B82=0,"",OFFSET('Combined Annuity Prices PL'!$B$10,MATCH($B82,'Combined Annuity Prices PL'!$B$10:$B$3811,0)+12,E$7)*'Master Data'!$J$37)) -> 44.31540273 | F82: =IF($C82="NA","",IF($B82=0,"",OFFSET('Combined Annuity Prices PL'!$B$10,MATCH($B82,'Combined Annuity Prices PL'!$B$10:$B$3811,0)+12,F$7)*'Master Data'!$J$37)) -> 44.09135182 | G82: =IF($C82="NA","",IF($B82=0,"",OFFSET('Combined Annuity Prices PL'!$B$10,MATCH($B82,'Combined Annuity Prices PL'!$B$10:$B$3811,0)+12,G$7)*'Master Data'!$J$37)) -> 38.48696727 | H82: =IF($C82="NA","",IF($B82=0,"",OFFSET('Combined Annuity Prices PL'!$B$10,MATCH($B82,'Combined Annuity Prices PL'!$B$10:$B$3811,0)+12,H$7)*'Master Data'!$J$37)) -> 38.21520182 | I82: =IF($C82="NA","",IF($B82=0,"",OFFSET('Combined Annuity Prices PL'!$B$10,MATCH($B82,'Combined Annuity Prices PL'!$B$10:$B$3811,0)+12,I$7)*'Master Data'!$J$37)) -> 37.92269091 | Q82: 0 | R82: 0 | S82: 0 | T82: 0 | U82: 0 | AC82: =IFERROR(VLOOKUP($B82,Volumes!$B$39:$H$81,MATCH(AC$9,Volumes!$B$4:$H$4,0),FALSE),0) -> 0 | AD82: =IFERROR(VLOOKUP($B82,Volumes!$B$39:$H$81,MATCH(AD$9,Volumes!$B$4:$H$4,0),FALSE),0) -> 0 | AE82: =IFERROR(VLOOKUP($B82,Volumes!$B$39:$H$81,MATCH(AE$9,Volumes!$B$4:$H$4,0),FALSE),0) -> 0 | AF82: =IFERROR(VLOOKUP($B82,Volumes!$B$39:$H$81,MATCH(AF$9,Volumes!$B$4:$H$4,0),FALSE),0) -> 0 | AG82: =IFERROR(VLOOKUP($B82,Volumes!$B$39:$H$81,MATCH(AG$9,Volumes!$B$4:$H$4,0),FALSE),0) -> 0
B83: =Inputs!$C79 -> 2x40W Fluorescent | C83: Old light no volumes | D83: 36.888 | E83: =IF($C83="NA","",IF($B83=0,"",OFFSET('Combined Annuity Prices PL'!$B$10,MATCH($B83,'Combined Annuity Prices PL'!$B$10:$B$3811,0)+12,E$7)*'Master Data'!$J$37)) -> 43.58412545 | F83: =IF($C83="NA","",IF($B83=0,"",OFFSET('Combined Annuity Prices PL'!$B$10,MATCH($B83,'Combined Annuity Prices PL'!$B$10:$B$3811,0)+12,F$7)*'Master Data'!$J$37)) -> 43.358 | G83: =IF($C83="NA","",IF($B83=0,"",OFFSET('Combined Annuity Prices PL'!$B$10,MATCH($B83,'Combined Annuity Prices PL'!$B$10:$B$3811,0)+12,G$7)*'Master Data'!$J$37)) -> 37.75257818 | H83: =IF($C83="NA","",IF($B83=0,"",OFFSET('Combined Annuity Prices PL'!$B$10,MATCH($B83,'Combined Annuity Prices PL'!$B$10:$B$3811,0)+12,H$7)*'Master Data'!$J$37)) -> 37.48185 | I83: =IF($C83="NA","",IF($B83=0,"",OFFSET('Combined Annuity Prices PL'!$B$10,MATCH($B83,'Combined Annuity Prices PL'!$B$10:$B$3811,0)+12,I$7)*'Master Data'!$J$37)) -> 37.19141364 | Q83: 0 | R83: 0 | S83: 0 | T83: 0 | U83: 0 | AC83: =IFERROR(VLOOKUP($B83,Volumes!$B$39:$H$81,MATCH(AC$9,Volumes!$B$4:$H$4,0),FALSE),0) -> 0 | AD83: =IFERROR(VLOOKUP($B83,Volumes!$B$39:$H$81,MATCH(AD$9,Volumes!$B$4:$H$4,0),FALSE),0) -> 0 | AE83: =IFERROR(VLOOKUP($B83,Volumes!$B$39:$H$81,MATCH(AE$9,Volumes!$B$4:$H$4,0),FALSE),0) -> 0 | AF83: =IFERROR(VLOOKUP($B83,Volumes!$B$39:$H$81,MATCH(AF$9,Volumes!$B$4:$H$4,0),FALSE),0) -> 0 | AG83: =IFERROR(VLOOKUP($B83,Volumes!$B$39:$H$81,MATCH(AG$9,Volumes!$B$4:$H$4,0),FALSE),0) -> 0
B84: =Inputs!$C80 -> 3x40W Fluorescent | C84: Old light no volumes | D84: 46.387 | E84: =IF($C84="NA","",IF($B84=0,"",OFFSET('Combined Annuity Prices PL'!$B$10,MATCH($B84,'Combined Annuity Prices PL'!$B$10:$B$3811,0)+12,E$7)*'Master Data'!$J$37)) -> 50.32432364 | F84: =IF($C84="NA","",IF($B84=0,"",OFFSET('Combined Annuity Prices PL'!$B$10,MATCH($B84,'Combined Annuity Prices PL'!$B$10:$B$3811,0)+12,F$7)*'Master Data'!$J$37)) -> 50.12101818 | G84: =IF($C84="NA","",IF($B84=0,"",OFFSET('Combined Annuity Prices PL'!$B$10,MATCH($B84,'Combined Annuity Prices PL'!$B$10:$B$3811,0)+12,G$7)*'Master Data'!$J$37)) -> 44.51974545 | H84: =IF($C84="NA","",IF($B84=0,"",OFFSET('Combined Annuity Prices PL'!$B$10,MATCH($B84,'Combined Annuity Prices PL'!$B$10:$B$3811,0)+12,H$7)*'Master Data'!$J$37)) -> 44.25212909 | I84: =IF($C84="NA","",IF($B84=0,"",OFFSET('Combined Annuity Prices PL'!$B$10,MATCH($B84,'Combined Annuity Prices PL'!$B$10:$B$3811,0)+12,I$7)*'Master Data'!$J$37)) -> 43.94717091 | Q84: 0 | R84: 0 | S84: 0 | T84: 0 | U84: 0 | AC84: =IFERROR(VLOOKUP($B84,Volumes!$B$39:$H$81,MATCH(AC$9,Volumes!$B$4:$H$4,0),FALSE),0) -> 0 | AD84: =IFERROR(VLOOKUP($B84,Volumes!$B$39:$H$81,MATCH(AD$9,Volumes!$B$4:$H$4,0),FALSE),0) -> 0 | AE84: =IFERROR(VLOOKUP($B84,Volumes!$B$39:$H$81,MATCH(AE$9,Volumes!$B$4:$H$4,0),FALSE),0) -> 0 | AF84: =IFERROR(VLOOKUP($B84,Volumes!$B$39:$H$81,MATCH(AF$9,Volumes!$B$4:$H$4,0),FALSE),0) -> 0 | AG84: =IFERROR(VLOOKUP($B84,Volumes!$B$39:$H$81,MATCH(AG$9,Volumes!$B$4:$H$4,0),FALSE),0) -> 0
B85: =Inputs!$C81 -> 4x20 Fluorescent | C85: Old light no volumes | D85: 38.612 | E85: =IF($C85="NA","",IF($B85=0,"",OFFSET('Combined Annuity Prices PL'!$B$10,MATCH($B85,'Combined Annuity Prices PL'!$B$10:$B$3811,0)+12,E$7)*'Master Data'!$J$37)) -> 45.17322727 | F85: =IF($C85="NA","",IF($B85=0,"",OFFSET('Combined Annuity Prices PL'!$B$10,MATCH($B85,'Combined Annuity Prices PL'!$B$10:$B$3811,0)+12,F$7)*'Master Data'!$J$37)) -> 44.95228818 | G85: =IF($C85="NA","",IF($B85=0,"",OFFSET('Combined Annuity Prices PL'!$B$10,MATCH($B85,'Combined Annuity Prices PL'!$B$10:$B$3811,0)+12,G$7)*'Master Data'!$J$37)) -> 39.34686636 | H85: =IF($C85="NA","",IF($B85=0,"",OFFSET('Combined Annuity Prices PL'!$B$10,MATCH($B85,'Combined Annuity Prices PL'!$B$10:$B$3811,0)+12,H$7)*'Master Data'!$J$37)) -> 39.07510091 | I85: =IF($C85="NA","",IF($B85=0,"",OFFSET('Combined Annuity Prices PL'!$B$10,MATCH($B85,'Combined Annuity Prices PL'!$B$10:$B$3811,0)+12,I$7)*'Master Data'!$J$37)) -> 38.78051545 | Q85: 0 | R85: 0 | S85: 0 | T85: 0 | U85: 0 | AC85: =IFERROR(VLOOKUP($B85,Volumes!$B$39:$H$81,MATCH(AC$9,Volumes!$B$4:$H$4,0),FALSE),0) -> 0 | AD85: =IFERROR(VLOOKUP($B85,Volumes!$B$39:$H$81,MATCH(AD$9,Volumes!$B$4:$H$4,0),FALSE),0) -> 0 | AE85: =IFERROR(VLOOKUP($B85,Volumes!$B$39:$H$81,MATCH(AE$9,Volumes!$B$4:$H$4,0),FALSE),0) -> 0 | AF85: =IFERROR(VLOOKUP($B85,Volumes!$B$39:$H$81,MATCH(AF$9,Volumes!$B$4:$H$4,0),FALSE),0) -> 0 | AG85: =IFERROR(VLOOKUP($B85,Volumes!$B$39:$H$81,MATCH(AG$9,Volumes!$B$4:$H$4,0),FALSE),0) -> 0
B86: =Inputs!$C82 -> 4x40W Fluorescent | C86: Old light no volumes | D86: 47.878 | E86: =IF($C86="NA","",IF($B86=0,"",OFFSET('Combined Annuity Prices PL'!$B$10,MATCH($B86,'Combined Annuity Prices PL'!$B$10:$B$3811,0)+12,E$7)*'Master Data'!$J$37)) -> 51.68418818 | F86: =IF($C86="NA","",IF($B86=0,"",OFFSET('Combined Annuity Prices PL'!$B$10,MATCH($B86,'Combined Annuity Prices PL'!$B$10:$B$3811,0)+12,F$7)*'Master Data'!$J$37)) -> 51.48399455 | G86: =IF($C86="NA","",IF($B86=0,"",OFFSET('Combined Annuity Prices PL'!$B$10,MATCH($B86,'Combined Annuity Prices PL'!$B$10:$B$3811,0)+12,G$7)*'Master Data'!$J$37)) -> 45.88272182 | H86: =IF($C86="NA","",IF($B86=0,"",OFFSET('Combined Annuity Prices PL'!$B$10,MATCH($B86,'Combined Annuity Prices PL'!$B$10:$B$3811,0)+12,H$7)*'Master Data'!$J$37)) -> 45.61510545 | I86: =IF($C86="NA","",IF($B86=0,"",OFFSET('Combined Annuity Prices PL'!$B$10,MATCH($B86,'Combined Annuity Prices PL'!$B$10:$B$3811,0)+12,I$7)*'Master Data'!$J$37)) -> 45.30703545 | Q86: 0 | R86: 0 | S86: 0 | T86: 0 | U86: 0 | AC86: =IFERROR(VLOOKUP($B86,Volumes!$B$39:$H$81,MATCH(AC$9,Volumes!$B$4:$H$4,0),FALSE),0) -> 0 | AD86: =IFERROR(VLOOKUP($B86,Volumes!$B$39:$H$81,MATCH(AD$9,Volumes!$B$4:$H$4,0),FALSE),0) -> 0 | AE86: =IFERROR(VLOOKUP($B86,Volumes!$B$39:$H$81,MATCH(AE$9,Volumes!$B$4:$H$4,0),FALSE),0) -> 0 | AF86: =IFERROR(VLOOKUP($B86,Volumes!$B$39:$H$81,MATCH(AF$9,Volumes!$B$4:$H$4,0),FALSE),0) -> 0 | AG86: =IFERROR(VLOOKUP($B86,Volumes!$B$39:$H$81,MATCH(AG$9,Volumes!$B$4:$H$4,0),FALSE),0) -> 0
B87: =Inputs!$C83 -> 100W Sodium Vapour | C87: Offered | D87: 45.521 | E87: =IF($C87="NA","",IF($B87=0,"",OFFSET('Combined Annuity Prices PL'!$B$10,MATCH($B87,'Combined Annuity Prices PL'!$B$10:$B$3811,0)+12,E$7)*'Master Data'!$J$37)) -> 49.53495909 | F87: =IF($C87="NA","",IF($B87=0,"",OFFSET('Combined Annuity Prices PL'!$B$10,MATCH($B87,'Combined Annuity Prices PL'!$B$10:$B$3811,0)+12,F$7)*'Master Data'!$J$37)) -> 49.32854182 | G87: =IF($C87="NA","",IF($B87=0,"",OFFSET('Combined Annuity Prices PL'!$B$10,MATCH($B87,'Combined Annuity Prices PL'!$B$10:$B$3811,0)+12,G$7)*'Master Data'!$J$37)) -> 43.72726909 | H87: =IF($C87="NA","",IF($B87=0,"",OFFSET('Combined Annuity Prices PL'!$B$10,MATCH($B87,'Combined Annuity Prices PL'!$B$10:$B$3811,0)+12,H$7)*'Master Data'!$J$37)) -> 43.45965273 | I87: =IF($C87="NA","",IF($B87=0,"",OFFSET('Combined Annuity Prices PL'!$B$10,MATCH($B87,'Combined Annuity Prices PL'!$B$10:$B$3811,0)+12,I$7)*'Master Data'!$J$37)) -> 43.15780636 | Q87: 0.08049628992 | R87: 0.08390291678 | S87: 0.07820622077 | T87: 0.08153465448 | U87: 0.0852970885 | AC87: =IFERROR(VLOOKUP($B87,Volumes!$B$39:$H$81,MATCH(AC$9,Volumes!$B$4:$H$4,0),FALSE),0) -> 444 | AD87: =IFERROR(VLOOKUP($B87,Volumes!$B$39:$H$81,MATCH(AD$9,Volumes!$B$4:$H$4,0),FALSE),0) -> 466 | AE87: =IFERROR(VLOOKUP($B87,Volumes!$B$39:$H$81,MATCH(AE$9,Volumes!$B$4:$H$4,0),FALSE),0) -> 490 | AF87: =IFERROR(VLOOKUP($B87,Volumes!$B$39:$H$81,MATCH(AF$9,Volumes!$B$4:$H$4,0),FALSE),0) -> 514 | AG87: =IFERROR(VLOOKUP($B87,Volumes!$B$39:$H$81,MATCH(AG$9,Volumes!$B$4:$H$4,0),FALSE),0) -> 540
B88: =Inputs!$C84 -> 0 | C88: NA | E88: =IF($C88="NA","",IF($B88=0,"",OFFSET('Combined Annuity Prices PL'!$B$10,MATCH($B88,'Combined Annuity Prices PL'!$B$10:$B$3811,0)+12,E$7)*'Master Data'!$J$37)) ->  | F88: =IF($C88="NA","",IF($B88=0,"",OFFSET('Combined Annuity Prices PL'!$B$10,MATCH($B88,'Combined Annuity Prices PL'!$B$10:$B$3811,0)+12,F$7)*'Master Data'!$J$37)) ->  | G88: =IF($C88="NA","",IF($B88=0,"",OFFSET('Combined Annuity Prices PL'!$B$10,MATCH($B88,'Combined Annuity Prices PL'!$B$10:$B$3811,0)+12,G$7)*'Master Data'!$J$37)) ->  | H88: =IF($C88="NA","",IF($B88=0,"",OFFSET('Combined Annuity Prices PL'!$B$10,MATCH($B88,'Combined Annuity Prices PL'!$B$10:$B$3811,0)+12,H$7)*'Master Data'!$J$37)) ->  | I88: =IF($C88="NA","",IF($B88=0,"",OFFSET('Combined Annuity Prices PL'!$B$10,MATCH($B88,'Combined Annuity Prices PL'!$B$10:$B$3811,0)+12,I$7)*'Master Data'!$J$37)) ->  | AC88: =IFERROR(VLOOKUP($B88,Volumes!$B$39:$H$81,MATCH(AC$9,Volumes!$B$4:$H$4,0),FALSE),0) -> 0 | AD88: =IFERROR(VLOOKUP($B88,Volumes!$B$39:$H$81,MATCH(AD$9,Volumes!$B$4:$H$4,0),FALSE),0) -> 0 | AE88: =IFERROR(VLOOKUP($B88,Volumes!$B$39:$H$81,MATCH(AE$9,Volumes!$B$4:$H$4,0),FALSE),0) -> 0 | AF88: =IFERROR(VLOOKUP($B88,Volumes!$B$39:$H$81,MATCH(AF$9,Volumes!$B$4:$H$4,0),FALSE),0) -> 0 | AG88: =IFERROR(VLOOKUP($B88,Volumes!$B$39:$H$81,MATCH(AG$9,Volumes!$B$4:$H$4,0),FALSE),0) -> 0
B89: =Inputs!$C85 -> 150W Sodium Vapour | C89: Offered | D89: 47.881 | E89: =IF($C89="NA","",IF($B89=0,"",OFFSET('Combined Annuity Prices PL'!$B$10,MATCH($B89,'Combined Annuity Prices PL'!$B$10:$B$3811,0)+12,E$7)*'Master Data'!$J$37)) -> 52.07109091 | F89: =IF($C89="NA","",IF($B89=0,"",OFFSET('Combined Annuity Prices PL'!$B$10,MATCH($B89,'Combined Annuity Prices PL'!$B$10:$B$3811,0)+12,F$7)*'Master Data'!$J$37)) -> 51.87089727 | G89: =IF($C89="NA","",IF($B89=0,"",OFFSET('Combined Annuity Prices PL'!$B$10,MATCH($B89,'Combined Annuity Prices PL'!$B$10:$B$3811,0)+12,G$7)*'Master Data'!$J$37)) -> 46.27066182 | H89: =IF($C89="NA","",IF($B89=0,"",OFFSET('Combined Annuity Prices PL'!$B$10,MATCH($B89,'Combined Annuity Prices PL'!$B$10:$B$3811,0)+12,H$7)*'Master Data'!$J$37)) -> 46.00304545 | I89: =IF($C89="NA","",IF($B89=0,"",OFFSET('Combined Annuity Prices PL'!$B$10,MATCH($B89,'Combined Annuity Prices PL'!$B$10:$B$3811,0)+12,I$7)*'Master Data'!$J$37)) -> 45.69393818 | Q89: 1.014267786 | R89: 1.057969195 | S89: 0.9731321699 | T89: 1.008809984 | U89: 1.058293541 | AC89: =IFERROR(VLOOKUP($B89,Volumes!$B$39:$H$81,MATCH(AC$9,Volumes!$B$4:$H$4,0),FALSE),0) -> 5322 | AD89: =IFERROR(VLOOKUP($B89,Volumes!$B$39:$H$81,MATCH(AD$9,Volumes!$B$4:$H$4,0),FALSE),0) -> 5588 | AE89: =IFERROR(VLOOKUP($B89,Volumes!$B$39:$H$81,MATCH(AE$9,Volumes!$B$4:$H$4,0),FALSE),0) -> 5762 | AF89: =IFERROR(VLOOKUP($B89,Volumes!$B$39:$H$81,MATCH(AF$9,Volumes!$B$4:$H$4,0),FALSE),0) -> 6008 | AG89: =IFERROR(VLOOKUP($B89,Volumes!$B$39:$H$81,MATCH(AG$9,Volumes!$B$4:$H$4,0),FALSE),0) -> 6328
B90: =Inputs!$C86 -> 0 | C90: NA | E90: =IF($C90="NA","",IF($B90=0,"",OFFSET('Combined Annuity Prices PL'!$B$10,MATCH($B90,'Combined Annuity Prices PL'!$B$10:$B$3811,0)+12,E$7)*'Master Data'!$J$37)) ->  | F90: =IF($C90="NA","",IF($B90=0,"",OFFSET('Combined Annuity Prices PL'!$B$10,MATCH($B90,'Combined Annuity Prices PL'!$B$10:$B$3811,0)+12,F$7)*'Master Data'!$J$37)) ->  | G90: =IF($C90="NA","",IF($B90=0,"",OFFSET('Combined Annuity Prices PL'!$B$10,MATCH($B90,'Combined Annuity Prices PL'!$B$10:$B$3811,0)+12,G$7)*'Master Data'!$J$37)) ->  | H90: =IF($C90="NA","",IF($B90=0,"",OFFSET('Combined Annuity Prices PL'!$B$10,MATCH($B90,'Combined Annuity Prices PL'!$B$10:$B$3811,0)+12,H$7)*'Master Data'!$J$37)) ->  | I90: =IF($C90="NA","",IF($B90=0,"",OFFSET('Combined Annuity Prices PL'!$B$10,MATCH($B90,'Combined Annuity Prices PL'!$B$10:$B$3811,0)+12,I$7)*'Master Data'!$J$37)) ->  | AC90: =IFERROR(VLOOKUP($B90,Volumes!$B$39:$H$81,MATCH(AC$9,Volumes!$B$4:$H$4,0),FALSE),0) -> 0 | AD90: =IFERROR(VLOOKUP($B90,Volumes!$B$39:$H$81,MATCH(AD$9,Volumes!$B$4:$H$4,0),FALSE),0) -> 0 | AE90: =IFERROR(VLOOKUP($B90,Volumes!$B$39:$H$81,MATCH(AE$9,Volumes!$B$4:$H$4,0),FALSE),0) -> 0 | AF90: =IFERROR(VLOOKUP($B90,Volumes!$B$39:$H$81,MATCH(AF$9,Volumes!$B$4:$H$4,0),FALSE),0) -> 0 | AG90: =IFERROR(VLOOKUP($B90,Volumes!$B$39:$H$81,MATCH(AG$9,Volumes!$B$4:$H$4,0),FALSE),0) -> 0
B91: =Inputs!$C87 -> 0 | C91: NA | E91: =IF($C91="NA","",IF($B91=0,"",OFFSET('Combined Annuity Prices PL'!$B$10,MATCH($B91,'Combined Annuity Prices PL'!$B$10:$B$3811,0)+12,E$7)*'Master Data'!$J$37)) ->  | F91: =IF($C91="NA","",IF($B91=0,"",OFFSET('Combined Annuity Prices PL'!$B$10,MATCH($B91,'Combined Annuity Prices PL'!$B$10:$B$3811,0)+12,F$7)*'Master Data'!$J$37)) ->  | G91: =IF($C91="NA","",IF($B91=0,"",OFFSET('Combined Annuity Prices PL'!$B$10,MATCH($B91,'Combined Annuity Prices PL'!$B$10:$B$3811,0)+12,G$7)*'Master Data'!$J$37)) ->  | H91: =IF($C91="NA","",IF($B91=0,"",OFFSET('Combined Annuity Prices PL'!$B$10,MATCH($B91,'Combined Annuity Prices PL'!$B$10:$B$3811,0)+12,H$7)*'Master Data'!$J$37)) ->  | I91: =IF($C91="NA","",IF($B91=0,"",OFFSET('Combined Annuity Prices PL'!$B$10,MATCH($B91,'Combined Annuity Prices PL'!$B$10:$B$3811,0)+12,I$7)*'Master Data'!$J$37)) ->  | AC91: =IFERROR(VLOOKUP($B91,Volumes!$B$39:$H$81,MATCH(AC$9,Volumes!$B$4:$H$4,0),FALSE),0) -> 0 | AD91: =IFERROR(VLOOKUP($B91,Volumes!$B$39:$H$81,MATCH(AD$9,Volumes!$B$4:$H$4,0),FALSE),0) -> 0 | AE91: =IFERROR(VLOOKUP($B91,Volumes!$B$39:$H$81,MATCH(AE$9,Volumes!$B$4:$H$4,0),FALSE),0) -> 0 | AF91: =IFERROR(VLOOKUP($B91,Volumes!$B$39:$H$81,MATCH(AF$9,Volumes!$B$4:$H$4,0),FALSE),0) -> 0 | AG91: =IFERROR(VLOOKUP($B91,Volumes!$B$39:$H$81,MATCH(AG$9,Volumes!$B$4:$H$4,0),FALSE),0) -> 0
B92: =Inputs!$C88 -> 0 | C92: NA | E92: =IF($C92="NA","",IF($B92=0,"",OFFSET('Combined Annuity Prices PL'!$B$10,MATCH($B92,'Combined Annuity Prices PL'!$B$10:$B$3811,0)+12,E$7)*'Master Data'!$J$37)) ->  | F92: =IF($C92="NA","",IF($B92=0,"",OFFSET('Combined Annuity Prices PL'!$B$10,MATCH($B92,'Combined Annuity Prices PL'!$B$10:$B$3811,0)+12,F$7)*'Master Data'!$J$37)) ->  | G92: =IF($C92="NA","",IF($B92=0,"",OFFSET('Combined Annuity Prices PL'!$B$10,MATCH($B92,'Combined Annuity Prices PL'!$B$10:$B$3811,0)+12,G$7)*'Master Data'!$J$37)) ->  | H92: =IF($C92="NA","",IF($B92=0,"",OFFSET('Combined Annuity Prices PL'!$B$10,MATCH($B92,'Combined Annuity Prices PL'!$B$10:$B$3811,0)+12,H$7)*'Master Data'!$J$37)) ->  | I92: =IF($C92="NA","",IF($B92=0,"",OFFSET('Combined Annuity Prices PL'!$B$10,MATCH($B92,'Combined Annuity Prices PL'!$B$10:$B$3811,0)+12,I$7)*'Master Data'!$J$37)) ->  | AC92: =IFERROR(VLOOKUP($B92,Volumes!$B$39:$H$81,MATCH(AC$9,Volumes!$B$4:$H$4,0),FALSE),0) -> 0 | AD92: =IFERROR(VLOOKUP($B92,Volumes!$B$39:$H$81,MATCH(AD$9,Volumes!$B$4:$H$4,0),FALSE),0) -> 0 | AE92: =IFERROR(VLOOKUP($B92,Volumes!$B$39:$H$81,MATCH(AE$9,Volumes!$B$4:$H$4,0),FALSE),0) -> 0 | AF92: =IFERROR(VLOOKUP($B92,Volumes!$B$39:$H$81,MATCH(AF$9,Volumes!$B$4:$H$4,0),FALSE),0) -> 0 | AG92: =IFERROR(VLOOKUP($B92,Volumes!$B$39:$H$81,MATCH(AG$9,Volumes!$B$4:$H$4,0),FALSE),0) -> 0
B93: =Inputs!$C89 -> 250W Sodium Vapour | C93: Offered | D93: 49.024 | E93: =IF($C93="NA","",IF($B93=0,"",OFFSET('Combined Annuity Prices PL'!$B$10,MATCH($B93,'Combined Annuity Prices PL'!$B$10:$B$3811,0)+12,E$7)*'Master Data'!$J$37)) -> 53.26706636 | F93: =IF($C93="NA","",IF($B93=0,"",OFFSET('Combined Annuity Prices PL'!$B$10,MATCH($B93,'Combined Annuity Prices PL'!$B$10:$B$3811,0)+12,F$7)*'Master Data'!$J$37)) -> 53.07102182 | G93: =IF($C93="NA","",IF($B93=0,"",OFFSET('Combined Annuity Prices PL'!$B$10,MATCH($B93,'Combined Annuity Prices PL'!$B$10:$B$3811,0)+12,G$7)*'Master Data'!$J$37)) -> 47.46974909 | H93: =IF($C93="NA","",IF($B93=0,"",OFFSET('Combined Annuity Prices PL'!$B$10,MATCH($B93,'Combined Annuity Prices PL'!$B$10:$B$3811,0)+12,H$7)*'Master Data'!$J$37)) -> 47.20213273 | I93: =IF($C93="NA","",IF($B93=0,"",OFFSET('Combined Annuity Prices PL'!$B$10,MATCH($B93,'Combined Annuity Prices PL'!$B$10:$B$3811,0)+12,I$7)*'Master Data'!$J$37)) -> 46.88887636 | Q93: 1.289643617 | R93: 1.345504309 | S93: 1.263618612 | T93: 1.318690702 | U93: 1.379770831 | AC93: =IFERROR(VLOOKUP($B93,Volumes!$B$39:$H$81,MATCH(AC$9,Volumes!$B$4:$H$4,0),FALSE),0) -> 6615 | AD93: =IFERROR(VLOOKUP($B93,Volumes!$B$39:$H$81,MATCH(AD$9,Volumes!$B$4:$H$4,0),FALSE),0) -> 6946 | AE93: =IFERROR(VLOOKUP($B93,Volumes!$B$39:$H$81,MATCH(AE$9,Volumes!$B$4:$H$4,0),FALSE),0) -> 7293 | AF93: =IFERROR(VLOOKUP($B93,Volumes!$B$39:$H$81,MATCH(AF$9,Volumes!$B$4:$H$4,0),FALSE),0) -> 7654 | AG93: =IFERROR(VLOOKUP($B93,Volumes!$B$39:$H$81,MATCH(AG$9,Volumes!$B$4:$H$4,0),FALSE),0) -> 8040
B94: =Inputs!$C90 -> 0 | C94: NA | E94: =IF($C94="NA","",IF($B94=0,"",OFFSET('Combined Annuity Prices PL'!$B$10,MATCH($B94,'Combined Annuity Prices PL'!$B$10:$B$3811,0)+12,E$7)*'Master Data'!$J$37)) ->  | F94: =IF($C94="NA","",IF($B94=0,"",OFFSET('Combined Annuity Prices PL'!$B$10,MATCH($B94,'Combined Annuity Prices PL'!$B$10:$B$3811,0)+12,F$7)*'Master Data'!$J$37)) ->  | G94: =IF($C94="NA","",IF($B94=0,"",OFFSET('Combined Annuity Prices PL'!$B$10,MATCH($B94,'Combined Annuity Prices PL'!$B$10:$B$3811,0)+12,G$7)*'Master Data'!$J$37)) ->  | H94: =IF($C94="NA","",IF($B94=0,"",OFFSET('Combined Annuity Prices PL'!$B$10,MATCH($B94,'Combined Annuity Prices PL'!$B$10:$B$3811,0)+12,H$7)*'Master Data'!$J$37)) ->  | I94: =IF($C94="NA","",IF($B94=0,"",OFFSET('Combined Annuity Prices PL'!$B$10,MATCH($B94,'Combined Annuity Prices PL'!$B$10:$B$3811,0)+12,I$7)*'Master Data'!$J$37)) ->  | AC94: =IFERROR(VLOOKUP($B94,Volumes!$B$39:$H$81,MATCH(AC$9,Volumes!$B$4:$H$4,0),FALSE),0) -> 0 | AD94: =IFERROR(VLOOKUP($B94,Volumes!$B$39:$H$81,MATCH(AD$9,Volumes!$B$4:$H$4,0),FALSE),0) -> 0 | AE94: =IFERROR(VLOOKUP($B94,Volumes!$B$39:$H$81,MATCH(AE$9,Volumes!$B$4:$H$4,0),FALSE),0) -> 0 | AF94: =IFERROR(VLOOKUP($B94,Volumes!$B$39:$H$81,MATCH(AF$9,Volumes!$B$4:$H$4,0),FALSE),0) -> 0 | AG94: =IFERROR(VLOOKUP($B94,Volumes!$B$39:$H$81,MATCH(AG$9,Volumes!$B$4:$H$4,0),FALSE),0) -> 0
B95: =Inputs!$C91 -> 0 | C95: NA | E95: =IF($C95="NA","",IF($B95=0,"",OFFSET('Combined Annuity Prices PL'!$B$10,MATCH($B95,'Combined Annuity Prices PL'!$B$10:$B$3811,0)+12,E$7)*'Master Data'!$J$37)) ->  | F95: =IF($C95="NA","",IF($B95=0,"",OFFSET('Combined Annuity Prices PL'!$B$10,MATCH($B95,'Combined Annuity Prices PL'!$B$10:$B$3811,0)+12,F$7)*'Master Data'!$J$37)) ->  | G95: =IF($C95="NA","",IF($B95=0,"",OFFSET('Combined Annuity Prices PL'!$B$10,MATCH($B95,'Combined Annuity Prices PL'!$B$10:$B$3811,0)+12,G$7)*'Master Data'!$J$37)) ->  | H95: =IF($C95="NA","",IF($B95=0,"",OFFSET('Combined Annuity Prices PL'!$B$10,MATCH($B95,'Combined Annuity Prices PL'!$B$10:$B$3811,0)+12,H$7)*'Master Data'!$J$37)) ->  | I95: =IF($C95="NA","",IF($B95=0,"",OFFSET('Combined Annuity Prices PL'!$B$10,MATCH($B95,'Combined Annuity Prices PL'!$B$10:$B$3811,0)+12,I$7)*'Master Data'!$J$37)) ->  | AC95: =IFERROR(VLOOKUP($B95,Volumes!$B$39:$H$81,MATCH(AC$9,Volumes!$B$4:$H$4,0),FALSE),0) -> 0 | AD95: =IFERROR(VLOOKUP($B95,Volumes!$B$39:$H$81,MATCH(AD$9,Volumes!$B$4:$H$4,0),FALSE),0) -> 0 | AE95: =IFERROR(VLOOKUP($B95,Volumes!$B$39:$H$81,MATCH(AE$9,Volumes!$B$4:$H$4,0),FALSE),0) -> 0 | AF95: =IFERROR(VLOOKUP($B95,Volumes!$B$39:$H$81,MATCH(AF$9,Volumes!$B$4:$H$4,0),FALSE),0) -> 0 | AG95: =IFERROR(VLOOKUP($B95,Volumes!$B$39:$H$81,MATCH(AG$9,Volumes!$B$4:$H$4,0),FALSE),0) -> 0
B96: =Inputs!$C92 -> 0 | C96: NA | E96: =IF($C96="NA","",IF($B96=0,"",OFFSET('Combined Annuity Prices PL'!$B$10,MATCH($B96,'Combined Annuity Prices PL'!$B$10:$B$3811,0)+12,E$7)*'Master Data'!$J$37)) ->  | F96: =IF($C96="NA","",IF($B96=0,"",OFFSET('Combined Annuity Prices PL'!$B$10,MATCH($B96,'Combined Annuity Prices PL'!$B$10:$B$3811,0)+12,F$7)*'Master Data'!$J$37)) ->  | G96: =IF($C96="NA","",IF($B96=0,"",OFFSET('Combined Annuity Prices PL'!$B$10,MATCH($B96,'Combined Annuity Prices PL'!$B$10:$B$3811,0)+12,G$7)*'Master Data'!$J$37)) ->  | H96: =IF($C96="NA","",IF($B96=0,"",OFFSET('Combined Annuity Prices PL'!$B$10,MATCH($B96,'Combined Annuity Prices PL'!$B$10:$B$3811,0)+12,H$7)*'Master Data'!$J$37)) ->  | I96: =IF($C96="NA","",IF($B96=0,"",OFFSET('Combined Annuity Prices PL'!$B$10,MATCH($B96,'Combined Annuity Prices PL'!$B$10:$B$3811,0)+12,I$7)*'Master Data'!$J$37)) ->  | AC96: =IFERROR(VLOOKUP($B96,Volumes!$B$39:$H$81,MATCH(AC$9,Volumes!$B$4:$H$4,0),FALSE),0) -> 0 | AD96: =IFERROR(VLOOKUP($B96,Volumes!$B$39:$H$81,MATCH(AD$9,Volumes!$B$4:$H$4,0),FALSE),0) -> 0 | AE96: =IFERROR(VLOOKUP($B96,Volumes!$B$39:$H$81,MATCH(AE$9,Volumes!$B$4:$H$4,0),FALSE),0) -> 0 | AF96: =IFERROR(VLOOKUP($B96,Volumes!$B$39:$H$81,MATCH(AF$9,Volumes!$B$4:$H$4,0),FALSE),0) -> 0 | AG96: =IFERROR(VLOOKUP($B96,Volumes!$B$39:$H$81,MATCH(AG$9,Volumes!$B$4:$H$4,0),FALSE),0) -> 0
B97: =Inputs!$C93 -> 250W Sodium Vapour - Flood Light | C97: Offered | D97: 53.133 | E97: =IF($C97="NA","",IF($B97=0,"",OFFSET('Combined Annuity Prices PL'!$B$10,MATCH($B97,'Combined Annuity Prices PL'!$B$10:$B$3811,0)+12,E$7)*'Master Data'!$J$37)) -> 56.85914182 | F97: =IF($C97="NA","",IF($B97=0,"",OFFSET('Combined Annuity Prices PL'!$B$10,MATCH($B97,'Combined Annuity Prices PL'!$B$10:$B$3811,0)+12,F$7)*'Master Data'!$J$37)) -> 56.67243273 | G97: =IF($C97="NA","",IF($B97=0,"",OFFSET('Combined Annuity Prices PL'!$B$10,MATCH($B97,'Combined Annuity Prices PL'!$B$10:$B$3811,0)+12,G$7)*'Master Data'!$J$37)) -> 51.07116 | H97: =IF($C97="NA","",IF($B97=0,"",OFFSET('Combined Annuity Prices PL'!$B$10,MATCH($B97,'Combined Annuity Prices PL'!$B$10:$B$3811,0)+12,H$7)*'Master Data'!$J$37)) -> 50.80354364 | I97: =IF($C97="NA","",IF($B97=0,"",OFFSET('Combined Annuity Prices PL'!$B$10,MATCH($B97,'Combined Annuity Prices PL'!$B$10:$B$3811,0)+12,I$7)*'Master Data'!$J$37)) -> 50.48198909 | Q97: 0.007491760526 | R97: 0.007860466419 | S97: 0.00745638936 | T97: 0.007788183239 | U97: 0.008129619523 | AC97: =IFERROR(VLOOKUP($B97,Volumes!$B$39:$H$81,MATCH(AC$9,Volumes!$B$4:$H$4,0),FALSE),0) -> 36 | AD97: =IFERROR(VLOOKUP($B97,Volumes!$B$39:$H$81,MATCH(AD$9,Volumes!$B$4:$H$4,0),FALSE),0) -> 38 | AE97: =IFERROR(VLOOKUP($B97,Volumes!$B$39:$H$81,MATCH(AE$9,Volumes!$B$4:$H$4,0),FALSE),0) -> 40 | AF97: =IFERROR(VLOOKUP($B97,Volumes!$B$39:$H$81,MATCH(AF$9,Volumes!$B$4:$H$4,0),FALSE),0) -> 42 | AG97: =IFERROR(VLOOKUP($B97,Volumes!$B$39:$H$81,MATCH(AG$9,Volumes!$B$4:$H$4,0),FALSE),0) -> 44
B98: =Inputs!$C94 -> 400W Sodium Vapour | C98: Offered | D98: 49.888 | E98: =IF($C98="NA","",IF($B98=0,"",OFFSET('Combined Annuity Prices PL'!$B$10,MATCH($B98,'Combined Annuity Prices PL'!$B$10:$B$3811,0)+12,E$7)*'Master Data'!$J$37)) -> 53.86246091 | F98: =IF($C98="NA","",IF($B98=0,"",OFFSET('Combined Annuity Prices PL'!$B$10,MATCH($B98,'Combined Annuity Prices PL'!$B$10:$B$3811,0)+12,F$7)*'Master Data'!$J$37)) -> 53.66849091 | G98: =IF($C98="NA","",IF($B98=0,"",OFFSET('Combined Annuity Prices PL'!$B$10,MATCH($B98,'Combined Annuity Prices PL'!$B$10:$B$3811,0)+12,G$7)*'Master Data'!$J$37)) -> 48.06721818 | H98: =IF($C98="NA","",IF($B98=0,"",OFFSET('Combined Annuity Prices PL'!$B$10,MATCH($B98,'Combined Annuity Prices PL'!$B$10:$B$3811,0)+12,H$7)*'Master Data'!$J$37)) -> 47.79960182 | I98: =IF($C98="NA","",IF($B98=0,"",OFFSET('Combined Annuity Prices PL'!$B$10,MATCH($B98,'Combined Annuity Prices PL'!$B$10:$B$3811,0)+12,I$7)*'Master Data'!$J$37)) -> 47.48530818 | Q98: 0.1328700731 | R98: 0.1386901142 | S98: 0.1286014389 | T98: 0.1332939696 | U98: 0.1400797597 | AC98: =IFERROR(VLOOKUP($B98,Volumes!$B$39:$H$81,MATCH(AC$9,Volumes!$B$4:$H$4,0),FALSE),0) -> 674 | AD98: =IFERROR(VLOOKUP($B98,Volumes!$B$39:$H$81,MATCH(AD$9,Volumes!$B$4:$H$4,0),FALSE),0) -> 708 | AE98: =IFERROR(VLOOKUP($B98,Volumes!$B$39:$H$81,MATCH(AE$9,Volumes!$B$4:$H$4,0),FALSE),0) -> 733 | AF98: =IFERROR(VLOOKUP($B98,Volumes!$B$39:$H$81,MATCH(AF$9,Volumes!$B$4:$H$4,0),FALSE),0) -> 764 | AG98: =IFERROR(VLOOKUP($B98,Volumes!$B$39:$H$81,MATCH(AG$9,Volumes!$B$4:$H$4,0),FALSE),0) -> 806
B99: =Inputs!$C95 -> 0 | C99: NA | E99: =IF($C99="NA","",IF($B99=0,"",OFFSET('Combined Annuity Prices PL'!$B$10,MATCH($B99,'Combined Annuity Prices PL'!$B$10:$B$3811,0)+12,E$7)*'Master Data'!$J$37)) ->  | F99: =IF($C99="NA","",IF($B99=0,"",OFFSET('Combined Annuity Prices PL'!$B$10,MATCH($B99,'Combined Annuity Prices PL'!$B$10:$B$3811,0)+12,F$7)*'Master Data'!$J$37)) ->  | G99: =IF($C99="NA","",IF($B99=0,"",OFFSET('Combined Annuity Prices PL'!$B$10,MATCH($B99,'Combined Annuity Prices PL'!$B$10:$B$3811,0)+12,G$7)*'Master Data'!$J$37)) ->  | H99: =IF($C99="NA","",IF($B99=0,"",OFFSET('Combined Annuity Prices PL'!$B$10,MATCH($B99,'Combined Annuity Prices PL'!$B$10:$B$3811,0)+12,H$7)*'Master Data'!$J$37)) ->  | I99: =IF($C99="NA","",IF($B99=0,"",OFFSET('Combined Annuity Prices PL'!$B$10,MATCH($B99,'Combined Annuity Prices PL'!$B$10:$B$3811,0)+12,I$7)*'Master Data'!$J$37)) ->  | AC99: =IFERROR(VLOOKUP($B99,Volumes!$B$39:$H$81,MATCH(AC$9,Volumes!$B$4:$H$4,0),FALSE),0) -> 0 | AD99: =IFERROR(VLOOKUP($B99,Volumes!$B$39:$H$81,MATCH(AD$9,Volumes!$B$4:$H$4,0),FALSE),0) -> 0 | AE99: =IFERROR(VLOOKUP($B99,Volumes!$B$39:$H$81,MATCH(AE$9,Volumes!$B$4:$H$4,0),FALSE),0) -> 0 | AF99: =IFERROR(VLOOKUP($B99,Volumes!$B$39:$H$81,MATCH(AF$9,Volumes!$B$4:$H$4,0),FALSE),0) -> 0 | AG99: =IFERROR(VLOOKUP($B99,Volumes!$B$39:$H$81,MATCH(AG$9,Volumes!$B$4:$H$4,0),FALSE),0) -> 0
B100: =Inputs!$C96 -> 400W Sodium Vapour - Flood Light | C100: Offered | D100: 52.599 | E100: =IF($C100="NA","",IF($B100=0,"",OFFSET('Combined Annuity Prices PL'!$B$10,MATCH($B100,'Combined Annuity Prices PL'!$B$10:$B$3811,0)+12,E$7)*'Master Data'!$J$37)) -> 56.23159182 | F100: =IF($C100="NA","",IF($B100=0,"",OFFSET('Combined Annuity Prices PL'!$B$10,MATCH($B100,'Combined Annuity Prices PL'!$B$10:$B$3811,0)+12,F$7)*'Master Data'!$J$37)) -> 56.04384545 | G100: =IF($C100="NA","",IF($B100=0,"",OFFSET('Combined Annuity Prices PL'!$B$10,MATCH($B100,'Combined Annuity Prices PL'!$B$10:$B$3811,0)+12,G$7)*'Master Data'!$J$37)) -> 50.44257273 | H100: =IF($C100="NA","",IF($B100=0,"",OFFSET('Combined Annuity Prices PL'!$B$10,MATCH($B100,'Combined Annuity Prices PL'!$B$10:$B$3811,0)+12,H$7)*'Master Data'!$J$37)) -> 50.17495636 | I100: =IF($C100="NA","",IF($B100=0,"",OFFSET('Combined Annuity Prices PL'!$B$10,MATCH($B100,'Combined Annuity Prices PL'!$B$10:$B$3811,0)+12,I$7)*'Master Data'!$J$37)) -> 49.85443909 | Q100: 0.007409074538 | R100: 0.007773281365 | S100: 0.007364615618 | T100: 0.007691820811 | U100: 0.008028558871 | AC100: =IFERROR(VLOOKUP($B100,Volumes!$B$39:$H$81,MATCH(AC$9,Volumes!$B$4:$H$4,0),FALSE),0) -> 36 | AD100: =IFERROR(VLOOKUP($B100,Volumes!$B$39:$H$81,MATCH(AD$9,Volumes!$B$4:$H$4,0),FALSE),0) -> 38 | AE100: =IFERROR(VLOOKUP($B100,Volumes!$B$39:$H$81,MATCH(AE$9,Volumes!$B$4:$H$4,0),FALSE),0) -> 40 | AF100: =IFERROR(VLOOKUP($B100,Volumes!$B$39:$H$81,MATCH(AF$9,Volumes!$B$4:$H$4,0),FALSE),0) -> 42 | AG100: =IFERROR(VLOOKUP($B100,Volumes!$B$39:$H$81,MATCH(AG$9,Volumes!$B$4:$H$4,0),FALSE),0) -> 44
B101: =Inputs!$C97 -> 70W Sodium Vapour | C101: Offered | D101: 35.882 | E101: =IF($C101="NA","",IF($B101=0,"",OFFSET('Combined Annuity Prices PL'!$B$10,MATCH($B101,'Combined Annuity Prices PL'!$B$10:$B$3811,0)+12,E$7)*'Master Data'!$J$37)) -> 42.73874818 | F101: =IF($C101="NA","",IF($B101=0,"",OFFSET('Combined Annuity Prices PL'!$B$10,MATCH($B101,'Combined Annuity Prices PL'!$B$10:$B$3811,0)+12,F$7)*'Master Data'!$J$37)) -> 42.51158545 | G101: =IF($C101="NA","",IF($B101=0,"",OFFSET('Combined Annuity Prices PL'!$B$10,MATCH($B101,'Combined Annuity Prices PL'!$B$10:$B$3811,0)+12,G$7)*'Master Data'!$J$37)) -> 36.90616364 | H101: =IF($C101="NA","",IF($B101=0,"",OFFSET('Combined Annuity Prices PL'!$B$10,MATCH($B101,'Combined Annuity Prices PL'!$B$10:$B$3811,0)+12,H$7)*'Master Data'!$J$37)) -> 36.63439818 | I101: =IF($C101="NA","",IF($B101=0,"",OFFSET('Combined Annuity Prices PL'!$B$10,MATCH($B101,'Combined Annuity Prices PL'!$B$10:$B$3811,0)+12,I$7)*'Master Data'!$J$37)) -> 36.34603636 | Q101: 0.03691602113 | R101: 0.03848148715 | S101: 0.03502394929 | T101: 0.03637063051 | U101: 0.03804557702 | AC101: =IFERROR(VLOOKUP($B101,Volumes!$B$39:$H$81,MATCH(AC$9,Volumes!$B$4:$H$4,0),FALSE),0) -> 236 | AD101: =IFERROR(VLOOKUP($B101,Volumes!$B$39:$H$81,MATCH(AD$9,Volumes!$B$4:$H$4,0),FALSE),0) -> 248 | AE101: =IFERROR(VLOOKUP($B101,Volumes!$B$39:$H$81,MATCH(AE$9,Volumes!$B$4:$H$4,0),FALSE),0) -> 260 | AF101: =IFERROR(VLOOKUP($B101,Volumes!$B$39:$H$81,MATCH(AF$9,Volumes!$B$4:$H$4,0),FALSE),0) -> 272 | AG101: =IFERROR(VLOOKUP($B101,Volumes!$B$39:$H$81,MATCH(AG$9,Volumes!$B$4:$H$4,0),FALSE),0) -> 286
B102: =Inputs!$C98 -> 0 | C102: NA | E102: =IF($C102="NA","",IF($B102=0,"",OFFSET('Combined Annuity Prices PL'!$B$10,MATCH($B102,'Combined Annuity Prices PL'!$B$10:$B$3811,0)+12,E$7)*'Master Data'!$J$37)) ->  | F102: =IF($C102="NA","",IF($B102=0,"",OFFSET('Combined Annuity Prices PL'!$B$10,MATCH($B102,'Combined Annuity Prices PL'!$B$10:$B$3811,0)+12,F$7)*'Master Data'!$J$37)) ->  | G102: =IF($C102="NA","",IF($B102=0,"",OFFSET('Combined Annuity Prices PL'!$B$10,MATCH($B102,'Combined Annuity Prices PL'!$B$10:$B$3811,0)+12,G$7)*'Master Data'!$J$37)) ->  | H102: =IF($C102="NA","",IF($B102=0,"",OFFSET('Combined Annuity Prices PL'!$B$10,MATCH($B102,'Combined Annuity Prices PL'!$B$10:$B$3811,0)+12,H$7)*'Master Data'!$J$37)) ->  | I102: =IF($C102="NA","",IF($B102=0,"",OFFSET('Combined Annuity Prices PL'!$B$10,MATCH($B102,'Combined Annuity Prices PL'!$B$10:$B$3811,0)+12,I$7)*'Master Data'!$J$37)) ->  | AC102: =IFERROR(VLOOKUP($B102,Volumes!$B$39:$H$81,MATCH(AC$9,Volumes!$B$4:$H$4,0),FALSE),0) -> 0 | AD102: =IFERROR(VLOOKUP($B102,Volumes!$B$39:$H$81,MATCH(AD$9,Volumes!$B$4:$H$4,0),FALSE),0) -> 0 | AE102: =IFERROR(VLOOKUP($B102,Volumes!$B$39:$H$81,MATCH(AE$9,Volumes!$B$4:$H$4,0),FALSE),0) -> 0 | AF102: =IFERROR(VLOOKUP($B102,Volumes!$B$39:$H$81,MATCH(AF$9,Volumes!$B$4:$H$4,0),FALSE),0) -> 0 | AG102: =IFERROR(VLOOKUP($B102,Volumes!$B$39:$H$81,MATCH(AG$9,Volumes!$B$4:$H$4,0),FALSE),0) -> 0
B103: =Inputs!$C99 -> 100W Incandescent | C103: Old light no volumes | D103: 41.975 | E103: =IF($C103="NA","",IF($B103=0,"",OFFSET('Combined Annuity Prices PL'!$B$10,MATCH($B103,'Combined Annuity Prices PL'!$B$10:$B$3811,0)+12,E$7)*'Master Data'!$J$37)) -> 46.21153727 | F103: =IF($C103="NA","",IF($B103=0,"",OFFSET('Combined Annuity Prices PL'!$B$10,MATCH($B103,'Combined Annuity Prices PL'!$B$10:$B$3811,0)+12,F$7)*'Master Data'!$J$37)) -> 45.99578455 | G103: =IF($C103="NA","",IF($B103=0,"",OFFSET('Combined Annuity Prices PL'!$B$10,MATCH($B103,'Combined Annuity Prices PL'!$B$10:$B$3811,0)+12,G$7)*'Master Data'!$J$37)) -> 40.39451182 | H103: =IF($C103="NA","",IF($B103=0,"",OFFSET('Combined Annuity Prices PL'!$B$10,MATCH($B103,'Combined Annuity Prices PL'!$B$10:$B$3811,0)+12,H$7)*'Master Data'!$J$37)) -> 40.12689545 | I103: =IF($C103="NA","",IF($B103=0,"",OFFSET('Combined Annuity Prices PL'!$B$10,MATCH($B103,'Combined Annuity Prices PL'!$B$10:$B$3811,0)+12,I$7)*'Master Data'!$J$37)) -> 39.83438455 | Q103: 0 | R103: 0 | S103: 0 | T103: 0 | U103: 0 | AC103: =IFERROR(VLOOKUP($B103,Volumes!$B$39:$H$81,MATCH(AC$9,Volumes!$B$4:$H$4,0),FALSE),0) -> 0 | AD103: =IFERROR(VLOOKUP($B103,Volumes!$B$39:$H$81,MATCH(AD$9,Volumes!$B$4:$H$4,0),FALSE),0) -> 0 | AE103: =IFERROR(VLOOKUP($B103,Volumes!$B$39:$H$81,MATCH(AE$9,Volumes!$B$4:$H$4,0),FALSE),0) -> 0 | AF103: =IFERROR(VLOOKUP($B103,Volumes!$B$39:$H$81,MATCH(AF$9,Volumes!$B$4:$H$4,0),FALSE),0) -> 0 | AG103: =IFERROR(VLOOKUP($B103,Volumes!$B$39:$H$81,MATCH(AG$9,Volumes!$B$4:$H$4,0),FALSE),0) -> 0
B104: =Inputs!$C100 -> 60W Incandescent | C104: Old light no volumes | D104: 32.786 | E104: =IF($C104="NA","",IF($B104=0,"",OFFSET('Combined Annuity Prices PL'!$B$10,MATCH($B104,'Combined Annuity Prices PL'!$B$10:$B$3811,0)+12,E$7)*'Master Data'!$J$37)) -> 39.77526 | F104: =IF($C104="NA","",IF($B104=0,"",OFFSET('Combined Annuity Prices PL'!$B$10,MATCH($B104,'Combined Annuity Prices PL'!$B$10:$B$3811,0)+12,F$7)*'Master Data'!$J$37)) -> 39.53876182 | G104: =IF($C104="NA","",IF($B104=0,"",OFFSET('Combined Annuity Prices PL'!$B$10,MATCH($B104,'Combined Annuity Prices PL'!$B$10:$B$3811,0)+12,G$7)*'Master Data'!$J$37)) -> 33.93334 | H104: =IF($C104="NA","",IF($B104=0,"",OFFSET('Combined Annuity Prices PL'!$B$10,MATCH($B104,'Combined Annuity Prices PL'!$B$10:$B$3811,0)+12,H$7)*'Master Data'!$J$37)) -> 33.66157455 | I104: =IF($C104="NA","",IF($B104=0,"",OFFSET('Combined Annuity Prices PL'!$B$10,MATCH($B104,'Combined Annuity Prices PL'!$B$10:$B$3811,0)+12,I$7)*'Master Data'!$J$37)) -> 33.38151091 | Q104: 0 | R104: 0 | S104: 0 | T104: 0 | U104: 0 | AC104: =IFERROR(VLOOKUP($B104,Volumes!$B$39:$H$81,MATCH(AC$9,Volumes!$B$4:$H$4,0),FALSE),0) -> 0 | AD104: =IFERROR(VLOOKUP($B104,Volumes!$B$39:$H$81,MATCH(AD$9,Volumes!$B$4:$H$4,0),FALSE),0) -> 0 | AE104: =IFERROR(VLOOKUP($B104,Volumes!$B$39:$H$81,MATCH(AE$9,Volumes!$B$4:$H$4,0),FALSE),0) -> 0 | AF104: =IFERROR(VLOOKUP($B104,Volumes!$B$39:$H$81,MATCH(AF$9,Volumes!$B$4:$H$4,0),FALSE),0) -> 0 | AG104: =IFERROR(VLOOKUP($B104,Volumes!$B$39:$H$81,MATCH(AG$9,Volumes!$B$4:$H$4,0),FALSE),0) -> 0
B105: =Inputs!$C101 -> 18W LED | C105: Offered | D105: 34.339 | E105: =IF($C105="NA","",IF($B105=0,"",OFFSET('Combined Annuity Prices PL'!$B$10,MATCH($B105,'Combined Annuity Prices PL'!$B$10:$B$3811,0)+12,E$7)*'Master Data'!$J$37)) -> 40.52935727 | F105: =IF($C105="NA","",IF($B105=0,"",OFFSET('Combined Annuity Prices PL'!$B$10,MATCH($B105,'Combined Annuity Prices PL'!$B$10:$B$3811,0)+12,F$7)*'Master Data'!$J$37)) -> 40.29493364 | G105: =IF($C105="NA","",IF($B105=0,"",OFFSET('Combined Annuity Prices PL'!$B$10,MATCH($B105,'Combined Annuity Prices PL'!$B$10:$B$3811,0)+12,G$7)*'Master Data'!$J$37)) -> 34.68847455 | H105: =IF($C105="NA","",IF($B105=0,"",OFFSET('Combined Annuity Prices PL'!$B$10,MATCH($B105,'Combined Annuity Prices PL'!$B$10:$B$3811,0)+12,H$7)*'Master Data'!$J$37)) -> 34.41567182 | I105: =IF($C105="NA","",IF($B105=0,"",OFFSET('Combined Annuity Prices PL'!$B$10,MATCH($B105,'Combined Annuity Prices PL'!$B$10:$B$3811,0)+12,I$7)*'Master Data'!$J$37)) -> 34.13145909 | Q105: =IF($C105="NA","",E105*AC105*Q$6/100/10^6) -> 0.05340148114 | R105: =IF($C105="NA","",F105*AD105*R$6/100/10^6) -> 0.0529475428 | S105: =IF($C105="NA","",G105*AE105*S$6/100/10^6) -> 0.04558065555 | T105: =IF($C105="NA","",H105*AF105*T$6/100/10^6) -> 0.04522219277 | U105: =IF($C105="NA","",I105*AG105*U$6/100/10^6) -> 0.0449716105 | AC105: =IFERROR(VLOOKUP($B105,Volumes!$B$39:$H$81,MATCH(AC$9,Volumes!$B$4:$H$4,0),FALSE),0) -> 360 | AD105: =IFERROR(VLOOKUP($B105,Volumes!$B$39:$H$81,MATCH(AD$9,Volumes!$B$4:$H$4,0),FALSE),0) -> 360 | AE105: =IFERROR(VLOOKUP($B105,Volumes!$B$39:$H$81,MATCH(AE$9,Volumes!$B$4:$H$4,0),FALSE),0) -> 360 | AF105: =IFERROR(VLOOKUP($B105,Volumes!$B$39:$H$81,MATCH(AF$9,Volumes!$B$4:$H$4,0),FALSE),0) -> 360 | AG105: =IFERROR(VLOOKUP($B105,Volumes!$B$39:$H$81,MATCH(AG$9,Volumes!$B$4:$H$4,0),FALSE),0) -> 360
B106: =Inputs!$C102 -> 18W LED Decorative - Bottom Pole Entry | C106: Offered | D106: 48.088 | E106: =IF($C106="NA","",IF($B106=0,"",OFFSET('Combined Annuity Prices PL'!$B$10,MATCH($B106,'Combined Annuity Prices PL'!$B$10:$B$3811,0)+12,E$7)*'Master Data'!$J$37)) -> 53.17163727 | F106: =IF($C106="NA","",IF($B106=0,"",OFFSET('Combined Annuity Prices PL'!$B$10,MATCH($B106,'Combined Annuity Prices PL'!$B$10:$B$3811,0)+12,F$7)*'Master Data'!$J$37)) -> 52.97144364 | G106: =IF($C106="NA","",IF($B106=0,"",OFFSET('Combined Annuity Prices PL'!$B$10,MATCH($B106,'Combined Annuity Prices PL'!$B$10:$B$3811,0)+12,G$7)*'Master Data'!$J$37)) -> 47.36498455 | H106: =IF($C106="NA","",IF($B106=0,"",OFFSET('Combined Annuity Prices PL'!$B$10,MATCH($B106,'Combined Annuity Prices PL'!$B$10:$B$3811,0)+12,H$7)*'Master Data'!$J$37)) -> 47.09218182 | I106: =IF($C106="NA","",IF($B106=0,"",OFFSET('Combined Annuity Prices PL'!$B$10,MATCH($B106,'Combined Annuity Prices PL'!$B$10:$B$3811,0)+12,I$7)*'Master Data'!$J$37)) -> 46.77373909 | Q106: 0.007005894927 | R106: 0.007347139232 | S106: 0.006915287744 | T106: 0.007219231473 | U106: 0.007532442943 | AC106: =IFERROR(VLOOKUP($B106,Volumes!$B$39:$H$81,MATCH(AC$9,Volumes!$B$4:$H$4,0),FALSE),0) -> 36 | AD106: =IFERROR(VLOOKUP($B106,Volumes!$B$39:$H$81,MATCH(AD$9,Volumes!$B$4:$H$4,0),FALSE),0) -> 38 | AE106: =IFERROR(VLOOKUP($B106,Volumes!$B$39:$H$81,MATCH(AE$9,Volumes!$B$4:$H$4,0),FALSE),0) -> 40 | AF106: =IFERROR(VLOOKUP($B106,Volumes!$B$39:$H$81,MATCH(AF$9,Volumes!$B$4:$H$4,0),FALSE),0) -> 42 | AG106: =IFERROR(VLOOKUP($B106,Volumes!$B$39:$H$81,MATCH(AG$9,Volumes!$B$4:$H$4,0),FALSE),0) -> 44
B107: =Inputs!$C103 -> 18W LED Decorative - Side Entry | C107: Offered | D107: 48.088 | E107: =IF($C107="NA","",IF($B107=0,"",OFFSET('Combined Annuity Prices PL'!$B$10,MATCH($B107,'Combined Annuity Prices PL'!$B$10:$B$3811,0)+12,E$7)*'Master Data'!$J$37)) -> 53.17163727 | F107: =IF($C107="NA","",IF($B107=0,"",OFFSET('Combined Annuity Prices PL'!$B$10,MATCH($B107,'Combined Annuity Prices PL'!$B$10:$B$3811,0)+12,F$7)*'Master Data'!$J$37)) -> 52.97144364 | G107: =IF($C107="NA","",IF($B107=0,"",OFFSET('Combined Annuity Prices PL'!$B$10,MATCH($B107,'Combined Annuity Prices PL'!$B$10:$B$3811,0)+12,G$7)*'Master Data'!$J$37)) -> 47.36498455 | H107: =IF($C107="NA","",IF($B107=0,"",OFFSET('Combined Annuity Prices PL'!$B$10,MATCH($B107,'Combined Annuity Prices PL'!$B$10:$B$3811,0)+12,H$7)*'Master Data'!$J$37)) -> 47.09218182 | I107: =IF($C107="NA","",IF($B107=0,"",OFFSET('Combined Annuity Prices PL'!$B$10,MATCH($B107,'Combined Annuity Prices PL'!$B$10:$B$3811,0)+12,I$7)*'Master Data'!$J$37)) -> 46.77373909 | Q107: 0.007005894927 | R107: 0.007347139232 | S107: 0.006915287744 | T107: 0.007219231473 | U107: 0.007532442943 | AC107: =IFERROR(VLOOKUP($B107,Volumes!$B$39:$H$81,MATCH(AC$9,Volumes!$B$4:$H$4,0),FALSE),0) -> 36 | AD107: =IFERROR(VLOOKUP($B107,Volumes!$B$39:$H$81,MATCH(AD$9,Volumes!$B$4:$H$4,0),FALSE),0) -> 38 | AE107: =IFERROR(VLOOKUP($B107,Volumes!$B$39:$H$81,MATCH(AE$9,Volumes!$B$4:$H$4,0),FALSE),0) -> 40 | AF107: =IFERROR(VLOOKUP($B107,Volumes!$B$39:$H$81,MATCH(AF$9,Volumes!$B$4:$H$4,0),FALSE),0) -> 42 | AG107: =IFERROR(VLOOKUP($B107,Volumes!$B$39:$H$81,MATCH(AG$9,Volumes!$B$4:$H$4,0),FALSE),0) -> 44
B108: =Inputs!$C104 -> 18W LED Decorative - Top Entry | C108: Offered | D108: 48.088 | E108: =IF($C108="NA","",IF($B108=0,"",OFFSET('Combined Annuity Prices PL'!$B$10,MATCH($B108,'Combined Annuity Prices PL'!$B$10:$B$3811,0)+12,E$7)*'Master Data'!$J$37)) -> 53.17163727 | F108: =IF($C108="NA","",IF($B108=0,"",OFFSET('Combined Annuity Prices PL'!$B$10,MATCH($B108,'Combined Annuity Prices PL'!$B$10:$B$3811,0)+12,F$7)*'Master Data'!$J$37)) -> 52.97144364 | G108: =IF($C108="NA","",IF($B108=0,"",OFFSET('Combined Annuity Prices PL'!$B$10,MATCH($B108,'Combined Annuity Prices PL'!$B$10:$B$3811,0)+12,G$7)*'Master Data'!$J$37)) -> 47.36498455 | H108: =IF($C108="NA","",IF($B108=0,"",OFFSET('Combined Annuity Prices PL'!$B$10,MATCH($B108,'Combined Annuity Prices PL'!$B$10:$B$3811,0)+12,H$7)*'Master Data'!$J$37)) -> 47.09218182 | I108: =IF($C108="NA","",IF($B108=0,"",OFFSET('Combined Annuity Prices PL'!$B$10,MATCH($B108,'Combined Annuity Prices PL'!$B$10:$B$3811,0)+12,I$7)*'Master Data'!$J$37)) -> 46.77373909 | Q108: 0.007005894927 | R108: 0.007347139232 | S108: 0.006915287744 | T108: 0.007219231473 | U108: 0.007532442943 | AC108: =IFERROR(VLOOKUP($B108,Volumes!$B$39:$H$81,MATCH(AC$9,Volumes!$B$4:$H$4,0),FALSE),0) -> 36 | AD108: =IFERROR(VLOOKUP($B108,Volumes!$B$39:$H$81,MATCH(AD$9,Volumes!$B$4:$H$4,0),FALSE),0) -> 38 | AE108: =IFERROR(VLOOKUP($B108,Volumes!$B$39:$H$81,MATCH(AE$9,Volumes!$B$4:$H$4,0),FALSE),0) -> 40 | AF108: =IFERROR(VLOOKUP($B108,Volumes!$B$39:$H$81,MATCH(AF$9,Volumes!$B$4:$H$4,0),FALSE),0) -> 42 | AG108: =IFERROR(VLOOKUP($B108,Volumes!$B$39:$H$81,MATCH(AG$9,Volumes!$B$4:$H$4,0),FALSE),0) -> 44
B109: =Inputs!$C105 -> 25W LED | C109: Offered | D109: 34.339 | E109: =IF($C109="NA","",IF($B109=0,"",OFFSET('Combined Annuity Prices PL'!$B$10,MATCH($B109,'Combined Annuity Prices PL'!$B$10:$B$3811,0)+12,E$7)*'Master Data'!$J$37)) -> 40.74718455 | F109: =IF($C109="NA","",IF($B109=0,"",OFFSET('Combined Annuity Prices PL'!$B$10,MATCH($B109,'Combined Annuity Prices PL'!$B$10:$B$3811,0)+12,F$7)*'Master Data'!$J$37)) -> 40.51276091 | G109: =IF($C109="NA","",IF($B109=0,"",OFFSET('Combined Annuity Prices PL'!$B$10,MATCH($B109,'Combined Annuity Prices PL'!$B$10:$B$3811,0)+12,G$7)*'Master Data'!$J$37)) -> 34.90630182 | H109: =IF($C109="NA","",IF($B109=0,"",OFFSET('Combined Annuity Prices PL'!$B$10,MATCH($B109,'Combined Annuity Prices PL'!$B$10:$B$3811,0)+12,H$7)*'Master Data'!$J$37)) -> 34.63246182 | I109: =IF($C109="NA","",IF($B109=0,"",OFFSET('Combined Annuity Prices PL'!$B$10,MATCH($B109,'Combined Annuity Prices PL'!$B$10:$B$3811,0)+12,I$7)*'Master Data'!$J$37)) -> 34.34824909 | Q109: 0.003131828604 | R109: 0.003105303124 | S109: 0.002675568034 | T109: 0.002654578198 | U109: 0.002640006425 | AC109: =IFERROR(VLOOKUP($B109,Volumes!$B$39:$H$81,MATCH(AC$9,Volumes!$B$4:$H$4,0),FALSE),0) -> 21 | AD109: =IFERROR(VLOOKUP($B109,Volumes!$B$39:$H$81,MATCH(AD$9,Volumes!$B$4:$H$4,0),FALSE),0) -> 21 | AE109: =IFERROR(VLOOKUP($B109,Volumes!$B$39:$H$81,MATCH(AE$9,Volumes!$B$4:$H$4,0),FALSE),0) -> 21 | AF109: =IFERROR(VLOOKUP($B109,Volumes!$B$39:$H$81,MATCH(AF$9,Volumes!$B$4:$H$4,0),FALSE),0) -> 21 | AG109: =IFERROR(VLOOKUP($B109,Volumes!$B$39:$H$81,MATCH(AG$9,Volumes!$B$4:$H$4,0),FALSE),0) -> 21
B110: =Inputs!$C106 -> 25W LED Decorative - Bottom Pole Entry | C110: Offered | D110: 48.088 | E110: =IF($C110="NA","",IF($B110=0,"",OFFSET('Combined Annuity Prices PL'!$B$10,MATCH($B110,'Combined Annuity Prices PL'!$B$10:$B$3811,0)+12,E$7)*'Master Data'!$J$37)) -> 53.38946455 | F110: =IF($C110="NA","",IF($B110=0,"",OFFSET('Combined Annuity Prices PL'!$B$10,MATCH($B110,'Combined Annuity Prices PL'!$B$10:$B$3811,0)+12,F$7)*'Master Data'!$J$37)) -> 53.18927091 | G110: =IF($C110="NA","",IF($B110=0,"",OFFSET('Combined Annuity Prices PL'!$B$10,MATCH($B110,'Combined Annuity Prices PL'!$B$10:$B$3811,0)+12,G$7)*'Master Data'!$J$37)) -> 47.58281182 | H110: =IF($C110="NA","",IF($B110=0,"",OFFSET('Combined Annuity Prices PL'!$B$10,MATCH($B110,'Combined Annuity Prices PL'!$B$10:$B$3811,0)+12,H$7)*'Master Data'!$J$37)) -> 47.31000909 | I110: =IF($C110="NA","",IF($B110=0,"",OFFSET('Combined Annuity Prices PL'!$B$10,MATCH($B110,'Combined Annuity Prices PL'!$B$10:$B$3811,0)+12,I$7)*'Master Data'!$J$37)) -> 46.99052909 | Q110: 0.007034595849 | R110: 0.007377351875 | S110: 0.006947090525 | T110: 0.007252624394 | U110: 0.007567354805 | AC110: =IFERROR(VLOOKUP($B110,Volumes!$B$39:$H$81,MATCH(AC$9,Volumes!$B$4:$H$4,0),FALSE),0) -> 36 | AD110: =IFERROR(VLOOKUP($B110,Volumes!$B$39:$H$81,MATCH(AD$9,Volumes!$B$4:$H$4,0),FALSE),0) -> 38 | AE110: =IFERROR(VLOOKUP($B110,Volumes!$B$39:$H$81,MATCH(AE$9,Volumes!$B$4:$H$4,0),FALSE),0) -> 40 | AF110: =IFERROR(VLOOKUP($B110,Volumes!$B$39:$H$81,MATCH(AF$9,Volumes!$B$4:$H$4,0),FALSE),0) -> 42 | AG110: =IFERROR(VLOOKUP($B110,Volumes!$B$39:$H$81,MATCH(AG$9,Volumes!$B$4:$H$4,0),FALSE),0) -> 44
